Workbook

Sheet A venir

Sheet Feuil3
A1: http://commerciaux.celca.caisse-epargne.fr/download/166/segmentation-activation/8760/segmentation_cegee.pdf

Sheet Infos segmentation

Sheet EDS
A1: eds pdv | B1: pdv | C1: eds pdv | D1: agence | E1: territoire | F1: région | I1: AUBE_HAUTE_MARNE | J1: BAS_RHIN | K1: HAUT_RHIN | L1: MARNE_ARDENNES | M1: MEURTHE_ET_MOSELLE_MEUSE | N1: MOSELLE | O1: VOSGES | P1: DISTRIBUTION_DEVELOPPEMENT_DIGIT | Q1: CEGEE | R1: CHAUMONT | S1: TROYES | T1: HAGUENAU | U1: SELESTAT | V1: STRASBOURG | W1: COLMAR | X1: MULHOUSE | Y1: CHALONS_EN_CHAMPAGNE | Z1: CHARLEVILLE_MEZIERES | AA1: REIMS | AB1: NANCY | AC1: PONT_A_MOUSSON | AD1: VERDUN | AE1: METZ | AF1: MOSELLE_EST | AG1: MOSELLE_NORD | AH1: EPINAL | AI1: SAINT_DIE | AJ1: MON_AGENCE | AK1: EXPERTS_ONLINE | AL1: EXPERTS_DIRECT
A2: 10541 | B2: LANGRES | C2: 410541 | D2: LANGRES | E2: CHAUMONT | F2: AUBE_HAUTE_MARNE | I2: CHAUMONT | J2: HAGUENAU | K2: COLMAR | L2: CHALONS_EN_CHAMPAGNE | M2: NANCY | N2: METZ | O2: EPINAL | P2: MON_AGENCE | R2: BOURBONNE LES BAINS | S2: AIX EN OTHE | T2: BISCHWILLER | U2: BARR | V2: BISCHHEIM | W2: COLMAR MARAICHERS | X2: ALTKIRCH | Y2: CHALONS ROOSEVELT | Z2: CARIGNAN | AA2: AY CHAMPAGNE | AB2: BACCARAT | AC2: BRIEY | AD2: BAR LE DUC | AE2: ARS SUR MOSELLE | AF2: BEHREN LES FORBACH | AG2: AUDUN LE TICHE | AH2: CHANTRAINE | AI2: BRUYERES | AJ2: MON AGENCE | AK2: EXPERTS ONLINE | AL2: EXPERTS DIRECT
A3: 10560 | B3: BOURBONNE LES BAINS | C3: 410541 | D3: LANGRES | E3: CHAUMONT | F3: AUBE_HAUTE_MARNE | I3: TROYES | J3: SELESTAT | K3: MULHOUSE | L3: CHARLEVILLE_MEZIERES | M3: PONT_A_MOUSSON | N3: MOSELLE_EST | O3: SAINT_DIE | P3: EXPERTS_ONLINE | R3: CHALINDREY | S3: ARCIS SUR AUBE | T3: DRUSENHEIM | U3: BENFELD | V3: LA WANTZENAU | W3: COLMAR REPUBLIQUE | X3: FERRETTE | Y3: CHALONS VIVIERS | Z3: CHARLEVILLE JEAN JAURES | AA3: BETHENY | AB3: BLAINVILLE | AC3: CHALIGNY NEUVES MAISONS | AD3: COMMERCY | AE3: BOULAY | AF3: BITCHE | AG3: BOUSSE | AH3: CHARMES | AI3: CORNIMONT LA BRESSE
A4: 10566 | B4: CHAUMONT HOTEL DE VILLE | C4: 410566 | D4: CHAUMONT HOTEL DE VILLE | E4: CHAUMONT | F4: AUBE_HAUTE_MARNE | J4: STRASBOURG | L4: REIMS | M4: VERDUN | N4: MOSELLE_NORD | P4: EXPERTS_DIRECT | R4: CHAUMONT HOTEL DE VILLE | S4: BAR SUR AUBE | T4: BOUXWILLER | U4: ERSTEIN | V4: VENDENHEIM | W4: COLMAR SAINTE MARIE | X4: BRUNSTATT | Y4: FAGNIERES LECLERC | Z4: CHARLEVILLE MEZIERES | AA4: DAMERY | AB4: BLAMONT | AC4: CHAMPIGNEULLES | AD4: ETAIN | AE4: BOUZONVILLE | AF4: CHATEAU SALINS | AG4: CATTENOM | AH4: DARNEY | AI4: FRAIZE
A5: 10582 | B5: NOGENT | C5: 410566 | D5: CHAUMONT HOTEL DE VILLE | E5: CHAUMONT | F5: AUBE_HAUTE_MARNE | R5: CHAUMONT REPUBLIQUE | S5: BAR SUR SEINE | T5: BRUMATH | U5: FEGERSHEIM | V5: MUNDOLSHEIM | W5: ENSISHEIM | X5: CERNAY | Y5: MONTMIRAIL | Z5: CHARLEVILLE NEVERS | AA5: DORMANS | AB5: DOMBASLE SUR MEURTHE | AC5: DIEULOUARD | AD5: LIGNY EN BARROIS | AE5: CLOUANGE | AF5: CREUTZWALD | AG5: FAMECK | AH5: ELOYES | AI5: GERARDMER
A6: 51151 | B6: WASSY | C6: 451151 | D6: WASSY | E6: CHAUMONT | F6: AUBE_HAUTE_MARNE | R6: JOINVILLE | S6: BRIENNE LE CHATEAU | T6: HAGUENAU HOUBLON | U6: ILLKIRCH CENTRE | V6: OBERHAUSBERGEN | W6: GUEBWILLER | X6: SEPPOIS LE BAS | Y6: SUIPPES | Z6: GIVET | AA6: EPERNAY | AB6: ESSEY LES NANCY | AC6: JARNY | AD6: LONGUYON | AE6: MAIZIERES LES METZ | AF6: DIEUZE | AG6: FLORANGE | AH6: EPINAL ARISTIDE BRIAND | AI6: LE THILLOT
A7: 51154 | B7: JOINVILLE | C7: 451154 | D7: JOINVILLE | E7: CHAUMONT | F7: AUBE_HAUTE_MARNE | R7: LANGRES | S7: LA CHAPELLE ST LUC | T7: HAGUENAU MUSAU | U7: LINGOLSHEIM | V7: REICHSTETT | W7: HORBOURG WIHR | X7: DANNEMARIE | Y7: MOURMELON LE GRAND | Z7: MOUZON | AA7: FISMES | AB7: JARVILLE LA MALGRANGE | AC7: JOEUF | AD7: LONGWY BAS | AE7: MARANGE SILVANGE | AF7: FAULQUEMONT | AG7: FONTOY | AH7: EPINAL LEOPOLD BOURG | AI7: MOYENMOUTIER
A8: 51156 | B8: SAINT DIZIER CENTRE | C8: 451156 | D8: SAINT DIZIER CENTRE | E8: CHAUMONT | F8: AUBE_HAUTE_MARNE | R8: NOGENT | S8: NOGENT SUR SEINE | T8: HOCHFELDEN | U8: MARCKOLSHEIM | V8: SCHILTIGHEIM CENTRE | W8: INGERSHEIM | X8: ILLZACH | Y8: SAINTE MENEHOULD | Z8: RETHEL | AA8: PIERRY LECLERC | AB8: LUNEVILLE CARNOT | AC8: LAXOU ARISTIDE BRIAND | AD8: LONGWY HAUT | AE8: MARLY | AF8: FORBACH CENTRALE | AG8: GUENANGE | AH8: GOLBEY | AI8: RAMBERVILLERS
A9: 10558 | B9: CHALINDREY | C9: 410541 | D9: LANGRES | E9: CHAUMONT | F9: AUBE_HAUTE_MARNE | R9: SAINT DIZIER CENTRE | S9: ROMILLY SUR SEINE | T9: HOERDT | U9: MARLENHEIM | V9: STRASBOURG ANVERS | W9: KAYSERSBERG | X9: MASEVAUX | Y9: SARRY | Z9: REVIN | AA9: REIMS CENTRE VILLE | AB9: NANCY ARTEM | AC9: LAXOU BOUFFLERS | AD9: MONTMEDY | AE9: METZ CATHEDRALE | AF9: MERLEBACH | AG9: HAGONDANGE | AH9: LE VAL D AJOL | AI9: RAON L ETAPE
A10: 10590 | B10: CHAUMONT REPUBLIQUE | C10: 510590 | D10: CHAUMONT REPUBLIQUE | E10: CHAUMONT | F10: AUBE_HAUTE_MARNE | R10: SAINT DIZIER EUROPE | S10: SAINT ANDRE LES VERGERS | T10: INGWILLER | U10: MOLSHEIM | V10: STRASBOURG AUSTERLITZ | W10: MUNSTER | X10: MULHOUSE DORNACH | Y10: SEZANNE | Z10: ROCROI | AA10: REIMS CHATILLONS | AB10: NANCY PLACE DOMBASLE | AC10: LUDRES | AD10: REVIGNY SUR ORNAIN | AE10: METZ MOZART | AF10: MORHANGE | AG10: HAYANGE | AH10: MIRECOURT | AI10: SAINT DIE
A11: 51157 | B11: SAINT DIZIER EUROPE | C11: 451156 | D11: SAINT DIZIER CENTRE | E11: CHAUMONT | F11: AUBE_HAUTE_MARNE | R11: WASSY | S11: SAINT JULIEN LES VILLAS | T11: NIEDERBRONN LES BAINS | U11: MUTZIG | V11: STRASBOURG CRONENBOURG | W11: MUNTZENHEIM | X11: MULHOUSE REUNION | Y11: VERTUS | Z11: SEDAN | AA11: REIMS HIPPODROME | AB11: NANCY POINT CENTRAL | AC11: NANCY TROIS MAISONS | AD11: SAINT MIHIEL | AE11: METZ PLAPPEVILLE | AF11: NEUNKIRCH | AG11: HETTANGE GRANDE | AH11: NEUFCHATEAU | AI11: SENONES
A12: 10510 | B12: TROYES GAMBETTA | C12: 410510 | D12: TROYES GAMBETTA | E12: TROYES | F12: AUBE_HAUTE_MARNE | S12: SAINTE SAVINE | T12: PFAFFENHOFFEN | U12: OBERNAI | V12: STRASBOURG DANUBE | W12: NEUF BRISACH | X12: PFASTATT | Y12: VITRY LE FRANCOIS | Z12: VILLERS SEMEUSE CORA | AA12: REIMS HOTEL DE VILLE | AB12: NANCY SAINT SEBASTIEN | AC12: PAGNY SUR MOSELLE | AD12: STENAY | AE12: METZ POMPIDOU | AF12: PHALSBOURG | AG12: METZERVISSE | AH12: NOMEXY | AI12: VAGNEY
A13: 10512 | B13: TROYES ZOLA | C13: 410512 | D13: TROYES ZOLA | E13: TROYES | F13: AUBE_HAUTE_MARNE | S13: SAINT PARRES AUX TERTRES | T13: SARRE UNION | U13: ROSHEIM | V13: STRASBOURG FRANCS BOURGEOIS | W13: ORBEY | X13: RIEDISHEIM | Z13: VOUZIERS | AA13: REIMS JEAN JAURES | AB13: SAINT MAX | AC13: POMPEY | AD13: VAUCOULEURS | AE13: METZ REPUBLIQUE | AF13: PUTTELANGE AUX LACS | AG13: NILVANGE | AH13: REMIREMONT
A14: 10521 | B14: SAINTE SAVINE | C14: 410521 | D14: SAINTE SAVINE | E14: TROYES | F14: AUBE_HAUTE_MARNE | S14: TROYES GAMBETTA | T14: SAVERNE | U14: SCHIRMECK | V14: STRASBOURG HALLES | W14: RIBEAUVILLE | X14: RIXHEIM | AA14: REIMS SAINT REMI | AB14: SAINT NICOLAS DE PORT | AC14: PONT A MOUSSON BREUIL | AD14: VERDUN CENTRALE | AE14: METZ SAINT LIVIER | AF14: SAINT AVOLD | AG14: SIERCK LES BAINS | AH14: THAON LES VOSGES
A15: 10524 | B15: SAINT JULIEN LES VILLAS | C15: 410524 | D15: SAINT JULIEN LES VILLAS | E15: TROYES | F15: AUBE_HAUTE_MARNE | S15: TROYES ZOLA | T15: SCHWEIGHOUSE SUR MODER | U15: SELESTAT CENTRE | V15: ECKBOLSHEIM | W15: ROUFFACH | X15: SAINT LOUIS | AA15: REIMS SAINT THOMAS | AB15: TOMBLAINE | AC15: PONT A MOUSSON CENTRALE | AD15: VERDUN MAZEL | AE15: METZ SAINT LOUIS | AF15: SARREBOURG | AG15: TERVILLE | AH15: VITTEL
A16: 10550 | B16: BAR SUR AUBE | C16: 410550 | D16: BAR SUR AUBE | E16: TROYES | F16: AUBE_HAUTE_MARNE | T16: SOUFFLENHEIM | U16: CHATENOIS | V16: STRASBOURG KOENIGSHOFFEN | W16: SAINTE MARIE AUX MINES | X16: SIERENTZ | AA16: TINQUEUX | AB16: VANDOEUVRE LES NANCY | AC16: TOUL | AD16: VILLERUPT | AE16: METZ SAINT MAXIMIN | AF16: SARREGUEMINES | AG16: THIONVILLE CENTRALE | AH16: XERTIGNY
A17: 10551 | B17: BRIENNE LE CHATEAU | C17: 410550 | D17: BAR SUR AUBE | E17: TROYES | F17: AUBE_HAUTE_MARNE | T17: SOULTZ SOUS FORETS | U17: VILLE | V17: STRASBOURG MEINAU | W17: SOULTZ | X17: THANN | AA17: VERZY | AC17: VEZELISE | AE17: METZ SARRE | AF17: STIRING WENDEL | AG17: THIONVILLE COTE DES ROSES
A18: 10571 | B18: ROMILLY SUR SEINE | C18: 410571 | D18: ROMILLY SUR SEINE | E18: TROYES | F18: AUBE_HAUTE_MARNE | T18: TRUCHTERSHEIM | U18: WASSELONNE | V18: STRASBOURG MONTAGNE VERTE | W18: WINTZENHEIM | X18: SAINT AMARIN | AC18: VILLERS GENERAL LECLERC | AE18: MONTIGNY LES METZ | AF18: VALMONT | AG18: UCKANGE
A19: 10583 | B19: AIX EN OTHE | C19: 510523 | D19: LA CHAPELLE ST LUC | E19: TROYES | F19: AUBE_HAUTE_MARNE | T19: WISSEMBOURG | V19: STRASBOURG NEUDORF | X19: WITTELSHEIM | AE19: MOULINS LES METZ | AG19: YUTZ
A20: 10513 | B20: SAINT PARRES AUX TERTRES | C20: 510513 | D20: SAINT PARRES AUX TERTRES | E20: TROYES | F20: AUBE_HAUTE_MARNE | T20: BETSCHDORF | V20: STRASBOURG ROBERTSAU | X20: WITTENHEIM | AE20: REMILLY
A21: 10520 | B21: SAINT ANDRE LES VERGERS | C21: 510520 | D21: SAINT ANDRE LES VERGERS | E21: TROYES | F21: AUBE_HAUTE_MARNE | T21: SELTZ | V21: STRASBOURG STOCKFELD | AE21: ROMBAS
A22: 10523 | B22: LA CHAPELLE ST LUC | C22: 510523 | D22: LA CHAPELLE ST LUC | E22: TROYES | F22: AUBE_HAUTE_MARNE | T22: WOERTH | V22: STRASBOURG VOSGES | AE22: SAINT JULIEN LES METZ
A23: 10530 | B23: ARCIS SUR AUBE | C23: 510530 | D23: ARCIS SUR AUBE | E23: TROYES | F23: AUBE_HAUTE_MARNE | AE23: SAINTE MARIE AUX CHENES
A24: 10556 | B24: BAR SUR SEINE | C24: 510556 | D24: BAR SUR SEINE | E24: TROYES | F24: AUBE_HAUTE_MARNE | AE24: WOIPPY
A25: 10570 | B25: NOGENT SUR SEINE | C25: 510570 | D25: NOGENT SUR SEINE | E25: TROYES | F25: AUBE_HAUTE_MARNE
A26: 30 | B26: BRUMATH | C26: 4030 | D26: BRUMATH | E26: HAGUENAU | F26: BAS_RHIN
A27: 31 | B27: TRUCHTERSHEIM | C27: 4031 | D27: TRUCHTERSHEIM | E27: HAGUENAU | F27: BAS_RHIN
A28: 41 | B28: HOERDT | C28: 4041 | D28: HOERDT | E28: HAGUENAU | F28: BAS_RHIN
A29: 57 | B29: BISCHWILLER | C29: 4057 | D29: BISCHWILLER | E29: HAGUENAU | F29: BAS_RHIN
A30: 58 | B30: DRUSENHEIM | C30: 4057 | D30: BISCHWILLER | E30: HAGUENAU | F30: BAS_RHIN
A31: 60 | B31: HAGUENAU HOUBLON | C31: 4060 | D31: HAGUENAU HOUBLON | E31: HAGUENAU | F31: BAS_RHIN
A32: 66 | B32: NIEDERBRONN LES BAINS | C32: 4066 | D32: NIEDERBRONN LES BAINS | E32: HAGUENAU | F32: BAS_RHIN
A33: 67 | B33: PFAFFENHOFFEN | C33: 4067 | D33: PFAFFENHOFFEN | E33: HAGUENAU | F33: BAS_RHIN
A34: 71 | B34: WISSEMBOURG | C34: 4071 | D34: WISSEMBOURG | E34: HAGUENAU | F34: BAS_RHIN
A35: 76 | B35: BETSCHDORF | C35: 4071 | D35: WISSEMBOURG | E35: HAGUENAU | F35: BAS_RHIN
A36: 77 | B36: SELTZ | C36: 4071 | D36: WISSEMBOURG | E36: HAGUENAU | F36: BAS_RHIN
A37: 73 | B37: SCHWEIGHOUSE SUR MODER | C37: 4060 | D37: HAGUENAU HOUBLON | E37: HAGUENAU | F37: BAS_RHIN
A38: 74 | B38: SOUFFLENHEIM | C38: 4057 | D38: BISCHWILLER | E38: HAGUENAU | F38: BAS_RHIN
A39: 79 | B39: SOULTZ SOUS FORETS | C39: 4079 | D39: SOULTZ SOUS FORETS | E39: HAGUENAU | F39: BAS_RHIN
A40: 80 | B40: WOERTH | C40: 4066 | D40: NIEDERBRONN LES BAINS | E40: HAGUENAU | F40: BAS_RHIN
A41: 82 | B41: BOUXWILLER | C41: 4082 | D41: BOUXWILLER | E41: HAGUENAU | F41: BAS_RHIN
A42: 85 | B42: INGWILLER | C42: 4085 | D42: INGWILLER | E42: HAGUENAU | F42: BAS_RHIN
A43: 87 | B43: SAVERNE | C43: 4087 | D43: SAVERNE | E43: HAGUENAU | F43: BAS_RHIN
A44: 92 | B44: HOCHFELDEN | C44: 4092 | D44: HOCHFELDEN | E44: HAGUENAU | F44: BAS_RHIN
A45: 95 | B45: SARRE UNION | C45: 4095 | D45: SARRE UNION | E45: HAGUENAU | F45: BAS_RHIN
A46: 7 | B46: ILLKIRCH CENTRE | C46: 4007 | D46: ILLKIRCH CENTRE | E46: SELESTAT | F46: BAS_RHIN
A47: 8 | B47: FEGERSHEIM | C47: 4008 | D47: FEGERSHEIM | E47: SELESTAT | F47: BAS_RHIN
A48: 15 | B48: LINGOLSHEIM | C48: 4015 | D48: LINGOLSHEIM | E48: SELESTAT | F48: BAS_RHIN
A49: 101 | B49: SELESTAT CENTRE | C49: 4101 | D49: SELESTAT CENTRE | E49: SELESTAT | F49: BAS_RHIN
A50: 108 | B50: CHATENOIS | C50: 4101 | D50: SELESTAT CENTRE | E50: SELESTAT | F50: BAS_RHIN
A51: 104 | B51: ERSTEIN | C51: 4104 | D51: ERSTEIN | E51: SELESTAT | F51: BAS_RHIN
A52: 107 | B52: VILLE | C52: 4107 | D52: VILLE | E52: SELESTAT | F52: BAS_RHIN
A53: 109 | B53: MARCKOLSHEIM | C53: 4109 | D53: MARCKOLSHEIM | E53: SELESTAT | F53: BAS_RHIN
A54: 111 | B54: BENFELD | C54: 4111 | D54: BENFELD | E54: SELESTAT | F54: BAS_RHIN
A55: 113 | B55: BARR | C55: 4113 | D55: BARR | E55: SELESTAT | F55: BAS_RHIN
A56: 116 | B56: MOLSHEIM | C56: 4116 | D56: MOLSHEIM | E56: SELESTAT | F56: BAS_RHIN
A57: 119 | B57: OBERNAI | C57: 4119 | D57: OBERNAI | E57: SELESTAT | F57: BAS_RHIN
A58: 120 | B58: WASSELONNE | C58: 4120 | D58: WASSELONNE | E58: SELESTAT | F58: BAS_RHIN
A59: 121 | B59: SCHIRMECK | C59: 4121 | D59: SCHIRMECK | E59: SELESTAT | F59: BAS_RHIN
A60: 126 | B60: MUTZIG | C60: 4126 | D60: MUTZIG | E60: SELESTAT | F60: BAS_RHIN
A61: 127 | B61: ROSHEIM | C61: 4127 | D61: ROSHEIM | E61: SELESTAT | F61: BAS_RHIN
A62: 129 | B62: MARLENHEIM | C62: 4120 | D62: WASSELONNE | E62: SELESTAT | F62: BAS_RHIN
A63: 6 | B63: STRASBOURG NEUDORF | C63: 4006 | D63: STRASBOURG NEUDORF | E63: STRASBOURG | F63: BAS_RHIN
A64: 10 | B64: STRASBOURG MEINAU | C64: 4010 | D64: STRASBOURG MEINAU | E64: STRASBOURG | F64: BAS_RHIN
A65: 12 | B65: STRASBOURG STOCKFELD | C65: 4006 | D65: STRASBOURG NEUDORF | E65: STRASBOURG | F65: BAS_RHIN
A66: 19 | B66: STRASBOURG ANVERS | C66: 4019 | D66: STRASBOURG ANVERS | E66: STRASBOURG | F66: BAS_RHIN
A67: 20 | B67: STRASBOURG ROBERTSAU | C67: 4020 | D67: STRASBOURG ROBERTSAU | E67: STRASBOURG | F67: BAS_RHIN
A68: 23 | B68: STRASBOURG VOSGES | C68: 4023 | D68: STRASBOURG VOSGES | E68: STRASBOURG | F68: BAS_RHIN
A69: 24 | B69: STRASBOURG AUSTERLITZ | C69: 4024 | D69: STRASBOURG AUSTERLITZ | E69: STRASBOURG | F69: BAS_RHIN
A70: 26 | B70: STRASBOURG DANUBE | C70: 4026 | D70: STRASBOURG DANUBE | E70: STRASBOURG | F70: BAS_RHIN
A71: 27 | B71: SCHILTIGHEIM CENTRE | C71: 4027 | D71: SCHILTIGHEIM CENTRE | E71: STRASBOURG | F71: BAS_RHIN
A72: 28 | B72: BISCHHEIM | C72: 4028 | D72: BISCHHEIM | E72: STRASBOURG | F72: BAS_RHIN
A73: 29 | B73: SCHILTIGHEIM KLEBER | C73: 4029 | D73: SCHILTIGHEIM KLEBER | E73: STRASBOURG | F73: BAS_RHIN
A74: 33 | B74: LA WANTZENAU | C74: 4020 | D74: STRASBOURG ROBERTSAU | E74: STRASBOURG | F74: BAS_RHIN
A75: 34 | B75: VENDENHEIM | C75: 4037 | D75: MUNDOLSHEIM | E75: STRASBOURG | F75: BAS_RHIN
A76: 37 | B76: MUNDOLSHEIM | C76: 4037 | D76: MUNDOLSHEIM | E76: STRASBOURG | F76: BAS_RHIN
A77: 38 | B77: OBERHAUSBERGEN | C77: 4038 | D77: OBERHAUSBERGEN | E77: STRASBOURG | F77: BAS_RHIN
A78: 39 | B78: REICHSTETT | C78: 4039 | D78: REICHSTETT | E78: STRASBOURG | F78: BAS_RHIN
A79: 18 | B79: ESPACE MESANGE | C79: 4043 | D79: STRASBOURG HALLES | E79: STRASBOURG | F79: BAS_RHIN
A80: 43 | B80: STRASBOURG HALLES | C80: 4043 | D80: STRASBOURG HALLES | E80: STRASBOURG | F80: BAS_RHIN
A81: 45 | B81: STRASBOURG FRANCS BOURGEOIS | C81: 4045 | D81: STRASBOURG FRANCS BOURGEOIS | E81: STRASBOURG | F81: BAS_RHIN
A82: 47 | B82: STRASBOURG CRONENBOURG | C82: 4047 | D82: STRASBOURG CRONENBOURG | E82: STRASBOURG | F82: BAS_RHIN
A83: 40 | B83: ECKBOLSHEIM | C83: 4038 | D83: OBERHAUSBERGEN | E83: STRASBOURG | F83: BAS_RHIN
A84: 48 | B84: STRASBOURG KOENIGSHOFFEN | C84: 4048 | D84: STRASBOURG KOENIGSHOFFEN | E84: STRASBOURG | F84: BAS_RHIN
A85: 54 | B85: STRASBOURG MONTAGNE VERTE | C85: 4054 | D85: STRASBOURG MONTAGNE VERTE | E85: STRASBOURG | F85: BAS_RHIN
A86: 130 | B86: COLMAR REPUBLIQUE | C86: 4130 | D86: COLMAR REPUBLIQUE | E86: COLMAR | F86: HAUT_RHIN
A87: 132 | B87: COLMAR MARAICHERS | C87: 4132 | D87: COLMAR MARAICHERS | E87: COLMAR | F87: HAUT_RHIN
A88: 135 | B88: COLMAR SAINTE MARIE | C88: 4135 | D88: COLMAR SAINTE MARIE | E88: COLMAR | F88: HAUT_RHIN
A89: 139 | B89: INGERSHEIM | C89: 4139 | D89: INGERSHEIM | E89: COLMAR | F89: HAUT_RHIN
A90: 152 | B90: KAYSERSBERG | C90: 4148 | D90: ORBEY | E90: COLMAR | F90: HAUT_RHIN
A91: 140 | B91: WINTZENHEIM | C91: 4139 | D91: INGERSHEIM | E91: COLMAR | F91: HAUT_RHIN
A92: 141 | B92: HORBOURG WIHR | C92: 4141 | D92: HORBOURG WIHR | E92: COLMAR | F92: HAUT_RHIN
A93: 143 | B93: MUNSTER | C93: 4143 | D93: MUNSTER | E93: COLMAR | F93: HAUT_RHIN
A94: 144 | B94: RIBEAUVILLE | C94: 4144 | D94: RIBEAUVILLE | E94: COLMAR | F94: HAUT_RHIN
A95: 147 | B95: GUEBWILLER | C95: 4147 | D95: GUEBWILLER | E95: COLMAR | F95: HAUT_RHIN
A96: 148 | B96: ORBEY | C96: 4148 | D96: ORBEY | E96: COLMAR | F96: HAUT_RHIN
A97: 153 | B97: ROUFFACH | C97: 4153 | D97: ROUFFACH | E97: COLMAR | F97: HAUT_RHIN
A98: 157 | B98: NEUF BRISACH | C98: 4157 | D98: NEUF BRISACH | E98: COLMAR | F98: HAUT_RHIN
A99: 159 | B99: MUNTZENHEIM | C99: 4141 | D99: HORBOURG WIHR | E99: COLMAR | F99: HAUT_RHIN
A100: 160 | B100: SOULTZ | C100: 4147 | D100: GUEBWILLER | E100: COLMAR | F100: HAUT_RHIN
A101: 162 | B101: ENSISHEIM | C101: 4162 | D101: ENSISHEIM | E101: COLMAR | F101: HAUT_RHIN
A102: 164 | B102: SAINTE MARIE AUX MINES | C102: 4144 | D102: RIBEAUVILLE | E102: COLMAR | F102: HAUT_RHIN
A103: 170 | B103: MULHOUSE REUNION | C103: 4170 | D103: MULHOUSE REUNION | E103: MULHOUSE | F103: HAUT_RHIN
A104: 174 | B104: MULHOUSE DORNACH | C104: 4174 | D104: MULHOUSE DORNACH | E104: MULHOUSE | F104: HAUT_RHIN
A105: 178 | B105: SAINT LOUIS | C105: 4178 | D105: SAINT LOUIS | E105: MULHOUSE | F105: HAUT_RHIN
A106: 179 | B106: SIERENTZ | C106: 4178 | D106: SAINT LOUIS | E106: MULHOUSE | F106: HAUT_RHIN
A107: 180 | B107: RIEDISHEIM | C107: 4180 | D107: RIEDISHEIM | E107: MULHOUSE | F107: HAUT_RHIN
A108: 181 | B108: WITTELSHEIM | C108: 4181 | D108: WITTELSHEIM | E108: MULHOUSE | F108: HAUT_RHIN
A109: 183 | B109: WITTENHEIM | C109: 4183 | D109: WITTENHEIM | E109: MULHOUSE | F109: HAUT_RHIN
A110: 184 | B110: ILLZACH | C110: 4183 | D110: WITTENHEIM | E110: MULHOUSE | F110: HAUT_RHIN
A111: 185 | B111: RIXHEIM | C111: 4185 | D111: RIXHEIM | E111: MULHOUSE | F111: HAUT_RHIN
A112: 186 | B112: BRUNSTATT | C112: 4174 | D112: MULHOUSE DORNACH | E112: MULHOUSE | F112: HAUT_RHIN
A113: 188 | B113: PFASTATT | C113: 4188 | D113: PFASTATT | E113: MULHOUSE | F113: HAUT_RHIN
A114: 189 | B114: ALTKIRCH | C114: 4189 | D114: ALTKIRCH | E114: MULHOUSE | F114: HAUT_RHIN
A115: 191 | B115: FERRETTE | C115: 4189 | D115: ALTKIRCH | E115: MULHOUSE | F115: HAUT_RHIN
A116: 192 | B116: SEPPOIS LE BAS | C116: 4189 | D116: ALTKIRCH | E116: MULHOUSE | F116: HAUT_RHIN
A117: 193 | B117: DANNEMARIE | C117: 4189 | D117: ALTKIRCH | E117: MULHOUSE | F117: HAUT_RHIN
A118: 194 | B118: THANN | C118: 4194 | D118: THANN | E118: MULHOUSE | F118: HAUT_RHIN
A119: 198 | B119: SAINT AMARIN | C119: 4194 | D119: THANN | E119: MULHOUSE | F119: HAUT_RHIN
A120: 195 | B120: CERNAY | C120: 4194 | D120: THANN | E120: MULHOUSE | F120: HAUT_RHIN
A121: 196 | B121: MASEVAUX | C121: 4194 | D121: THANN | E121: MULHOUSE | F121: HAUT_RHIN
A122: 51101 | B122: CHALONS VIVIERS | C122: 451101 | D122: CHALONS VIVIERS | E122: CHALONS_EN_CHAMPAGNE | F122: MARNE_ARDENNES
A123: 51114 | B123: SUIPPES | C123: 451115 | D123: MOURMELON LE GRAND | E123: CHALONS_EN_CHAMPAGNE | F123: MARNE_ARDENNES
A124: 51115 | B124: MOURMELON LE GRAND | C124: 451115 | D124: MOURMELON LE GRAND | E124: CHALONS_EN_CHAMPAGNE | F124: MARNE_ARDENNES
A125: 51120 | B125: SARRY | C125: 451120 | D125: SARRY | E125: CHALONS_EN_CHAMPAGNE | F125: MARNE_ARDENNES
A126: 51166 | B126: VITRY LE FRANCOIS | C126: 451166 | D126: VITRY LE FRANCOIS | E126: CHALONS_EN_CHAMPAGNE | F126: MARNE_ARDENNES
A127: 51381 | B127: SEZANNE | C127: 451381 | D127: SEZANNE | E127: CHALONS_EN_CHAMPAGNE | F127: MARNE_ARDENNES
A128: 51390 | B128: FERE CHAMPENOISE | C128: 451381 | D128: SEZANNE | E128: CHALONS_EN_CHAMPAGNE | F128: MARNE_ARDENNES
A129: 51103 | B129: FAGNIERES LECLERC | C129: 551103 | D129: FAGNIERES LECLERC | E129: CHALONS_EN_CHAMPAGNE | F129: MARNE_ARDENNES
A130: 51110 | B130: CHALONS ROOSEVELT | C130: 551110 | D130: CHALONS ROOSEVELT | E130: CHALONS_EN_CHAMPAGNE | F130: MARNE_ARDENNES
A131: 51128 | B131: SAINTE MENEHOULD | C131: 551128 | D131: SAINTE MENEHOULD | E131: CHALONS_EN_CHAMPAGNE | F131: MARNE_ARDENNES
A132: 51330 | B132: MONTMIRAIL | C132: 551330 | D132: MONTMIRAIL | E132: CHALONS_EN_CHAMPAGNE | F132: MARNE_ARDENNES
A133: 51354 | B133: VERTUS | C133: 551354 | D133: VERTUS | E133: CHALONS_EN_CHAMPAGNE | F133: MARNE_ARDENNES
A134: 8801 | B134: CHARLEVILLE JEAN JAURES | C134: 408801 | D134: CHARLEVILLE JEAN JAURES | E134: CHARLEVILLE_MEZIERES | F134: MARNE_ARDENNES
A135: 8806 | B135: SEDAN | C135: 408806 | D135: SEDAN | E135: CHARLEVILLE_MEZIERES | F135: MARNE_ARDENNES
A136: 8822 | B136: CHARLEVILLE MEZIERES | C136: 408822 | D136: CHARLEVILLE MEZIERES | E136: CHARLEVILLE_MEZIERES | F136: MARNE_ARDENNES
A137: 8840 | B137: RETHEL | C137: 408840 | D137: RETHEL | E137: CHARLEVILLE_MEZIERES | F137: MARNE_ARDENNES
A138: 8862 | B138: REVIN | C138: 408862 | D138: REVIN | E138: CHARLEVILLE_MEZIERES | F138: MARNE_ARDENNES
A139: 8802 | B139: CHARLEVILLE NEVERS | C139: 508802 | D139: CHARLEVILLE NEVERS | E139: CHARLEVILLE_MEZIERES | F139: MARNE_ARDENNES
A140: 8815 | B140: CARIGNAN | C140: 508815 | D140: CARIGNAN | E140: CHARLEVILLE_MEZIERES | F140: MARNE_ARDENNES
A141: 8819 | B141: MOUZON | C141: 508819 | D141: MOUZON | E141: CHARLEVILLE_MEZIERES | F141: MARNE_ARDENNES
A142: 8820 | B142: VOUZIERS | C142: 508820 | D142: VOUZIERS | E142: CHARLEVILLE_MEZIERES | F142: MARNE_ARDENNES
A143: 8833 | B143: VILLERS SEMEUSE CORA | C143: 508833 | D143: VILLERS SEMEUSE CORA | E143: CHARLEVILLE_MEZIERES | F143: MARNE_ARDENNES
A144: 8839 | B144: GIVET | C144: 508839 | D144: GIVET | E144: CHARLEVILLE_MEZIERES | F144: MARNE_ARDENNES
A145: 8860 | B145: ROCROI | C145: 508860 | D145: ROCROI | E145: CHARLEVILLE_MEZIERES | F145: MARNE_ARDENNES
A146: 51301 | B146: REIMS HOTEL DE VILLE | C146: 451301 | D146: REIMS HOTEL DE VILLE | E146: REIMS | F146: MARNE_ARDENNES
A147: 51308 | B147: REIMS SAINT THOMAS | C147: 451308 | D147: REIMS SAINT THOMAS | E147: REIMS | F147: MARNE_ARDENNES
A148: 51318 | B148: VERZY | C148: 451370 | D148: EPERNAY | E148: REIMS | F148: MARNE_ARDENNES
A149: 51336 | B149: TINQUEUX | C149: 451336 | D149: TINQUEUX | E149: REIMS | F149: MARNE_ARDENNES
A150: 51350 | B150: REIMS CENTRE VILLE | C150: 451350 | D150: REIMS CENTRE VILLE | E150: REIMS | F150: MARNE_ARDENNES
A151: 51361 | B151: PIERRY LECLERC | C151: 451361 | D151: PIERRY LECLERC | E151: REIMS | F151: MARNE_ARDENNES
A152: 51370 | B152: EPERNAY | C152: 451370 | D152: EPERNAY | E152: REIMS | F152: MARNE_ARDENNES
A153: 51305 | B153: REIMS HIPPODROME | C153: 551305 | D153: REIMS HIPPODROME | E153: REIMS | F153: MARNE_ARDENNES
A154: 51306 | B154: REIMS SAINT MARCEAUX | C154: 551306 | D154: REIMS SAINT MARCEAUX | E154: REIMS | F154: MARNE_ARDENNES
A155: 51309 | B155: REIMS EUROPE | C155: 551309 | D155: REIMS EUROPE | E155: REIMS | F155: MARNE_ARDENNES
A156: 51310 | B156: REIMS CHATILLONS | C156: 551310 | D156: REIMS CHATILLONS | E156: REIMS | F156: MARNE_ARDENNES
A157: 51314 | B157: FISMES | C157: 551314 | D157: FISMES | E157: REIMS | F157: MARNE_ARDENNES
A158: 51340 | B158: BETHENY | C158: 551340 | D158: BETHENY | E158: REIMS | F158: MARNE_ARDENNES
A159: 51341 | B159: REIMS JEAN JAURES | C159: 551341 | D159: REIMS JEAN JAURES | E159: REIMS | F159: MARNE_ARDENNES
A160: 51349 | B160: REIMS SAINT REMI | C160: 551349 | D160: REIMS SAINT REMI | E160: REIMS | F160: MARNE_ARDENNES
A161: 51365 | B161: DORMANS | C161: 551365 | D161: DORMANS | E161: REIMS | F161: MARNE_ARDENNES
A162: 51367 | B162: AY CHAMPAGNE | C162: 551367 | D162: AY CHAMPAGNE | E162: REIMS | F162: MARNE_ARDENNES
A163: 51369 | B163: DAMERY | C163: 551369 | D163: DAMERY | E163: REIMS | F163: MARNE_ARDENNES
A164: 54171 | B164: BLAMONT | C164: 454426 | D164: LUNEVILLE CARNOT | E164: NANCY | F164: MEURTHE_ET_MOSELLE_MEUSE
A165: 54426 | B165: LUNEVILLE CARNOT | C165: 454426 | D165: LUNEVILLE CARNOT | E165: NANCY | F165: MEURTHE_ET_MOSELLE_MEUSE
A166: 54481 | B166: NANCY PLACE DOMBASLE | C166: 454481 | D166: NANCY PLACE DOMBASLE | E166: NANCY | F166: MEURTHE_ET_MOSELLE_MEUSE
A167: 54671 | B167: VANDOEUVRE LES NANCY | C167: 454671 | D167: VANDOEUVRE LES NANCY | E167: NANCY | F167: MEURTHE_ET_MOSELLE_MEUSE
A168: 54116 | B168: BACCARAT | C168: 554116 | D168: BACCARAT | E168: NANCY | F168: MEURTHE_ET_MOSELLE_MEUSE
A169: 54166 | B169: BLAINVILLE | C169: 554166 | D169: BLAINVILLE | E169: NANCY | F169: MEURTHE_ET_MOSELLE_MEUSE
A170: 54266 | B170: DOMBASLE SUR MEURTHE | C170: 554266 | D170: DOMBASLE SUR MEURTHE | E170: NANCY | F170: MEURTHE_ET_MOSELLE_MEUSE
A171: 54296 | B171: ESSEY LES NANCY | C171: 554296 | D171: ESSEY LES NANCY | E171: NANCY | F171: MEURTHE_ET_MOSELLE_MEUSE
A172: 54356 | B172: JARVILLE LA MALGRANGE | C172: 554356 | D172: JARVILLE LA MALGRANGE | E172: NANCY | F172: MEURTHE_ET_MOSELLE_MEUSE
A173: 54471 | B173: NANCY JEAN JAURES | C173: 554491 | D173: NANCY SAINT SEBASTIEN | E173: NANCY | F173: MEURTHE_ET_MOSELLE_MEUSE
A174: 54476 | B174: NANCY ARTEM | C174: 554476 | D174: NANCY ARTEM | E174: NANCY | F174: MEURTHE_ET_MOSELLE_MEUSE
A175: 54486 | B175: NANCY POINT CENTRAL | C175: 554486 | D175: NANCY POINT CENTRAL | E175: NANCY | F175: MEURTHE_ET_MOSELLE_MEUSE
A176: 54491 | B176: NANCY SAINT SEBASTIEN | C176: 554491 | D176: NANCY SAINT SEBASTIEN | E176: NANCY | F176: MEURTHE_ET_MOSELLE_MEUSE
A177: 54601 | B177: SAINT MAX | C177: 554601 | D177: SAINT MAX | E177: NANCY | F177: MEURTHE_ET_MOSELLE_MEUSE
A178: 54611 | B178: SAINT NICOLAS DE PORT | C178: 554611 | D178: SAINT NICOLAS DE PORT | E178: NANCY | F178: MEURTHE_ET_MOSELLE_MEUSE
A179: 54636 | B179: TOMBLAINE | C179: 554636 | D179: TOMBLAINE | E179: NANCY | F179: MEURTHE_ET_MOSELLE_MEUSE
A180: 54355 | B180: JARNY | C180: 454355 | D180: JARNY | E180: PONT_A_MOUSSON | F180: MEURTHE_ET_MOSELLE_MEUSE
A181: 54535 | B181: PONT A MOUSSON CENTRALE | C181: 454535 | D181: PONT A MOUSSON CENTRALE | E181: PONT_A_MOUSSON | F181: MEURTHE_ET_MOSELLE_MEUSE
A182: 54651 | B182: TOUL | C182: 454651 | D182: TOUL | E182: PONT_A_MOUSSON | F182: MEURTHE_ET_MOSELLE_MEUSE
A183: 54696 | B183: VILLERS GENERAL LECLERC | C183: 454696 | D183: VILLERS GENERAL LECLERC | E183: PONT_A_MOUSSON | F183: MEURTHE_ET_MOSELLE_MEUSE
A184: 54184 | B184: BRIEY | C184: 554184 | D184: BRIEY | E184: PONT_A_MOUSSON | F184: MEURTHE_ET_MOSELLE_MEUSE
A185: 54196 | B185: CHAMPIGNEULLES | C185: 554196 | D185: CHAMPIGNEULLES | E185: PONT_A_MOUSSON | F185: MEURTHE_ET_MOSELLE_MEUSE
A186: 54257 | B186: DIEULOUARD | C186: 554257 | D186: DIEULOUARD | E186: PONT_A_MOUSSON | F186: MEURTHE_ET_MOSELLE_MEUSE
A187: 54357 | B187: JOEUF | C187: 554357 | D187: JOEUF | E187: PONT_A_MOUSSON | F187: MEURTHE_ET_MOSELLE_MEUSE
A188: 54376 | B188: LAXOU BOUFFLERS | C188: 554376 | D188: LAXOU BOUFFLERS | E188: PONT_A_MOUSSON | F188: MEURTHE_ET_MOSELLE_MEUSE
A189: 54381 | B189: LAXOU ARISTIDE BRIAND | C189: 554381 | D189: LAXOU ARISTIDE BRIAND | E189: PONT_A_MOUSSON | F189: MEURTHE_ET_MOSELLE_MEUSE
A190: 54416 | B190: LUDRES | C190: 554416 | D190: LUDRES | E190: PONT_A_MOUSSON | F190: MEURTHE_ET_MOSELLE_MEUSE
A191: 54496 | B191: NANCY TROIS MAISONS | C191: 554496 | D191: NANCY TROIS MAISONS | E191: PONT_A_MOUSSON | F191: MEURTHE_ET_MOSELLE_MEUSE
A192: 54506 | B192: CHALIGNY NEUVES MAISONS | C192: 554506 | D192: CHALIGNY NEUVES MAISONS | E192: PONT_A_MOUSSON | F192: MEURTHE_ET_MOSELLE_MEUSE
A193: 54516 | B193: PAGNY SUR MOSELLE | C193: 554516 | D193: PAGNY SUR MOSELLE | E193: PONT_A_MOUSSON | F193: MEURTHE_ET_MOSELLE_MEUSE
A194: 54531 | B194: POMPEY | C194: 554531 | D194: POMPEY | E194: PONT_A_MOUSSON | F194: MEURTHE_ET_MOSELLE_MEUSE
A195: 54533 | B195: PONT A MOUSSON BREUIL | C195: 554533 | D195: PONT A MOUSSON BREUIL | E195: PONT_A_MOUSSON | F195: MEURTHE_ET_MOSELLE_MEUSE
A196: 54686 | B196: VEZELISE | C196: 554686 | D196: VEZELISE | E196: PONT_A_MOUSSON | F196: MEURTHE_ET_MOSELLE_MEUSE
A197: 54414 | B197: LONGWY HAUT | C197: 454414 | D197: LONGWY HAUT | E197: VERDUN | F197: MEURTHE_ET_MOSELLE_MEUSE
A198: 55151 | B198: BAR LE DUC | C198: 455151 | D198: BAR LE DUC | E198: VERDUN | F198: MEURTHE_ET_MOSELLE_MEUSE
A199: 55231 | B199: COMMERCY | C199: 455231 | D199: COMMERCY | E199: VERDUN | F199: MEURTHE_ET_MOSELLE_MEUSE
A200: 55298 | B200: ETAIN | C200: 455678 | D200: VERDUN CENTRALE | E200: VERDUN | F200: MEURTHE_ET_MOSELLE_MEUSE
... 100 more rows

Sheet EDS 2
A1: territoire | B1: territoire | C1: région | D1: région
A2: CHAUMONT | B2: CHAUMONT | C2: AUBE HAUTE MARNE | D2: AUBE_HAUTE_MARNE
A3: CHAUMONT | B3: CHAUMONT | C3: AUBE HAUTE MARNE | D3: AUBE_HAUTE_MARNE
A4: CHAUMONT | B4: CHAUMONT | C4: AUBE HAUTE MARNE | D4: AUBE_HAUTE_MARNE
A5: CHAUMONT | B5: CHAUMONT | C5: AUBE HAUTE MARNE | D5: AUBE_HAUTE_MARNE
A6: CHAUMONT | B6: CHAUMONT | C6: AUBE HAUTE MARNE | D6: AUBE_HAUTE_MARNE
A7: CHAUMONT | B7: CHAUMONT | C7: AUBE HAUTE MARNE | D7: AUBE_HAUTE_MARNE
A8: CHAUMONT | B8: CHAUMONT | C8: AUBE HAUTE MARNE | D8: AUBE_HAUTE_MARNE
A9: CHAUMONT | B9: CHAUMONT | C9: AUBE HAUTE MARNE | D9: AUBE_HAUTE_MARNE
A10: CHAUMONT | B10: CHAUMONT | C10: AUBE HAUTE MARNE | D10: AUBE_HAUTE_MARNE
A11: CHAUMONT | B11: CHAUMONT | C11: AUBE HAUTE MARNE | D11: AUBE_HAUTE_MARNE
A12: CHAUMONT | B12: CHAUMONT | C12: AUBE HAUTE MARNE | D12: AUBE_HAUTE_MARNE
A13: TROYES | B13: TROYES | C13: AUBE HAUTE MARNE | D13: AUBE_HAUTE_MARNE
A14: TROYES | B14: TROYES | C14: AUBE HAUTE MARNE | D14: AUBE_HAUTE_MARNE
A15: TROYES | B15: TROYES | C15: AUBE HAUTE MARNE | D15: AUBE_HAUTE_MARNE
A16: TROYES | B16: TROYES | C16: AUBE HAUTE MARNE | D16: AUBE_HAUTE_MARNE
A17: TROYES | B17: TROYES | C17: AUBE HAUTE MARNE | D17: AUBE_HAUTE_MARNE
A18: TROYES | B18: TROYES | C18: AUBE HAUTE MARNE | D18: AUBE_HAUTE_MARNE
A19: TROYES | B19: TROYES | C19: AUBE HAUTE MARNE | D19: AUBE_HAUTE_MARNE
A20: TROYES | B20: TROYES | C20: AUBE HAUTE MARNE | D20: AUBE_HAUTE_MARNE
A21: TROYES | B21: TROYES | C21: AUBE HAUTE MARNE | D21: AUBE_HAUTE_MARNE
A22: TROYES | B22: TROYES | C22: AUBE HAUTE MARNE | D22: AUBE_HAUTE_MARNE
A23: TROYES | B23: TROYES | C23: AUBE HAUTE MARNE | D23: AUBE_HAUTE_MARNE
A24: TROYES | B24: TROYES | C24: AUBE HAUTE MARNE | D24: AUBE_HAUTE_MARNE
A25: TROYES | B25: TROYES | C25: AUBE HAUTE MARNE | D25: AUBE_HAUTE_MARNE
A26: TROYES | B26: TROYES | C26: AUBE HAUTE MARNE | D26: AUBE_HAUTE_MARNE
A27: TROYES | B27: TROYES | C27: AUBE HAUTE MARNE | D27: AUBE_HAUTE_MARNE
A28: TROYES | B28: TROYES | C28: AUBE HAUTE MARNE | D28: AUBE_HAUTE_MARNE
A29: HAGUENAU | B29: HAGUENAU | C29: BAS RHIN | D29: BAS_RHIN
A30: HAGUENAU | B30: HAGUENAU | C30: BAS RHIN | D30: BAS_RHIN
A31: HAGUENAU | B31: HAGUENAU | C31: BAS RHIN | D31: BAS_RHIN
A32: HAGUENAU | B32: HAGUENAU | C32: BAS RHIN | D32: BAS_RHIN
A33: HAGUENAU | B33: HAGUENAU | C33: BAS RHIN | D33: BAS_RHIN
A34: HAGUENAU | B34: HAGUENAU | C34: BAS RHIN | D34: BAS_RHIN
A35: HAGUENAU | B35: HAGUENAU | C35: BAS RHIN | D35: BAS_RHIN
A36: HAGUENAU | B36: HAGUENAU | C36: BAS RHIN | D36: BAS_RHIN
A37: HAGUENAU | B37: HAGUENAU | C37: BAS RHIN | D37: BAS_RHIN
A38: HAGUENAU | B38: HAGUENAU | C38: BAS RHIN | D38: BAS_RHIN
A39: HAGUENAU | B39: HAGUENAU | C39: BAS RHIN | D39: BAS_RHIN
A40: HAGUENAU | B40: HAGUENAU | C40: BAS RHIN | D40: BAS_RHIN
A41: HAGUENAU | B41: HAGUENAU | C41: BAS RHIN | D41: BAS_RHIN
A42: HAGUENAU | B42: HAGUENAU | C42: BAS RHIN | D42: BAS_RHIN
A43: HAGUENAU | B43: HAGUENAU | C43: BAS RHIN | D43: BAS_RHIN
A44: HAGUENAU | B44: HAGUENAU | C44: BAS RHIN | D44: BAS_RHIN
A45: HAGUENAU | B45: HAGUENAU | C45: BAS RHIN | D45: BAS_RHIN
A46: HAGUENAU | B46: HAGUENAU | C46: BAS RHIN | D46: BAS_RHIN
A47: HAGUENAU | B47: HAGUENAU | C47: BAS RHIN | D47: BAS_RHIN
A48: HAGUENAU | B48: HAGUENAU | C48: BAS RHIN | D48: BAS_RHIN
A49: HAGUENAU | B49: HAGUENAU | C49: BAS RHIN | D49: BAS_RHIN
A50: HAGUENAU | B50: HAGUENAU | C50: BAS RHIN | D50: BAS_RHIN
A51: HAGUENAU | B51: HAGUENAU | C51: BAS RHIN | D51: BAS_RHIN
A52: HAGUENAU | B52: HAGUENAU | C52: BAS RHIN | D52: BAS_RHIN
A53: HAGUENAU | B53: HAGUENAU | C53: BAS RHIN | D53: BAS_RHIN
A54: HAGUENAU | B54: HAGUENAU | C54: BAS RHIN | D54: BAS_RHIN
A55: HAGUENAU | B55: HAGUENAU | C55: BAS RHIN | D55: BAS_RHIN
A56: HAGUENAU | B56: HAGUENAU | C56: BAS RHIN | D56: BAS_RHIN
A57: HAGUENAU | B57: HAGUENAU | C57: BAS RHIN | D57: BAS_RHIN
A58: SELESTAT | B58: SELESTAT | C58: BAS RHIN | D58: BAS_RHIN
A59: SELESTAT | B59: SELESTAT | C59: BAS RHIN | D59: BAS_RHIN
A60: SELESTAT | B60: SELESTAT | C60: BAS RHIN | D60: BAS_RHIN
A61: SELESTAT | B61: SELESTAT | C61: BAS RHIN | D61: BAS_RHIN
A62: SELESTAT | B62: SELESTAT | C62: BAS RHIN | D62: BAS_RHIN
A63: SELESTAT | B63: SELESTAT | C63: BAS RHIN | D63: BAS_RHIN
A64: SELESTAT | B64: SELESTAT | C64: BAS RHIN | D64: BAS_RHIN
A65: SELESTAT | B65: SELESTAT | C65: BAS RHIN | D65: BAS_RHIN
A66: SELESTAT | B66: SELESTAT | C66: BAS RHIN | D66: BAS_RHIN
A67: SELESTAT | B67: SELESTAT | C67: BAS RHIN | D67: BAS_RHIN
A68: SELESTAT | B68: SELESTAT | C68: BAS RHIN | D68: BAS_RHIN
A69: SELESTAT | B69: SELESTAT | C69: BAS RHIN | D69: BAS_RHIN
A70: SELESTAT | B70: SELESTAT | C70: BAS RHIN | D70: BAS_RHIN
A71: SELESTAT | B71: SELESTAT | C71: BAS RHIN | D71: BAS_RHIN
A72: SELESTAT | B72: SELESTAT | C72: BAS RHIN | D72: BAS_RHIN
A73: SELESTAT | B73: SELESTAT | C73: BAS RHIN | D73: BAS_RHIN
A74: SELESTAT | B74: SELESTAT | C74: BAS RHIN | D74: BAS_RHIN
A75: SELESTAT | B75: SELESTAT | C75: BAS RHIN | D75: BAS_RHIN
A76: SELESTAT | B76: SELESTAT | C76: BAS RHIN | D76: BAS_RHIN
A77: SELESTAT | B77: SELESTAT | C77: BAS RHIN | D77: BAS_RHIN
A78: STRASBOURG | B78: STRASBOURG | C78: BAS RHIN | D78: BAS_RHIN
A79: STRASBOURG | B79: STRASBOURG | C79: BAS RHIN | D79: BAS_RHIN
A80: STRASBOURG | B80: STRASBOURG | C80: BAS RHIN | D80: BAS_RHIN
A81: STRASBOURG | B81: STRASBOURG | C81: BAS RHIN | D81: BAS_RHIN
A82: STRASBOURG | B82: STRASBOURG | C82: BAS RHIN | D82: BAS_RHIN
A83: STRASBOURG | B83: STRASBOURG | C83: BAS RHIN | D83: BAS_RHIN
A84: STRASBOURG | B84: STRASBOURG | C84: BAS RHIN | D84: BAS_RHIN
A85: STRASBOURG | B85: STRASBOURG | C85: BAS RHIN | D85: BAS_RHIN
A86: STRASBOURG | B86: STRASBOURG | C86: BAS RHIN | D86: BAS_RHIN
A87: STRASBOURG | B87: STRASBOURG | C87: BAS RHIN | D87: BAS_RHIN
A88: STRASBOURG | B88: STRASBOURG | C88: BAS RHIN | D88: BAS_RHIN
A89: STRASBOURG | B89: STRASBOURG | C89: BAS RHIN | D89: BAS_RHIN
A90: STRASBOURG | B90: STRASBOURG | C90: BAS RHIN | D90: BAS_RHIN
A91: STRASBOURG | B91: STRASBOURG | C91: BAS RHIN | D91: BAS_RHIN
A92: STRASBOURG | B92: STRASBOURG | C92: BAS RHIN | D92: BAS_RHIN
A93: STRASBOURG | B93: STRASBOURG | C93: BAS RHIN | D93: BAS_RHIN
A94: STRASBOURG | B94: STRASBOURG | C94: BAS RHIN | D94: BAS_RHIN
A95: STRASBOURG | B95: STRASBOURG | C95: BAS RHIN | D95: BAS_RHIN
A96: STRASBOURG | B96: STRASBOURG | C96: BAS RHIN | D96: BAS_RHIN
A97: STRASBOURG | B97: STRASBOURG | C97: BAS RHIN | D97: BAS_RHIN
A98: STRASBOURG | B98: STRASBOURG | C98: BAS RHIN | D98: BAS_RHIN
A99: STRASBOURG | B99: STRASBOURG | C99: BAS RHIN | D99: BAS_RHIN
A100: STRASBOURG | B100: STRASBOURG | C100: BAS RHIN | D100: BAS_RHIN
A101: STRASBOURG | B101: STRASBOURG | C101: BAS RHIN | D101: BAS_RHIN
A102: STRASBOURG | B102: STRASBOURG | C102: BAS RHIN | D102: BAS_RHIN
A103: COLMAR | B103: COLMAR | C103: HAUT RHIN | D103: HAUT_RHIN
A104: COLMAR | B104: COLMAR | C104: HAUT RHIN | D104: HAUT_RHIN
A105: COLMAR | B105: COLMAR | C105: HAUT RHIN | D105: HAUT_RHIN
A106: COLMAR | B106: COLMAR | C106: HAUT RHIN | D106: HAUT_RHIN
A107: COLMAR | B107: COLMAR | C107: HAUT RHIN | D107: HAUT_RHIN
A108: COLMAR | B108: COLMAR | C108: HAUT RHIN | D108: HAUT_RHIN
A109: COLMAR | B109: COLMAR | C109: HAUT RHIN | D109: HAUT_RHIN
A110: COLMAR | B110: COLMAR | C110: HAUT RHIN | D110: HAUT_RHIN
A111: COLMAR | B111: COLMAR | C111: HAUT RHIN | D111: HAUT_RHIN
A112: COLMAR | B112: COLMAR | C112: HAUT RHIN | D112: HAUT_RHIN
A113: COLMAR | B113: COLMAR | C113: HAUT RHIN | D113: HAUT_RHIN
A114: COLMAR | B114: COLMAR | C114: HAUT RHIN | D114: HAUT_RHIN
A115: COLMAR | B115: COLMAR | C115: HAUT RHIN | D115: HAUT_RHIN
A116: COLMAR | B116: COLMAR | C116: HAUT RHIN | D116: HAUT_RHIN
A117: COLMAR | B117: COLMAR | C117: HAUT RHIN | D117: HAUT_RHIN
A118: COLMAR | B118: COLMAR | C118: HAUT RHIN | D118: HAUT_RHIN
A119: COLMAR | B119: COLMAR | C119: HAUT RHIN | D119: HAUT_RHIN
A120: COLMAR | B120: COLMAR | C120: HAUT RHIN | D120: HAUT_RHIN
A121: COLMAR | B121: COLMAR | C121: HAUT RHIN | D121: HAUT_RHIN
A122: COLMAR | B122: COLMAR | C122: HAUT RHIN | D122: HAUT_RHIN
A123: COLMAR | B123: COLMAR | C123: HAUT RHIN | D123: HAUT_RHIN
A124: COLMAR | B124: COLMAR | C124: HAUT RHIN | D124: HAUT_RHIN
A125: COLMAR | B125: COLMAR | C125: HAUT RHIN | D125: HAUT_RHIN
A126: MULHOUSE | B126: MULHOUSE | C126: HAUT RHIN | D126: HAUT_RHIN
A127: MULHOUSE | B127: MULHOUSE | C127: HAUT RHIN | D127: HAUT_RHIN
A128: MULHOUSE | B128: MULHOUSE | C128: HAUT RHIN | D128: HAUT_RHIN
A129: MULHOUSE | B129: MULHOUSE | C129: HAUT RHIN | D129: HAUT_RHIN
A130: MULHOUSE | B130: MULHOUSE | C130: HAUT RHIN | D130: HAUT_RHIN
A131: MULHOUSE | B131: MULHOUSE | C131: HAUT RHIN | D131: HAUT_RHIN
A132: MULHOUSE | B132: MULHOUSE | C132: HAUT RHIN | D132: HAUT_RHIN
A133: MULHOUSE | B133: MULHOUSE | C133: HAUT RHIN | D133: HAUT_RHIN
A134: MULHOUSE | B134: MULHOUSE | C134: HAUT RHIN | D134: HAUT_RHIN
A135: MULHOUSE | B135: MULHOUSE | C135: HAUT RHIN | D135: HAUT_RHIN
A136: MULHOUSE | B136: MULHOUSE | C136: HAUT RHIN | D136: HAUT_RHIN
A137: MULHOUSE | B137: MULHOUSE | C137: HAUT RHIN | D137: HAUT_RHIN
A138: MULHOUSE | B138: MULHOUSE | C138: HAUT RHIN | D138: HAUT_RHIN
A139: MULHOUSE | B139: MULHOUSE | C139: HAUT RHIN | D139: HAUT_RHIN
A140: MULHOUSE | B140: MULHOUSE | C140: HAUT RHIN | D140: HAUT_RHIN
A141: MULHOUSE | B141: MULHOUSE | C141: HAUT RHIN | D141: HAUT_RHIN
A142: MULHOUSE | B142: MULHOUSE | C142: HAUT RHIN | D142: HAUT_RHIN
A143: MULHOUSE | B143: MULHOUSE | C143: HAUT RHIN | D143: HAUT_RHIN
A144: MULHOUSE | B144: MULHOUSE | C144: HAUT RHIN | D144: HAUT_RHIN
A145: MULHOUSE | B145: MULHOUSE | C145: HAUT RHIN | D145: HAUT_RHIN
A146: MULHOUSE | B146: MULHOUSE | C146: HAUT RHIN | D146: HAUT_RHIN
A147: CHALONS EN CHAMPAGNE | B147: CHALONS_EN_CHAMPAGNE | C147: MARNE ARDENNES | D147: MARNE_ARDENNES
A148: CHALONS EN CHAMPAGNE | B148: CHALONS_EN_CHAMPAGNE | C148: MARNE ARDENNES | D148: MARNE_ARDENNES
A149: CHALONS EN CHAMPAGNE | B149: CHALONS_EN_CHAMPAGNE | C149: MARNE ARDENNES | D149: MARNE_ARDENNES
A150: CHALONS EN CHAMPAGNE | B150: CHALONS_EN_CHAMPAGNE | C150: MARNE ARDENNES | D150: MARNE_ARDENNES
A151: CHALONS EN CHAMPAGNE | B151: CHALONS_EN_CHAMPAGNE | C151: MARNE ARDENNES | D151: MARNE_ARDENNES
A152: CHALONS EN CHAMPAGNE | B152: CHALONS_EN_CHAMPAGNE | C152: MARNE ARDENNES | D152: MARNE_ARDENNES
A153: CHALONS EN CHAMPAGNE | B153: CHALONS_EN_CHAMPAGNE | C153: MARNE ARDENNES | D153: MARNE_ARDENNES
A154: CHALONS EN CHAMPAGNE | B154: CHALONS_EN_CHAMPAGNE | C154: MARNE ARDENNES | D154: MARNE_ARDENNES
A155: CHALONS EN CHAMPAGNE | B155: CHALONS_EN_CHAMPAGNE | C155: MARNE ARDENNES | D155: MARNE_ARDENNES
A156: CHALONS EN CHAMPAGNE | B156: CHALONS_EN_CHAMPAGNE | C156: MARNE ARDENNES | D156: MARNE_ARDENNES
A157: CHALONS EN CHAMPAGNE | B157: CHALONS_EN_CHAMPAGNE | C157: MARNE ARDENNES | D157: MARNE_ARDENNES
A158: CHARLEVILLE MEZIERES | B158: CHARLEVILLE_MEZIERES | C158: MARNE ARDENNES | D158: MARNE_ARDENNES
A159: CHARLEVILLE MEZIERES | B159: CHARLEVILLE_MEZIERES | C159: MARNE ARDENNES | D159: MARNE_ARDENNES
A160: CHARLEVILLE MEZIERES | B160: CHARLEVILLE_MEZIERES | C160: MARNE ARDENNES | D160: MARNE_ARDENNES
A161: CHARLEVILLE MEZIERES | B161: CHARLEVILLE_MEZIERES | C161: MARNE ARDENNES | D161: MARNE_ARDENNES
A162: CHARLEVILLE MEZIERES | B162: CHARLEVILLE_MEZIERES | C162: MARNE ARDENNES | D162: MARNE_ARDENNES
A163: CHARLEVILLE MEZIERES | B163: CHARLEVILLE_MEZIERES | C163: MARNE ARDENNES | D163: MARNE_ARDENNES
A164: CHARLEVILLE MEZIERES | B164: CHARLEVILLE_MEZIERES | C164: MARNE ARDENNES | D164: MARNE_ARDENNES
A165: CHARLEVILLE MEZIERES | B165: CHARLEVILLE_MEZIERES | C165: MARNE ARDENNES | D165: MARNE_ARDENNES
A166: CHARLEVILLE MEZIERES | B166: CHARLEVILLE_MEZIERES | C166: MARNE ARDENNES | D166: MARNE_ARDENNES
A167: CHARLEVILLE MEZIERES | B167: CHARLEVILLE_MEZIERES | C167: MARNE ARDENNES | D167: MARNE_ARDENNES
A168: CHARLEVILLE MEZIERES | B168: CHARLEVILLE_MEZIERES | C168: MARNE ARDENNES | D168: MARNE_ARDENNES
A169: CHARLEVILLE MEZIERES | B169: CHARLEVILLE_MEZIERES | C169: MARNE ARDENNES | D169: MARNE_ARDENNES
A170: CHARLEVILLE MEZIERES | B170: CHARLEVILLE_MEZIERES | C170: MARNE ARDENNES | D170: MARNE_ARDENNES
A171: CHARLEVILLE MEZIERES | B171: CHARLEVILLE_MEZIERES | C171: MARNE ARDENNES | D171: MARNE_ARDENNES
A172: REIMS | B172: REIMS | C172: MARNE ARDENNES | D172: MARNE_ARDENNES
A173: REIMS | B173: REIMS | C173: MARNE ARDENNES | D173: MARNE_ARDENNES
A174: REIMS | B174: REIMS | C174: MARNE ARDENNES | D174: MARNE_ARDENNES
A175: REIMS | B175: REIMS | C175: MARNE ARDENNES | D175: MARNE_ARDENNES
A176: REIMS | B176: REIMS | C176: MARNE ARDENNES | D176: MARNE_ARDENNES
A177: REIMS | B177: REIMS | C177: MARNE ARDENNES | D177: MARNE_ARDENNES
A178: REIMS | B178: REIMS | C178: MARNE ARDENNES | D178: MARNE_ARDENNES
A179: REIMS | B179: REIMS | C179: MARNE ARDENNES | D179: MARNE_ARDENNES
A180: REIMS | B180: REIMS | C180: MARNE ARDENNES | D180: MARNE_ARDENNES
A181: REIMS | B181: REIMS | C181: MARNE ARDENNES | D181: MARNE_ARDENNES
A182: REIMS | B182: REIMS | C182: MARNE ARDENNES | D182: MARNE_ARDENNES
A183: REIMS | B183: REIMS | C183: MARNE ARDENNES | D183: MARNE_ARDENNES
A184: REIMS | B184: REIMS | C184: MARNE ARDENNES | D184: MARNE_ARDENNES
A185: REIMS | B185: REIMS | C185: MARNE ARDENNES | D185: MARNE_ARDENNES
A186: REIMS | B186: REIMS | C186: MARNE ARDENNES | D186: MARNE_ARDENNES
A187: REIMS | B187: REIMS | C187: MARNE ARDENNES | D187: MARNE_ARDENNES
A188: REIMS | B188: REIMS | C188: MARNE ARDENNES | D188: MARNE_ARDENNES
A189: REIMS | B189: REIMS | C189: MARNE ARDENNES | D189: MARNE_ARDENNES
A190: REIMS | B190: REIMS | C190: MARNE ARDENNES | D190: MARNE_ARDENNES
A191: NANCY | B191: NANCY | C191: MEURTHE ET MOSELLE MEUSE | D191: MEURTHE_ET_MOSELLE_MEUSE
A192: NANCY | B192: NANCY | C192: MEURTHE ET MOSELLE MEUSE | D192: MEURTHE_ET_MOSELLE_MEUSE
A193: NANCY | B193: NANCY | C193: MEURTHE ET MOSELLE MEUSE | D193: MEURTHE_ET_MOSELLE_MEUSE
A194: NANCY | B194: NANCY | C194: MEURTHE ET MOSELLE MEUSE | D194: MEURTHE_ET_MOSELLE_MEUSE
A195: NANCY | B195: NANCY | C195: MEURTHE ET MOSELLE MEUSE | D195: MEURTHE_ET_MOSELLE_MEUSE
A196: NANCY | B196: NANCY | C196: MEURTHE ET MOSELLE MEUSE | D196: MEURTHE_ET_MOSELLE_MEUSE
A197: NANCY | B197: NANCY | C197: MEURTHE ET MOSELLE MEUSE | D197: MEURTHE_ET_MOSELLE_MEUSE
A198: NANCY | B198: NANCY | C198: MEURTHE ET MOSELLE MEUSE | D198: MEURTHE_ET_MOSELLE_MEUSE
A199: NANCY | B199: NANCY | C199: MEURTHE ET MOSELLE MEUSE | D199: MEURTHE_ET_MOSELLE_MEUSE
A200: NANCY | B200: NANCY | C200: MEURTHE ET MOSELLE MEUSE | D200: MEURTHE_ET_MOSELLE_MEUSE
... 138 more rows

Sheet Menu
C2: Evolution du Fonds de Commerce

Sheet Activation
B2: FDC ET EQUIPEMENT PAR SEGMENT ACTIVATION
C4: REGION | F4: TERRITOIRE | J4: PDV
C5: CEGEE
D8: Tous segments | F8: Segments Activation - 09/2022
D9: 2022-09-01 | E9: 2021-12-01 | F9: BPe | G9: BPne | H9: De | I9: Dne | J9: JBPe | K9: JBPne | L9: JDe | M9: JDne | N9: Ee | O9: Ene | P9: I
B10: Fonds de commerce | C10: Nombre clients | D10: =SUM(F10:P10) -> 1339114 | E10: =IF(ISBLANK($F$5),SUMIFS('Données FDC déc 2021'!$F:$F,'Données FDC déc 2021'!$A:$A,Activation!$C$5),IF(ISBLANK($J$5),SUMIFS('Données FDC déc 2021'!$F:$F,'Données FDC déc 2021'!$B:$B,Activation!$F$5),SUMIFS('Données FDC déc 2021'!$F:$F,'Données FDC déc 2021'!$C:$C,Activation!$J$5))) -> 1370181 | F10: =IF(ISBLANK($F$5),SUMIFS('Données FDC'!$F:$F,'Données FDC'!$A:$A,Activation!$C$5,'Données FDC'!$E:$E,Activation!F$9),IF(ISBLANK($J$5),SUMIFS('Données FDC'!$F:$F,'Données FDC'!$B:$B,Activation!$F$5,'Données FDC'!$E:$E,Activation!F$9),SUMIFS('Données FDC'!$F:$F,'Données FDC'!$C:$C,Activation!$J$5,'Données FDC'!$E:$E,Activation!F$9))) -> 294411 | G10: =IF(ISBLANK($F$5),SUMIFS('Données FDC'!$F:$F,'Données FDC'!$A:$A,Activation!$C$5,'Données FDC'!$E:$E,Activation!G$9),IF(ISBLANK($J$5),SUMIFS('Données FDC'!$F:$F,'Données FDC'!$B:$B,Activation!$F$5,'Données FDC'!$E:$E,Activation!G$9),SUMIFS('Données FDC'!$F:$F,'Données FDC'!$C:$C,Activation!$J$5,'Données FDC'!$E:$E,Activation!G$9))) -> 162495 | H10: =IF(ISBLANK($F$5),SUMIFS('Données FDC'!$F:$F,'Données FDC'!$A:$A,Activation!$C$5,'Données FDC'!$E:$E,Activation!H$9),IF(ISBLANK($J$5),SUMIFS('Données FDC'!$F:$F,'Données FDC'!$B:$B,Activation!$F$5,'Données FDC'!$E:$E,Activation!H$9),SUMIFS('Données FDC'!$F:$F,'Données FDC'!$C:$C,Activation!$J$5,'Données FDC'!$E:$E,Activation!H$9))) -> 147774 | I10: =IF(ISBLANK($F$5),SUMIFS('Données FDC'!$F:$F,'Données FDC'!$A:$A,Activation!$C$5,'Données FDC'!$E:$E,Activation!I$9),IF(ISBLANK($J$5),SUMIFS('Données FDC'!$F:$F,'Données FDC'!$B:$B,Activation!$F$5,'Données FDC'!$E:$E,Activation!I$9),SUMIFS('Données FDC'!$F:$F,'Données FDC'!$C:$C,Activation!$J$5,'Données FDC'!$E:$E,Activation!I$9))) -> 300587 | J10: =IF(ISBLANK($F$5),SUMIFS('Données FDC'!$F:$F,'Données FDC'!$A:$A,Activation!$C$5,'Données FDC'!$E:$E,Activation!J$9),IF(ISBLANK($J$5),SUMIFS('Données FDC'!$F:$F,'Données FDC'!$B:$B,Activation!$F$5,'Données FDC'!$E:$E,Activation!J$9),SUMIFS('Données FDC'!$F:$F,'Données FDC'!$C:$C,Activation!$J$5,'Données FDC'!$E:$E,Activation!J$9))) -> 62103 | K10: =IF(ISBLANK($F$5),SUMIFS('Données FDC'!$F:$F,'Données FDC'!$A:$A,Activation!$C$5,'Données FDC'!$E:$E,Activation!K$9),IF(ISBLANK($J$5),SUMIFS('Données FDC'!$F:$F,'Données FDC'!$B:$B,Activation!$F$5,'Données FDC'!$E:$E,Activation!K$9),SUMIFS('Données FDC'!$F:$F,'Données FDC'!$C:$C,Activation!$J$5,'Données FDC'!$E:$E,Activation!K$9))) -> 16033 | L10: =IF(ISBLANK($F$5),SUMIFS('Données FDC'!$F:$F,'Données FDC'!$A:$A,Activation!$C$5,'Données FDC'!$E:$E,Activation!L$9),IF(ISBLANK($J$5),SUMIFS('Données FDC'!$F:$F,'Données FDC'!$B:$B,Activation!$F$5,'Données FDC'!$E:$E,Activation!L$9),SUMIFS('Données FDC'!$F:$F,'Données FDC'!$C:$C,Activation!$J$5,'Données FDC'!$E:$E,Activation!L$9))) -> 8011 | M10: =IF(ISBLANK($F$5),SUMIFS('Données FDC'!$F:$F,'Données FDC'!$A:$A,Activation!$C$5,'Données FDC'!$E:$E,Activation!M$9),IF(ISBLANK($J$5),SUMIFS('Données FDC'!$F:$F,'Données FDC'!$B:$B,Activation!$F$5,'Données FDC'!$E:$E,Activation!M$9),SUMIFS('Données FDC'!$F:$F,'Données FDC'!$C:$C,Activation!$J$5,'Données FDC'!$E:$E,Activation!M$9))) -> 61107 | N10: =IF(ISBLANK($F$5),SUMIFS('Données FDC'!$F:$F,'Données FDC'!$A:$A,Activation!$C$5,'Données FDC'!$E:$E,Activation!N$9),IF(ISBLANK($J$5),SUMIFS('Données FDC'!$F:$F,'Données FDC'!$B:$B,Activation!$F$5,'Données FDC'!$E:$E,Activation!N$9),SUMIFS('Données FDC'!$F:$F,'Données FDC'!$C:$C,Activation!$J$5,'Données FDC'!$E:$E,Activation!N$9))) -> 75620 | O10: =IF(ISBLANK($F$5),SUMIFS('Données FDC'!$F:$F,'Données FDC'!$A:$A,Activation!$C$5,'Données FDC'!$E:$E,Activation!O$9),IF(ISBLANK($J$5),SUMIFS('Données FDC'!$F:$F,'Données FDC'!$B:$B,Activation!$F$5,'Données FDC'!$E:$E,Activation!O$9),SUMIFS('Données FDC'!$F:$F,'Données FDC'!$C:$C,Activation!$J$5,'Données FDC'!$E:$E,Activation!O$9))) -> 54270 | P10: =IF(ISBLANK($F$5),SUMIFS('Données FDC'!$F:$F,'Données FDC'!$A:$A,Activation!$C$5,'Données FDC'!$E:$E,Activation!P$9),IF(ISBLANK($J$5),SUMIFS('Données FDC'!$F:$F,'Données FDC'!$B:$B,Activation!$F$5,'Données FDC'!$E:$E,Activation!P$9),SUMIFS('Données FDC'!$F:$F,'Données FDC'!$C:$C,Activation!$J$5,'Données FDC'!$E:$E,Activation!P$9))) -> 156703
C11: Poids | D11: =SUM(F11:P11) -> 1 | F11: =F10/$D10 -> 0.2198550684 | G11: =G10/$D10 -> 0.1213451581 | H11: 0.1103520686 | I11: 0.224467073 | J11: 0.04637618605 | K11: 0.01197284174 | L11: 0.005982313679 | M11: 0.04563241068 | N11: 0.05647017356 | O11: 0.04052679608 | P11: 0.1170199102
C12: Poids CEGEE | D12: =SUM(F12:P12) -> 1 | F12: =SUMIF('Données FDC'!$E:$E,Activation!F$9,'Données FDC'!$F:$F)/SUM('Données FDC'!$F:$F) -> 0.2198550684 | G12: =SUMIF('Données FDC'!$E:$E,Activation!G$9,'Données FDC'!$F:$F)/SUM('Données FDC'!$F:$F) -> 0.1213451581 | H12: =SUMIF('Données FDC'!$E:$E,Activation!H$9,'Données FDC'!$F:$F)/SUM('Données FDC'!$F:$F) -> 0.1103520686 | I12: =SUMIF('Données FDC'!$E:$E,Activation!I$9,'Données FDC'!$F:$F)/SUM('Données FDC'!$F:$F) -> 0.224467073 | J12: =SUMIF('Données FDC'!$E:$E,Activation!J$9,'Données FDC'!$F:$F)/SUM('Données FDC'!$F:$F) -> 0.04637618605 | K12: =SUMIF('Données FDC'!$E:$E,Activation!K$9,'Données FDC'!$F:$F)/SUM('Données FDC'!$F:$F) -> 0.01197284174 | L12: =SUMIF('Données FDC'!$E:$E,Activation!L$9,'Données FDC'!$F:$F)/SUM('Données FDC'!$F:$F) -> 0.005982313679 | M12: =SUMIF('Données FDC'!$E:$E,Activation!M$9,'Données FDC'!$F:$F)/SUM('Données FDC'!$F:$F) -> 0.04563241068 | N12: =SUMIF('Données FDC'!$E:$E,Activation!N$9,'Données FDC'!$F:$F)/SUM('Données FDC'!$F:$F) -> 0.05647017356 | O12: =SUMIF('Données FDC'!$E:$E,Activation!O$9,'Données FDC'!$F:$F)/SUM('Données FDC'!$F:$F) -> 0.04052679608 | P12: =SUMIF('Données FDC'!$E:$E,Activation!P$9,'Données FDC'!$F:$F)/SUM('Données FDC'!$F:$F) -> 0.1170199102
C13: Variation annuelle en nb | D13: =SUM(F13:P13) -> -31067 | F13: =F10-IF(ISBLANK($F$5),SUMIFS('Données FDC déc 2021'!$F:$F,'Données FDC déc 2021'!$A:$A,Activation!$C$5,'Données FDC déc 2021'!$E:$E,Activation!F$9),IF(ISBLANK($J$5),SUMIFS('Données FDC déc 2021'!$F:$F,'Données FDC déc 2021'!$B:$B,Activation!$F$5,'Données FDC déc 2021'!$E:$E,Activation!F$9),SUMIFS('Données FDC déc 2021'!$F:$F,'Données FDC déc 2021'!$C:$C,Activation!$J$5,'Données FDC déc 2021'!$E:$E,Activation!F$9))) -> 5398 | G13: =G10-IF(ISBLANK($F$5),SUMIFS('Données FDC déc 2021'!$F:$F,'Données FDC déc 2021'!$A:$A,Activation!$C$5,'Données FDC déc 2021'!$E:$E,Activation!G$9),IF(ISBLANK($J$5),SUMIFS('Données FDC déc 2021'!$F:$F,'Données FDC déc 2021'!$B:$B,Activation!$F$5,'Données FDC déc 2021'!$E:$E,Activation!G$9),SUMIFS('Données FDC déc 2021'!$F:$F,'Données FDC déc 2021'!$C:$C,Activation!$J$5,'Données FDC déc 2021'!$E:$E,Activation!G$9))) -> 2082 | H13: =H10-IF(ISBLANK($F$5),SUMIFS('Données FDC déc 2021'!$F:$F,'Données FDC déc 2021'!$A:$A,Activation!$C$5,'Données FDC déc 2021'!$E:$E,Activation!H$9),IF(ISBLANK($J$5),SUMIFS('Données FDC déc 2021'!$F:$F,'Données FDC déc 2021'!$B:$B,Activation!$F$5,'Données FDC déc 2021'!$E:$E,Activation!H$9),SUMIFS('Données FDC déc 2021'!$F:$F,'Données FDC déc 2021'!$C:$C,Activation!$J$5,'Données FDC déc 2021'!$E:$E,Activation!H$9))) -> -5751 | I13: =I10-IF(ISBLANK($F$5),SUMIFS('Données FDC déc 2021'!$F:$F,'Données FDC déc 2021'!$A:$A,Activation!$C$5,'Données FDC déc 2021'!$E:$E,Activation!I$9),IF(ISBLANK($J$5),SUMIFS('Données FDC déc 2021'!$F:$F,'Données FDC déc 2021'!$B:$B,Activation!$F$5,'Données FDC déc 2021'!$E:$E,Activation!I$9),SUMIFS('Données FDC déc 2021'!$F:$F,'Données FDC déc 2021'!$C:$C,Activation!$J$5,'Données FDC déc 2021'!$E:$E,Activation!I$9))) -> -14006 | J13: =J10-IF(ISBLANK($F$5),SUMIFS('Données FDC déc 2021'!$F:$F,'Données FDC déc 2021'!$A:$A,Activation!$C$5,'Données FDC déc 2021'!$E:$E,Activation!J$9),IF(ISBLANK($J$5),SUMIFS('Données FDC déc 2021'!$F:$F,'Données FDC déc 2021'!$B:$B,Activation!$F$5,'Données FDC déc 2021'!$E:$E,Activation!J$9),SUMIFS('Données FDC déc 2021'!$F:$F,'Données FDC déc 2021'!$C:$C,Activation!$J$5,'Données FDC déc 2021'!$E:$E,Activation!J$9))) -> -367 | K13: =K10-IF(ISBLANK($F$5),SUMIFS('Données FDC déc 2021'!$F:$F,'Données FDC déc 2021'!$A:$A,Activation!$C$5,'Données FDC déc 2021'!$E:$E,Activation!K$9),IF(ISBLANK($J$5),SUMIFS('Données FDC déc 2021'!$F:$F,'Données FDC déc 2021'!$B:$B,Activation!$F$5,'Données FDC déc 2021'!$E:$E,Activation!K$9),SUMIFS('Données FDC déc 2021'!$F:$F,'Données FDC déc 2021'!$C:$C,Activation!$J$5,'Données FDC déc 2021'!$E:$E,Activation!K$9))) -> 357 | L13: =L10-IF(ISBLANK($F$5),SUMIFS('Données FDC déc 2021'!$F:$F,'Données FDC déc 2021'!$A:$A,Activation!$C$5,'Données FDC déc 2021'!$E:$E,Activation!L$9),IF(ISBLANK($J$5),SUMIFS('Données FDC déc 2021'!$F:$F,'Données FDC déc 2021'!$B:$B,Activation!$F$5,'Données FDC déc 2021'!$E:$E,Activation!L$9),SUMIFS('Données FDC déc 2021'!$F:$F,'Données FDC déc 2021'!$C:$C,Activation!$J$5,'Données FDC déc 2021'!$E:$E,Activation!L$9))) -> -728 | M13: =M10-IF(ISBLANK($F$5),SUMIFS('Données FDC déc 2021'!$F:$F,'Données FDC déc 2021'!$A:$A,Activation!$C$5,'Données FDC déc 2021'!$E:$E,Activation!M$9),IF(ISBLANK($J$5),SUMIFS('Données FDC déc 2021'!$F:$F,'Données FDC déc 2021'!$B:$B,Activation!$F$5,'Données FDC déc 2021'!$E:$E,Activation!M$9),SUMIFS('Données FDC déc 2021'!$F:$F,'Données FDC déc 2021'!$C:$C,Activation!$J$5,'Données FDC déc 2021'!$E:$E,Activation!M$9))) -> -2678 | N13: =N10-IF(ISBLANK($F$5),SUMIFS('Données FDC déc 2021'!$F:$F,'Données FDC déc 2021'!$A:$A,Activation!$C$5,'Données FDC déc 2021'!$E:$E,Activation!N$9),IF(ISBLANK($J$5),SUMIFS('Données FDC déc 2021'!$F:$F,'Données FDC déc 2021'!$B:$B,Activation!$F$5,'Données FDC déc 2021'!$E:$E,Activation!N$9),SUMIFS('Données FDC déc 2021'!$F:$F,'Données FDC déc 2021'!$C:$C,Activation!$J$5,'Données FDC déc 2021'!$E:$E,Activation!N$9))) -> -4119 | O13: =O10-IF(ISBLANK($F$5),SUMIFS('Données FDC déc 2021'!$F:$F,'Données FDC déc 2021'!$A:$A,Activation!$C$5,'Données FDC déc 2021'!$E:$E,Activation!O$9),IF(ISBLANK($J$5),SUMIFS('Données FDC déc 2021'!$F:$F,'Données FDC déc 2021'!$B:$B,Activation!$F$5,'Données FDC déc 2021'!$E:$E,Activation!O$9),SUMIFS('Données FDC déc 2021'!$F:$F,'Données FDC déc 2021'!$C:$C,Activation!$J$5,'Données FDC déc 2021'!$E:$E,Activation!O$9))) -> 880 | P13: =P10-IF(ISBLANK($F$5),SUMIFS('Données FDC déc 2021'!$F:$F,'Données FDC déc 2021'!$A:$A,Activation!$C$5,'Données FDC déc 2021'!$E:$E,Activation!P$9),IF(ISBLANK($J$5),SUMIFS('Données FDC déc 2021'!$F:$F,'Données FDC déc 2021'!$B:$B,Activation!$F$5,'Données FDC déc 2021'!$E:$E,Activation!P$9),SUMIFS('Données FDC déc 2021'!$F:$F,'Données FDC déc 2021'!$C:$C,Activation!$J$5,'Données FDC déc 2021'!$E:$E,Activation!P$9))) -> -12135
C14: Variation annuelle en % | D14: =D13/IF(ISBLANK($F$5),SUMIFS('Données FDC déc 2021'!$F:$F,'Données FDC déc 2021'!$A:$A,Activation!$C$5),IF(ISBLANK($J$5),SUMIFS('Données FDC déc 2021'!$F:$F,'Données FDC déc 2021'!$B:$B,Activation!$F$5),SUMIFS('Données FDC déc 2021'!$F:$F,'Données FDC déc 2021'!$C:$C,Activation!$J$5))) -> -0.02267364677 | F14: =F13/IF(ISBLANK($F$5),SUMIFS('Données FDC déc 2021'!$F:$F,'Données FDC déc 2021'!$A:$A,Activation!$C$5,'Données FDC déc 2021'!$E:$E,Activation!F$9),IF(ISBLANK($J$5),SUMIFS('Données FDC déc 2021'!$F:$F,'Données FDC déc 2021'!$B:$B,Activation!$F$5,'Données FDC déc 2021'!$E:$E,Activation!F$9),SUMIFS('Données FDC déc 2021'!$F:$F,'Données FDC déc 2021'!$C:$C,Activation!$J$5,'Données FDC déc 2021'!$E:$E,Activation!F$9))) -> 0.01867736053 | G14: =G13/IF(ISBLANK($F$5),SUMIFS('Données FDC déc 2021'!$F:$F,'Données FDC déc 2021'!$A:$A,Activation!$C$5,'Données FDC déc 2021'!$E:$E,Activation!G$9),IF(ISBLANK($J$5),SUMIFS('Données FDC déc 2021'!$F:$F,'Données FDC déc 2021'!$B:$B,Activation!$F$5,'Données FDC déc 2021'!$E:$E,Activation!G$9),SUMIFS('Données FDC déc 2021'!$F:$F,'Données FDC déc 2021'!$C:$C,Activation!$J$5,'Données FDC déc 2021'!$E:$E,Activation!G$9))) -> 0.01297899796 | H14: =H13/IF(ISBLANK($F$5),SUMIFS('Données FDC déc 2021'!$F:$F,'Données FDC déc 2021'!$A:$A,Activation!$C$5,'Données FDC déc 2021'!$E:$E,Activation!H$9),IF(ISBLANK($J$5),SUMIFS('Données FDC déc 2021'!$F:$F,'Données FDC déc 2021'!$B:$B,Activation!$F$5,'Données FDC déc 2021'!$E:$E,Activation!H$9),SUMIFS('Données FDC déc 2021'!$F:$F,'Données FDC déc 2021'!$C:$C,Activation!$J$5,'Données FDC déc 2021'!$E:$E,Activation!H$9))) -> -0.03745969712 | I14: =I13/IF(ISBLANK($F$5),SUMIFS('Données FDC déc 2021'!$F:$F,'Données FDC déc 2021'!$A:$A,Activation!$C$5,'Données FDC déc 2021'!$E:$E,Activation!I$9),IF(ISBLANK($J$5),SUMIFS('Données FDC déc 2021'!$F:$F,'Données FDC déc 2021'!$B:$B,Activation!$F$5,'Données FDC déc 2021'!$E:$E,Activation!I$9),SUMIFS('Données FDC déc 2021'!$F:$F,'Données FDC déc 2021'!$C:$C,Activation!$J$5,'Données FDC déc 2021'!$E:$E,Activation!I$9))) -> -0.04452101604 | J14: =J13/IF(ISBLANK($F$5),SUMIFS('Données FDC déc 2021'!$F:$F,'Données FDC déc 2021'!$A:$A,Activation!$C$5,'Données FDC déc 2021'!$E:$E,Activation!J$9),IF(ISBLANK($J$5),SUMIFS('Données FDC déc 2021'!$F:$F,'Données FDC déc 2021'!$B:$B,Activation!$F$5,'Données FDC déc 2021'!$E:$E,Activation!J$9),SUMIFS('Données FDC déc 2021'!$F:$F,'Données FDC déc 2021'!$C:$C,Activation!$J$5,'Données FDC déc 2021'!$E:$E,Activation!J$9))) -> -0.005874819914 | K14: =K13/IF(ISBLANK($F$5),SUMIFS('Données FDC déc 2021'!$F:$F,'Données FDC déc 2021'!$A:$A,Activation!$C$5,'Données FDC déc 2021'!$E:$E,Activation!K$9),IF(ISBLANK($J$5),SUMIFS('Données FDC déc 2021'!$F:$F,'Données FDC déc 2021'!$B:$B,Activation!$F$5,'Données FDC déc 2021'!$E:$E,Activation!K$9),SUMIFS('Données FDC déc 2021'!$F:$F,'Données FDC déc 2021'!$C:$C,Activation!$J$5,'Données FDC déc 2021'!$E:$E,Activation!K$9))) -> 0.02277366675 | L14: =L13/IF(ISBLANK($F$5),SUMIFS('Données FDC déc 2021'!$F:$F,'Données FDC déc 2021'!$A:$A,Activation!$C$5,'Données FDC déc 2021'!$E:$E,Activation!L$9),IF(ISBLANK($J$5),SUMIFS('Données FDC déc 2021'!$F:$F,'Données FDC déc 2021'!$B:$B,Activation!$F$5,'Données FDC déc 2021'!$E:$E,Activation!L$9),SUMIFS('Données FDC déc 2021'!$F:$F,'Données FDC déc 2021'!$C:$C,Activation!$J$5,'Données FDC déc 2021'!$E:$E,Activation!L$9))) -> -0.08330472594 | M14: =M13/IF(ISBLANK($F$5),SUMIFS('Données FDC déc 2021'!$F:$F,'Données FDC déc 2021'!$A:$A,Activation!$C$5,'Données FDC déc 2021'!$E:$E,Activation!M$9),IF(ISBLANK($J$5),SUMIFS('Données FDC déc 2021'!$F:$F,'Données FDC déc 2021'!$B:$B,Activation!$F$5,'Données FDC déc 2021'!$E:$E,Activation!M$9),SUMIFS('Données FDC déc 2021'!$F:$F,'Données FDC déc 2021'!$C:$C,Activation!$J$5,'Données FDC déc 2021'!$E:$E,Activation!M$9))) -> -0.04198479266 | N14: =N13/IF(ISBLANK($F$5),SUMIFS('Données FDC déc 2021'!$F:$F,'Données FDC déc 2021'!$A:$A,Activation!$C$5,'Données FDC déc 2021'!$E:$E,Activation!N$9),IF(ISBLANK($J$5),SUMIFS('Données FDC déc 2021'!$F:$F,'Données FDC déc 2021'!$B:$B,Activation!$F$5,'Données FDC déc 2021'!$E:$E,Activation!N$9),SUMIFS('Données FDC déc 2021'!$F:$F,'Données FDC déc 2021'!$C:$C,Activation!$J$5,'Données FDC déc 2021'!$E:$E,Activation!N$9))) -> -0.05165602779 | O14: =O13/IF(ISBLANK($F$5),SUMIFS('Données FDC déc 2021'!$F:$F,'Données FDC déc 2021'!$A:$A,Activation!$C$5,'Données FDC déc 2021'!$E:$E,Activation!O$9),IF(ISBLANK($J$5),SUMIFS('Données FDC déc 2021'!$F:$F,'Données FDC déc 2021'!$B:$B,Activation!$F$5,'Données FDC déc 2021'!$E:$E,Activation!O$9),SUMIFS('Données FDC déc 2021'!$F:$F,'Données FDC déc 2021'!$C:$C,Activation!$J$5,'Données FDC déc 2021'!$E:$E,Activation!O$9))) -> 0.01648248736 | P14: =P13/IF(ISBLANK($F$5),SUMIFS('Données FDC déc 2021'!$F:$F,'Données FDC déc 2021'!$A:$A,Activation!$C$5,'Données FDC déc 2021'!$E:$E,Activation!P$9),IF(ISBLANK($J$5),SUMIFS('Données FDC déc 2021'!$F:$F,'Données FDC déc 2021'!$B:$B,Activation!$F$5,'Données FDC déc 2021'!$E:$E,Activation!P$9),SUMIFS('Données FDC déc 2021'!$F:$F,'Données FDC déc 2021'!$C:$C,Activation!$J$5,'Données FDC déc 2021'!$E:$E,Activation!P$9))) -> -0.07187363034
C15: Variation en % CEGEE | D15: =SUM('Données FDC'!$F:$F)/SUM('Données FDC déc 2021'!$F:$F)-1 -> -0.02267364677 | F15: =IF(ISBLANK($F$5),SUMIFS('Données FDC'!$F:$F,'Données FDC'!$E:$E,Activation!F$9),IF(ISBLANK($J$5),SUMIFS('Données FDC'!$F:$F,'Données FDC'!$E:$E,Activation!F$9),SUMIFS('Données FDC'!$F:$F,'Données FDC'!$E:$E,Activation!F$9)))/(IF(ISBLANK($F$5),SUMIFS('Données FDC déc 2021'!$F:$F,'Données FDC déc 2021'!$E:$E,Activation!F$9),IF(ISBLANK($J$5),SUMIFS('Données FDC déc 2021'!$F:$F,'Données FDC déc 2021'!$E:$E,Activation!F$9),SUMIFS('Données FDC déc 2021'!$F:$F,'Données FDC déc 2021'!$E:$E,Activation!F$9))))-1 -> 0.01867736053 | G15: =IF(ISBLANK($F$5),SUMIFS('Données FDC'!$F:$F,'Données FDC'!$E:$E,Activation!G$9),IF(ISBLANK($J$5),SUMIFS('Données FDC'!$F:$F,'Données FDC'!$E:$E,Activation!G$9),SUMIFS('Données FDC'!$F:$F,'Données FDC'!$E:$E,Activation!G$9)))/(IF(ISBLANK($F$5),SUMIFS('Données FDC déc 2021'!$F:$F,'Données FDC déc 2021'!$E:$E,Activation!G$9),IF(ISBLANK($J$5),SUMIFS('Données FDC déc 2021'!$F:$F,'Données FDC déc 2021'!$E:$E,Activation!G$9),SUMIFS('Données FDC déc 2021'!$F:$F,'Données FDC déc 2021'!$E:$E,Activation!G$9))))-1 -> 0.01297899796 | H15: =IF(ISBLANK($F$5),SUMIFS('Données FDC'!$F:$F,'Données FDC'!$E:$E,Activation!H$9),IF(ISBLANK($J$5),SUMIFS('Données FDC'!$F:$F,'Données FDC'!$E:$E,Activation!H$9),SUMIFS('Données FDC'!$F:$F,'Données FDC'!$E:$E,Activation!H$9)))/(IF(ISBLANK($F$5),SUMIFS('Données FDC déc 2021'!$F:$F,'Données FDC déc 2021'!$E:$E,Activation!H$9),IF(ISBLANK($J$5),SUMIFS('Données FDC déc 2021'!$F:$F,'Données FDC déc 2021'!$E:$E,Activation!H$9),SUMIFS('Données FDC déc 2021'!$F:$F,'Données FDC déc 2021'!$E:$E,Activation!H$9))))-1 -> -0.03745969712 | I15: =IF(ISBLANK($F$5),SUMIFS('Données FDC'!$F:$F,'Données FDC'!$E:$E,Activation!I$9),IF(ISBLANK($J$5),SUMIFS('Données FDC'!$F:$F,'Données FDC'!$E:$E,Activation!I$9),SUMIFS('Données FDC'!$F:$F,'Données FDC'!$E:$E,Activation!I$9)))/(IF(ISBLANK($F$5),SUMIFS('Données FDC déc 2021'!$F:$F,'Données FDC déc 2021'!$E:$E,Activation!I$9),IF(ISBLANK($J$5),SUMIFS('Données FDC déc 2021'!$F:$F,'Données FDC déc 2021'!$E:$E,Activation!I$9),SUMIFS('Données FDC déc 2021'!$F:$F,'Données FDC déc 2021'!$E:$E,Activation!I$9))))-1 -> -0.04452101604 | J15: =IF(ISBLANK($F$5),SUMIFS('Données FDC'!$F:$F,'Données FDC'!$E:$E,Activation!J$9),IF(ISBLANK($J$5),SUMIFS('Données FDC'!$F:$F,'Données FDC'!$E:$E,Activation!J$9),SUMIFS('Données FDC'!$F:$F,'Données FDC'!$E:$E,Activation!J$9)))/(IF(ISBLANK($F$5),SUMIFS('Données FDC déc 2021'!$F:$F,'Données FDC déc 2021'!$E:$E,Activation!J$9),IF(ISBLANK($J$5),SUMIFS('Données FDC déc 2021'!$F:$F,'Données FDC déc 2021'!$E:$E,Activation!J$9),SUMIFS('Données FDC déc 2021'!$F:$F,'Données FDC déc 2021'!$E:$E,Activation!J$9))))-1 -> -0.005874819914 | K15: =IF(ISBLANK($F$5),SUMIFS('Données FDC'!$F:$F,'Données FDC'!$E:$E,Activation!K$9),IF(ISBLANK($J$5),SUMIFS('Données FDC'!$F:$F,'Données FDC'!$E:$E,Activation!K$9),SUMIFS('Données FDC'!$F:$F,'Données FDC'!$E:$E,Activation!K$9)))/(IF(ISBLANK($F$5),SUMIFS('Données FDC déc 2021'!$F:$F,'Données FDC déc 2021'!$E:$E,Activation!K$9),IF(ISBLANK($J$5),SUMIFS('Données FDC déc 2021'!$F:$F,'Données FDC déc 2021'!$E:$E,Activation!K$9),SUMIFS('Données FDC déc 2021'!$F:$F,'Données FDC déc 2021'!$E:$E,Activation!K$9))))-1 -> 0.02277366675 | L15: =IF(ISBLANK($F$5),SUMIFS('Données FDC'!$F:$F,'Données FDC'!$E:$E,Activation!L$9),IF(ISBLANK($J$5),SUMIFS('Données FDC'!$F:$F,'Données FDC'!$E:$E,Activation!L$9),SUMIFS('Données FDC'!$F:$F,'Données FDC'!$E:$E,Activation!L$9)))/(IF(ISBLANK($F$5),SUMIFS('Données FDC déc 2021'!$F:$F,'Données FDC déc 2021'!$E:$E,Activation!L$9),IF(ISBLANK($J$5),SUMIFS('Données FDC déc 2021'!$F:$F,'Données FDC déc 2021'!$E:$E,Activation!L$9),SUMIFS('Données FDC déc 2021'!$F:$F,'Données FDC déc 2021'!$E:$E,Activation!L$9))))-1 -> -0.08330472594 | M15: =IF(ISBLANK($F$5),SUMIFS('Données FDC'!$F:$F,'Données FDC'!$E:$E,Activation!M$9),IF(ISBLANK($J$5),SUMIFS('Données FDC'!$F:$F,'Données FDC'!$E:$E,Activation!M$9),SUMIFS('Données FDC'!$F:$F,'Données FDC'!$E:$E,Activation!M$9)))/(IF(ISBLANK($F$5),SUMIFS('Données FDC déc 2021'!$F:$F,'Données FDC déc 2021'!$E:$E,Activation!M$9),IF(ISBLANK($J$5),SUMIFS('Données FDC déc 2021'!$F:$F,'Données FDC déc 2021'!$E:$E,Activation!M$9),SUMIFS('Données FDC déc 2021'!$F:$F,'Données FDC déc 2021'!$E:$E,Activation!M$9))))-1 -> -0.04198479266 | N15: =IF(ISBLANK($F$5),SUMIFS('Données FDC'!$F:$F,'Données FDC'!$E:$E,Activation!N$9),IF(ISBLANK($J$5),SUMIFS('Données FDC'!$F:$F,'Données FDC'!$E:$E,Activation!N$9),SUMIFS('Données FDC'!$F:$F,'Données FDC'!$E:$E,Activation!N$9)))/(IF(ISBLANK($F$5),SUMIFS('Données FDC déc 2021'!$F:$F,'Données FDC déc 2021'!$E:$E,Activation!N$9),IF(ISBLANK($J$5),SUMIFS('Données FDC déc 2021'!$F:$F,'Données FDC déc 2021'!$E:$E,Activation!N$9),SUMIFS('Données FDC déc 2021'!$F:$F,'Données FDC déc 2021'!$E:$E,Activation!N$9))))-1 -> -0.05165602779 | O15: =IF(ISBLANK($F$5),SUMIFS('Données FDC'!$F:$F,'Données FDC'!$E:$E,Activation!O$9),IF(ISBLANK($J$5),SUMIFS('Données FDC'!$F:$F,'Données FDC'!$E:$E,Activation!O$9),SUMIFS('Données FDC'!$F:$F,'Données FDC'!$E:$E,Activation!O$9)))/(IF(ISBLANK($F$5),SUMIFS('Données FDC déc 2021'!$F:$F,'Données FDC déc 2021'!$E:$E,Activation!O$9),IF(ISBLANK($J$5),SUMIFS('Données FDC déc 2021'!$F:$F,'Données FDC déc 2021'!$E:$E,Activation!O$9),SUMIFS('Données FDC déc 2021'!$F:$F,'Données FDC déc 2021'!$E:$E,Activation!O$9))))-1 -> 0.01648248736 | P15: =IF(ISBLANK($F$5),SUMIFS('Données FDC'!$F:$F,'Données FDC'!$E:$E,Activation!P$9),IF(ISBLANK($J$5),SUMIFS('Données FDC'!$F:$F,'Données FDC'!$E:$E,Activation!P$9),SUMIFS('Données FDC'!$F:$F,'Données FDC'!$E:$E,Activation!P$9)))/(IF(ISBLANK($F$5),SUMIFS('Données FDC déc 2021'!$F:$F,'Données FDC déc 2021'!$E:$E,Activation!P$9),IF(ISBLANK($J$5),SUMIFS('Données FDC déc 2021'!$F:$F,'Données FDC déc 2021'!$E:$E,Activation!P$9),SUMIFS('Données FDC déc 2021'!$F:$F,'Données FDC déc 2021'!$E:$E,Activation!P$9))))-1 -> -0.07187363034
C16: Nouveaux clients | D16: =SUM(F16:P16) -> 27200 | F16: =IF(ISBLANK($F$5),SUMIFS('Données FDC'!$N:$N,'Données FDC'!$A:$A,Activation!$C$5,'Données FDC'!$E:$E,Activation!F$9),IF(ISBLANK($J$5),SUMIFS('Données FDC'!$N:$N,'Données FDC'!$B:$B,Activation!$F$5,'Données FDC'!$E:$E,Activation!F$9),SUMIFS('Données FDC'!$N:$N,'Données FDC'!$C:$C,Activation!$J$5,'Données FDC'!$E:$E,Activation!F$9))) -> 3752 | G16: =IF(ISBLANK($F$5),SUMIFS('Données FDC'!$N:$N,'Données FDC'!$A:$A,Activation!$C$5,'Données FDC'!$E:$E,Activation!G$9),IF(ISBLANK($J$5),SUMIFS('Données FDC'!$N:$N,'Données FDC'!$B:$B,Activation!$F$5,'Données FDC'!$E:$E,Activation!G$9),SUMIFS('Données FDC'!$N:$N,'Données FDC'!$C:$C,Activation!$J$5,'Données FDC'!$E:$E,Activation!G$9))) -> 2262 | H16: =IF(ISBLANK($F$5),SUMIFS('Données FDC'!$N:$N,'Données FDC'!$A:$A,Activation!$C$5,'Données FDC'!$E:$E,Activation!H$9),IF(ISBLANK($J$5),SUMIFS('Données FDC'!$N:$N,'Données FDC'!$B:$B,Activation!$F$5,'Données FDC'!$E:$E,Activation!H$9),SUMIFS('Données FDC'!$N:$N,'Données FDC'!$C:$C,Activation!$J$5,'Données FDC'!$E:$E,Activation!H$9))) -> 1700 | I16: =IF(ISBLANK($F$5),SUMIFS('Données FDC'!$N:$N,'Données FDC'!$A:$A,Activation!$C$5,'Données FDC'!$E:$E,Activation!I$9),IF(ISBLANK($J$5),SUMIFS('Données FDC'!$N:$N,'Données FDC'!$B:$B,Activation!$F$5,'Données FDC'!$E:$E,Activation!I$9),SUMIFS('Données FDC'!$N:$N,'Données FDC'!$C:$C,Activation!$J$5,'Données FDC'!$E:$E,Activation!I$9))) -> 5702 | J16: =IF(ISBLANK($F$5),SUMIFS('Données FDC'!$N:$N,'Données FDC'!$A:$A,Activation!$C$5,'Données FDC'!$E:$E,Activation!J$9),IF(ISBLANK($J$5),SUMIFS('Données FDC'!$N:$N,'Données FDC'!$B:$B,Activation!$F$5,'Données FDC'!$E:$E,Activation!J$9),SUMIFS('Données FDC'!$N:$N,'Données FDC'!$C:$C,Activation!$J$5,'Données FDC'!$E:$E,Activation!J$9))) -> 1774 | K16: =IF(ISBLANK($F$5),SUMIFS('Données FDC'!$N:$N,'Données FDC'!$A:$A,Activation!$C$5,'Données FDC'!$E:$E,Activation!K$9),IF(ISBLANK($J$5),SUMIFS('Données FDC'!$N:$N,'Données FDC'!$B:$B,Activation!$F$5,'Données FDC'!$E:$E,Activation!K$9),SUMIFS('Données FDC'!$N:$N,'Données FDC'!$C:$C,Activation!$J$5,'Données FDC'!$E:$E,Activation!K$9))) -> 1223 | L16: =IF(ISBLANK($F$5),SUMIFS('Données FDC'!$N:$N,'Données FDC'!$A:$A,Activation!$C$5,'Données FDC'!$E:$E,Activation!L$9),IF(ISBLANK($J$5),SUMIFS('Données FDC'!$N:$N,'Données FDC'!$B:$B,Activation!$F$5,'Données FDC'!$E:$E,Activation!L$9),SUMIFS('Données FDC'!$N:$N,'Données FDC'!$C:$C,Activation!$J$5,'Données FDC'!$E:$E,Activation!L$9))) -> 107 | M16: =IF(ISBLANK($F$5),SUMIFS('Données FDC'!$N:$N,'Données FDC'!$A:$A,Activation!$C$5,'Données FDC'!$E:$E,Activation!M$9),IF(ISBLANK($J$5),SUMIFS('Données FDC'!$N:$N,'Données FDC'!$B:$B,Activation!$F$5,'Données FDC'!$E:$E,Activation!M$9),SUMIFS('Données FDC'!$N:$N,'Données FDC'!$C:$C,Activation!$J$5,'Données FDC'!$E:$E,Activation!M$9))) -> 1926 | N16: =IF(ISBLANK($F$5),SUMIFS('Données FDC'!$N:$N,'Données FDC'!$A:$A,Activation!$C$5,'Données FDC'!$E:$E,Activation!N$9),IF(ISBLANK($J$5),SUMIFS('Données FDC'!$N:$N,'Données FDC'!$B:$B,Activation!$F$5,'Données FDC'!$E:$E,Activation!N$9),SUMIFS('Données FDC'!$N:$N,'Données FDC'!$C:$C,Activation!$J$5,'Données FDC'!$E:$E,Activation!N$9))) -> 4731 | O16: =IF(ISBLANK($F$5),SUMIFS('Données FDC'!$N:$N,'Données FDC'!$A:$A,Activation!$C$5,'Données FDC'!$E:$E,Activation!O$9),IF(ISBLANK($J$5),SUMIFS('Données FDC'!$N:$N,'Données FDC'!$B:$B,Activation!$F$5,'Données FDC'!$E:$E,Activation!O$9),SUMIFS('Données FDC'!$N:$N,'Données FDC'!$C:$C,Activation!$J$5,'Données FDC'!$E:$E,Activation!O$9))) -> 3683 | P16: =IF(ISBLANK($F$5),SUMIFS('Données FDC'!$N:$N,'Données FDC'!$A:$A,Activation!$C$5,'Données FDC'!$E:$E,Activation!P$9),IF(ISBLANK($J$5),SUMIFS('Données FDC'!$N:$N,'Données FDC'!$B:$B,Activation!$F$5,'Données FDC'!$E:$E,Activation!P$9),SUMIFS('Données FDC'!$N:$N,'Données FDC'!$C:$C,Activation!$J$5,'Données FDC'!$E:$E,Activation!P$9))) -> 340
C17: % Conquête | D17: =D16/E10 -> 0.0198513919 | F17: =F16/IF(ISBLANK($F$5),SUMIFS('Données FDC déc 2021'!$F:$F,'Données FDC déc 2021'!$A:$A,Activation!$C$5,'Données FDC déc 2021'!$E:$E,Activation!F$9),IF(ISBLANK($J$5),SUMIFS('Données FDC déc 2021'!$F:$F,'Données FDC déc 2021'!$B:$B,Activation!$F$5,'Données FDC déc 2021'!$E:$E,Activation!F$9),SUMIFS('Données FDC déc 2021'!$F:$F,'Données FDC déc 2021'!$C:$C,Activation!$J$5,'Données FDC déc 2021'!$E:$E,Activation!F$9))) -> 0.01298211499 | G17: =G16/IF(ISBLANK($F$5),SUMIFS('Données FDC déc 2021'!$F:$F,'Données FDC déc 2021'!$A:$A,Activation!$C$5,'Données FDC déc 2021'!$E:$E,Activation!G$9),IF(ISBLANK($J$5),SUMIFS('Données FDC déc 2021'!$F:$F,'Données FDC déc 2021'!$B:$B,Activation!$F$5,'Données FDC déc 2021'!$E:$E,Activation!G$9),SUMIFS('Données FDC déc 2021'!$F:$F,'Données FDC déc 2021'!$C:$C,Activation!$J$5,'Données FDC déc 2021'!$E:$E,Activation!G$9))) -> 0.01410110153 | H17: =H16/IF(ISBLANK($F$5),SUMIFS('Données FDC déc 2021'!$F:$F,'Données FDC déc 2021'!$A:$A,Activation!$C$5,'Données FDC déc 2021'!$E:$E,Activation!H$9),IF(ISBLANK($J$5),SUMIFS('Données FDC déc 2021'!$F:$F,'Données FDC déc 2021'!$B:$B,Activation!$F$5,'Données FDC déc 2021'!$E:$E,Activation!H$9),SUMIFS('Données FDC déc 2021'!$F:$F,'Données FDC déc 2021'!$C:$C,Activation!$J$5,'Données FDC déc 2021'!$E:$E,Activation!H$9))) -> 0.01107311513 | I17: =I16/IF(ISBLANK($F$5),SUMIFS('Données FDC déc 2021'!$F:$F,'Données FDC déc 2021'!$A:$A,Activation!$C$5,'Données FDC déc 2021'!$E:$E,Activation!I$9),IF(ISBLANK($J$5),SUMIFS('Données FDC déc 2021'!$F:$F,'Données FDC déc 2021'!$B:$B,Activation!$F$5,'Données FDC déc 2021'!$E:$E,Activation!I$9),SUMIFS('Données FDC déc 2021'!$F:$F,'Données FDC déc 2021'!$C:$C,Activation!$J$5,'Données FDC déc 2021'!$E:$E,Activation!I$9))) -> 0.01812500596 | J17: =J16/IF(ISBLANK($F$5),SUMIFS('Données FDC déc 2021'!$F:$F,'Données FDC déc 2021'!$A:$A,Activation!$C$5,'Données FDC déc 2021'!$E:$E,Activation!J$9),IF(ISBLANK($J$5),SUMIFS('Données FDC déc 2021'!$F:$F,'Données FDC déc 2021'!$B:$B,Activation!$F$5,'Données FDC déc 2021'!$E:$E,Activation!J$9),SUMIFS('Données FDC déc 2021'!$F:$F,'Données FDC déc 2021'!$C:$C,Activation!$J$5,'Données FDC déc 2021'!$E:$E,Activation!J$9))) -> 0.02839763086 | K17: =K16/IF(ISBLANK($F$5),SUMIFS('Données FDC déc 2021'!$F:$F,'Données FDC déc 2021'!$A:$A,Activation!$C$5,'Données FDC déc 2021'!$E:$E,Activation!K$9),IF(ISBLANK($J$5),SUMIFS('Données FDC déc 2021'!$F:$F,'Données FDC déc 2021'!$B:$B,Activation!$F$5,'Données FDC déc 2021'!$E:$E,Activation!K$9),SUMIFS('Données FDC déc 2021'!$F:$F,'Données FDC déc 2021'!$C:$C,Activation!$J$5,'Données FDC déc 2021'!$E:$E,Activation!K$9))) -> 0.07801735137 | L17: =L16/IF(ISBLANK($F$5),SUMIFS('Données FDC déc 2021'!$F:$F,'Données FDC déc 2021'!$A:$A,Activation!$C$5,'Données FDC déc 2021'!$E:$E,Activation!L$9),IF(ISBLANK($J$5),SUMIFS('Données FDC déc 2021'!$F:$F,'Données FDC déc 2021'!$B:$B,Activation!$F$5,'Données FDC déc 2021'!$E:$E,Activation!L$9),SUMIFS('Données FDC déc 2021'!$F:$F,'Données FDC déc 2021'!$C:$C,Activation!$J$5,'Données FDC déc 2021'!$E:$E,Activation!L$9))) -> 0.01224396384 | M17: =M16/IF(ISBLANK($F$5),SUMIFS('Données FDC déc 2021'!$F:$F,'Données FDC déc 2021'!$A:$A,Activation!$C$5,'Données FDC déc 2021'!$E:$E,Activation!M$9),IF(ISBLANK($J$5),SUMIFS('Données FDC déc 2021'!$F:$F,'Données FDC déc 2021'!$B:$B,Activation!$F$5,'Données FDC déc 2021'!$E:$E,Activation!M$9),SUMIFS('Données FDC déc 2021'!$F:$F,'Données FDC déc 2021'!$C:$C,Activation!$J$5,'Données FDC déc 2021'!$E:$E,Activation!M$9))) -> 0.03019518696 | N17: =N16/IF(ISBLANK($F$5),SUMIFS('Données FDC déc 2021'!$F:$F,'Données FDC déc 2021'!$A:$A,Activation!$C$5,'Données FDC déc 2021'!$E:$E,Activation!N$9),IF(ISBLANK($J$5),SUMIFS('Données FDC déc 2021'!$F:$F,'Données FDC déc 2021'!$B:$B,Activation!$F$5,'Données FDC déc 2021'!$E:$E,Activation!N$9),SUMIFS('Données FDC déc 2021'!$F:$F,'Données FDC déc 2021'!$C:$C,Activation!$J$5,'Données FDC déc 2021'!$E:$E,Activation!N$9))) -> 0.05933106761 | O17: =O16/IF(ISBLANK($F$5),SUMIFS('Données FDC déc 2021'!$F:$F,'Données FDC déc 2021'!$A:$A,Activation!$C$5,'Données FDC déc 2021'!$E:$E,Activation!O$9),IF(ISBLANK($J$5),SUMIFS('Données FDC déc 2021'!$F:$F,'Données FDC déc 2021'!$B:$B,Activation!$F$5,'Données FDC déc 2021'!$E:$E,Activation!O$9),SUMIFS('Données FDC déc 2021'!$F:$F,'Données FDC déc 2021'!$C:$C,Activation!$J$5,'Données FDC déc 2021'!$E:$E,Activation!O$9))) -> 0.06898295561 | P17: =P16/IF(ISBLANK($F$5),SUMIFS('Données FDC déc 2021'!$F:$F,'Données FDC déc 2021'!$A:$A,Activation!$C$5,'Données FDC déc 2021'!$E:$E,Activation!P$9),IF(ISBLANK($J$5),SUMIFS('Données FDC déc 2021'!$F:$F,'Données FDC déc 2021'!$B:$B,Activation!$F$5,'Données FDC déc 2021'!$E:$E,Activation!P$9),SUMIFS('Données FDC déc 2021'!$F:$F,'Données FDC déc 2021'!$C:$C,Activation!$J$5,'Données FDC déc 2021'!$E:$E,Activation!P$9))) -> 0.002013764674
C18: % Conquête CEGEE | D18: =SUM('Données FDC'!$N:$N)/SUM('Données FDC déc 2021'!$F:$F) -> 0.0198513919 | F18: =SUMIF('Données FDC'!$E:$E,Activation!F$9,'Données FDC'!$N:$N)/SUMIF('Données FDC déc 2021'!$E:$E,Activation!F$9,'Données FDC déc 2021'!$F:$F) -> 0.01298211499 | G18: =SUMIF('Données FDC'!$E:$E,Activation!G$9,'Données FDC'!$N:$N)/SUMIF('Données FDC déc 2021'!$E:$E,Activation!G$9,'Données FDC déc 2021'!$F:$F) -> 0.01410110153 | H18: =SUMIF('Données FDC'!$E:$E,Activation!H$9,'Données FDC'!$N:$N)/SUMIF('Données FDC déc 2021'!$E:$E,Activation!H$9,'Données FDC déc 2021'!$F:$F) -> 0.01107311513 | I18: =SUMIF('Données FDC'!$E:$E,Activation!I$9,'Données FDC'!$N:$N)/SUMIF('Données FDC déc 2021'!$E:$E,Activation!I$9,'Données FDC déc 2021'!$F:$F) -> 0.01812500596 | J18: =SUMIF('Données FDC'!$E:$E,Activation!J$9,'Données FDC'!$N:$N)/SUMIF('Données FDC déc 2021'!$E:$E,Activation!J$9,'Données FDC déc 2021'!$F:$F) -> 0.02839763086 | K18: =SUMIF('Données FDC'!$E:$E,Activation!K$9,'Données FDC'!$N:$N)/SUMIF('Données FDC déc 2021'!$E:$E,Activation!K$9,'Données FDC déc 2021'!$F:$F) -> 0.07801735137 | L18: =SUMIF('Données FDC'!$E:$E,Activation!L$9,'Données FDC'!$N:$N)/SUMIF('Données FDC déc 2021'!$E:$E,Activation!L$9,'Données FDC déc 2021'!$F:$F) -> 0.01224396384 | M18: =SUMIF('Données FDC'!$E:$E,Activation!M$9,'Données FDC'!$N:$N)/SUMIF('Données FDC déc 2021'!$E:$E,Activation!M$9,'Données FDC déc 2021'!$F:$F) -> 0.03019518696 | N18: =SUMIF('Données FDC'!$E:$E,Activation!N$9,'Données FDC'!$N:$N)/SUMIF('Données FDC déc 2021'!$E:$E,Activation!N$9,'Données FDC déc 2021'!$F:$F) -> 0.05933106761 | O18: =SUMIF('Données FDC'!$E:$E,Activation!O$9,'Données FDC'!$N:$N)/SUMIF('Données FDC déc 2021'!$E:$E,Activation!O$9,'Données FDC déc 2021'!$F:$F) -> 0.06898295561 | P18: =SUMIF('Données FDC'!$E:$E,Activation!P$9,'Données FDC'!$N:$N)/SUMIF('Données FDC déc 2021'!$E:$E,Activation!P$9,'Données FDC déc 2021'!$F:$F) -> 0.002013764674
C19: Clients sortants | D19: =SUM(F19:P19) -> 57073 | F19: =IF(ISBLANK($F$5),SUMIFS('Données FDC'!$O:$O,'Données FDC'!$A:$A,Activation!$C$5,'Données FDC'!$E:$E,Activation!F$9),IF(ISBLANK($J$5),SUMIFS('Données FDC'!$O:$O,'Données FDC'!$B:$B,Activation!$F$5,'Données FDC'!$E:$E,Activation!F$9),SUMIFS('Données FDC'!$O:$O,'Données FDC'!$C:$C,Activation!$J$5,'Données FDC'!$E:$E,Activation!F$9))) -> 1651 | G19: =IF(ISBLANK($F$5),SUMIFS('Données FDC'!$O:$O,'Données FDC'!$A:$A,Activation!$C$5,'Données FDC'!$E:$E,Activation!G$9),IF(ISBLANK($J$5),SUMIFS('Données FDC'!$O:$O,'Données FDC'!$B:$B,Activation!$F$5,'Données FDC'!$E:$E,Activation!G$9),SUMIFS('Données FDC'!$O:$O,'Données FDC'!$C:$C,Activation!$J$5,'Données FDC'!$E:$E,Activation!G$9))) -> 3596 | H19: =IF(ISBLANK($F$5),SUMIFS('Données FDC'!$O:$O,'Données FDC'!$A:$A,Activation!$C$5,'Données FDC'!$E:$E,Activation!H$9),IF(ISBLANK($J$5),SUMIFS('Données FDC'!$O:$O,'Données FDC'!$B:$B,Activation!$F$5,'Données FDC'!$E:$E,Activation!H$9),SUMIFS('Données FDC'!$O:$O,'Données FDC'!$C:$C,Activation!$J$5,'Données FDC'!$E:$E,Activation!H$9))) -> 4283 | I19: =IF(ISBLANK($F$5),SUMIFS('Données FDC'!$O:$O,'Données FDC'!$A:$A,Activation!$C$5,'Données FDC'!$E:$E,Activation!I$9),IF(ISBLANK($J$5),SUMIFS('Données FDC'!$O:$O,'Données FDC'!$B:$B,Activation!$F$5,'Données FDC'!$E:$E,Activation!I$9),SUMIFS('Données FDC'!$O:$O,'Données FDC'!$C:$C,Activation!$J$5,'Données FDC'!$E:$E,Activation!I$9))) -> 16862 | J19: =IF(ISBLANK($F$5),SUMIFS('Données FDC'!$O:$O,'Données FDC'!$A:$A,Activation!$C$5,'Données FDC'!$E:$E,Activation!J$9),IF(ISBLANK($J$5),SUMIFS('Données FDC'!$O:$O,'Données FDC'!$B:$B,Activation!$F$5,'Données FDC'!$E:$E,Activation!J$9),SUMIFS('Données FDC'!$O:$O,'Données FDC'!$C:$C,Activation!$J$5,'Données FDC'!$E:$E,Activation!J$9))) -> 666 | K19: =IF(ISBLANK($F$5),SUMIFS('Données FDC'!$O:$O,'Données FDC'!$A:$A,Activation!$C$5,'Données FDC'!$E:$E,Activation!K$9),IF(ISBLANK($J$5),SUMIFS('Données FDC'!$O:$O,'Données FDC'!$B:$B,Activation!$F$5,'Données FDC'!$E:$E,Activation!K$9),SUMIFS('Données FDC'!$O:$O,'Données FDC'!$C:$C,Activation!$J$5,'Données FDC'!$E:$E,Activation!K$9))) -> 916 | L19: =IF(ISBLANK($F$5),SUMIFS('Données FDC'!$O:$O,'Données FDC'!$A:$A,Activation!$C$5,'Données FDC'!$E:$E,Activation!L$9),IF(ISBLANK($J$5),SUMIFS('Données FDC'!$O:$O,'Données FDC'!$B:$B,Activation!$F$5,'Données FDC'!$E:$E,Activation!L$9),SUMIFS('Données FDC'!$O:$O,'Données FDC'!$C:$C,Activation!$J$5,'Données FDC'!$E:$E,Activation!L$9))) -> 106 | M19: =IF(ISBLANK($F$5),SUMIFS('Données FDC'!$O:$O,'Données FDC'!$A:$A,Activation!$C$5,'Données FDC'!$E:$E,Activation!M$9),IF(ISBLANK($J$5),SUMIFS('Données FDC'!$O:$O,'Données FDC'!$B:$B,Activation!$F$5,'Données FDC'!$E:$E,Activation!M$9),SUMIFS('Données FDC'!$O:$O,'Données FDC'!$C:$C,Activation!$J$5,'Données FDC'!$E:$E,Activation!M$9))) -> 4094 | N19: =IF(ISBLANK($F$5),SUMIFS('Données FDC'!$O:$O,'Données FDC'!$A:$A,Activation!$C$5,'Données FDC'!$E:$E,Activation!N$9),IF(ISBLANK($J$5),SUMIFS('Données FDC'!$O:$O,'Données FDC'!$B:$B,Activation!$F$5,'Données FDC'!$E:$E,Activation!N$9),SUMIFS('Données FDC'!$O:$O,'Données FDC'!$C:$C,Activation!$J$5,'Données FDC'!$E:$E,Activation!N$9))) -> 1094 | O19: =IF(ISBLANK($F$5),SUMIFS('Données FDC'!$O:$O,'Données FDC'!$A:$A,Activation!$C$5,'Données FDC'!$E:$E,Activation!O$9),IF(ISBLANK($J$5),SUMIFS('Données FDC'!$O:$O,'Données FDC'!$B:$B,Activation!$F$5,'Données FDC'!$E:$E,Activation!O$9),SUMIFS('Données FDC'!$O:$O,'Données FDC'!$C:$C,Activation!$J$5,'Données FDC'!$E:$E,Activation!O$9))) -> 1284 | P19: =IF(ISBLANK($F$5),SUMIFS('Données FDC'!$O:$O,'Données FDC'!$A:$A,Activation!$C$5,'Données FDC'!$E:$E,Activation!P$9),IF(ISBLANK($J$5),SUMIFS('Données FDC'!$O:$O,'Données FDC'!$B:$B,Activation!$F$5,'Données FDC'!$E:$E,Activation!P$9),SUMIFS('Données FDC'!$O:$O,'Données FDC'!$C:$C,Activation!$J$5,'Données FDC'!$E:$E,Activation!P$9))) -> 22521
C20: % Attrition | D20: =D19/E10 -> 0.04165362094 | F20: =F19/IF(ISBLANK($F$5),SUMIFS('Données FDC déc 2021'!$F:$F,'Données FDC déc 2021'!$A:$A,Activation!$C$5,'Données FDC déc 2021'!$E:$E,Activation!F$9),IF(ISBLANK($J$5),SUMIFS('Données FDC déc 2021'!$F:$F,'Données FDC déc 2021'!$B:$B,Activation!$F$5,'Données FDC déc 2021'!$E:$E,Activation!F$9),SUMIFS('Données FDC déc 2021'!$F:$F,'Données FDC déc 2021'!$C:$C,Activation!$J$5,'Données FDC déc 2021'!$E:$E,Activation!F$9))) -> 0.005712545802 | G20: =G19/IF(ISBLANK($F$5),SUMIFS('Données FDC déc 2021'!$F:$F,'Données FDC déc 2021'!$A:$A,Activation!$C$5,'Données FDC déc 2021'!$E:$E,Activation!G$9),IF(ISBLANK($J$5),SUMIFS('Données FDC déc 2021'!$F:$F,'Données FDC déc 2021'!$B:$B,Activation!$F$5,'Données FDC déc 2021'!$E:$E,Activation!G$9),SUMIFS('Données FDC déc 2021'!$F:$F,'Données FDC déc 2021'!$C:$C,Activation!$J$5,'Données FDC déc 2021'!$E:$E,Activation!G$9))) -> 0.02241713577 | H20: =H19/IF(ISBLANK($F$5),SUMIFS('Données FDC déc 2021'!$F:$F,'Données FDC déc 2021'!$A:$A,Activation!$C$5,'Données FDC déc 2021'!$E:$E,Activation!H$9),IF(ISBLANK($J$5),SUMIFS('Données FDC déc 2021'!$F:$F,'Données FDC déc 2021'!$B:$B,Activation!$F$5,'Données FDC déc 2021'!$E:$E,Activation!H$9),SUMIFS('Données FDC déc 2021'!$F:$F,'Données FDC déc 2021'!$C:$C,Activation!$J$5,'Données FDC déc 2021'!$E:$E,Activation!H$9))) -> 0.02789773652 | I20: =I19/IF(ISBLANK($F$5),SUMIFS('Données FDC déc 2021'!$F:$F,'Données FDC déc 2021'!$A:$A,Activation!$C$5,'Données FDC déc 2021'!$E:$E,Activation!I$9),IF(ISBLANK($J$5),SUMIFS('Données FDC déc 2021'!$F:$F,'Données FDC déc 2021'!$B:$B,Activation!$F$5,'Données FDC déc 2021'!$E:$E,Activation!I$9),SUMIFS('Données FDC déc 2021'!$F:$F,'Données FDC déc 2021'!$C:$C,Activation!$J$5,'Données FDC déc 2021'!$E:$E,Activation!I$9))) -> 0.05359941257 | J20: =J19/IF(ISBLANK($F$5),SUMIFS('Données FDC déc 2021'!$F:$F,'Données FDC déc 2021'!$A:$A,Activation!$C$5,'Données FDC déc 2021'!$E:$E,Activation!J$9),IF(ISBLANK($J$5),SUMIFS('Données FDC déc 2021'!$F:$F,'Données FDC déc 2021'!$B:$B,Activation!$F$5,'Données FDC déc 2021'!$E:$E,Activation!J$9),SUMIFS('Données FDC déc 2021'!$F:$F,'Données FDC déc 2021'!$C:$C,Activation!$J$5,'Données FDC déc 2021'!$E:$E,Activation!J$9))) -> 0.01066111734 | K20: =K19/IF(ISBLANK($F$5),SUMIFS('Données FDC déc 2021'!$F:$F,'Données FDC déc 2021'!$A:$A,Activation!$C$5,'Données FDC déc 2021'!$E:$E,Activation!K$9),IF(ISBLANK($J$5),SUMIFS('Données FDC déc 2021'!$F:$F,'Données FDC déc 2021'!$B:$B,Activation!$F$5,'Données FDC déc 2021'!$E:$E,Activation!K$9),SUMIFS('Données FDC déc 2021'!$F:$F,'Données FDC déc 2021'!$C:$C,Activation!$J$5,'Données FDC déc 2021'!$E:$E,Activation!K$9))) -> 0.05843327379 | L20: =L19/IF(ISBLANK($F$5),SUMIFS('Données FDC déc 2021'!$F:$F,'Données FDC déc 2021'!$A:$A,Activation!$C$5,'Données FDC déc 2021'!$E:$E,Activation!L$9),IF(ISBLANK($J$5),SUMIFS('Données FDC déc 2021'!$F:$F,'Données FDC déc 2021'!$B:$B,Activation!$F$5,'Données FDC déc 2021'!$E:$E,Activation!L$9),SUMIFS('Données FDC déc 2021'!$F:$F,'Données FDC déc 2021'!$C:$C,Activation!$J$5,'Données FDC déc 2021'!$E:$E,Activation!L$9))) -> 0.01212953427 | M20: =M19/IF(ISBLANK($F$5),SUMIFS('Données FDC déc 2021'!$F:$F,'Données FDC déc 2021'!$A:$A,Activation!$C$5,'Données FDC déc 2021'!$E:$E,Activation!M$9),IF(ISBLANK($J$5),SUMIFS('Données FDC déc 2021'!$F:$F,'Données FDC déc 2021'!$B:$B,Activation!$F$5,'Données FDC déc 2021'!$E:$E,Activation!M$9),SUMIFS('Données FDC déc 2021'!$F:$F,'Données FDC déc 2021'!$C:$C,Activation!$J$5,'Données FDC déc 2021'!$E:$E,Activation!M$9))) -> 0.06418436937 | N20: =N19/IF(ISBLANK($F$5),SUMIFS('Données FDC déc 2021'!$F:$F,'Données FDC déc 2021'!$A:$A,Activation!$C$5,'Données FDC déc 2021'!$E:$E,Activation!N$9),IF(ISBLANK($J$5),SUMIFS('Données FDC déc 2021'!$F:$F,'Données FDC déc 2021'!$B:$B,Activation!$F$5,'Données FDC déc 2021'!$E:$E,Activation!N$9),SUMIFS('Données FDC déc 2021'!$F:$F,'Données FDC déc 2021'!$C:$C,Activation!$J$5,'Données FDC déc 2021'!$E:$E,Activation!N$9))) -> 0.01371976072 | O20: =O19/IF(ISBLANK($F$5),SUMIFS('Données FDC déc 2021'!$F:$F,'Données FDC déc 2021'!$A:$A,Activation!$C$5,'Données FDC déc 2021'!$E:$E,Activation!O$9),IF(ISBLANK($J$5),SUMIFS('Données FDC déc 2021'!$F:$F,'Données FDC déc 2021'!$B:$B,Activation!$F$5,'Données FDC déc 2021'!$E:$E,Activation!O$9),SUMIFS('Données FDC déc 2021'!$F:$F,'Données FDC déc 2021'!$C:$C,Activation!$J$5,'Données FDC déc 2021'!$E:$E,Activation!O$9))) -> 0.02404944746 | P20: =P19/IF(ISBLANK($F$5),SUMIFS('Données FDC déc 2021'!$F:$F,'Données FDC déc 2021'!$A:$A,Activation!$C$5,'Données FDC déc 2021'!$E:$E,Activation!P$9),IF(ISBLANK($J$5),SUMIFS('Données FDC déc 2021'!$F:$F,'Données FDC déc 2021'!$B:$B,Activation!$F$5,'Données FDC déc 2021'!$E:$E,Activation!P$9),SUMIFS('Données FDC déc 2021'!$F:$F,'Données FDC déc 2021'!$C:$C,Activation!$J$5,'Données FDC déc 2021'!$E:$E,Activation!P$9))) -> 0.1333882183
C21: % Attrition CEGEE | D21: =SUM('Données FDC'!$O:$O)/SUM('Données FDC déc 2021'!$F:$F) -> 0.04165362094 | F21: =SUMIF('Données FDC'!$E:$E,Activation!F$9,'Données FDC'!$O:$O)/SUMIF('Données FDC déc 2021'!$E:$E,Activation!F$9,'Données FDC déc 2021'!$F:$F) -> 0.005712545802 | G21: =SUMIF('Données FDC'!$E:$E,Activation!G$9,'Données FDC'!$O:$O)/SUMIF('Données FDC déc 2021'!$E:$E,Activation!G$9,'Données FDC déc 2021'!$F:$F) -> 0.02241713577 | H21: =SUMIF('Données FDC'!$E:$E,Activation!H$9,'Données FDC'!$O:$O)/SUMIF('Données FDC déc 2021'!$E:$E,Activation!H$9,'Données FDC déc 2021'!$F:$F) -> 0.02789773652 | I21: =SUMIF('Données FDC'!$E:$E,Activation!I$9,'Données FDC'!$O:$O)/SUMIF('Données FDC déc 2021'!$E:$E,Activation!I$9,'Données FDC déc 2021'!$F:$F) -> 0.05359941257 | J21: =SUMIF('Données FDC'!$E:$E,Activation!J$9,'Données FDC'!$O:$O)/SUMIF('Données FDC déc 2021'!$E:$E,Activation!J$9,'Données FDC déc 2021'!$F:$F) -> 0.01066111734 | K21: =SUMIF('Données FDC'!$E:$E,Activation!K$9,'Données FDC'!$O:$O)/SUMIF('Données FDC déc 2021'!$E:$E,Activation!K$9,'Données FDC déc 2021'!$F:$F) -> 0.05843327379 | L21: =SUMIF('Données FDC'!$E:$E,Activation!L$9,'Données FDC'!$O:$O)/SUMIF('Données FDC déc 2021'!$E:$E,Activation!L$9,'Données FDC déc 2021'!$F:$F) -> 0.01212953427 | M21: =SUMIF('Données FDC'!$E:$E,Activation!M$9,'Données FDC'!$O:$O)/SUMIF('Données FDC déc 2021'!$E:$E,Activation!M$9,'Données FDC déc 2021'!$F:$F) -> 0.06418436937 | N21: =SUMIF('Données FDC'!$E:$E,Activation!N$9,'Données FDC'!$O:$O)/SUMIF('Données FDC déc 2021'!$E:$E,Activation!N$9,'Données FDC déc 2021'!$F:$F) -> 0.01371976072 | O21: =SUMIF('Données FDC'!$E:$E,Activation!O$9,'Données FDC'!$O:$O)/SUMIF('Données FDC déc 2021'!$E:$E,Activation!O$9,'Données FDC déc 2021'!$F:$F) -> 0.02404944746 | P21: =SUMIF('Données FDC'!$E:$E,Activation!P$9,'Données FDC'!$O:$O)/SUMIF('Données FDC déc 2021'!$E:$E,Activation!P$9,'Données FDC déc 2021'!$F:$F) -> 0.1333882183
B22: Age | C22: Moyenne | D22: =IF(ISBLANK($F$5),SUMIFS('Données pour moyenne'!$S:$S,'Données pour moyenne'!$Q:$Q,Activation!$C$5),IF(ISBLANK($J$5),SUMIFS('Données pour moyenne'!$H:$H,'Données pour moyenne'!$F:$F,Activation!$F$5),SUMIFS('Données pour moyenne'!$C:$C,'Données pour moyenne'!$A:$A,Activation!$J$5))) -> 46.66713823 | E22: =IF(ISBLANK($F$5),SUMIFS('Données pour moyenne 2021'!$S:$S,'Données pour moyenne 2021'!$Q:$Q,Activation!$C$5),IF(ISBLANK($J$5),SUMIFS('Données pour moyenne 2021'!$H:$H,'Données pour moyenne 2021'!$F:$F,Activation!$F$5),SUMIFS('Données pour moyenne 2021'!$C:$C,'Données pour moyenne 2021'!$A:$A,Activation!$J$5))) -> 46.68228426 | F22: =IF(ISBLANK($F$5),SUMIFS('Données pour moyenne'!$Y:$Y,'Données pour moyenne'!$V:$V,Activation!$C$5,'Données pour moyenne'!$X:$X,Activation!F$9),IF(ISBLANK($J$5),SUMIFS('Données pour moyenne'!$N:$N,'Données pour moyenne'!$K:$K,Activation!$F$5,'Données pour moyenne'!$M:$M,Activation!F$9),SUMIFS('Données FDC'!$P:$P,'Données FDC'!$C:$C,Activation!$J$5,'Données FDC'!$E:$E,Activation!F$9))) -> 50.16042548 | G22: =IF(ISBLANK($F$5),SUMIFS('Données pour moyenne'!$Y:$Y,'Données pour moyenne'!$V:$V,Activation!$C$5,'Données pour moyenne'!$X:$X,Activation!G$9),IF(ISBLANK($J$5),SUMIFS('Données pour moyenne'!$N:$N,'Données pour moyenne'!$K:$K,Activation!$F$5,'Données pour moyenne'!$M:$M,Activation!G$9),SUMIFS('Données FDC'!$P:$P,'Données FDC'!$C:$C,Activation!$J$5,'Données FDC'!$E:$E,Activation!G$9))) -> 53.19769161 | H22: =IF(ISBLANK($F$5),SUMIFS('Données pour moyenne'!$Y:$Y,'Données pour moyenne'!$V:$V,Activation!$C$5,'Données pour moyenne'!$X:$X,Activation!H$9),IF(ISBLANK($J$5),SUMIFS('Données pour moyenne'!$N:$N,'Données pour moyenne'!$K:$K,Activation!$F$5,'Données pour moyenne'!$M:$M,Activation!H$9),SUMIFS('Données FDC'!$P:$P,'Données FDC'!$C:$C,Activation!$J$5,'Données FDC'!$E:$E,Activation!H$9))) -> 64.65108169 | I22: =IF(ISBLANK($F$5),SUMIFS('Données pour moyenne'!$Y:$Y,'Données pour moyenne'!$V:$V,Activation!$C$5,'Données pour moyenne'!$X:$X,Activation!I$9),IF(ISBLANK($J$5),SUMIFS('Données pour moyenne'!$N:$N,'Données pour moyenne'!$K:$K,Activation!$F$5,'Données pour moyenne'!$M:$M,Activation!I$9),SUMIFS('Données FDC'!$P:$P,'Données FDC'!$C:$C,Activation!$J$5,'Données FDC'!$E:$E,Activation!I$9))) -> 58.08832404 | J22: =IF(ISBLANK($F$5),SUMIFS('Données pour moyenne'!$Y:$Y,'Données pour moyenne'!$V:$V,Activation!$C$5,'Données pour moyenne'!$X:$X,Activation!J$9),IF(ISBLANK($J$5),SUMIFS('Données pour moyenne'!$N:$N,'Données pour moyenne'!$K:$K,Activation!$F$5,'Données pour moyenne'!$M:$M,Activation!J$9),SUMIFS('Données FDC'!$P:$P,'Données FDC'!$C:$C,Activation!$J$5,'Données FDC'!$E:$E,Activation!J$9))) -> 21.45063797 | K22: =IF(ISBLANK($F$5),SUMIFS('Données pour moyenne'!$Y:$Y,'Données pour moyenne'!$V:$V,Activation!$C$5,'Données pour moyenne'!$X:$X,Activation!K$9),IF(ISBLANK($J$5),SUMIFS('Données pour moyenne'!$N:$N,'Données pour moyenne'!$K:$K,Activation!$F$5,'Données pour moyenne'!$M:$M,Activation!K$9),SUMIFS('Données FDC'!$P:$P,'Données FDC'!$C:$C,Activation!$J$5,'Données FDC'!$E:$E,Activation!K$9))) -> 20.56383842 | L22: =IF(ISBLANK($F$5),SUMIFS('Données pour moyenne'!$Y:$Y,'Données pour moyenne'!$V:$V,Activation!$C$5,'Données pour moyenne'!$X:$X,Activation!L$9),IF(ISBLANK($J$5),SUMIFS('Données pour moyenne'!$N:$N,'Données pour moyenne'!$K:$K,Activation!$F$5,'Données pour moyenne'!$M:$M,Activation!L$9),SUMIFS('Données FDC'!$P:$P,'Données FDC'!$C:$C,Activation!$J$5,'Données FDC'!$E:$E,Activation!L$9))) -> 19.32838057 | M22: =IF(ISBLANK($F$5),SUMIFS('Données pour moyenne'!$Y:$Y,'Données pour moyenne'!$V:$V,Activation!$C$5,'Données pour moyenne'!$X:$X,Activation!M$9),IF(ISBLANK($J$5),SUMIFS('Données pour moyenne'!$N:$N,'Données pour moyenne'!$K:$K,Activation!$F$5,'Données pour moyenne'!$M:$M,Activation!M$9),SUMIFS('Données FDC'!$P:$P,'Données FDC'!$C:$C,Activation!$J$5,'Données FDC'!$E:$E,Activation!M$9))) -> 20.06379217 | N22: =IF(ISBLANK($F$5),SUMIFS('Données pour moyenne'!$Y:$Y,'Données pour moyenne'!$V:$V,Activation!$C$5,'Données pour moyenne'!$X:$X,Activation!N$9),IF(ISBLANK($J$5),SUMIFS('Données pour moyenne'!$N:$N,'Données pour moyenne'!$K:$K,Activation!$F$5,'Données pour moyenne'!$M:$M,Activation!N$9),SUMIFS('Données FDC'!$P:$P,'Données FDC'!$C:$C,Activation!$J$5,'Données FDC'!$E:$E,Activation!N$9))) -> 8.25328782 | O22: =IF(ISBLANK($F$5),SUMIFS('Données pour moyenne'!$Y:$Y,'Données pour moyenne'!$V:$V,Activation!$C$5,'Données pour moyenne'!$X:$X,Activation!O$9),IF(ISBLANK($J$5),SUMIFS('Données pour moyenne'!$N:$N,'Données pour moyenne'!$K:$K,Activation!$F$5,'Données pour moyenne'!$M:$M,Activation!O$9),SUMIFS('Données FDC'!$P:$P,'Données FDC'!$C:$C,Activation!$J$5,'Données FDC'!$E:$E,Activation!O$9))) -> 10.39145901 | P22: =IF(ISBLANK($F$5),SUMIFS('Données pour moyenne'!$Y:$Y,'Données pour moyenne'!$V:$V,Activation!$C$5,'Données pour moyenne'!$X:$X,Activation!P$9),IF(ISBLANK($J$5),SUMIFS('Données pour moyenne'!$N:$N,'Données pour moyenne'!$K:$K,Activation!$F$5,'Données pour moyenne'!$M:$M,Activation!P$9),SUMIFS('Données FDC'!$P:$P,'Données FDC'!$C:$C,Activation!$J$5,'Données FDC'!$E:$E,Activation!P$9))) -> 50.02487988
C23: Moyenne CEGEE | D23: ='Données pour moyenne'!AC2 -> 46.66713823 | E23: ='Données pour moyenne 2021'!AC2 -> 46.68228426 | F23: =VLOOKUP(F$9,'Données pour moyenne'!$AF:$AG,2,FALSE) -> 50.16042548 | G23: =VLOOKUP(G$9,'Données pour moyenne'!$AF:$AG,2,FALSE) -> 53.19769161 | H23: =VLOOKUP(H$9,'Données pour moyenne'!$AF:$AG,2,FALSE) -> 64.65108169 | I23: =VLOOKUP(I$9,'Données pour moyenne'!$AF:$AG,2,FALSE) -> 58.08832404 | J23: =VLOOKUP(J$9,'Données pour moyenne'!$AF:$AG,2,FALSE) -> 21.45063797 | K23: =VLOOKUP(K$9,'Données pour moyenne'!$AF:$AG,2,FALSE) -> 20.56383842 | L23: =VLOOKUP(L$9,'Données pour moyenne'!$AF:$AG,2,FALSE) -> 19.32838057 | M23: =VLOOKUP(M$9,'Données pour moyenne'!$AF:$AG,2,FALSE) -> 20.06379217 | N23: =VLOOKUP(N$9,'Données pour moyenne'!$AF:$AG,2,FALSE) -> 8.25328782 | O23: =VLOOKUP(O$9,'Données pour moyenne'!$AF:$AG,2,FALSE) -> 10.39145901 | P23: =VLOOKUP(P$9,'Données pour moyenne'!$AF:$AG,2,FALSE) -> 50.02487988
B24: PNB client annuel (en €) | C24: Moyenne | D24: =IF(ISBLANK($F$5),SUMIFS('Données pour moyenne'!$BJ:$BJ,'Données pour moyenne'!$BH:$BH,Activation!$C$5),IF(ISBLANK($J$5),SUMIFS('Données pour moyenne'!$BA:$BA,'Données pour moyenne'!$AY:$AY,Activation!$F$5),SUMIFS('Données pour moyenne'!$AR:$AR,'Données pour moyenne'!$AP:$AP,Activation!$J$5))) -> 343.5567366 | E24: =IF(ISBLANK($F$5),SUMIFS('Données pour moyenne 2021'!$BJ:$BJ,'Données pour moyenne 2021'!$BH:$BH,Activation!$C$5),IF(ISBLANK($J$5),SUMIFS('Données pour moyenne 2021'!$BA:$BA,'Données pour moyenne 2021'!$AY:$AY,Activation!$F$5),SUMIFS('Données pour moyenne 2021'!$AR:$AR,'Données pour moyenne 2021'!$AP:$AP,Activation!$J$5))) -> 346.4662725 | F24: =IF(ISBLANK($F$5),SUMIFS('Données pour moyenne'!$BF:$BF,'Données pour moyenne'!$BC:$BC,Activation!$C$5,'Données pour moyenne'!$BE:$BE,Activation!F$9),IF(ISBLANK($J$5),SUMIFS('Données pour moyenne'!$AW:$AW,'Données pour moyenne'!$AT:$AT,Activation!$F$5,'Données pour moyenne'!$AV:$AV,Activation!F$9),SUMIFS('Données pour moyenne'!$AM:$AM,'Données pour moyenne'!$AJ:$AJ,Activation!$J$5,'Données pour moyenne'!$AL:$AL,Activation!F$9))) -> 657.9331394 | G24: =IF(ISBLANK($F$5),SUMIFS('Données pour moyenne'!$BF:$BF,'Données pour moyenne'!$BC:$BC,Activation!$C$5,'Données pour moyenne'!$BE:$BE,Activation!G$9),IF(ISBLANK($J$5),SUMIFS('Données pour moyenne'!$AW:$AW,'Données pour moyenne'!$AT:$AT,Activation!$F$5,'Données pour moyenne'!$AV:$AV,Activation!G$9),SUMIFS('Données pour moyenne'!$AM:$AM,'Données pour moyenne'!$AJ:$AJ,Activation!$J$5,'Données pour moyenne'!$AL:$AL,Activation!G$9))) -> 320.741606 | H24: =IF(ISBLANK($F$5),SUMIFS('Données pour moyenne'!$BF:$BF,'Données pour moyenne'!$BC:$BC,Activation!$C$5,'Données pour moyenne'!$BE:$BE,Activation!H$9),IF(ISBLANK($J$5),SUMIFS('Données pour moyenne'!$AW:$AW,'Données pour moyenne'!$AT:$AT,Activation!$F$5,'Données pour moyenne'!$AV:$AV,Activation!H$9),SUMIFS('Données pour moyenne'!$AM:$AM,'Données pour moyenne'!$AJ:$AJ,Activation!$J$5,'Données pour moyenne'!$AL:$AL,Activation!H$9))) -> 405.9870627 | I24: =IF(ISBLANK($F$5),SUMIFS('Données pour moyenne'!$BF:$BF,'Données pour moyenne'!$BC:$BC,Activation!$C$5,'Données pour moyenne'!$BE:$BE,Activation!I$9),IF(ISBLANK($J$5),SUMIFS('Données pour moyenne'!$AW:$AW,'Données pour moyenne'!$AT:$AT,Activation!$F$5,'Données pour moyenne'!$AV:$AV,Activation!I$9),SUMIFS('Données pour moyenne'!$AM:$AM,'Données pour moyenne'!$AJ:$AJ,Activation!$J$5,'Données pour moyenne'!$AL:$AL,Activation!I$9))) -> 101.5933374 | J24: =IF(ISBLANK($F$5),SUMIFS('Données pour moyenne'!$BF:$BF,'Données pour moyenne'!$BC:$BC,Activation!$C$5,'Données pour moyenne'!$BE:$BE,Activation!J$9),IF(ISBLANK($J$5),SUMIFS('Données pour moyenne'!$AW:$AW,'Données pour moyenne'!$AT:$AT,Activation!$F$5,'Données pour moyenne'!$AV:$AV,Activation!J$9),SUMIFS('Données pour moyenne'!$AM:$AM,'Données pour moyenne'!$AJ:$AJ,Activation!$J$5,'Données pour moyenne'!$AL:$AL,Activation!J$9))) -> 226.3777524 | K24: =IF(ISBLANK($F$5),SUMIFS('Données pour moyenne'!$BF:$BF,'Données pour moyenne'!$BC:$BC,Activation!$C$5,'Données pour moyenne'!$BE:$BE,Activation!K$9),IF(ISBLANK($J$5),SUMIFS('Données pour moyenne'!$AW:$AW,'Données pour moyenne'!$AT:$AT,Activation!$F$5,'Données pour moyenne'!$AV:$AV,Activation!K$9),SUMIFS('Données pour moyenne'!$AM:$AM,'Données pour moyenne'!$AJ:$AJ,Activation!$J$5,'Données pour moyenne'!$AL:$AL,Activation!K$9))) -> 131.3556349 | L24: =IF(ISBLANK($F$5),SUMIFS('Données pour moyenne'!$BF:$BF,'Données pour moyenne'!$BC:$BC,Activation!$C$5,'Données pour moyenne'!$BE:$BE,Activation!L$9),IF(ISBLANK($J$5),SUMIFS('Données pour moyenne'!$AW:$AW,'Données pour moyenne'!$AT:$AT,Activation!$F$5,'Données pour moyenne'!$AV:$AV,Activation!L$9),SUMIFS('Données pour moyenne'!$AM:$AM,'Données pour moyenne'!$AJ:$AJ,Activation!$J$5,'Données pour moyenne'!$AL:$AL,Activation!L$9))) -> 91.1461289 | M24: =IF(ISBLANK($F$5),SUMIFS('Données pour moyenne'!$BF:$BF,'Données pour moyenne'!$BC:$BC,Activation!$C$5,'Données pour moyenne'!$BE:$BE,Activation!M$9),IF(ISBLANK($J$5),SUMIFS('Données pour moyenne'!$AW:$AW,'Données pour moyenne'!$AT:$AT,Activation!$F$5,'Données pour moyenne'!$AV:$AV,Activation!M$9),SUMIFS('Données pour moyenne'!$AM:$AM,'Données pour moyenne'!$AJ:$AJ,Activation!$J$5,'Données pour moyenne'!$AL:$AL,Activation!M$9))) -> 16.70052695
C25: Moyenne CEGEE | D25: ='Données pour moyenne'!BN2 -> 343.5567366 | E25: ='Données pour moyenne 2021'!BN2 -> 346.4662725 | F25: =SUMIF('Données pour moyenne'!$BQ:$BQ,Activation!F$9,'Données pour moyenne'!$BR:$BR) -> 657.9331394 | G25: =SUMIF('Données pour moyenne'!$BQ:$BQ,Activation!G$9,'Données pour moyenne'!$BR:$BR) -> 320.741606 | H25: =SUMIF('Données pour moyenne'!$BQ:$BQ,Activation!H$9,'Données pour moyenne'!$BR:$BR) -> 405.9870627 | I25: =SUMIF('Données pour moyenne'!$BQ:$BQ,Activation!I$9,'Données pour moyenne'!$BR:$BR) -> 101.5933374 | J25: =SUMIF('Données pour moyenne'!$BQ:$BQ,Activation!J$9,'Données pour moyenne'!$BR:$BR) -> 226.3777524 | K25: =SUMIF('Données pour moyenne'!$BQ:$BQ,Activation!K$9,'Données pour moyenne'!$BR:$BR) -> 131.3556349 | L25: =SUMIF('Données pour moyenne'!$BQ:$BQ,Activation!L$9,'Données pour moyenne'!$BR:$BR) -> 91.1461289 | M25: =SUMIF('Données pour moyenne'!$BQ:$BQ,Activation!M$9,'Données pour moyenne'!$BR:$BR) -> 16.70052695
C26: Variation | D26: =D24/(IF(ISBLANK($F$5),SUMIFS('Données pour moyenne 2021'!$BJ:$BJ,'Données pour moyenne 2021'!$BH:$BH,Activation!$C$5),IF(ISBLANK($J$5),SUMIFS('Données pour moyenne 2021'!$BA:$BA,'Données pour moyenne 2021'!$AY:$AY,Activation!$F$5),SUMIFS('Données pour moyenne 2021'!$AR:$AR,'Données pour moyenne 2021'!$AP:$AP,Activation!$J$5))))-1 -> -0.008397746329 | F26: =F24/(IF(ISBLANK($F$5),SUMIFS('Données pour moyenne 2021'!$BF:$BF,'Données pour moyenne 2021'!$BC:$BC,Activation!$C$5,'Données pour moyenne 2021'!$BE:$BE,Activation!F$9),IF(ISBLANK($J$5),SUMIFS('Données pour moyenne 2021'!$AW:$AW,'Données pour moyenne 2021'!$AT:$AT,Activation!$F$5,'Données pour moyenne 2021'!$AV:$AV,Activation!F$9),SUMIFS('Données pour moyenne 2021'!$AM:$AM,'Données pour moyenne 2021'!$AJ:$AJ,Activation!$J$5,'Données pour moyenne 2021'!$AL:$AL,Activation!F$9))))-1 -> -0.005367596063 | G26: =G24/(IF(ISBLANK($F$5),SUMIFS('Données pour moyenne 2021'!$BF:$BF,'Données pour moyenne 2021'!$BC:$BC,Activation!$C$5,'Données pour moyenne 2021'!$BE:$BE,Activation!G$9),IF(ISBLANK($J$5),SUMIFS('Données pour moyenne 2021'!$AW:$AW,'Données pour moyenne 2021'!$AT:$AT,Activation!$F$5,'Données pour moyenne 2021'!$AV:$AV,Activation!G$9),SUMIFS('Données pour moyenne 2021'!$AM:$AM,'Données pour moyenne 2021'!$AJ:$AJ,Activation!$J$5,'Données pour moyenne 2021'!$AL:$AL,Activation!G$9))))-1 -> -0.02113669025 | H26: =H24/(IF(ISBLANK($F$5),SUMIFS('Données pour moyenne 2021'!$BF:$BF,'Données pour moyenne 2021'!$BC:$BC,Activation!$C$5,'Données pour moyenne 2021'!$BE:$BE,Activation!H$9),IF(ISBLANK($J$5),SUMIFS('Données pour moyenne 2021'!$AW:$AW,'Données pour moyenne 2021'!$AT:$AT,Activation!$F$5,'Données pour moyenne 2021'!$AV:$AV,Activation!H$9),SUMIFS('Données pour moyenne 2021'!$AM:$AM,'Données pour moyenne 2021'!$AJ:$AJ,Activation!$J$5,'Données pour moyenne 2021'!$AL:$AL,Activation!H$9))))-1 -> -0.06288422619 | I26: =I24/(IF(ISBLANK($F$5),SUMIFS('Données pour moyenne 2021'!$BF:$BF,'Données pour moyenne 2021'!$BC:$BC,Activation!$C$5,'Données pour moyenne 2021'!$BE:$BE,Activation!I$9),IF(ISBLANK($J$5),SUMIFS('Données pour moyenne 2021'!$AW:$AW,'Données pour moyenne 2021'!$AT:$AT,Activation!$F$5,'Données pour moyenne 2021'!$AV:$AV,Activation!I$9),SUMIFS('Données pour moyenne 2021'!$AM:$AM,'Données pour moyenne 2021'!$AJ:$AJ,Activation!$J$5,'Données pour moyenne 2021'!$AL:$AL,Activation!I$9))))-1 -> -0.04196622342 | J26: =J24/(IF(ISBLANK($F$5),SUMIFS('Données pour moyenne 2021'!$BF:$BF,'Données pour moyenne 2021'!$BC:$BC,Activation!$C$5,'Données pour moyenne 2021'!$BE:$BE,Activation!J$9),IF(ISBLANK($J$5),SUMIFS('Données pour moyenne 2021'!$AW:$AW,'Données pour moyenne 2021'!$AT:$AT,Activation!$F$5,'Données pour moyenne 2021'!$AV:$AV,Activation!J$9),SUMIFS('Données pour moyenne 2021'!$AM:$AM,'Données pour moyenne 2021'!$AJ:$AJ,Activation!$J$5,'Données pour moyenne 2021'!$AL:$AL,Activation!J$9))))-1 -> -0.04857779015 | K26: =K24/(IF(ISBLANK($F$5),SUMIFS('Données pour moyenne 2021'!$BF:$BF,'Données pour moyenne 2021'!$BC:$BC,Activation!$C$5,'Données pour moyenne 2021'!$BE:$BE,Activation!K$9),IF(ISBLANK($J$5),SUMIFS('Données pour moyenne 2021'!$AW:$AW,'Données pour moyenne 2021'!$AT:$AT,Activation!$F$5,'Données pour moyenne 2021'!$AV:$AV,Activation!K$9),SUMIFS('Données pour moyenne 2021'!$AM:$AM,'Données pour moyenne 2021'!$AJ:$AJ,Activation!$J$5,'Données pour moyenne 2021'!$AL:$AL,Activation!K$9))))-1 -> 0.05156056015 | L26: =L24/(IF(ISBLANK($F$5),SUMIFS('Données pour moyenne 2021'!$BF:$BF,'Données pour moyenne 2021'!$BC:$BC,Activation!$C$5,'Données pour moyenne 2021'!$BE:$BE,Activation!L$9),IF(ISBLANK($J$5),SUMIFS('Données pour moyenne 2021'!$AW:$AW,'Données pour moyenne 2021'!$AT:$AT,Activation!$F$5,'Données pour moyenne 2021'!$AV:$AV,Activation!L$9),SUMIFS('Données pour moyenne 2021'!$AM:$AM,'Données pour moyenne 2021'!$AJ:$AJ,Activation!$J$5,'Données pour moyenne 2021'!$AL:$AL,Activation!L$9))))-1 -> -0.1277751646 | M26: =M24/(IF(ISBLANK($F$5),SUMIFS('Données pour moyenne 2021'!$BF:$BF,'Données pour moyenne 2021'!$BC:$BC,Activation!$C$5,'Données pour moyenne 2021'!$BE:$BE,Activation!M$9),IF(ISBLANK($J$5),SUMIFS('Données pour moyenne 2021'!$AW:$AW,'Données pour moyenne 2021'!$AT:$AT,Activation!$F$5,'Données pour moyenne 2021'!$AV:$AV,Activation!M$9),SUMIFS('Données pour moyenne 2021'!$AM:$AM,'Données pour moyenne 2021'!$AJ:$AJ,Activation!$J$5,'Données pour moyenne 2021'!$AL:$AL,Activation!M$9))))-1 -> -0.08024747295
C27: Variation CEGEE | D27: =(D25-E25)/E25 -> -0.008397746329 | F27: =(F25/SUMIF('Données pour moyenne 2021'!$BQ:$BQ,Activation!F$9,'Données pour moyenne 2021'!$BR:$BR))-1 -> -0.005367596063 | G27: =(G25/SUMIF('Données pour moyenne 2021'!$BQ:$BQ,Activation!G$9,'Données pour moyenne 2021'!$BR:$BR))-1 -> -0.02113669025 | H27: =(H25/SUMIF('Données pour moyenne 2021'!$BQ:$BQ,Activation!H$9,'Données pour moyenne 2021'!$BR:$BR))-1 -> -0.06288422619 | I27: =(I25/SUMIF('Données pour moyenne 2021'!$BQ:$BQ,Activation!I$9,'Données pour moyenne 2021'!$BR:$BR))-1 -> -0.04196622342 | J27: =(J25/SUMIF('Données pour moyenne 2021'!$BQ:$BQ,Activation!J$9,'Données pour moyenne 2021'!$BR:$BR))-1 -> -0.04857779015 | K27: =(K25/SUMIF('Données pour moyenne 2021'!$BQ:$BQ,Activation!K$9,'Données pour moyenne 2021'!$BR:$BR))-1 -> 0.05156056015 | L27: =(L25/SUMIF('Données pour moyenne 2021'!$BQ:$BQ,Activation!L$9,'Données pour moyenne 2021'!$BR:$BR))-1 -> -0.1277751646 | M27: =(M25/SUMIF('Données pour moyenne 2021'!$BQ:$BQ,Activation!M$9,'Données pour moyenne 2021'!$BR:$BR))-1 -> -0.08024747295
B28: SF totale moyenne (en €) | C28: Moyenne | D28: =IF(ISBLANK($F$5),SUMIFS('Données pour moyenne'!$T:$T,'Données pour moyenne'!$Q:$Q,Activation!$C$5),IF(ISBLANK($J$5),SUMIFS('Données pour moyenne'!$I:$I,'Données pour moyenne'!$F:$F,Activation!$F$5),SUMIFS('Données pour moyenne'!$D:$D,'Données pour moyenne'!$A:$A,Activation!$J$5))) -> 24193.86882 | E28: =IF(ISBLANK($F$5),SUMIFS('Données pour moyenne 2021'!$T:$T,'Données pour moyenne 2021'!$Q:$Q,Activation!$C$5),IF(ISBLANK($J$5),SUMIFS('Données pour moyenne 2021'!$I:$I,'Données pour moyenne 2021'!$F:$F,Activation!$F$5),SUMIFS('Données pour moyenne 2021'!$D:$D,'Données pour moyenne 2021'!$A:$A,Activation!$J$5))) -> 23683.83506 | F28: =IF(ISBLANK($F$5),SUMIFS('Données pour moyenne'!$Z:$Z,'Données pour moyenne'!$V:$V,Activation!$C$5,'Données pour moyenne'!$X:$X,Activation!F$9),IF(ISBLANK($J$5),SUMIFS('Données pour moyenne'!$O:$O,'Données pour moyenne'!$K:$K,Activation!$F$5,'Données pour moyenne'!$M:$M,Activation!F$9),SUMIFS('Données FDC'!$Q:$Q,'Données FDC'!$C:$C,Activation!$J$5,'Données FDC'!$E:$E,Activation!F$9))) -> 45532.04524 | G28: =IF(ISBLANK($F$5),SUMIFS('Données pour moyenne'!$Z:$Z,'Données pour moyenne'!$V:$V,Activation!$C$5,'Données pour moyenne'!$X:$X,Activation!G$9),IF(ISBLANK($J$5),SUMIFS('Données pour moyenne'!$O:$O,'Données pour moyenne'!$K:$K,Activation!$F$5,'Données pour moyenne'!$M:$M,Activation!G$9),SUMIFS('Données FDC'!$Q:$Q,'Données FDC'!$C:$C,Activation!$J$5,'Données FDC'!$E:$E,Activation!G$9))) -> 19748.04097 | H28: =IF(ISBLANK($F$5),SUMIFS('Données pour moyenne'!$Z:$Z,'Données pour moyenne'!$V:$V,Activation!$C$5,'Données pour moyenne'!$X:$X,Activation!H$9),IF(ISBLANK($J$5),SUMIFS('Données pour moyenne'!$O:$O,'Données pour moyenne'!$K:$K,Activation!$F$5,'Données pour moyenne'!$M:$M,Activation!H$9),SUMIFS('Données FDC'!$Q:$Q,'Données FDC'!$C:$C,Activation!$J$5,'Données FDC'!$E:$E,Activation!H$9))) -> 71970.20784 | I28: =IF(ISBLANK($F$5),SUMIFS('Données pour moyenne'!$Z:$Z,'Données pour moyenne'!$V:$V,Activation!$C$5,'Données pour moyenne'!$X:$X,Activation!I$9),IF(ISBLANK($J$5),SUMIFS('Données pour moyenne'!$O:$O,'Données pour moyenne'!$K:$K,Activation!$F$5,'Données pour moyenne'!$M:$M,Activation!I$9),SUMIFS('Données FDC'!$Q:$Q,'Données FDC'!$C:$C,Activation!$J$5,'Données FDC'!$E:$E,Activation!I$9))) -> 12275.2624 | J28: =IF(ISBLANK($F$5),SUMIFS('Données pour moyenne'!$Z:$Z,'Données pour moyenne'!$V:$V,Activation!$C$5,'Données pour moyenne'!$X:$X,Activation!J$9),IF(ISBLANK($J$5),SUMIFS('Données pour moyenne'!$O:$O,'Données pour moyenne'!$K:$K,Activation!$F$5,'Données pour moyenne'!$M:$M,Activation!J$9),SUMIFS('Données FDC'!$Q:$Q,'Données FDC'!$C:$C,Activation!$J$5,'Données FDC'!$E:$E,Activation!J$9))) -> 11149.0257 | K28: =IF(ISBLANK($F$5),SUMIFS('Données pour moyenne'!$Z:$Z,'Données pour moyenne'!$V:$V,Activation!$C$5,'Données pour moyenne'!$X:$X,Activation!K$9),IF(ISBLANK($J$5),SUMIFS('Données pour moyenne'!$O:$O,'Données pour moyenne'!$K:$K,Activation!$F$5,'Données pour moyenne'!$M:$M,Activation!K$9),SUMIFS('Données FDC'!$Q:$Q,'Données FDC'!$C:$C,Activation!$J$5,'Données FDC'!$E:$E,Activation!K$9))) -> 1459.396491 | L28: =IF(ISBLANK($F$5),SUMIFS('Données pour moyenne'!$Z:$Z,'Données pour moyenne'!$V:$V,Activation!$C$5,'Données pour moyenne'!$X:$X,Activation!L$9),IF(ISBLANK($J$5),SUMIFS('Données pour moyenne'!$O:$O,'Données pour moyenne'!$K:$K,Activation!$F$5,'Données pour moyenne'!$M:$M,Activation!L$9),SUMIFS('Données FDC'!$Q:$Q,'Données FDC'!$C:$C,Activation!$J$5,'Données FDC'!$E:$E,Activation!L$9))) -> 18617.31953 | M28: =IF(ISBLANK($F$5),SUMIFS('Données pour moyenne'!$Z:$Z,'Données pour moyenne'!$V:$V,Activation!$C$5,'Données pour moyenne'!$X:$X,Activation!M$9),IF(ISBLANK($J$5),SUMIFS('Données pour moyenne'!$O:$O,'Données pour moyenne'!$K:$K,Activation!$F$5,'Données pour moyenne'!$M:$M,Activation!M$9),SUMIFS('Données FDC'!$Q:$Q,'Données FDC'!$C:$C,Activation!$J$5,'Données FDC'!$E:$E,Activation!M$9))) -> 2417.579614 | N28: =IF(ISBLANK($F$5),SUMIFS('Données pour moyenne'!$Z:$Z,'Données pour moyenne'!$V:$V,Activation!$C$5,'Données pour moyenne'!$X:$X,Activation!N$9),IF(ISBLANK($J$5),SUMIFS('Données pour moyenne'!$O:$O,'Données pour moyenne'!$K:$K,Activation!$F$5,'Données pour moyenne'!$M:$M,Activation!N$9),SUMIFS('Données FDC'!$Q:$Q,'Données FDC'!$C:$C,Activation!$J$5,'Données FDC'!$E:$E,Activation!N$9))) -> 4941.453529 | O28: =IF(ISBLANK($F$5),SUMIFS('Données pour moyenne'!$Z:$Z,'Données pour moyenne'!$V:$V,Activation!$C$5,'Données pour moyenne'!$X:$X,Activation!O$9),IF(ISBLANK($J$5),SUMIFS('Données pour moyenne'!$O:$O,'Données pour moyenne'!$K:$K,Activation!$F$5,'Données pour moyenne'!$M:$M,Activation!O$9),SUMIFS('Données FDC'!$Q:$Q,'Données FDC'!$C:$C,Activation!$J$5,'Données FDC'!$E:$E,Activation!O$9))) -> 1219.747292 | P28: =IF(ISBLANK($F$5),SUMIFS('Données pour moyenne'!$Z:$Z,'Données pour moyenne'!$V:$V,Activation!$C$5,'Données pour moyenne'!$X:$X,Activation!P$9),IF(ISBLANK($J$5),SUMIFS('Données pour moyenne'!$O:$O,'Données pour moyenne'!$K:$K,Activation!$F$5,'Données pour moyenne'!$M:$M,Activation!P$9),SUMIFS('Données FDC'!$Q:$Q,'Données FDC'!$C:$C,Activation!$J$5,'Données FDC'!$E:$E,Activation!P$9))) -> 18.1981733
C29: Moyenne CEGEE | D29: ='Données pour moyenne'!AD2 -> 24193.86882 | E29: ='Données pour moyenne 2021'!AD2 -> 23683.83506 | F29: =VLOOKUP(F$9,'Données pour moyenne'!$AF:$AH,3,FALSE) -> 45532.04524 | G29: =VLOOKUP(G$9,'Données pour moyenne'!$AF:$AH,3,FALSE) -> 19748.04097 | H29: =VLOOKUP(H$9,'Données pour moyenne'!$AF:$AH,3,FALSE) -> 71970.20784 | I29: =VLOOKUP(I$9,'Données pour moyenne'!$AF:$AH,3,FALSE) -> 12275.2624 | J29: =VLOOKUP(J$9,'Données pour moyenne'!$AF:$AH,3,FALSE) -> 11149.0257 | K29: =VLOOKUP(K$9,'Données pour moyenne'!$AF:$AH,3,FALSE) -> 1459.396491 | L29: =VLOOKUP(L$9,'Données pour moyenne'!$AF:$AH,3,FALSE) -> 18617.31953 | M29: =VLOOKUP(M$9,'Données pour moyenne'!$AF:$AH,3,FALSE) -> 2417.579614 | N29: =VLOOKUP(N$9,'Données pour moyenne'!$AF:$AH,3,FALSE) -> 4941.453529 | O29: =VLOOKUP(O$9,'Données pour moyenne'!$AF:$AH,3,FALSE) -> 1219.747292 | P29: =VLOOKUP(P$9,'Données pour moyenne'!$AF:$AH,3,FALSE) -> 18.1981733
C30: Variation | D30: =(D28-E28)/E28 -> 0.02153509989 | F30: =F28/(IF(ISBLANK($F$5),SUMIFS('Données pour moyenne 2021'!$Z:$Z,'Données pour moyenne 2021'!$V:$V,Activation!$C$5,'Données pour moyenne 2021'!$X:$X,Activation!F$9),IF(ISBLANK($J$5),SUMIFS('Données pour moyenne 2021'!$O:$O,'Données pour moyenne 2021'!$K:$K,Activation!$F$5,'Données pour moyenne 2021'!$M:$M,Activation!F$9),SUMIFS('Données FDC déc 2021'!$Q:$Q,'Données FDC déc 2021'!$C:$C,Activation!$J$5,'Données FDC déc 2021'!$E:$E,Activation!F$9))))-1 -> 0.005588262678 | G30: =G28/(IF(ISBLANK($F$5),SUMIFS('Données pour moyenne 2021'!$Z:$Z,'Données pour moyenne 2021'!$V:$V,Activation!$C$5,'Données pour moyenne 2021'!$X:$X,Activation!G$9),IF(ISBLANK($J$5),SUMIFS('Données pour moyenne 2021'!$O:$O,'Données pour moyenne 2021'!$K:$K,Activation!$F$5,'Données pour moyenne 2021'!$M:$M,Activation!G$9),SUMIFS('Données FDC déc 2021'!$Q:$Q,'Données FDC déc 2021'!$C:$C,Activation!$J$5,'Données FDC déc 2021'!$E:$E,Activation!G$9))))-1 -> 0.0210119721 | H30: =H28/(IF(ISBLANK($F$5),SUMIFS('Données pour moyenne 2021'!$Z:$Z,'Données pour moyenne 2021'!$V:$V,Activation!$C$5,'Données pour moyenne 2021'!$X:$X,Activation!H$9),IF(ISBLANK($J$5),SUMIFS('Données pour moyenne 2021'!$O:$O,'Données pour moyenne 2021'!$K:$K,Activation!$F$5,'Données pour moyenne 2021'!$M:$M,Activation!H$9),SUMIFS('Données FDC déc 2021'!$Q:$Q,'Données FDC déc 2021'!$C:$C,Activation!$J$5,'Données FDC déc 2021'!$E:$E,Activation!H$9))))-1 -> -7.246671531e-05 | I30: =I28/(IF(ISBLANK($F$5),SUMIFS('Données pour moyenne 2021'!$Z:$Z,'Données pour moyenne 2021'!$V:$V,Activation!$C$5,'Données pour moyenne 2021'!$X:$X,Activation!I$9),IF(ISBLANK($J$5),SUMIFS('Données pour moyenne 2021'!$O:$O,'Données pour moyenne 2021'!$K:$K,Activation!$F$5,'Données pour moyenne 2021'!$M:$M,Activation!I$9),SUMIFS('Données FDC déc 2021'!$Q:$Q,'Données FDC déc 2021'!$C:$C,Activation!$J$5,'Données FDC déc 2021'!$E:$E,Activation!I$9))))-1 -> 0.0310112029 | J30: =J28/(IF(ISBLANK($F$5),SUMIFS('Données pour moyenne 2021'!$Z:$Z,'Données pour moyenne 2021'!$V:$V,Activation!$C$5,'Données pour moyenne 2021'!$X:$X,Activation!J$9),IF(ISBLANK($J$5),SUMIFS('Données pour moyenne 2021'!$O:$O,'Données pour moyenne 2021'!$K:$K,Activation!$F$5,'Données pour moyenne 2021'!$M:$M,Activation!J$9),SUMIFS('Données FDC déc 2021'!$Q:$Q,'Données FDC déc 2021'!$C:$C,Activation!$J$5,'Données FDC déc 2021'!$E:$E,Activation!J$9))))-1 -> 0.01510005155 | K30: =K28/(IF(ISBLANK($F$5),SUMIFS('Données pour moyenne 2021'!$Z:$Z,'Données pour moyenne 2021'!$V:$V,Activation!$C$5,'Données pour moyenne 2021'!$X:$X,Activation!K$9),IF(ISBLANK($J$5),SUMIFS('Données pour moyenne 2021'!$O:$O,'Données pour moyenne 2021'!$K:$K,Activation!$F$5,'Données pour moyenne 2021'!$M:$M,Activation!K$9),SUMIFS('Données FDC déc 2021'!$Q:$Q,'Données FDC déc 2021'!$C:$C,Activation!$J$5,'Données FDC déc 2021'!$E:$E,Activation!K$9))))-1 -> 0.0678120586 | L30: =L28/(IF(ISBLANK($F$5),SUMIFS('Données pour moyenne 2021'!$Z:$Z,'Données pour moyenne 2021'!$V:$V,Activation!$C$5,'Données pour moyenne 2021'!$X:$X,Activation!L$9),IF(ISBLANK($J$5),SUMIFS('Données pour moyenne 2021'!$O:$O,'Données pour moyenne 2021'!$K:$K,Activation!$F$5,'Données pour moyenne 2021'!$M:$M,Activation!L$9),SUMIFS('Données FDC déc 2021'!$Q:$Q,'Données FDC déc 2021'!$C:$C,Activation!$J$5,'Données FDC déc 2021'!$E:$E,Activation!L$9))))-1 -> 0.02107211153 | M30: =M28/(IF(ISBLANK($F$5),SUMIFS('Données pour moyenne 2021'!$Z:$Z,'Données pour moyenne 2021'!$V:$V,Activation!$C$5,'Données pour moyenne 2021'!$X:$X,Activation!M$9),IF(ISBLANK($J$5),SUMIFS('Données pour moyenne 2021'!$O:$O,'Données pour moyenne 2021'!$K:$K,Activation!$F$5,'Données pour moyenne 2021'!$M:$M,Activation!M$9),SUMIFS('Données FDC déc 2021'!$Q:$Q,'Données FDC déc 2021'!$C:$C,Activation!$J$5,'Données FDC déc 2021'!$E:$E,Activation!M$9))))-1 -> 0.01595644005 | N30: =N28/(IF(ISBLANK($F$5),SUMIFS('Données pour moyenne 2021'!$Z:$Z,'Données pour moyenne 2021'!$V:$V,Activation!$C$5,'Données pour moyenne 2021'!$X:$X,Activation!N$9),IF(ISBLANK($J$5),SUMIFS('Données pour moyenne 2021'!$O:$O,'Données pour moyenne 2021'!$K:$K,Activation!$F$5,'Données pour moyenne 2021'!$M:$M,Activation!N$9),SUMIFS('Données FDC déc 2021'!$Q:$Q,'Données FDC déc 2021'!$C:$C,Activation!$J$5,'Données FDC déc 2021'!$E:$E,Activation!N$9))))-1 -> 0.03583511223 | O30: =O28/(IF(ISBLANK($F$5),SUMIFS('Données pour moyenne 2021'!$Z:$Z,'Données pour moyenne 2021'!$V:$V,Activation!$C$5,'Données pour moyenne 2021'!$X:$X,Activation!O$9),IF(ISBLANK($J$5),SUMIFS('Données pour moyenne 2021'!$O:$O,'Données pour moyenne 2021'!$K:$K,Activation!$F$5,'Données pour moyenne 2021'!$M:$M,Activation!O$9),SUMIFS('Données FDC déc 2021'!$Q:$Q,'Données FDC déc 2021'!$C:$C,Activation!$J$5,'Données FDC déc 2021'!$E:$E,Activation!O$9))))-1 -> 0.05920220965 | P30: =P28/(IF(ISBLANK($F$5),SUMIFS('Données pour moyenne 2021'!$Z:$Z,'Données pour moyenne 2021'!$V:$V,Activation!$C$5,'Données pour moyenne 2021'!$X:$X,Activation!P$9),IF(ISBLANK($J$5),SUMIFS('Données pour moyenne 2021'!$O:$O,'Données pour moyenne 2021'!$K:$K,Activation!$F$5,'Données pour moyenne 2021'!$M:$M,Activation!P$9),SUMIFS('Données FDC déc 2021'!$Q:$Q,'Données FDC déc 2021'!$C:$C,Activation!$J$5,'Données FDC déc 2021'!$E:$E,Activation!P$9))))-1 -> 0.02599466546
C31: Variation CEGEE | D31: =(D29-E29)/E29 -> 0.02153509989 | F31: =F29/VLOOKUP(F$9,'Données pour moyenne 2021'!$AF:$AH,3,FALSE)-1 -> 0.005588262678 | G31: =G29/VLOOKUP(G$9,'Données pour moyenne 2021'!$AF:$AH,3,FALSE)-1 -> 0.0210119721 | H31: =H29/VLOOKUP(H$9,'Données pour moyenne 2021'!$AF:$AH,3,FALSE)-1 -> -7.246671531e-05 | I31: =I29/VLOOKUP(I$9,'Données pour moyenne 2021'!$AF:$AH,3,FALSE)-1 -> 0.0310112029 | J31: =J29/VLOOKUP(J$9,'Données pour moyenne 2021'!$AF:$AH,3,FALSE)-1 -> 0.01510005155 | K31: =K29/VLOOKUP(K$9,'Données pour moyenne 2021'!$AF:$AH,3,FALSE)-1 -> 0.0678120586 | L31: =L29/VLOOKUP(L$9,'Données pour moyenne 2021'!$AF:$AH,3,FALSE)-1 -> 0.02107211153 | M31: =M29/VLOOKUP(M$9,'Données pour moyenne 2021'!$AF:$AH,3,FALSE)-1 -> 0.01595644005 | N31: =N29/VLOOKUP(N$9,'Données pour moyenne 2021'!$AF:$AH,3,FALSE)-1 -> 0.03583511223 | O31: =O29/VLOOKUP(O$9,'Données pour moyenne 2021'!$AF:$AH,3,FALSE)-1 -> 0.05920220965 | P31: =P29/VLOOKUP(P$9,'Données pour moyenne 2021'!$AF:$AH,3,FALSE)-1 -> 0.02599466546
B32: Encours de collecte (en K€) | C32: Montant | D32: =SUM(F32:P32) -> 32503935.85 | E32: =IF(ISBLANK($F$5),(SUMIFS('Données FDC déc 2021'!$R:$R,'Données FDC déc 2021'!$A:$A,Activation!$C$5))/1000,IF(ISBLANK($J$5),(SUMIFS('Données FDC déc 2021'!$R:$R,'Données FDC déc 2021'!$B:$B,Activation!$F$5))/1000,(SUMIFS('Données FDC déc 2021'!$R:$R,'Données FDC déc 2021'!$C:$C,Activation!$J$5))/1000)) -> 32530735.29 | F32: =IF(ISBLANK($F$5),(SUMIFS('Données FDC'!$R:$R,'Données FDC'!$A:$A,Activation!$C$5,'Données FDC'!$E:$E,Activation!F$9))/1000,IF(ISBLANK($J$5),(SUMIFS('Données FDC'!$R:$R,'Données FDC'!$B:$B,Activation!$F$5,'Données FDC'!$E:$E,Activation!F$9))/1000,(SUMIFS('Données FDC'!$R:$R,'Données FDC'!$C:$C,Activation!$J$5,'Données FDC'!$E:$E,Activation!F$9))/1000)) -> 13455105.4 | G32: =IF(ISBLANK($F$5),(SUMIFS('Données FDC'!$R:$R,'Données FDC'!$A:$A,Activation!$C$5,'Données FDC'!$E:$E,Activation!G$9))/1000,IF(ISBLANK($J$5),(SUMIFS('Données FDC'!$R:$R,'Données FDC'!$B:$B,Activation!$F$5,'Données FDC'!$E:$E,Activation!G$9))/1000,(SUMIFS('Données FDC'!$R:$R,'Données FDC'!$C:$C,Activation!$J$5,'Données FDC'!$E:$E,Activation!G$9))/1000)) -> 3216920.476 | H32: =IF(ISBLANK($F$5),(SUMIFS('Données FDC'!$R:$R,'Données FDC'!$A:$A,Activation!$C$5,'Données FDC'!$E:$E,Activation!H$9))/1000,IF(ISBLANK($J$5),(SUMIFS('Données FDC'!$R:$R,'Données FDC'!$B:$B,Activation!$F$5,'Données FDC'!$E:$E,Activation!H$9))/1000,(SUMIFS('Données FDC'!$R:$R,'Données FDC'!$C:$C,Activation!$J$5,'Données FDC'!$E:$E,Activation!H$9))/1000)) -> 10653469.9 | I32: =IF(ISBLANK($F$5),(SUMIFS('Données FDC'!$R:$R,'Données FDC'!$A:$A,Activation!$C$5,'Données FDC'!$E:$E,Activation!I$9))/1000,IF(ISBLANK($J$5),(SUMIFS('Données FDC'!$R:$R,'Données FDC'!$B:$B,Activation!$F$5,'Données FDC'!$E:$E,Activation!I$9))/1000,(SUMIFS('Données FDC'!$R:$R,'Données FDC'!$C:$C,Activation!$J$5,'Données FDC'!$E:$E,Activation!I$9))/1000)) -> 3721266.945 | J32: =IF(ISBLANK($F$5),(SUMIFS('Données FDC'!$R:$R,'Données FDC'!$A:$A,Activation!$C$5,'Données FDC'!$E:$E,Activation!J$9))/1000,IF(ISBLANK($J$5),(SUMIFS('Données FDC'!$R:$R,'Données FDC'!$B:$B,Activation!$F$5,'Données FDC'!$E:$E,Activation!J$9))/1000,(SUMIFS('Données FDC'!$R:$R,'Données FDC'!$C:$C,Activation!$J$5,'Données FDC'!$E:$E,Activation!J$9))/1000)) -> 692769.8149 | K32: =IF(ISBLANK($F$5),(SUMIFS('Données FDC'!$R:$R,'Données FDC'!$A:$A,Activation!$C$5,'Données FDC'!$E:$E,Activation!K$9))/1000,IF(ISBLANK($J$5),(SUMIFS('Données FDC'!$R:$R,'Données FDC'!$B:$B,Activation!$F$5,'Données FDC'!$E:$E,Activation!K$9))/1000,(SUMIFS('Données FDC'!$R:$R,'Données FDC'!$C:$C,Activation!$J$5,'Données FDC'!$E:$E,Activation!K$9))/1000)) -> 23457.31437 | L32: =IF(ISBLANK($F$5),(SUMIFS('Données FDC'!$R:$R,'Données FDC'!$A:$A,Activation!$C$5,'Données FDC'!$E:$E,Activation!L$9))/1000,IF(ISBLANK($J$5),(SUMIFS('Données FDC'!$R:$R,'Données FDC'!$B:$B,Activation!$F$5,'Données FDC'!$E:$E,Activation!L$9))/1000,(SUMIFS('Données FDC'!$R:$R,'Données FDC'!$C:$C,Activation!$J$5,'Données FDC'!$E:$E,Activation!L$9))/1000)) -> 149130.6694 | M32: =IF(ISBLANK($F$5),(SUMIFS('Données FDC'!$R:$R,'Données FDC'!$A:$A,Activation!$C$5,'Données FDC'!$E:$E,Activation!M$9))/1000,IF(ISBLANK($J$5),(SUMIFS('Données FDC'!$R:$R,'Données FDC'!$B:$B,Activation!$F$5,'Données FDC'!$E:$E,Activation!M$9))/1000,(SUMIFS('Données FDC'!$R:$R,'Données FDC'!$C:$C,Activation!$J$5,'Données FDC'!$E:$E,Activation!M$9))/1000)) -> 147976.3045 | N32: =IF(ISBLANK($F$5),(SUMIFS('Données FDC'!$R:$R,'Données FDC'!$A:$A,Activation!$C$5,'Données FDC'!$E:$E,Activation!N$9))/1000,IF(ISBLANK($J$5),(SUMIFS('Données FDC'!$R:$R,'Données FDC'!$B:$B,Activation!$F$5,'Données FDC'!$E:$E,Activation!N$9))/1000,(SUMIFS('Données FDC'!$R:$R,'Données FDC'!$C:$C,Activation!$J$5,'Données FDC'!$E:$E,Activation!N$9))/1000)) -> 374802.649 | O32: =IF(ISBLANK($F$5),(SUMIFS('Données FDC'!$R:$R,'Données FDC'!$A:$A,Activation!$C$5,'Données FDC'!$E:$E,Activation!O$9))/1000,IF(ISBLANK($J$5),(SUMIFS('Données FDC'!$R:$R,'Données FDC'!$B:$B,Activation!$F$5,'Données FDC'!$E:$E,Activation!O$9))/1000,(SUMIFS('Données FDC'!$R:$R,'Données FDC'!$C:$C,Activation!$J$5,'Données FDC'!$E:$E,Activation!O$9))/1000)) -> 66187.31769 | P32: =IF(ISBLANK($F$5),(SUMIFS('Données FDC'!$R:$R,'Données FDC'!$A:$A,Activation!$C$5,'Données FDC'!$E:$E,Activation!P$9))/1000,IF(ISBLANK($J$5),(SUMIFS('Données FDC'!$R:$R,'Données FDC'!$B:$B,Activation!$F$5,'Données FDC'!$E:$E,Activation!P$9))/1000,(SUMIFS('Données FDC'!$R:$R,'Données FDC'!$C:$C,Activation!$J$5,'Données FDC'!$E:$E,Activation!P$9))/1000)) -> 2849.05681
C33: Variation | D33: =D32/(IF(ISBLANK($F$5),SUMIFS('Données FDC déc 2021'!$R:$R,'Données FDC déc 2021'!$A:$A,Activation!$C$5)/1000,IF(ISBLANK($J$5),SUMIFS('Données FDC déc 2021'!$R:$R,'Données FDC déc 2021'!$B:$B,Activation!$F$5)/1000,SUMIFS('Données FDC déc 2021'!$R:$R,'Données FDC déc 2021'!$C:$C,Activation!$J$5)/1000)))-1 -> -0.0008238189271 | F33: =F32/(IF(ISBLANK($F$5),SUMIFS('Données FDC déc 2021'!$R:$R,'Données FDC déc 2021'!$A:$A,Activation!$C$5,'Données FDC déc 2021'!$E:$E,Activation!F$9)/1000,IF(ISBLANK($J$5),SUMIFS('Données FDC déc 2021'!$R:$R,'Données FDC déc 2021'!$B:$B,Activation!$F$5,'Données FDC déc 2021'!$E:$E,Activation!F$9)/1000,SUMIFS('Données FDC déc 2021'!$R:$R,'Données FDC déc 2021'!$C:$C,Activation!$J$5,'Données FDC déc 2021'!$E:$E,Activation!F$9)/1000)))-1 -> 0.02515994911 | G33: =G32/(IF(ISBLANK($F$5),SUMIFS('Données FDC déc 2021'!$R:$R,'Données FDC déc 2021'!$A:$A,Activation!$C$5,'Données FDC déc 2021'!$E:$E,Activation!G$9)/1000,IF(ISBLANK($J$5),SUMIFS('Données FDC déc 2021'!$R:$R,'Données FDC déc 2021'!$B:$B,Activation!$F$5,'Données FDC déc 2021'!$E:$E,Activation!G$9)/1000,SUMIFS('Données FDC déc 2021'!$R:$R,'Données FDC déc 2021'!$C:$C,Activation!$J$5,'Données FDC déc 2021'!$E:$E,Activation!G$9)/1000)))-1 -> 0.03378170522 | H33: =H32/(IF(ISBLANK($F$5),SUMIFS('Données FDC déc 2021'!$R:$R,'Données FDC déc 2021'!$A:$A,Activation!$C$5,'Données FDC déc 2021'!$E:$E,Activation!H$9)/1000,IF(ISBLANK($J$5),SUMIFS('Données FDC déc 2021'!$R:$R,'Données FDC déc 2021'!$B:$B,Activation!$F$5,'Données FDC déc 2021'!$E:$E,Activation!H$9)/1000,SUMIFS('Données FDC déc 2021'!$R:$R,'Données FDC déc 2021'!$C:$C,Activation!$J$5,'Données FDC déc 2021'!$E:$E,Activation!H$9)/1000)))-1 -> -0.03625850222 | I33: =I32/(IF(ISBLANK($F$5),SUMIFS('Données FDC déc 2021'!$R:$R,'Données FDC déc 2021'!$A:$A,Activation!$C$5,'Données FDC déc 2021'!$E:$E,Activation!I$9)/1000,IF(ISBLANK($J$5),SUMIFS('Données FDC déc 2021'!$R:$R,'Données FDC déc 2021'!$B:$B,Activation!$F$5,'Données FDC déc 2021'!$E:$E,Activation!I$9)/1000,SUMIFS('Données FDC déc 2021'!$R:$R,'Données FDC déc 2021'!$C:$C,Activation!$J$5,'Données FDC déc 2021'!$E:$E,Activation!I$9)/1000)))-1 -> -0.0140790368 | J33: =J32/(IF(ISBLANK($F$5),SUMIFS('Données FDC déc 2021'!$R:$R,'Données FDC déc 2021'!$A:$A,Activation!$C$5,'Données FDC déc 2021'!$E:$E,Activation!J$9)/1000,IF(ISBLANK($J$5),SUMIFS('Données FDC déc 2021'!$R:$R,'Données FDC déc 2021'!$B:$B,Activation!$F$5,'Données FDC déc 2021'!$E:$E,Activation!J$9)/1000,SUMIFS('Données FDC déc 2021'!$R:$R,'Données FDC déc 2021'!$C:$C,Activation!$J$5,'Données FDC déc 2021'!$E:$E,Activation!J$9)/1000)))-1 -> 0.009248440358 | K33: =K32/(IF(ISBLANK($F$5),SUMIFS('Données FDC déc 2021'!$R:$R,'Données FDC déc 2021'!$A:$A,Activation!$C$5,'Données FDC déc 2021'!$E:$E,Activation!K$9)/1000,IF(ISBLANK($J$5),SUMIFS('Données FDC déc 2021'!$R:$R,'Données FDC déc 2021'!$B:$B,Activation!$F$5,'Données FDC déc 2021'!$E:$E,Activation!K$9)/1000,SUMIFS('Données FDC déc 2021'!$R:$R,'Données FDC déc 2021'!$C:$C,Activation!$J$5,'Données FDC déc 2021'!$E:$E,Activation!K$9)/1000)))-1 -> 0.08984540077 | L33: =L32/(IF(ISBLANK($F$5),SUMIFS('Données FDC déc 2021'!$R:$R,'Données FDC déc 2021'!$A:$A,Activation!$C$5,'Données FDC déc 2021'!$E:$E,Activation!L$9)/1000,IF(ISBLANK($J$5),SUMIFS('Données FDC déc 2021'!$R:$R,'Données FDC déc 2021'!$B:$B,Activation!$F$5,'Données FDC déc 2021'!$E:$E,Activation!L$9)/1000,SUMIFS('Données FDC déc 2021'!$R:$R,'Données FDC déc 2021'!$C:$C,Activation!$J$5,'Données FDC déc 2021'!$E:$E,Activation!L$9)/1000)))-1 -> -0.06363875164 | M33: =M32/(IF(ISBLANK($F$5),SUMIFS('Données FDC déc 2021'!$R:$R,'Données FDC déc 2021'!$A:$A,Activation!$C$5,'Données FDC déc 2021'!$E:$E,Activation!M$9)/1000,IF(ISBLANK($J$5),SUMIFS('Données FDC déc 2021'!$R:$R,'Données FDC déc 2021'!$B:$B,Activation!$F$5,'Données FDC déc 2021'!$E:$E,Activation!M$9)/1000,SUMIFS('Données FDC déc 2021'!$R:$R,'Données FDC déc 2021'!$C:$C,Activation!$J$5,'Données FDC déc 2021'!$E:$E,Activation!M$9)/1000)))-1 -> -0.02958846561 | N33: =N32/(IF(ISBLANK($F$5),SUMIFS('Données FDC déc 2021'!$R:$R,'Données FDC déc 2021'!$A:$A,Activation!$C$5,'Données FDC déc 2021'!$E:$E,Activation!N$9)/1000,IF(ISBLANK($J$5),SUMIFS('Données FDC déc 2021'!$R:$R,'Données FDC déc 2021'!$B:$B,Activation!$F$5,'Données FDC déc 2021'!$E:$E,Activation!N$9)/1000,SUMIFS('Données FDC déc 2021'!$R:$R,'Données FDC déc 2021'!$C:$C,Activation!$J$5,'Données FDC déc 2021'!$E:$E,Activation!N$9)/1000)))-1 -> -0.01677621084 | O33: =O32/(IF(ISBLANK($F$5),SUMIFS('Données FDC déc 2021'!$R:$R,'Données FDC déc 2021'!$A:$A,Activation!$C$5,'Données FDC déc 2021'!$E:$E,Activation!O$9)/1000,IF(ISBLANK($J$5),SUMIFS('Données FDC déc 2021'!$R:$R,'Données FDC déc 2021'!$B:$B,Activation!$F$5,'Données FDC déc 2021'!$E:$E,Activation!O$9)/1000,SUMIFS('Données FDC déc 2021'!$R:$R,'Données FDC déc 2021'!$C:$C,Activation!$J$5,'Données FDC déc 2021'!$E:$E,Activation!O$9)/1000)))-1 -> 0.07666915238 | P33: =P32/(IF(ISBLANK($F$5),SUMIFS('Données FDC déc 2021'!$R:$R,'Données FDC déc 2021'!$A:$A,Activation!$C$5,'Données FDC déc 2021'!$E:$E,Activation!P$9)/1000,IF(ISBLANK($J$5),SUMIFS('Données FDC déc 2021'!$R:$R,'Données FDC déc 2021'!$B:$B,Activation!$F$5,'Données FDC déc 2021'!$E:$E,Activation!P$9)/1000,SUMIFS('Données FDC déc 2021'!$R:$R,'Données FDC déc 2021'!$C:$C,Activation!$J$5,'Données FDC déc 2021'!$E:$E,Activation!P$9)/1000)))-1 -> -0.04806287816
C34: Variation CEGEE | D34: =(SUM('Données FDC'!$R:$R)/1000)/(SUM('Données FDC déc 2021'!$R:$R)/1000)-1 -> -0.0008238189271 | F34: =IF(ISBLANK($F$5),SUMIFS('Données FDC'!$R:$R,'Données FDC'!$E:$E,Activation!F$9)/1000,IF(ISBLANK($J$5),SUMIFS('Données FDC'!$R:$R,'Données FDC'!$E:$E,Activation!F$9)/1000,SUMIFS('Données FDC'!$R:$R,'Données FDC'!$E:$E,Activation!F$9)/1000))/(IF(ISBLANK($F$5),SUMIFS('Données FDC déc 2021'!$R:$R,'Données FDC déc 2021'!$E:$E,Activation!F$9)/1000,IF(ISBLANK($J$5),SUMIFS('Données FDC déc 2021'!$R:$R,'Données FDC déc 2021'!$E:$E,Activation!F$9)/1000,SUMIFS('Données FDC déc 2021'!$R:$R,'Données FDC déc 2021'!$E:$E,Activation!F$9)/1000)))-1 -> 0.02515994911 | G34: =IF(ISBLANK($F$5),SUMIFS('Données FDC'!$R:$R,'Données FDC'!$E:$E,Activation!G$9)/1000,IF(ISBLANK($J$5),SUMIFS('Données FDC'!$R:$R,'Données FDC'!$E:$E,Activation!G$9)/1000,SUMIFS('Données FDC'!$R:$R,'Données FDC'!$E:$E,Activation!G$9)/1000))/(IF(ISBLANK($F$5),SUMIFS('Données FDC déc 2021'!$R:$R,'Données FDC déc 2021'!$E:$E,Activation!G$9)/1000,IF(ISBLANK($J$5),SUMIFS('Données FDC déc 2021'!$R:$R,'Données FDC déc 2021'!$E:$E,Activation!G$9)/1000,SUMIFS('Données FDC déc 2021'!$R:$R,'Données FDC déc 2021'!$E:$E,Activation!G$9)/1000)))-1 -> 0.03378170522 | H34: =IF(ISBLANK($F$5),SUMIFS('Données FDC'!$R:$R,'Données FDC'!$E:$E,Activation!H$9)/1000,IF(ISBLANK($J$5),SUMIFS('Données FDC'!$R:$R,'Données FDC'!$E:$E,Activation!H$9)/1000,SUMIFS('Données FDC'!$R:$R,'Données FDC'!$E:$E,Activation!H$9)/1000))/(IF(ISBLANK($F$5),SUMIFS('Données FDC déc 2021'!$R:$R,'Données FDC déc 2021'!$E:$E,Activation!H$9)/1000,IF(ISBLANK($J$5),SUMIFS('Données FDC déc 2021'!$R:$R,'Données FDC déc 2021'!$E:$E,Activation!H$9)/1000,SUMIFS('Données FDC déc 2021'!$R:$R,'Données FDC déc 2021'!$E:$E,Activation!H$9)/1000)))-1 -> -0.03625850222 | I34: =IF(ISBLANK($F$5),SUMIFS('Données FDC'!$R:$R,'Données FDC'!$E:$E,Activation!I$9)/1000,IF(ISBLANK($J$5),SUMIFS('Données FDC'!$R:$R,'Données FDC'!$E:$E,Activation!I$9)/1000,SUMIFS('Données FDC'!$R:$R,'Données FDC'!$E:$E,Activation!I$9)/1000))/(IF(ISBLANK($F$5),SUMIFS('Données FDC déc 2021'!$R:$R,'Données FDC déc 2021'!$E:$E,Activation!I$9)/1000,IF(ISBLANK($J$5),SUMIFS('Données FDC déc 2021'!$R:$R,'Données FDC déc 2021'!$E:$E,Activation!I$9)/1000,SUMIFS('Données FDC déc 2021'!$R:$R,'Données FDC déc 2021'!$E:$E,Activation!I$9)/1000)))-1 -> -0.0140790368 | J34: =IF(ISBLANK($F$5),SUMIFS('Données FDC'!$R:$R,'Données FDC'!$E:$E,Activation!J$9)/1000,IF(ISBLANK($J$5),SUMIFS('Données FDC'!$R:$R,'Données FDC'!$E:$E,Activation!J$9)/1000,SUMIFS('Données FDC'!$R:$R,'Données FDC'!$E:$E,Activation!J$9)/1000))/(IF(ISBLANK($F$5),SUMIFS('Données FDC déc 2021'!$R:$R,'Données FDC déc 2021'!$E:$E,Activation!J$9)/1000,IF(ISBLANK($J$5),SUMIFS('Données FDC déc 2021'!$R:$R,'Données FDC déc 2021'!$E:$E,Activation!J$9)/1000,SUMIFS('Données FDC déc 2021'!$R:$R,'Données FDC déc 2021'!$E:$E,Activation!J$9)/1000)))-1 -> 0.009248440358 | K34: =IF(ISBLANK($F$5),SUMIFS('Données FDC'!$R:$R,'Données FDC'!$E:$E,Activation!K$9)/1000,IF(ISBLANK($J$5),SUMIFS('Données FDC'!$R:$R,'Données FDC'!$E:$E,Activation!K$9)/1000,SUMIFS('Données FDC'!$R:$R,'Données FDC'!$E:$E,Activation!K$9)/1000))/(IF(ISBLANK($F$5),SUMIFS('Données FDC déc 2021'!$R:$R,'Données FDC déc 2021'!$E:$E,Activation!K$9)/1000,IF(ISBLANK($J$5),SUMIFS('Données FDC déc 2021'!$R:$R,'Données FDC déc 2021'!$E:$E,Activation!K$9)/1000,SUMIFS('Données FDC déc 2021'!$R:$R,'Données FDC déc 2021'!$E:$E,Activation!K$9)/1000)))-1 -> 0.08984540077 | L34: =IF(ISBLANK($F$5),SUMIFS('Données FDC'!$R:$R,'Données FDC'!$E:$E,Activation!L$9)/1000,IF(ISBLANK($J$5),SUMIFS('Données FDC'!$R:$R,'Données FDC'!$E:$E,Activation!L$9)/1000,SUMIFS('Données FDC'!$R:$R,'Données FDC'!$E:$E,Activation!L$9)/1000))/(IF(ISBLANK($F$5),SUMIFS('Données FDC déc 2021'!$R:$R,'Données FDC déc 2021'!$E:$E,Activation!L$9)/1000,IF(ISBLANK($J$5),SUMIFS('Données FDC déc 2021'!$R:$R,'Données FDC déc 2021'!$E:$E,Activation!L$9)/1000,SUMIFS('Données FDC déc 2021'!$R:$R,'Données FDC déc 2021'!$E:$E,Activation!L$9)/1000)))-1 -> -0.06363875164 | M34: =IF(ISBLANK($F$5),SUMIFS('Données FDC'!$R:$R,'Données FDC'!$E:$E,Activation!M$9)/1000,IF(ISBLANK($J$5),SUMIFS('Données FDC'!$R:$R,'Données FDC'!$E:$E,Activation!M$9)/1000,SUMIFS('Données FDC'!$R:$R,'Données FDC'!$E:$E,Activation!M$9)/1000))/(IF(ISBLANK($F$5),SUMIFS('Données FDC déc 2021'!$R:$R,'Données FDC déc 2021'!$E:$E,Activation!M$9)/1000,IF(ISBLANK($J$5),SUMIFS('Données FDC déc 2021'!$R:$R,'Données FDC déc 2021'!$E:$E,Activation!M$9)/1000,SUMIFS('Données FDC déc 2021'!$R:$R,'Données FDC déc 2021'!$E:$E,Activation!M$9)/1000)))-1 -> -0.02958846561 | N34: =IF(ISBLANK($F$5),SUMIFS('Données FDC'!$R:$R,'Données FDC'!$E:$E,Activation!N$9)/1000,IF(ISBLANK($J$5),SUMIFS('Données FDC'!$R:$R,'Données FDC'!$E:$E,Activation!N$9)/1000,SUMIFS('Données FDC'!$R:$R,'Données FDC'!$E:$E,Activation!N$9)/1000))/(IF(ISBLANK($F$5),SUMIFS('Données FDC déc 2021'!$R:$R,'Données FDC déc 2021'!$E:$E,Activation!N$9)/1000,IF(ISBLANK($J$5),SUMIFS('Données FDC déc 2021'!$R:$R,'Données FDC déc 2021'!$E:$E,Activation!N$9)/1000,SUMIFS('Données FDC déc 2021'!$R:$R,'Données FDC déc 2021'!$E:$E,Activation!N$9)/1000)))-1 -> -0.01677621084 | O34: =IF(ISBLANK($F$5),SUMIFS('Données FDC'!$R:$R,'Données FDC'!$E:$E,Activation!O$9)/1000,IF(ISBLANK($J$5),SUMIFS('Données FDC'!$R:$R,'Données FDC'!$E:$E,Activation!O$9)/1000,SUMIFS('Données FDC'!$R:$R,'Données FDC'!$E:$E,Activation!O$9)/1000))/(IF(ISBLANK($F$5),SUMIFS('Données FDC déc 2021'!$R:$R,'Données FDC déc 2021'!$E:$E,Activation!O$9)/1000,IF(ISBLANK($J$5),SUMIFS('Données FDC déc 2021'!$R:$R,'Données FDC déc 2021'!$E:$E,Activation!O$9)/1000,SUMIFS('Données FDC déc 2021'!$R:$R,'Données FDC déc 2021'!$E:$E,Activation!O$9)/1000)))-1 -> 0.07666915238 | P34: =IF(ISBLANK($F$5),SUMIFS('Données FDC'!$R:$R,'Données FDC'!$E:$E,Activation!P$9)/1000,IF(ISBLANK($J$5),SUMIFS('Données FDC'!$R:$R,'Données FDC'!$E:$E,Activation!P$9)/1000,SUMIFS('Données FDC'!$R:$R,'Données FDC'!$E:$E,Activation!P$9)/1000))/(IF(ISBLANK($F$5),SUMIFS('Données FDC déc 2021'!$R:$R,'Données FDC déc 2021'!$E:$E,Activation!P$9)/1000,IF(ISBLANK($J$5),SUMIFS('Données FDC déc 2021'!$R:$R,'Données FDC déc 2021'!$E:$E,Activation!P$9)/1000,SUMIFS('Données FDC déc 2021'!$R:$R,'Données FDC déc 2021'!$E:$E,Activation!P$9)/1000)))-1 -> -0.04806287816
B35: Encours de crédit (en K€) | C35: Montant | D35: =SUM(F35:P35) -> 14792000.02 | E35: =IF(ISBLANK($F$5),(SUMIFS('Données FDC déc 2021'!$S:$S,'Données FDC déc 2021'!$A:$A,Activation!$C$5))/1000,IF(ISBLANK($J$5),(SUMIFS('Données FDC déc 2021'!$S:$S,'Données FDC déc 2021'!$B:$B,Activation!$F$5))/1000,(SUMIFS('Données FDC déc 2021'!$S:$S,'Données FDC déc 2021'!$C:$C,Activation!$J$5))/1000)) -> 13880003.32 | F35: =IF(ISBLANK($F$5),(SUMIFS('Données FDC'!$S:$S,'Données FDC'!$A:$A,Activation!$C$5,'Données FDC'!$E:$E,Activation!F$9))/1000,IF(ISBLANK($J$5),(SUMIFS('Données FDC'!$S:$S,'Données FDC'!$B:$B,Activation!$F$5,'Données FDC'!$E:$E,Activation!F$9))/1000,(SUMIFS('Données FDC'!$S:$S,'Données FDC'!$C:$C,Activation!$J$5,'Données FDC'!$E:$E,Activation!F$9))/1000)) -> 11478639.43 | G35: =IF(ISBLANK($F$5),(SUMIFS('Données FDC'!$S:$S,'Données FDC'!$A:$A,Activation!$C$5,'Données FDC'!$E:$E,Activation!G$9))/1000,IF(ISBLANK($J$5),(SUMIFS('Données FDC'!$S:$S,'Données FDC'!$B:$B,Activation!$F$5,'Données FDC'!$E:$E,Activation!G$9))/1000,(SUMIFS('Données FDC'!$S:$S,'Données FDC'!$C:$C,Activation!$J$5,'Données FDC'!$E:$E,Activation!G$9))/1000)) -> 1211358.945 | H35: =IF(ISBLANK($F$5),(SUMIFS('Données FDC'!$S:$S,'Données FDC'!$A:$A,Activation!$C$5,'Données FDC'!$E:$E,Activation!H$9))/1000,IF(ISBLANK($J$5),(SUMIFS('Données FDC'!$S:$S,'Données FDC'!$B:$B,Activation!$F$5,'Données FDC'!$E:$E,Activation!H$9))/1000,(SUMIFS('Données FDC'!$S:$S,'Données FDC'!$C:$C,Activation!$J$5,'Données FDC'!$E:$E,Activation!H$9))/1000)) -> 997427.0495 | I35: =IF(ISBLANK($F$5),(SUMIFS('Données FDC'!$S:$S,'Données FDC'!$A:$A,Activation!$C$5,'Données FDC'!$E:$E,Activation!I$9))/1000,IF(ISBLANK($J$5),(SUMIFS('Données FDC'!$S:$S,'Données FDC'!$B:$B,Activation!$F$5,'Données FDC'!$E:$E,Activation!I$9))/1000,(SUMIFS('Données FDC'!$S:$S,'Données FDC'!$C:$C,Activation!$J$5,'Données FDC'!$E:$E,Activation!I$9))/1000)) -> 534144.9535 | J35: =IF(ISBLANK($F$5),(SUMIFS('Données FDC'!$S:$S,'Données FDC'!$A:$A,Activation!$C$5,'Données FDC'!$E:$E,Activation!J$9))/1000,IF(ISBLANK($J$5),(SUMIFS('Données FDC'!$S:$S,'Données FDC'!$B:$B,Activation!$F$5,'Données FDC'!$E:$E,Activation!J$9))/1000,(SUMIFS('Données FDC'!$S:$S,'Données FDC'!$C:$C,Activation!$J$5,'Données FDC'!$E:$E,Activation!J$9))/1000)) -> 539348.9627 | K35: =IF(ISBLANK($F$5),(SUMIFS('Données FDC'!$S:$S,'Données FDC'!$A:$A,Activation!$C$5,'Données FDC'!$E:$E,Activation!K$9))/1000,IF(ISBLANK($J$5),(SUMIFS('Données FDC'!$S:$S,'Données FDC'!$B:$B,Activation!$F$5,'Données FDC'!$E:$E,Activation!K$9))/1000,(SUMIFS('Données FDC'!$S:$S,'Données FDC'!$C:$C,Activation!$J$5,'Données FDC'!$E:$E,Activation!K$9))/1000)) -> 8033.81937 | L35: =IF(ISBLANK($F$5),(SUMIFS('Données FDC'!$S:$S,'Données FDC'!$A:$A,Activation!$C$5,'Données FDC'!$E:$E,Activation!L$9))/1000,IF(ISBLANK($J$5),(SUMIFS('Données FDC'!$S:$S,'Données FDC'!$B:$B,Activation!$F$5,'Données FDC'!$E:$E,Activation!L$9))/1000,(SUMIFS('Données FDC'!$S:$S,'Données FDC'!$C:$C,Activation!$J$5,'Données FDC'!$E:$E,Activation!L$9))/1000)) -> 13343.06066 | M35: =IF(ISBLANK($F$5),(SUMIFS('Données FDC'!$S:$S,'Données FDC'!$A:$A,Activation!$C$5,'Données FDC'!$E:$E,Activation!M$9))/1000,IF(ISBLANK($J$5),(SUMIFS('Données FDC'!$S:$S,'Données FDC'!$B:$B,Activation!$F$5,'Données FDC'!$E:$E,Activation!M$9))/1000,(SUMIFS('Données FDC'!$S:$S,'Données FDC'!$C:$C,Activation!$J$5,'Données FDC'!$E:$E,Activation!M$9))/1000)) -> 9703.80471
C36: Variation | D36: =D35/(IF(ISBLANK($F$5),SUMIFS('Données FDC déc 2021'!$S:$S,'Données FDC déc 2021'!$A:$A,Activation!$C$5)/1000,IF(ISBLANK($J$5),SUMIFS('Données FDC déc 2021'!$S:$S,'Données FDC déc 2021'!$B:$B,Activation!$F$5)/1000,SUMIFS('Données FDC déc 2021'!$S:$S,'Données FDC déc 2021'!$C:$C,Activation!$J$5)/1000)))-1 -> 0.06570579824 | F36: =F35/(IF(ISBLANK($F$5),SUMIFS('Données FDC déc 2021'!$S:$S,'Données FDC déc 2021'!$A:$A,Activation!$C$5,'Données FDC déc 2021'!$E:$E,Activation!F$9)/1000,IF(ISBLANK($J$5),SUMIFS('Données FDC déc 2021'!$S:$S,'Données FDC déc 2021'!$B:$B,Activation!$F$5,'Données FDC déc 2021'!$E:$E,Activation!F$9)/1000,SUMIFS('Données FDC déc 2021'!$S:$S,'Données FDC déc 2021'!$C:$C,Activation!$J$5,'Données FDC déc 2021'!$E:$E,Activation!F$9)/1000)))-1 -> 0.06701576285 | G36: =G35/(IF(ISBLANK($F$5),SUMIFS('Données FDC déc 2021'!$S:$S,'Données FDC déc 2021'!$A:$A,Activation!$C$5,'Données FDC déc 2021'!$E:$E,Activation!G$9)/1000,IF(ISBLANK($J$5),SUMIFS('Données FDC déc 2021'!$S:$S,'Données FDC déc 2021'!$B:$B,Activation!$F$5,'Données FDC déc 2021'!$E:$E,Activation!G$9)/1000,SUMIFS('Données FDC déc 2021'!$S:$S,'Données FDC déc 2021'!$C:$C,Activation!$J$5,'Données FDC déc 2021'!$E:$E,Activation!G$9)/1000)))-1 -> 0.07065464867 | H36: =H35/(IF(ISBLANK($F$5),SUMIFS('Données FDC déc 2021'!$S:$S,'Données FDC déc 2021'!$A:$A,Activation!$C$5,'Données FDC déc 2021'!$E:$E,Activation!H$9)/1000,IF(ISBLANK($J$5),SUMIFS('Données FDC déc 2021'!$S:$S,'Données FDC déc 2021'!$B:$B,Activation!$F$5,'Données FDC déc 2021'!$E:$E,Activation!H$9)/1000,SUMIFS('Données FDC déc 2021'!$S:$S,'Données FDC déc 2021'!$C:$C,Activation!$J$5,'Données FDC déc 2021'!$E:$E,Activation!H$9)/1000)))-1 -> 0.05355289353 | I36: =I35/(IF(ISBLANK($F$5),SUMIFS('Données FDC déc 2021'!$S:$S,'Données FDC déc 2021'!$A:$A,Activation!$C$5,'Données FDC déc 2021'!$E:$E,Activation!I$9)/1000,IF(ISBLANK($J$5),SUMIFS('Données FDC déc 2021'!$S:$S,'Données FDC déc 2021'!$B:$B,Activation!$F$5,'Données FDC déc 2021'!$E:$E,Activation!I$9)/1000,SUMIFS('Données FDC déc 2021'!$S:$S,'Données FDC déc 2021'!$C:$C,Activation!$J$5,'Données FDC déc 2021'!$E:$E,Activation!I$9)/1000)))-1 -> 0.01872055426 | J36: =J35/(IF(ISBLANK($F$5),SUMIFS('Données FDC déc 2021'!$S:$S,'Données FDC déc 2021'!$A:$A,Activation!$C$5,'Données FDC déc 2021'!$E:$E,Activation!J$9)/1000,IF(ISBLANK($J$5),SUMIFS('Données FDC déc 2021'!$S:$S,'Données FDC déc 2021'!$B:$B,Activation!$F$5,'Données FDC déc 2021'!$E:$E,Activation!J$9)/1000,SUMIFS('Données FDC déc 2021'!$S:$S,'Données FDC déc 2021'!$C:$C,Activation!$J$5,'Données FDC déc 2021'!$E:$E,Activation!J$9)/1000)))-1 -> 0.09820411897 | K36: =IFERROR(K35/(IF(ISBLANK($F$5),SUMIFS('Données FDC déc 2021'!$S:$S,'Données FDC déc 2021'!$A:$A,Activation!$C$5,'Données FDC déc 2021'!$E:$E,Activation!K$9)/1000,IF(ISBLANK($J$5),SUMIFS('Données FDC déc 2021'!$S:$S,'Données FDC déc 2021'!$B:$B,Activation!$F$5,'Données FDC déc 2021'!$E:$E,Activation!K$9)/1000,SUMIFS('Données FDC déc 2021'!$S:$S,'Données FDC déc 2021'!$C:$C,Activation!$J$5,'Données FDC déc 2021'!$E:$E,Activation!K$9)/1000)))-1,"-") -> 0.08036219106 | L36: =IFERROR(L35/(IF(ISBLANK($F$5),SUMIFS('Données FDC déc 2021'!$S:$S,'Données FDC déc 2021'!$A:$A,Activation!$C$5,'Données FDC déc 2021'!$E:$E,Activation!L$9)/1000,IF(ISBLANK($J$5),SUMIFS('Données FDC déc 2021'!$S:$S,'Données FDC déc 2021'!$B:$B,Activation!$F$5,'Données FDC déc 2021'!$E:$E,Activation!L$9)/1000,SUMIFS('Données FDC déc 2021'!$S:$S,'Données FDC déc 2021'!$C:$C,Activation!$J$5,'Données FDC déc 2021'!$E:$E,Activation!L$9)/1000)))-1,"-") -> 0.1365456964 | M36: =IFERROR(M35/(IF(ISBLANK($F$5),SUMIFS('Données FDC déc 2021'!$S:$S,'Données FDC déc 2021'!$A:$A,Activation!$C$5,'Données FDC déc 2021'!$E:$E,Activation!M$9)/1000,IF(ISBLANK($J$5),SUMIFS('Données FDC déc 2021'!$S:$S,'Données FDC déc 2021'!$B:$B,Activation!$F$5,'Données FDC déc 2021'!$E:$E,Activation!M$9)/1000,SUMIFS('Données FDC déc 2021'!$S:$S,'Données FDC déc 2021'!$C:$C,Activation!$J$5,'Données FDC déc 2021'!$E:$E,Activation!M$9)/1000)))-1,"-") -> 0.02812857356
C37: Variation CEGEE | D37: =(SUM('Données FDC'!$S:$S)/1000)/(SUM('Données FDC déc 2021'!$S:$S)/1000)-1 -> 0.06571263152 | F37: =IF(ISBLANK($F$5),SUMIFS('Données FDC'!$S:$S,'Données FDC'!$E:$E,Activation!F$9)/1000,IF(ISBLANK($J$5),SUMIFS('Données FDC'!$S:$S,'Données FDC'!$E:$E,Activation!F$9)/1000,SUMIFS('Données FDC'!$S:$S,'Données FDC'!$E:$E,Activation!F$9)/1000))/(IF(ISBLANK($F$5),SUMIFS('Données FDC déc 2021'!$S:$S,'Données FDC déc 2021'!$E:$E,Activation!F$9)/1000,IF(ISBLANK($J$5),SUMIFS('Données FDC déc 2021'!$S:$S,'Données FDC déc 2021'!$E:$E,Activation!F$9)/1000,SUMIFS('Données FDC déc 2021'!$S:$S,'Données FDC déc 2021'!$E:$E,Activation!F$9)/1000)))-1 -> 0.06701576285 | G37: =IF(ISBLANK($F$5),SUMIFS('Données FDC'!$S:$S,'Données FDC'!$E:$E,Activation!G$9)/1000,IF(ISBLANK($J$5),SUMIFS('Données FDC'!$S:$S,'Données FDC'!$E:$E,Activation!G$9)/1000,SUMIFS('Données FDC'!$S:$S,'Données FDC'!$E:$E,Activation!G$9)/1000))/(IF(ISBLANK($F$5),SUMIFS('Données FDC déc 2021'!$S:$S,'Données FDC déc 2021'!$E:$E,Activation!G$9)/1000,IF(ISBLANK($J$5),SUMIFS('Données FDC déc 2021'!$S:$S,'Données FDC déc 2021'!$E:$E,Activation!G$9)/1000,SUMIFS('Données FDC déc 2021'!$S:$S,'Données FDC déc 2021'!$E:$E,Activation!G$9)/1000)))-1 -> 0.07065464867 | H37: =IF(ISBLANK($F$5),SUMIFS('Données FDC'!$S:$S,'Données FDC'!$E:$E,Activation!H$9)/1000,IF(ISBLANK($J$5),SUMIFS('Données FDC'!$S:$S,'Données FDC'!$E:$E,Activation!H$9)/1000,SUMIFS('Données FDC'!$S:$S,'Données FDC'!$E:$E,Activation!H$9)/1000))/(IF(ISBLANK($F$5),SUMIFS('Données FDC déc 2021'!$S:$S,'Données FDC déc 2021'!$E:$E,Activation!H$9)/1000,IF(ISBLANK($J$5),SUMIFS('Données FDC déc 2021'!$S:$S,'Données FDC déc 2021'!$E:$E,Activation!H$9)/1000,SUMIFS('Données FDC déc 2021'!$S:$S,'Données FDC déc 2021'!$E:$E,Activation!H$9)/1000)))-1 -> 0.05355289353 | I37: =IF(ISBLANK($F$5),SUMIFS('Données FDC'!$S:$S,'Données FDC'!$E:$E,Activation!I$9)/1000,IF(ISBLANK($J$5),SUMIFS('Données FDC'!$S:$S,'Données FDC'!$E:$E,Activation!I$9)/1000,SUMIFS('Données FDC'!$S:$S,'Données FDC'!$E:$E,Activation!I$9)/1000))/(IF(ISBLANK($F$5),SUMIFS('Données FDC déc 2021'!$S:$S,'Données FDC déc 2021'!$E:$E,Activation!I$9)/1000,IF(ISBLANK($J$5),SUMIFS('Données FDC déc 2021'!$S:$S,'Données FDC déc 2021'!$E:$E,Activation!I$9)/1000,SUMIFS('Données FDC déc 2021'!$S:$S,'Données FDC déc 2021'!$E:$E,Activation!I$9)/1000)))-1 -> 0.01872055426 | J37: =IF(ISBLANK($F$5),SUMIFS('Données FDC'!$S:$S,'Données FDC'!$E:$E,Activation!J$9)/1000,IF(ISBLANK($J$5),SUMIFS('Données FDC'!$S:$S,'Données FDC'!$E:$E,Activation!J$9)/1000,SUMIFS('Données FDC'!$S:$S,'Données FDC'!$E:$E,Activation!J$9)/1000))/(IF(ISBLANK($F$5),SUMIFS('Données FDC déc 2021'!$S:$S,'Données FDC déc 2021'!$E:$E,Activation!J$9)/1000,IF(ISBLANK($J$5),SUMIFS('Données FDC déc 2021'!$S:$S,'Données FDC déc 2021'!$E:$E,Activation!J$9)/1000,SUMIFS('Données FDC déc 2021'!$S:$S,'Données FDC déc 2021'!$E:$E,Activation!J$9)/1000)))-1 -> 0.09820411897 | K37: =IF(ISBLANK($F$5),SUMIFS('Données FDC'!$S:$S,'Données FDC'!$E:$E,Activation!K$9)/1000,IF(ISBLANK($J$5),SUMIFS('Données FDC'!$S:$S,'Données FDC'!$E:$E,Activation!K$9)/1000,SUMIFS('Données FDC'!$S:$S,'Données FDC'!$E:$E,Activation!K$9)/1000))/(IF(ISBLANK($F$5),SUMIFS('Données FDC déc 2021'!$S:$S,'Données FDC déc 2021'!$E:$E,Activation!K$9)/1000,IF(ISBLANK($J$5),SUMIFS('Données FDC déc 2021'!$S:$S,'Données FDC déc 2021'!$E:$E,Activation!K$9)/1000,SUMIFS('Données FDC déc 2021'!$S:$S,'Données FDC déc 2021'!$E:$E,Activation!K$9)/1000)))-1 -> 0.08036219106 | L37: =IF(ISBLANK($F$5),SUMIFS('Données FDC'!$S:$S,'Données FDC'!$E:$E,Activation!L$9)/1000,IF(ISBLANK($J$5),SUMIFS('Données FDC'!$S:$S,'Données FDC'!$E:$E,Activation!L$9)/1000,SUMIFS('Données FDC'!$S:$S,'Données FDC'!$E:$E,Activation!L$9)/1000))/(IF(ISBLANK($F$5),SUMIFS('Données FDC déc 2021'!$S:$S,'Données FDC déc 2021'!$E:$E,Activation!L$9)/1000,IF(ISBLANK($J$5),SUMIFS('Données FDC déc 2021'!$S:$S,'Données FDC déc 2021'!$E:$E,Activation!L$9)/1000,SUMIFS('Données FDC déc 2021'!$S:$S,'Données FDC déc 2021'!$E:$E,Activation!L$9)/1000)))-1 -> 0.1365456964 | M37: =IF(ISBLANK($F$5),SUMIFS('Données FDC'!$S:$S,'Données FDC'!$E:$E,Activation!M$9)/1000,IF(ISBLANK($J$5),SUMIFS('Données FDC'!$S:$S,'Données FDC'!$E:$E,Activation!M$9)/1000,SUMIFS('Données FDC'!$S:$S,'Données FDC'!$E:$E,Activation!M$9)/1000))/(IF(ISBLANK($F$5),SUMIFS('Données FDC déc 2021'!$S:$S,'Données FDC déc 2021'!$E:$E,Activation!M$9)/1000,IF(ISBLANK($J$5),SUMIFS('Données FDC déc 2021'!$S:$S,'Données FDC déc 2021'!$E:$E,Activation!M$9)/1000,SUMIFS('Données FDC déc 2021'!$S:$S,'Données FDC déc 2021'!$E:$E,Activation!M$9)/1000)))-1 -> 0.02812857356
B38: Détention Univers Banca | C38: Nombre détenteurs | D38: =SUM(F38:P38) -> 510934 | E38: =IF(ISBLANK($F$5),SUMIFS('Données FDC déc 2021'!$T:$T,'Données FDC déc 2021'!$A:$A,Activation!$C$5),IF(ISBLANK($J$5),SUMIFS('Données FDC déc 2021'!$T:$T,'Données FDC déc 2021'!$B:$B,Activation!$F$5),SUMIFS('Données FDC déc 2021'!$T:$T,'Données FDC déc 2021'!$C:$C,Activation!$J$5))) -> 502303 | F38: =IF(ISBLANK($F$5),SUMIFS('Données FDC'!$T:$T,'Données FDC'!$A:$A,Activation!$C$5,'Données FDC'!$E:$E,Activation!F$9),IF(ISBLANK($J$5),SUMIFS('Données FDC'!$T:$T,'Données FDC'!$B:$B,Activation!$F$5,'Données FDC'!$E:$E,Activation!F$9),SUMIFS('Données FDC'!$T:$T,'Données FDC'!$C:$C,Activation!$J$5,'Données FDC'!$E:$E,Activation!F$9))) -> 282614 | G38: =IF(ISBLANK($F$5),SUMIFS('Données FDC'!$T:$T,'Données FDC'!$A:$A,Activation!$C$5,'Données FDC'!$E:$E,Activation!G$9),IF(ISBLANK($J$5),SUMIFS('Données FDC'!$T:$T,'Données FDC'!$B:$B,Activation!$F$5,'Données FDC'!$E:$E,Activation!G$9),SUMIFS('Données FDC'!$T:$T,'Données FDC'!$C:$C,Activation!$J$5,'Données FDC'!$E:$E,Activation!G$9))) -> 113687 | H38: =IF(ISBLANK($F$5),SUMIFS('Données FDC'!$T:$T,'Données FDC'!$A:$A,Activation!$C$5,'Données FDC'!$E:$E,Activation!H$9),IF(ISBLANK($J$5),SUMIFS('Données FDC'!$T:$T,'Données FDC'!$B:$B,Activation!$F$5,'Données FDC'!$E:$E,Activation!H$9),SUMIFS('Données FDC'!$T:$T,'Données FDC'!$C:$C,Activation!$J$5,'Données FDC'!$E:$E,Activation!H$9))) -> 26976 | I38: =IF(ISBLANK($F$5),SUMIFS('Données FDC'!$T:$T,'Données FDC'!$A:$A,Activation!$C$5,'Données FDC'!$E:$E,Activation!I$9),IF(ISBLANK($J$5),SUMIFS('Données FDC'!$T:$T,'Données FDC'!$B:$B,Activation!$F$5,'Données FDC'!$E:$E,Activation!I$9),SUMIFS('Données FDC'!$T:$T,'Données FDC'!$C:$C,Activation!$J$5,'Données FDC'!$E:$E,Activation!I$9))) -> 12496 | J38: =IF(ISBLANK($F$5),SUMIFS('Données FDC'!$T:$T,'Données FDC'!$A:$A,Activation!$C$5,'Données FDC'!$E:$E,Activation!J$9),IF(ISBLANK($J$5),SUMIFS('Données FDC'!$T:$T,'Données FDC'!$B:$B,Activation!$F$5,'Données FDC'!$E:$E,Activation!J$9),SUMIFS('Données FDC'!$T:$T,'Données FDC'!$C:$C,Activation!$J$5,'Données FDC'!$E:$E,Activation!J$9))) -> 60613 | K38: =IF(ISBLANK($F$5),SUMIFS('Données FDC'!$T:$T,'Données FDC'!$A:$A,Activation!$C$5,'Données FDC'!$E:$E,Activation!K$9),IF(ISBLANK($J$5),SUMIFS('Données FDC'!$T:$T,'Données FDC'!$B:$B,Activation!$F$5,'Données FDC'!$E:$E,Activation!K$9),SUMIFS('Données FDC'!$T:$T,'Données FDC'!$C:$C,Activation!$J$5,'Données FDC'!$E:$E,Activation!K$9))) -> 11944 | L38: =IF(ISBLANK($F$5),SUMIFS('Données FDC'!$T:$T,'Données FDC'!$A:$A,Activation!$C$5,'Données FDC'!$E:$E,Activation!L$9),IF(ISBLANK($J$5),SUMIFS('Données FDC'!$T:$T,'Données FDC'!$B:$B,Activation!$F$5,'Données FDC'!$E:$E,Activation!L$9),SUMIFS('Données FDC'!$T:$T,'Données FDC'!$C:$C,Activation!$J$5,'Données FDC'!$E:$E,Activation!L$9))) -> 601 | M38: =IF(ISBLANK($F$5),SUMIFS('Données FDC'!$T:$T,'Données FDC'!$A:$A,Activation!$C$5,'Données FDC'!$E:$E,Activation!M$9),IF(ISBLANK($J$5),SUMIFS('Données FDC'!$T:$T,'Données FDC'!$B:$B,Activation!$F$5,'Données FDC'!$E:$E,Activation!M$9),SUMIFS('Données FDC'!$T:$T,'Données FDC'!$C:$C,Activation!$J$5,'Données FDC'!$E:$E,Activation!M$9))) -> 349 | N38: =IF(ISBLANK($F$5),SUMIFS('Données FDC'!$T:$T,'Données FDC'!$A:$A,Activation!$C$5,'Données FDC'!$E:$E,Activation!N$9),IF(ISBLANK($J$5),SUMIFS('Données FDC'!$T:$T,'Données FDC'!$B:$B,Activation!$F$5,'Données FDC'!$E:$E,Activation!N$9),SUMIFS('Données FDC'!$T:$T,'Données FDC'!$C:$C,Activation!$J$5,'Données FDC'!$E:$E,Activation!N$9))) -> 1639 | O38: =IF(ISBLANK($F$5),SUMIFS('Données FDC'!$T:$T,'Données FDC'!$A:$A,Activation!$C$5,'Données FDC'!$E:$E,Activation!O$9),IF(ISBLANK($J$5),SUMIFS('Données FDC'!$T:$T,'Données FDC'!$B:$B,Activation!$F$5,'Données FDC'!$E:$E,Activation!O$9),SUMIFS('Données FDC'!$T:$T,'Données FDC'!$C:$C,Activation!$J$5,'Données FDC'!$E:$E,Activation!O$9))) -> 0 | P38: =IF(ISBLANK($F$5),SUMIFS('Données FDC'!$T:$T,'Données FDC'!$A:$A,Activation!$C$5,'Données FDC'!$E:$E,Activation!P$9),IF(ISBLANK($J$5),SUMIFS('Données FDC'!$T:$T,'Données FDC'!$B:$B,Activation!$F$5,'Données FDC'!$E:$E,Activation!P$9),SUMIFS('Données FDC'!$T:$T,'Données FDC'!$C:$C,Activation!$J$5,'Données FDC'!$E:$E,Activation!P$9))) -> 15
C39: % détenteurs | D39: =D38/D$10 -> 0.381546306 | E39: =E38/E$10 -> 0.366596092 | F39: =F38/IF(ISBLANK($F$5),SUMIFS('Données FDC'!$I:$I,'Données FDC'!$A:$A,Activation!$C$5,'Données FDC'!$E:$E,Activation!F$9),IF(ISBLANK($J$5),SUMIFS('Données FDC'!$I:$I,'Données FDC'!$B:$B,Activation!$F$5,'Données FDC'!$E:$E,Activation!F$9),SUMIFS('Données FDC'!$I:$I,'Données FDC'!$C:$C,Activation!$J$5,'Données FDC'!$E:$E,Activation!F$9))) -> 0.9599301657 | G39: =G38/IF(ISBLANK($F$5),SUMIFS('Données FDC'!$I:$I,'Données FDC'!$A:$A,Activation!$C$5,'Données FDC'!$E:$E,Activation!G$9),IF(ISBLANK($J$5),SUMIFS('Données FDC'!$I:$I,'Données FDC'!$B:$B,Activation!$F$5,'Données FDC'!$E:$E,Activation!G$9),SUMIFS('Données FDC'!$I:$I,'Données FDC'!$C:$C,Activation!$J$5,'Données FDC'!$E:$E,Activation!G$9))) -> 0.6996338349 | H39: =H38/IF(ISBLANK($F$5),SUMIFS('Données FDC'!$I:$I,'Données FDC'!$A:$A,Activation!$C$5,'Données FDC'!$E:$E,Activation!H$9),IF(ISBLANK($J$5),SUMIFS('Données FDC'!$I:$I,'Données FDC'!$B:$B,Activation!$F$5,'Données FDC'!$E:$E,Activation!H$9),SUMIFS('Données FDC'!$I:$I,'Données FDC'!$C:$C,Activation!$J$5,'Données FDC'!$E:$E,Activation!H$9))) -> 0.1825490276 | I39: =I38/IF(ISBLANK($F$5),SUMIFS('Données FDC'!$I:$I,'Données FDC'!$A:$A,Activation!$C$5,'Données FDC'!$E:$E,Activation!I$9),IF(ISBLANK($J$5),SUMIFS('Données FDC'!$I:$I,'Données FDC'!$B:$B,Activation!$F$5,'Données FDC'!$E:$E,Activation!I$9),SUMIFS('Données FDC'!$I:$I,'Données FDC'!$C:$C,Activation!$J$5,'Données FDC'!$E:$E,Activation!I$9))) -> 0.0415719908 | J39: =J38/IF(ISBLANK($F$5),SUMIFS('Données FDC'!$I:$I,'Données FDC'!$A:$A,Activation!$C$5,'Données FDC'!$E:$E,Activation!J$9),IF(ISBLANK($J$5),SUMIFS('Données FDC'!$I:$I,'Données FDC'!$B:$B,Activation!$F$5,'Données FDC'!$E:$E,Activation!J$9),SUMIFS('Données FDC'!$I:$I,'Données FDC'!$C:$C,Activation!$J$5,'Données FDC'!$E:$E,Activation!J$9))) -> 0.9760076003 | K39: =K38/IF(ISBLANK($F$5),SUMIFS('Données FDC'!$I:$I,'Données FDC'!$A:$A,Activation!$C$5,'Données FDC'!$E:$E,Activation!K$9),IF(ISBLANK($J$5),SUMIFS('Données FDC'!$I:$I,'Données FDC'!$B:$B,Activation!$F$5,'Données FDC'!$E:$E,Activation!K$9),SUMIFS('Données FDC'!$I:$I,'Données FDC'!$C:$C,Activation!$J$5,'Données FDC'!$E:$E,Activation!K$9))) -> 0.7449635128 | L39: =L38/IF(ISBLANK($F$5),SUMIFS('Données FDC'!$I:$I,'Données FDC'!$A:$A,Activation!$C$5,'Données FDC'!$E:$E,Activation!L$9),IF(ISBLANK($J$5),SUMIFS('Données FDC'!$I:$I,'Données FDC'!$B:$B,Activation!$F$5,'Données FDC'!$E:$E,Activation!L$9),SUMIFS('Données FDC'!$I:$I,'Données FDC'!$C:$C,Activation!$J$5,'Données FDC'!$E:$E,Activation!L$9))) -> 0.07502184496 | M39: =M38/IF(ISBLANK($F$5),SUMIFS('Données FDC'!$I:$I,'Données FDC'!$A:$A,Activation!$C$5,'Données FDC'!$E:$E,Activation!M$9),IF(ISBLANK($J$5),SUMIFS('Données FDC'!$I:$I,'Données FDC'!$B:$B,Activation!$F$5,'Données FDC'!$E:$E,Activation!M$9),SUMIFS('Données FDC'!$I:$I,'Données FDC'!$C:$C,Activation!$J$5,'Données FDC'!$E:$E,Activation!M$9))) -> 0.005711293305 | N39: =N38/IF(ISBLANK($F$5),SUMIFS('Données FDC'!$I:$I,'Données FDC'!$A:$A,Activation!$C$5,'Données FDC'!$E:$E,Activation!N$9),IF(ISBLANK($J$5),SUMIFS('Données FDC'!$I:$I,'Données FDC'!$B:$B,Activation!$F$5,'Données FDC'!$E:$E,Activation!N$9),SUMIFS('Données FDC'!$I:$I,'Données FDC'!$C:$C,Activation!$J$5,'Données FDC'!$E:$E,Activation!N$9))) -> 0.07323830377 | O39: =O38/IF(ISBLANK($F$5),SUMIFS('Données FDC'!$I:$I,'Données FDC'!$A:$A,Activation!$C$5,'Données FDC'!$E:$E,Activation!O$9),IF(ISBLANK($J$5),SUMIFS('Données FDC'!$I:$I,'Données FDC'!$B:$B,Activation!$F$5,'Données FDC'!$E:$E,Activation!O$9),SUMIFS('Données FDC'!$I:$I,'Données FDC'!$C:$C,Activation!$J$5,'Données FDC'!$E:$E,Activation!O$9))) -> 0 | P39: =P38/IF(ISBLANK($F$5),SUMIFS('Données FDC'!$I:$I,'Données FDC'!$A:$A,Activation!$C$5,'Données FDC'!$E:$E,Activation!P$9),IF(ISBLANK($J$5),SUMIFS('Données FDC'!$I:$I,'Données FDC'!$B:$B,Activation!$F$5,'Données FDC'!$E:$E,Activation!P$9),SUMIFS('Données FDC'!$I:$I,'Données FDC'!$C:$C,Activation!$J$5,'Données FDC'!$E:$E,Activation!P$9))) -> 9.572248138e-05
C40: % détenteurs CEGEE | D40: =SUM('Données FDC'!$T:$T)/SUM('Données FDC'!$F:$F) -> 0.381546306 | E40: =SUM('Données FDC déc 2021'!$T:$T)/SUM('Données FDC déc 2021'!$F:$F) -> 0.366596092 | F40: =SUMIF('Données FDC'!$E:$E,Activation!F$9,'Données FDC'!$T:$T)/SUMIF('Données FDC'!$E:$E,Activation!F$9,'Données FDC'!$I:$I) -> 0.9599301657 | G40: =SUMIF('Données FDC'!$E:$E,Activation!G$9,'Données FDC'!$T:$T)/SUMIF('Données FDC'!$E:$E,Activation!G$9,'Données FDC'!$I:$I) -> 0.6996338349 | H40: =SUMIF('Données FDC'!$E:$E,Activation!H$9,'Données FDC'!$T:$T)/SUMIF('Données FDC'!$E:$E,Activation!H$9,'Données FDC'!$I:$I) -> 0.1825490276 | I40: =SUMIF('Données FDC'!$E:$E,Activation!I$9,'Données FDC'!$T:$T)/SUMIF('Données FDC'!$E:$E,Activation!I$9,'Données FDC'!$I:$I) -> 0.0415719908 | J40: =SUMIF('Données FDC'!$E:$E,Activation!J$9,'Données FDC'!$T:$T)/SUMIF('Données FDC'!$E:$E,Activation!J$9,'Données FDC'!$I:$I) -> 0.9760076003 | K40: =SUMIF('Données FDC'!$E:$E,Activation!K$9,'Données FDC'!$T:$T)/SUMIF('Données FDC'!$E:$E,Activation!K$9,'Données FDC'!$I:$I) -> 0.7449635128 | L40: =SUMIF('Données FDC'!$E:$E,Activation!L$9,'Données FDC'!$T:$T)/SUMIF('Données FDC'!$E:$E,Activation!L$9,'Données FDC'!$I:$I) -> 0.07502184496 | M40: =SUMIF('Données FDC'!$E:$E,Activation!M$9,'Données FDC'!$T:$T)/SUMIF('Données FDC'!$E:$E,Activation!M$9,'Données FDC'!$I:$I) -> 0.005711293305 | N40: =SUMIF('Données FDC'!$E:$E,Activation!N$9,'Données FDC'!$T:$T)/SUMIF('Données FDC'!$E:$E,Activation!N$9,'Données FDC'!$I:$I) -> 0.07323830377 | O40: =SUMIF('Données FDC'!$E:$E,Activation!O$9,'Données FDC'!$T:$T)/SUMIF('Données FDC'!$E:$E,Activation!O$9,'Données FDC'!$I:$I) -> 0 | P40: =SUMIF('Données FDC'!$E:$E,Activation!P$9,'Données FDC'!$T:$T)/SUMIF('Données FDC'!$E:$E,Activation!P$9,'Données FDC'!$I:$I) -> 9.572248138e-05
B41: Détention Univers Crédit | C41: Nombre détenteurs | D41: =SUM(F41:P41) -> 277841 | E41: =IF(ISBLANK($F$5),SUMIFS('Données FDC déc 2021'!$W:$W,'Données FDC déc 2021'!$A:$A,Activation!$C$5),IF(ISBLANK($J$5),SUMIFS('Données FDC déc 2021'!$W:$W,'Données FDC déc 2021'!$B:$B,Activation!$F$5),SUMIFS('Données FDC déc 2021'!$W:$W,'Données FDC déc 2021'!$C:$C,Activation!$J$5))) -> 274304 | F41: =IF(ISBLANK($F$5),SUMIFS('Données FDC'!$W:$W,'Données FDC'!$A:$A,Activation!$C$5,'Données FDC'!$E:$E,Activation!F$9),IF(ISBLANK($J$5),SUMIFS('Données FDC'!$W:$W,'Données FDC'!$B:$B,Activation!$F$5,'Données FDC'!$E:$E,Activation!F$9),SUMIFS('Données FDC'!$W:$W,'Données FDC'!$C:$C,Activation!$J$5,'Données FDC'!$E:$E,Activation!F$9))) -> 192275 | G41: =IF(ISBLANK($F$5),SUMIFS('Données FDC'!$W:$W,'Données FDC'!$A:$A,Activation!$C$5,'Données FDC'!$E:$E,Activation!G$9),IF(ISBLANK($J$5),SUMIFS('Données FDC'!$W:$W,'Données FDC'!$B:$B,Activation!$F$5,'Données FDC'!$E:$E,Activation!G$9),SUMIFS('Données FDC'!$W:$W,'Données FDC'!$C:$C,Activation!$J$5,'Données FDC'!$E:$E,Activation!G$9))) -> 30067 | H41: =IF(ISBLANK($F$5),SUMIFS('Données FDC'!$W:$W,'Données FDC'!$A:$A,Activation!$C$5,'Données FDC'!$E:$E,Activation!H$9),IF(ISBLANK($J$5),SUMIFS('Données FDC'!$W:$W,'Données FDC'!$B:$B,Activation!$F$5,'Données FDC'!$E:$E,Activation!H$9),SUMIFS('Données FDC'!$W:$W,'Données FDC'!$C:$C,Activation!$J$5,'Données FDC'!$E:$E,Activation!H$9))) -> 19211 | I41: =IF(ISBLANK($F$5),SUMIFS('Données FDC'!$W:$W,'Données FDC'!$A:$A,Activation!$C$5,'Données FDC'!$E:$E,Activation!I$9),IF(ISBLANK($J$5),SUMIFS('Données FDC'!$W:$W,'Données FDC'!$B:$B,Activation!$F$5,'Données FDC'!$E:$E,Activation!I$9),SUMIFS('Données FDC'!$W:$W,'Données FDC'!$C:$C,Activation!$J$5,'Données FDC'!$E:$E,Activation!I$9))) -> 17096 | J41: =IF(ISBLANK($F$5),SUMIFS('Données FDC'!$W:$W,'Données FDC'!$A:$A,Activation!$C$5,'Données FDC'!$E:$E,Activation!J$9),IF(ISBLANK($J$5),SUMIFS('Données FDC'!$W:$W,'Données FDC'!$B:$B,Activation!$F$5,'Données FDC'!$E:$E,Activation!J$9),SUMIFS('Données FDC'!$W:$W,'Données FDC'!$C:$C,Activation!$J$5,'Données FDC'!$E:$E,Activation!J$9))) -> 17777 | K41: =IF(ISBLANK($F$5),SUMIFS('Données FDC'!$W:$W,'Données FDC'!$A:$A,Activation!$C$5,'Données FDC'!$E:$E,Activation!K$9),IF(ISBLANK($J$5),SUMIFS('Données FDC'!$W:$W,'Données FDC'!$B:$B,Activation!$F$5,'Données FDC'!$E:$E,Activation!K$9),SUMIFS('Données FDC'!$W:$W,'Données FDC'!$C:$C,Activation!$J$5,'Données FDC'!$E:$E,Activation!K$9))) -> 338 | L41: =IF(ISBLANK($F$5),SUMIFS('Données FDC'!$W:$W,'Données FDC'!$A:$A,Activation!$C$5,'Données FDC'!$E:$E,Activation!L$9),IF(ISBLANK($J$5),SUMIFS('Données FDC'!$W:$W,'Données FDC'!$B:$B,Activation!$F$5,'Données FDC'!$E:$E,Activation!L$9),SUMIFS('Données FDC'!$W:$W,'Données FDC'!$C:$C,Activation!$J$5,'Données FDC'!$E:$E,Activation!L$9))) -> 491 | M41: =IF(ISBLANK($F$5),SUMIFS('Données FDC'!$W:$W,'Données FDC'!$A:$A,Activation!$C$5,'Données FDC'!$E:$E,Activation!M$9),IF(ISBLANK($J$5),SUMIFS('Données FDC'!$W:$W,'Données FDC'!$B:$B,Activation!$F$5,'Données FDC'!$E:$E,Activation!M$9),SUMIFS('Données FDC'!$W:$W,'Données FDC'!$C:$C,Activation!$J$5,'Données FDC'!$E:$E,Activation!M$9))) -> 586
C42: % détenteurs | D42: =D41/IF(ISBLANK($F$5),SUMIFS('Données FDC'!$J:$J,'Données FDC'!$A:$A,Activation!$C$5),IF(ISBLANK($J$5),SUMIFS('Données FDC'!$J:$J,'Données FDC'!$B:$B,Activation!$F$5),SUMIFS('Données FDC'!$J:$J,'Données FDC'!$C:$C,Activation!$J$5))) -> 0.2349656441 | E42: =E41/IF(ISBLANK($F$5),SUMIFS('Données FDC déc 2021'!$J:$J,'Données FDC déc 2021'!$A:$A,Activation!$C$5),IF(ISBLANK($J$5),SUMIFS('Données FDC déc 2021'!$J:$J,'Données FDC déc 2021'!$B:$B,Activation!$F$5),SUMIFS('Données FDC déc 2021'!$J:$J,'Données FDC déc 2021'!$C:$C,Activation!$J$5))) -> 0.2267201927 | F42: =F41/IF(ISBLANK($F$5),SUMIFS('Données FDC'!$J:$J,'Données FDC'!$A:$A,Activation!$C$5,'Données FDC'!$E:$E,Activation!F$9),IF(ISBLANK($J$5),SUMIFS('Données FDC'!$J:$J,'Données FDC'!$B:$B,Activation!$F$5,'Données FDC'!$E:$E,Activation!F$9),SUMIFS('Données FDC'!$J:$J,'Données FDC'!$C:$C,Activation!$J$5,'Données FDC'!$E:$E,Activation!F$9))) -> 0.6530836144 | G42: =G41/IF(ISBLANK($F$5),SUMIFS('Données FDC'!$J:$J,'Données FDC'!$A:$A,Activation!$C$5,'Données FDC'!$E:$E,Activation!G$9),IF(ISBLANK($J$5),SUMIFS('Données FDC'!$J:$J,'Données FDC'!$B:$B,Activation!$F$5,'Données FDC'!$E:$E,Activation!G$9),SUMIFS('Données FDC'!$J:$J,'Données FDC'!$C:$C,Activation!$J$5,'Données FDC'!$E:$E,Activation!G$9))) -> 0.1850333856 | H42: =H41/IF(ISBLANK($F$5),SUMIFS('Données FDC'!$J:$J,'Données FDC'!$A:$A,Activation!$C$5,'Données FDC'!$E:$E,Activation!H$9),IF(ISBLANK($J$5),SUMIFS('Données FDC'!$J:$J,'Données FDC'!$B:$B,Activation!$F$5,'Données FDC'!$E:$E,Activation!H$9),SUMIFS('Données FDC'!$J:$J,'Données FDC'!$C:$C,Activation!$J$5,'Données FDC'!$E:$E,Activation!H$9))) -> 0.1300025715 | I42: =I41/IF(ISBLANK($F$5),SUMIFS('Données FDC'!$J:$J,'Données FDC'!$A:$A,Activation!$C$5,'Données FDC'!$E:$E,Activation!I$9),IF(ISBLANK($J$5),SUMIFS('Données FDC'!$J:$J,'Données FDC'!$B:$B,Activation!$F$5,'Données FDC'!$E:$E,Activation!I$9),SUMIFS('Données FDC'!$J:$J,'Données FDC'!$C:$C,Activation!$J$5,'Données FDC'!$E:$E,Activation!I$9))) -> 0.05687538051 | J42: =J41/IF(ISBLANK($F$5),SUMIFS('Données FDC'!$J:$J,'Données FDC'!$A:$A,Activation!$C$5,'Données FDC'!$E:$E,Activation!J$9),IF(ISBLANK($J$5),SUMIFS('Données FDC'!$J:$J,'Données FDC'!$B:$B,Activation!$F$5,'Données FDC'!$E:$E,Activation!J$9),SUMIFS('Données FDC'!$J:$J,'Données FDC'!$C:$C,Activation!$J$5,'Données FDC'!$E:$E,Activation!J$9))) -> 0.3088858771 | K42: =K41/IF(ISBLANK($F$5),SUMIFS('Données FDC'!$J:$J,'Données FDC'!$A:$A,Activation!$C$5,'Données FDC'!$E:$E,Activation!K$9),IF(ISBLANK($J$5),SUMIFS('Données FDC'!$J:$J,'Données FDC'!$B:$B,Activation!$F$5,'Données FDC'!$E:$E,Activation!K$9),SUMIFS('Données FDC'!$J:$J,'Données FDC'!$C:$C,Activation!$J$5,'Données FDC'!$E:$E,Activation!K$9))) -> 0.0247292947 | L42: =L41/IF(ISBLANK($F$5),SUMIFS('Données FDC'!$J:$J,'Données FDC'!$A:$A,Activation!$C$5,'Données FDC'!$E:$E,Activation!L$9),IF(ISBLANK($J$5),SUMIFS('Données FDC'!$J:$J,'Données FDC'!$B:$B,Activation!$F$5,'Données FDC'!$E:$E,Activation!L$9),SUMIFS('Données FDC'!$J:$J,'Données FDC'!$C:$C,Activation!$J$5,'Données FDC'!$E:$E,Activation!L$9))) -> 0.09823929572 | M42: =M41/IF(ISBLANK($F$5),SUMIFS('Données FDC'!$J:$J,'Données FDC'!$A:$A,Activation!$C$5,'Données FDC'!$E:$E,Activation!M$9),IF(ISBLANK($J$5),SUMIFS('Données FDC'!$J:$J,'Données FDC'!$B:$B,Activation!$F$5,'Données FDC'!$E:$E,Activation!M$9),SUMIFS('Données FDC'!$J:$J,'Données FDC'!$C:$C,Activation!$J$5,'Données FDC'!$E:$E,Activation!M$9))) -> 0.01323187391
C43: % détenteurs CEGEE | D43: =SUM('Données FDC'!$W:$W)/SUM('Données FDC'!$J:$J) -> 0.2349656441 | E43: =SUM('Données FDC déc 2021'!$W:$W)/SUM('Données FDC déc 2021'!$J:$J) -> 0.2267201927 | F43: =SUMIF('Données FDC'!$E:$E,Activation!F$9,'Données FDC'!$W:$W)/SUMIF('Données FDC'!$E:$E,Activation!F$9,'Données FDC'!$J:$J) -> 0.6530836144 | G43: =SUMIF('Données FDC'!$E:$E,Activation!G$9,'Données FDC'!$W:$W)/SUMIF('Données FDC'!$E:$E,Activation!G$9,'Données FDC'!$J:$J) -> 0.1850333856 | H43: =SUMIF('Données FDC'!$E:$E,Activation!H$9,'Données FDC'!$W:$W)/SUMIF('Données FDC'!$E:$E,Activation!H$9,'Données FDC'!$J:$J) -> 0.1300025715 | I43: =SUMIF('Données FDC'!$E:$E,Activation!I$9,'Données FDC'!$W:$W)/SUMIF('Données FDC'!$E:$E,Activation!I$9,'Données FDC'!$J:$J) -> 0.05687538051 | J43: =SUMIF('Données FDC'!$E:$E,Activation!J$9,'Données FDC'!$W:$W)/SUMIF('Données FDC'!$E:$E,Activation!J$9,'Données FDC'!$J:$J) -> 0.3088858771 | K43: =SUMIF('Données FDC'!$E:$E,Activation!K$9,'Données FDC'!$W:$W)/SUMIF('Données FDC'!$E:$E,Activation!K$9,'Données FDC'!$J:$J) -> 0.0247292947 | L43: =SUMIF('Données FDC'!$E:$E,Activation!L$9,'Données FDC'!$W:$W)/SUMIF('Données FDC'!$E:$E,Activation!L$9,'Données FDC'!$J:$J) -> 0.09823929572 | M43: =SUMIF('Données FDC'!$E:$E,Activation!M$9,'Données FDC'!$W:$W)/SUMIF('Données FDC'!$E:$E,Activation!M$9,'Données FDC'!$J:$J) -> 0.01323187391
B44: Détention Univers Epargne Liquide | C44: Nombre détenteurs | D44: =SUM(F44:P44) -> 768298 | E44: =IF(ISBLANK($F$5),SUMIFS('Données FDC déc 2021'!$U:$U,'Données FDC déc 2021'!$A:$A,Activation!$C$5),IF(ISBLANK($J$5),SUMIFS('Données FDC déc 2021'!$U:$U,'Données FDC déc 2021'!$B:$B,Activation!$F$5),SUMIFS('Données FDC déc 2021'!$U:$U,'Données FDC déc 2021'!$C:$C,Activation!$J$5))) -> 779365 | F44: =IF(ISBLANK($F$5),SUMIFS('Données FDC'!$U:$U,'Données FDC'!$A:$A,Activation!$C$5,'Données FDC'!$E:$E,Activation!F$9),IF(ISBLANK($J$5),SUMIFS('Données FDC'!$U:$U,'Données FDC'!$B:$B,Activation!$F$5,'Données FDC'!$E:$E,Activation!F$9),SUMIFS('Données FDC'!$U:$U,'Données FDC'!$C:$C,Activation!$J$5,'Données FDC'!$E:$E,Activation!F$9))) -> 255911 | G44: =IF(ISBLANK($F$5),SUMIFS('Données FDC'!$U:$U,'Données FDC'!$A:$A,Activation!$C$5,'Données FDC'!$E:$E,Activation!G$9),IF(ISBLANK($J$5),SUMIFS('Données FDC'!$U:$U,'Données FDC'!$B:$B,Activation!$F$5,'Données FDC'!$E:$E,Activation!G$9),SUMIFS('Données FDC'!$U:$U,'Données FDC'!$C:$C,Activation!$J$5,'Données FDC'!$E:$E,Activation!G$9))) -> 78937 | H44: =IF(ISBLANK($F$5),SUMIFS('Données FDC'!$U:$U,'Données FDC'!$A:$A,Activation!$C$5,'Données FDC'!$E:$E,Activation!H$9),IF(ISBLANK($J$5),SUMIFS('Données FDC'!$U:$U,'Données FDC'!$B:$B,Activation!$F$5,'Données FDC'!$E:$E,Activation!H$9),SUMIFS('Données FDC'!$U:$U,'Données FDC'!$C:$C,Activation!$J$5,'Données FDC'!$E:$E,Activation!H$9))) -> 134243 | I44: =IF(ISBLANK($F$5),SUMIFS('Données FDC'!$U:$U,'Données FDC'!$A:$A,Activation!$C$5,'Données FDC'!$E:$E,Activation!I$9),IF(ISBLANK($J$5),SUMIFS('Données FDC'!$U:$U,'Données FDC'!$B:$B,Activation!$F$5,'Données FDC'!$E:$E,Activation!I$9),SUMIFS('Données FDC'!$U:$U,'Données FDC'!$C:$C,Activation!$J$5,'Données FDC'!$E:$E,Activation!I$9))) -> 148189 | J44: =IF(ISBLANK($F$5),SUMIFS('Données FDC'!$U:$U,'Données FDC'!$A:$A,Activation!$C$5,'Données FDC'!$E:$E,Activation!J$9),IF(ISBLANK($J$5),SUMIFS('Données FDC'!$U:$U,'Données FDC'!$B:$B,Activation!$F$5,'Données FDC'!$E:$E,Activation!J$9),SUMIFS('Données FDC'!$U:$U,'Données FDC'!$C:$C,Activation!$J$5,'Données FDC'!$E:$E,Activation!J$9))) -> 52061 | K44: =IF(ISBLANK($F$5),SUMIFS('Données FDC'!$U:$U,'Données FDC'!$A:$A,Activation!$C$5,'Données FDC'!$E:$E,Activation!K$9),IF(ISBLANK($J$5),SUMIFS('Données FDC'!$U:$U,'Données FDC'!$B:$B,Activation!$F$5,'Données FDC'!$E:$E,Activation!K$9),SUMIFS('Données FDC'!$U:$U,'Données FDC'!$C:$C,Activation!$J$5,'Données FDC'!$E:$E,Activation!K$9))) -> 1296 | L44: =IF(ISBLANK($F$5),SUMIFS('Données FDC'!$U:$U,'Données FDC'!$A:$A,Activation!$C$5,'Données FDC'!$E:$E,Activation!L$9),IF(ISBLANK($J$5),SUMIFS('Données FDC'!$U:$U,'Données FDC'!$B:$B,Activation!$F$5,'Données FDC'!$E:$E,Activation!L$9),SUMIFS('Données FDC'!$U:$U,'Données FDC'!$C:$C,Activation!$J$5,'Données FDC'!$E:$E,Activation!L$9))) -> 7765 | M44: =IF(ISBLANK($F$5),SUMIFS('Données FDC'!$U:$U,'Données FDC'!$A:$A,Activation!$C$5,'Données FDC'!$E:$E,Activation!M$9),IF(ISBLANK($J$5),SUMIFS('Données FDC'!$U:$U,'Données FDC'!$B:$B,Activation!$F$5,'Données FDC'!$E:$E,Activation!M$9),SUMIFS('Données FDC'!$U:$U,'Données FDC'!$C:$C,Activation!$J$5,'Données FDC'!$E:$E,Activation!M$9))) -> 24749 | N44: =IF(ISBLANK($F$5),SUMIFS('Données FDC'!$U:$U,'Données FDC'!$A:$A,Activation!$C$5,'Données FDC'!$E:$E,Activation!N$9),IF(ISBLANK($J$5),SUMIFS('Données FDC'!$U:$U,'Données FDC'!$B:$B,Activation!$F$5,'Données FDC'!$E:$E,Activation!N$9),SUMIFS('Données FDC'!$U:$U,'Données FDC'!$C:$C,Activation!$J$5,'Données FDC'!$E:$E,Activation!N$9))) -> 60563 | O44: =IF(ISBLANK($F$5),SUMIFS('Données FDC'!$U:$U,'Données FDC'!$A:$A,Activation!$C$5,'Données FDC'!$E:$E,Activation!O$9),IF(ISBLANK($J$5),SUMIFS('Données FDC'!$U:$U,'Données FDC'!$B:$B,Activation!$F$5,'Données FDC'!$E:$E,Activation!O$9),SUMIFS('Données FDC'!$U:$U,'Données FDC'!$C:$C,Activation!$J$5,'Données FDC'!$E:$E,Activation!O$9))) -> 0 | P44: =IF(ISBLANK($F$5),SUMIFS('Données FDC'!$U:$U,'Données FDC'!$A:$A,Activation!$C$5,'Données FDC'!$E:$E,Activation!P$9),IF(ISBLANK($J$5),SUMIFS('Données FDC'!$U:$U,'Données FDC'!$B:$B,Activation!$F$5,'Données FDC'!$E:$E,Activation!P$9),SUMIFS('Données FDC'!$U:$U,'Données FDC'!$C:$C,Activation!$J$5,'Données FDC'!$E:$E,Activation!P$9))) -> 4584
C45: % détenteurs | D45: =D44/D$10 -> 0.5737360673 | E45: =E44/E$10 -> 0.5688044134 | F45: =F44/F$10 -> 0.8692304296 | G45: 0.485781101 | H45: 0.9084345013 | I45: 0.4929986992 | J45: 0.8383008872 | K45: 0.08083328136 | L45: 0.9692922232 | M45: 0.4050108826 | N45: 0.800886009 | O45: 0 | P45: 0.02925279031
C46: % détenteurs CEGEE | D46: =SUM('Données FDC'!$U:$U)/SUM('Données FDC'!$F:$F) -> 0.5737360673 | E46: =SUM('Données FDC déc 2021'!$U:$U)/SUM('Données FDC déc 2021'!$F:$F) -> 0.5688044134 | F46: =SUMIF('Données FDC'!$E:$E,Activation!F$9,'Données FDC'!$U:$U)/SUMIF('Données FDC'!$E:$E,Activation!F$9,'Données FDC'!$F:$F) -> 0.8692304296 | G46: =SUMIF('Données FDC'!$E:$E,Activation!G$9,'Données FDC'!$U:$U)/SUMIF('Données FDC'!$E:$E,Activation!G$9,'Données FDC'!$F:$F) -> 0.485781101 | H46: =SUMIF('Données FDC'!$E:$E,Activation!H$9,'Données FDC'!$U:$U)/SUMIF('Données FDC'!$E:$E,Activation!H$9,'Données FDC'!$F:$F) -> 0.9084345013 | I46: =SUMIF('Données FDC'!$E:$E,Activation!I$9,'Données FDC'!$U:$U)/SUMIF('Données FDC'!$E:$E,Activation!I$9,'Données FDC'!$F:$F) -> 0.4929986992 | J46: =SUMIF('Données FDC'!$E:$E,Activation!J$9,'Données FDC'!$U:$U)/SUMIF('Données FDC'!$E:$E,Activation!J$9,'Données FDC'!$F:$F) -> 0.8383008872 | K46: =SUMIF('Données FDC'!$E:$E,Activation!K$9,'Données FDC'!$U:$U)/SUMIF('Données FDC'!$E:$E,Activation!K$9,'Données FDC'!$F:$F) -> 0.08083328136 | L46: =SUMIF('Données FDC'!$E:$E,Activation!L$9,'Données FDC'!$U:$U)/SUMIF('Données FDC'!$E:$E,Activation!L$9,'Données FDC'!$F:$F) -> 0.9692922232 | M46: =SUMIF('Données FDC'!$E:$E,Activation!M$9,'Données FDC'!$U:$U)/SUMIF('Données FDC'!$E:$E,Activation!M$9,'Données FDC'!$F:$F) -> 0.4050108826 | N46: =SUMIF('Données FDC'!$E:$E,Activation!N$9,'Données FDC'!$U:$U)/SUMIF('Données FDC'!$E:$E,Activation!N$9,'Données FDC'!$F:$F) -> 0.800886009 | O46: =SUMIF('Données FDC'!$E:$E,Activation!O$9,'Données FDC'!$U:$U)/SUMIF('Données FDC'!$E:$E,Activation!O$9,'Données FDC'!$F:$F) -> 0 | P46: =SUMIF('Données FDC'!$E:$E,Activation!P$9,'Données FDC'!$U:$U)/SUMIF('Données FDC'!$E:$E,Activation!P$9,'Données FDC'!$F:$F) -> 0.02925279031
B47: Détention Univers Epargne Placement | C47: Nombre détenteurs | D47: =SUM(F47:P47) -> 423746 | E47: =IF(ISBLANK($F$5),SUMIFS('Données FDC déc 2021'!$V:$V,'Données FDC déc 2021'!$A:$A,Activation!$C$5),IF(ISBLANK($J$5),SUMIFS('Données FDC déc 2021'!$V:$V,'Données FDC déc 2021'!$B:$B,Activation!$F$5),SUMIFS('Données FDC déc 2021'!$V:$V,'Données FDC déc 2021'!$C:$C,Activation!$J$5))) -> 437513 | F47: =IF(ISBLANK($F$5),SUMIFS('Données FDC'!$V:$V,'Données FDC'!$A:$A,Activation!$C$5,'Données FDC'!$E:$E,Activation!F$9),IF(ISBLANK($J$5),SUMIFS('Données FDC'!$V:$V,'Données FDC'!$B:$B,Activation!$F$5,'Données FDC'!$E:$E,Activation!F$9),SUMIFS('Données FDC'!$V:$V,'Données FDC'!$C:$C,Activation!$J$5,'Données FDC'!$E:$E,Activation!F$9))) -> 185970 | G47: =IF(ISBLANK($F$5),SUMIFS('Données FDC'!$V:$V,'Données FDC'!$A:$A,Activation!$C$5,'Données FDC'!$E:$E,Activation!G$9),IF(ISBLANK($J$5),SUMIFS('Données FDC'!$V:$V,'Données FDC'!$B:$B,Activation!$F$5,'Données FDC'!$E:$E,Activation!G$9),SUMIFS('Données FDC'!$V:$V,'Données FDC'!$C:$C,Activation!$J$5,'Données FDC'!$E:$E,Activation!G$9))) -> 20492 | H47: =IF(ISBLANK($F$5),SUMIFS('Données FDC'!$V:$V,'Données FDC'!$A:$A,Activation!$C$5,'Données FDC'!$E:$E,Activation!H$9),IF(ISBLANK($J$5),SUMIFS('Données FDC'!$V:$V,'Données FDC'!$B:$B,Activation!$F$5,'Données FDC'!$E:$E,Activation!H$9),SUMIFS('Données FDC'!$V:$V,'Données FDC'!$C:$C,Activation!$J$5,'Données FDC'!$E:$E,Activation!H$9))) -> 122228 | I47: =IF(ISBLANK($F$5),SUMIFS('Données FDC'!$V:$V,'Données FDC'!$A:$A,Activation!$C$5,'Données FDC'!$E:$E,Activation!I$9),IF(ISBLANK($J$5),SUMIFS('Données FDC'!$V:$V,'Données FDC'!$B:$B,Activation!$F$5,'Données FDC'!$E:$E,Activation!I$9),SUMIFS('Données FDC'!$V:$V,'Données FDC'!$C:$C,Activation!$J$5,'Données FDC'!$E:$E,Activation!I$9))) -> 37786 | J47: =IF(ISBLANK($F$5),SUMIFS('Données FDC'!$V:$V,'Données FDC'!$A:$A,Activation!$C$5,'Données FDC'!$E:$E,Activation!J$9),IF(ISBLANK($J$5),SUMIFS('Données FDC'!$V:$V,'Données FDC'!$B:$B,Activation!$F$5,'Données FDC'!$E:$E,Activation!J$9),SUMIFS('Données FDC'!$V:$V,'Données FDC'!$C:$C,Activation!$J$5,'Données FDC'!$E:$E,Activation!J$9))) -> 19080 | K47: =IF(ISBLANK($F$5),SUMIFS('Données FDC'!$V:$V,'Données FDC'!$A:$A,Activation!$C$5,'Données FDC'!$E:$E,Activation!K$9),IF(ISBLANK($J$5),SUMIFS('Données FDC'!$V:$V,'Données FDC'!$B:$B,Activation!$F$5,'Données FDC'!$E:$E,Activation!K$9),SUMIFS('Données FDC'!$V:$V,'Données FDC'!$C:$C,Activation!$J$5,'Données FDC'!$E:$E,Activation!K$9))) -> 159 | L47: =IF(ISBLANK($F$5),SUMIFS('Données FDC'!$V:$V,'Données FDC'!$A:$A,Activation!$C$5,'Données FDC'!$E:$E,Activation!L$9),IF(ISBLANK($J$5),SUMIFS('Données FDC'!$V:$V,'Données FDC'!$B:$B,Activation!$F$5,'Données FDC'!$E:$E,Activation!L$9),SUMIFS('Données FDC'!$V:$V,'Données FDC'!$C:$C,Activation!$J$5,'Données FDC'!$E:$E,Activation!L$9))) -> 7098 | M47: =IF(ISBLANK($F$5),SUMIFS('Données FDC'!$V:$V,'Données FDC'!$A:$A,Activation!$C$5,'Données FDC'!$E:$E,Activation!M$9),IF(ISBLANK($J$5),SUMIFS('Données FDC'!$V:$V,'Données FDC'!$B:$B,Activation!$F$5,'Données FDC'!$E:$E,Activation!M$9),SUMIFS('Données FDC'!$V:$V,'Données FDC'!$C:$C,Activation!$J$5,'Données FDC'!$E:$E,Activation!M$9))) -> 3601 | N47: =IF(ISBLANK($F$5),SUMIFS('Données FDC'!$V:$V,'Données FDC'!$A:$A,Activation!$C$5,'Données FDC'!$E:$E,Activation!N$9),IF(ISBLANK($J$5),SUMIFS('Données FDC'!$V:$V,'Données FDC'!$B:$B,Activation!$F$5,'Données FDC'!$E:$E,Activation!N$9),SUMIFS('Données FDC'!$V:$V,'Données FDC'!$C:$C,Activation!$J$5,'Données FDC'!$E:$E,Activation!N$9))) -> 24433 | O47: =IF(ISBLANK($F$5),SUMIFS('Données FDC'!$V:$V,'Données FDC'!$A:$A,Activation!$C$5,'Données FDC'!$E:$E,Activation!O$9),IF(ISBLANK($J$5),SUMIFS('Données FDC'!$V:$V,'Données FDC'!$B:$B,Activation!$F$5,'Données FDC'!$E:$E,Activation!O$9),SUMIFS('Données FDC'!$V:$V,'Données FDC'!$C:$C,Activation!$J$5,'Données FDC'!$E:$E,Activation!O$9))) -> 0 | P47: =IF(ISBLANK($F$5),SUMIFS('Données FDC'!$V:$V,'Données FDC'!$A:$A,Activation!$C$5,'Données FDC'!$E:$E,Activation!P$9),IF(ISBLANK($J$5),SUMIFS('Données FDC'!$V:$V,'Données FDC'!$B:$B,Activation!$F$5,'Données FDC'!$E:$E,Activation!P$9),SUMIFS('Données FDC'!$V:$V,'Données FDC'!$C:$C,Activation!$J$5,'Données FDC'!$E:$E,Activation!P$9))) -> 2899
C48: % détenteurs | D48: =D47/D$10 -> 0.3164375849 | E48: =E47/E$10 -> 0.3193103685 | F48: =F47/F$10 -> 0.6316679744 | G48: 0.1261084956 | H48: 0.8271279115 | I48: 0.1257073659 | J48: 0.3072315347 | K48: 0.009917046092 | L48: 0.8860317064 | M48: 0.05892941889 | N48: 0.3231023539 | O48: 0 | P48: 0.0184999649
C49: % détenteurs CEGEE | D49: =SUM('Données FDC'!$V:$V)/SUM('Données FDC'!$F:$F) -> 0.3164375849 | E49: =SUM('Données FDC déc 2021'!$V:$V)/SUM('Données FDC déc 2021'!$F:$F) -> 0.3193103685 | F49: =SUMIF('Données FDC'!$E:$E,Activation!F$9,'Données FDC'!$V:$V)/SUMIF('Données FDC'!$E:$E,Activation!F$9,'Données FDC'!$F:$F) -> 0.6316679744 | G49: =SUMIF('Données FDC'!$E:$E,Activation!G$9,'Données FDC'!$V:$V)/SUMIF('Données FDC'!$E:$E,Activation!G$9,'Données FDC'!$F:$F) -> 0.1261084956 | H49: =SUMIF('Données FDC'!$E:$E,Activation!H$9,'Données FDC'!$V:$V)/SUMIF('Données FDC'!$E:$E,Activation!H$9,'Données FDC'!$F:$F) -> 0.8271279115 | I49: =SUMIF('Données FDC'!$E:$E,Activation!I$9,'Données FDC'!$V:$V)/SUMIF('Données FDC'!$E:$E,Activation!I$9,'Données FDC'!$F:$F) -> 0.1257073659 | J49: =SUMIF('Données FDC'!$E:$E,Activation!J$9,'Données FDC'!$V:$V)/SUMIF('Données FDC'!$E:$E,Activation!J$9,'Données FDC'!$F:$F) -> 0.3072315347 | K49: =SUMIF('Données FDC'!$E:$E,Activation!K$9,'Données FDC'!$V:$V)/SUMIF('Données FDC'!$E:$E,Activation!K$9,'Données FDC'!$F:$F) -> 0.009917046092 | L49: =SUMIF('Données FDC'!$E:$E,Activation!L$9,'Données FDC'!$V:$V)/SUMIF('Données FDC'!$E:$E,Activation!L$9,'Données FDC'!$F:$F) -> 0.8860317064 | M49: =SUMIF('Données FDC'!$E:$E,Activation!M$9,'Données FDC'!$V:$V)/SUMIF('Données FDC'!$E:$E,Activation!M$9,'Données FDC'!$F:$F) -> 0.05892941889 | N49: =SUMIF('Données FDC'!$E:$E,Activation!N$9,'Données FDC'!$V:$V)/SUMIF('Données FDC'!$E:$E,Activation!N$9,'Données FDC'!$F:$F) -> 0.3231023539 | O49: =SUMIF('Données FDC'!$E:$E,Activation!O$9,'Données FDC'!$V:$V)/SUMIF('Données FDC'!$E:$E,Activation!O$9,'Données FDC'!$F:$F) -> 0 | P49: =SUMIF('Données FDC'!$E:$E,Activation!P$9,'Données FDC'!$V:$V)/SUMIF('Données FDC'!$E:$E,Activation!P$9,'Données FDC'!$F:$F) -> 0.0184999649
B50: Détention Univers Assurance | C50: Nombre détenteurs | D50: =SUM(F50:P50) -> 220475 | E50: =IF(ISBLANK($F$5),SUMIFS('Données FDC déc 2021'!$X:$X,'Données FDC déc 2021'!$A:$A,Activation!$C$5),IF(ISBLANK($J$5),SUMIFS('Données FDC déc 2021'!$X:$X,'Données FDC déc 2021'!$B:$B,Activation!$F$5),SUMIFS('Données FDC déc 2021'!$X:$X,'Données FDC déc 2021'!$C:$C,Activation!$J$5))) -> 212617 | F50: =IF(ISBLANK($F$5),SUMIFS('Données FDC'!$X:$X,'Données FDC'!$A:$A,Activation!$C$5,'Données FDC'!$E:$E,Activation!F$9),IF(ISBLANK($J$5),SUMIFS('Données FDC'!$X:$X,'Données FDC'!$B:$B,Activation!$F$5,'Données FDC'!$E:$E,Activation!F$9),SUMIFS('Données FDC'!$X:$X,'Données FDC'!$C:$C,Activation!$J$5,'Données FDC'!$E:$E,Activation!F$9))) -> 146935 | G50: =IF(ISBLANK($F$5),SUMIFS('Données FDC'!$X:$X,'Données FDC'!$A:$A,Activation!$C$5,'Données FDC'!$E:$E,Activation!G$9),IF(ISBLANK($J$5),SUMIFS('Données FDC'!$X:$X,'Données FDC'!$B:$B,Activation!$F$5,'Données FDC'!$E:$E,Activation!G$9),SUMIFS('Données FDC'!$X:$X,'Données FDC'!$C:$C,Activation!$J$5,'Données FDC'!$E:$E,Activation!G$9))) -> 16811 | H50: =IF(ISBLANK($F$5),SUMIFS('Données FDC'!$X:$X,'Données FDC'!$A:$A,Activation!$C$5,'Données FDC'!$E:$E,Activation!H$9),IF(ISBLANK($J$5),SUMIFS('Données FDC'!$X:$X,'Données FDC'!$B:$B,Activation!$F$5,'Données FDC'!$E:$E,Activation!H$9),SUMIFS('Données FDC'!$X:$X,'Données FDC'!$C:$C,Activation!$J$5,'Données FDC'!$E:$E,Activation!H$9))) -> 23668 | I50: =IF(ISBLANK($F$5),SUMIFS('Données FDC'!$X:$X,'Données FDC'!$A:$A,Activation!$C$5,'Données FDC'!$E:$E,Activation!I$9),IF(ISBLANK($J$5),SUMIFS('Données FDC'!$X:$X,'Données FDC'!$B:$B,Activation!$F$5,'Données FDC'!$E:$E,Activation!I$9),SUMIFS('Données FDC'!$X:$X,'Données FDC'!$C:$C,Activation!$J$5,'Données FDC'!$E:$E,Activation!I$9))) -> 6259 | J50: =IF(ISBLANK($F$5),SUMIFS('Données FDC'!$X:$X,'Données FDC'!$A:$A,Activation!$C$5,'Données FDC'!$E:$E,Activation!J$9),IF(ISBLANK($J$5),SUMIFS('Données FDC'!$X:$X,'Données FDC'!$B:$B,Activation!$F$5,'Données FDC'!$E:$E,Activation!J$9),SUMIFS('Données FDC'!$X:$X,'Données FDC'!$C:$C,Activation!$J$5,'Données FDC'!$E:$E,Activation!J$9))) -> 20147 | K50: =IF(ISBLANK($F$5),SUMIFS('Données FDC'!$X:$X,'Données FDC'!$A:$A,Activation!$C$5,'Données FDC'!$E:$E,Activation!K$9),IF(ISBLANK($J$5),SUMIFS('Données FDC'!$X:$X,'Données FDC'!$B:$B,Activation!$F$5,'Données FDC'!$E:$E,Activation!K$9),SUMIFS('Données FDC'!$X:$X,'Données FDC'!$C:$C,Activation!$J$5,'Données FDC'!$E:$E,Activation!K$9))) -> 319 | L50: =IF(ISBLANK($F$5),SUMIFS('Données FDC'!$X:$X,'Données FDC'!$A:$A,Activation!$C$5,'Données FDC'!$E:$E,Activation!L$9),IF(ISBLANK($J$5),SUMIFS('Données FDC'!$X:$X,'Données FDC'!$B:$B,Activation!$F$5,'Données FDC'!$E:$E,Activation!L$9),SUMIFS('Données FDC'!$X:$X,'Données FDC'!$C:$C,Activation!$J$5,'Données FDC'!$E:$E,Activation!L$9))) -> 493 | M50: =IF(ISBLANK($F$5),SUMIFS('Données FDC'!$X:$X,'Données FDC'!$A:$A,Activation!$C$5,'Données FDC'!$E:$E,Activation!M$9),IF(ISBLANK($J$5),SUMIFS('Données FDC'!$X:$X,'Données FDC'!$B:$B,Activation!$F$5,'Données FDC'!$E:$E,Activation!M$9),SUMIFS('Données FDC'!$X:$X,'Données FDC'!$C:$C,Activation!$J$5,'Données FDC'!$E:$E,Activation!M$9))) -> 971 | P50: =IF(ISBLANK($F$5),SUMIFS('Données FDC'!$X:$X,'Données FDC'!$A:$A,Activation!$C$5,'Données FDC'!$E:$E,Activation!P$9),IF(ISBLANK($J$5),SUMIFS('Données FDC'!$X:$X,'Données FDC'!$B:$B,Activation!$F$5,'Données FDC'!$E:$E,Activation!P$9),SUMIFS('Données FDC'!$X:$X,'Données FDC'!$C:$C,Activation!$J$5,'Données FDC'!$E:$E,Activation!P$9))) -> 4872
C51: % détenteurs | D51: =D50/D$10 -> 0.1646424427 | E51: =E50/E$10 -> 0.1551743894 | F51: =F50/IF(ISBLANK($F$5),SUMIFS('Données FDC'!$J:$J,'Données FDC'!$A:$A,Activation!$C$5,'Données FDC'!$E:$E,Activation!F$9),IF(ISBLANK($J$5),SUMIFS('Données FDC'!$J:$J,'Données FDC'!$B:$B,Activation!$F$5,'Données FDC'!$E:$E,Activation!F$9),SUMIFS('Données FDC'!$J:$J,'Données FDC'!$C:$C,Activation!$J$5,'Données FDC'!$E:$E,Activation!F$9))) -> 0.4990812164 | G51: =G50/IF(ISBLANK($F$5),SUMIFS('Données FDC'!$J:$J,'Données FDC'!$A:$A,Activation!$C$5,'Données FDC'!$E:$E,Activation!G$9),IF(ISBLANK($J$5),SUMIFS('Données FDC'!$J:$J,'Données FDC'!$B:$B,Activation!$F$5,'Données FDC'!$E:$E,Activation!G$9),SUMIFS('Données FDC'!$J:$J,'Données FDC'!$C:$C,Activation!$J$5,'Données FDC'!$E:$E,Activation!G$9))) -> 0.1034554909 | H51: =H50/IF(ISBLANK($F$5),SUMIFS('Données FDC'!$J:$J,'Données FDC'!$A:$A,Activation!$C$5,'Données FDC'!$E:$E,Activation!H$9),IF(ISBLANK($J$5),SUMIFS('Données FDC'!$J:$J,'Données FDC'!$B:$B,Activation!$F$5,'Données FDC'!$E:$E,Activation!H$9),SUMIFS('Données FDC'!$J:$J,'Données FDC'!$C:$C,Activation!$J$5,'Données FDC'!$E:$E,Activation!H$9))) -> 0.1601634929 | I51: =I50/IF(ISBLANK($F$5),SUMIFS('Données FDC'!$J:$J,'Données FDC'!$A:$A,Activation!$C$5,'Données FDC'!$E:$E,Activation!I$9),IF(ISBLANK($J$5),SUMIFS('Données FDC'!$J:$J,'Données FDC'!$B:$B,Activation!$F$5,'Données FDC'!$E:$E,Activation!I$9),SUMIFS('Données FDC'!$J:$J,'Données FDC'!$C:$C,Activation!$J$5,'Données FDC'!$E:$E,Activation!I$9))) -> 0.02082259046 | J51: =J50/IF(ISBLANK($F$5),SUMIFS('Données FDC'!$J:$J,'Données FDC'!$A:$A,Activation!$C$5,'Données FDC'!$E:$E,Activation!J$9),IF(ISBLANK($J$5),SUMIFS('Données FDC'!$J:$J,'Données FDC'!$B:$B,Activation!$F$5,'Données FDC'!$E:$E,Activation!J$9),SUMIFS('Données FDC'!$J:$J,'Données FDC'!$C:$C,Activation!$J$5,'Données FDC'!$E:$E,Activation!J$9))) -> 0.3500660272 | K51: =K50/IF(ISBLANK($F$5),SUMIFS('Données FDC'!$J:$J,'Données FDC'!$A:$A,Activation!$C$5,'Données FDC'!$E:$E,Activation!K$9),IF(ISBLANK($J$5),SUMIFS('Données FDC'!$J:$J,'Données FDC'!$B:$B,Activation!$F$5,'Données FDC'!$E:$E,Activation!K$9),SUMIFS('Données FDC'!$J:$J,'Données FDC'!$C:$C,Activation!$J$5,'Données FDC'!$E:$E,Activation!K$9))) -> 0.02333918642 | L51: =L50/IF(ISBLANK($F$5),SUMIFS('Données FDC'!$J:$J,'Données FDC'!$A:$A,Activation!$C$5,'Données FDC'!$E:$E,Activation!L$9),IF(ISBLANK($J$5),SUMIFS('Données FDC'!$J:$J,'Données FDC'!$B:$B,Activation!$F$5,'Données FDC'!$E:$E,Activation!L$9),SUMIFS('Données FDC'!$J:$J,'Données FDC'!$C:$C,Activation!$J$5,'Données FDC'!$E:$E,Activation!L$9))) -> 0.09863945578 | M51: =M50/IF(ISBLANK($F$5),SUMIFS('Données FDC'!$J:$J,'Données FDC'!$A:$A,Activation!$C$5,'Données FDC'!$E:$E,Activation!M$9),IF(ISBLANK($J$5),SUMIFS('Données FDC'!$J:$J,'Données FDC'!$B:$B,Activation!$F$5,'Données FDC'!$E:$E,Activation!M$9),SUMIFS('Données FDC'!$J:$J,'Données FDC'!$C:$C,Activation!$J$5,'Données FDC'!$E:$E,Activation!M$9))) -> 0.02192516991 | P51: =P50/IF(ISBLANK($F$5),SUMIFS('Données FDC'!$J:$J,'Données FDC'!$A:$A,Activation!$C$5,'Données FDC'!$E:$E,Activation!P$9),IF(ISBLANK($J$5),SUMIFS('Données FDC'!$J:$J,'Données FDC'!$B:$B,Activation!$F$5,'Données FDC'!$E:$E,Activation!P$9),SUMIFS('Données FDC'!$J:$J,'Données FDC'!$C:$C,Activation!$J$5,'Données FDC'!$E:$E,Activation!P$9))) -> 0.03109066195
C52: % détenteurs CEGEE | D52: =SUM('Données FDC'!$X:$X)/SUM('Données FDC'!$F:$F) -> 0.1646424427 | E52: =SUM('Données FDC déc 2021'!$X:$X)/SUM('Données FDC déc 2021'!$F:$F) -> 0.1551743894 | F52: =SUMIF('Données FDC'!$E:$E,Activation!F$9,'Données FDC'!$X:$X)/SUMIF('Données FDC'!$E:$E,Activation!F$9,'Données FDC'!$J:$J) -> 0.4990812164 | G52: =SUMIF('Données FDC'!$E:$E,Activation!G$9,'Données FDC'!$X:$X)/SUMIF('Données FDC'!$E:$E,Activation!G$9,'Données FDC'!$J:$J) -> 0.1034554909 | H52: =SUMIF('Données FDC'!$E:$E,Activation!H$9,'Données FDC'!$X:$X)/SUMIF('Données FDC'!$E:$E,Activation!H$9,'Données FDC'!$J:$J) -> 0.1601634929 | I52: =SUMIF('Données FDC'!$E:$E,Activation!I$9,'Données FDC'!$X:$X)/SUMIF('Données FDC'!$E:$E,Activation!I$9,'Données FDC'!$J:$J) -> 0.02082259046 | J52: =SUMIF('Données FDC'!$E:$E,Activation!J$9,'Données FDC'!$X:$X)/SUMIF('Données FDC'!$E:$E,Activation!J$9,'Données FDC'!$J:$J) -> 0.3500660272 | K52: =SUMIF('Données FDC'!$E:$E,Activation!K$9,'Données FDC'!$X:$X)/SUMIF('Données FDC'!$E:$E,Activation!K$9,'Données FDC'!$J:$J) -> 0.02333918642 | L52: =SUMIF('Données FDC'!$E:$E,Activation!L$9,'Données FDC'!$X:$X)/SUMIF('Données FDC'!$E:$E,Activation!L$9,'Données FDC'!$J:$J) -> 0.09863945578 | M52: =SUMIF('Données FDC'!$E:$E,Activation!M$9,'Données FDC'!$X:$X)/SUMIF('Données FDC'!$E:$E,Activation!M$9,'Données FDC'!$J:$J) -> 0.02192516991 | P52: =SUMIF('Données FDC'!$E:$E,Activation!P$9,'Données FDC'!$X:$X)/SUMIF('Données FDC'!$E:$E,Activation!P$9,'Données FDC'!$J:$J) -> 0.03109066195
B54: EQUIPEMENT BANCARISATION
D56: Tous segments | F56: =F8 -> Segments Activation - 09/2022
D57: =D9 -> 2022-09-01 | E57: =E9 -> 2021-12-01 | F57: BPe | G57: BPne | H57: De | I57: Dne | J57: JBPe | K57: JBPne | L57: JDe | M57: JDne | N57: Ee | O57: Ene | P57: I
B58: Détention Univers Banca (12 ans et plus) | C58: Nombre détenteurs | D58: =D38 -> 510934 | E58: =E38 -> 502303 | F58: 282614 | G58: 113687 | H58: 26976 | I58: 12496 | J58: 60613 | K58: 11944 | L58: 601 | M58: 349 | N58: 1639 | O58: 0 | P58: 15
C59: % détenteurs | D59: =D39 -> 0.381546306 | E59: 0.366596092 | F59: =F39 -> 0.9599301657 | G59: 0.6996338349 | H59: 0.1825490276 | I59: 0.0415719908 | J59: 0.9760076003 | K59: 0.7449635128 | L59: 0.07502184496 | M59: 0.005711293305 | N59: 0.07323830377 | O59: 0 | P59: 9.572248138e-05
C60: % détenteurs CEGEE | D60: =D40 -> 0.381546306 | E60: 0.366596092 | F60: =F40 -> 0.9599301657 | G60: 0.6996338349 | H60: 0.1825490276 | I60: 0.0415719908 | J60: 0.9760076003 | K60: 0.7449635128 | L60: 0.07502184496 | M60: 0.005711293305 | N60: 0.07323830377 | O60: 0 | P60: 9.572248138e-05
B61: Forfait (12 ans et plus) | C61: Variation | D61: =SUM(F61:P61) -> 16851 | F61: =F62-IF(ISBLANK($F$5),SUMIFS('Données FDC déc 2021'!$AE:$AE,'Données FDC déc 2021'!$A:$A,Activation!$C$5,'Données FDC déc 2021'!$E:$E,Activation!F$9),IF(ISBLANK($J$5),SUMIFS('Données FDC déc 2021'!$AE:$AE,'Données FDC déc 2021'!$B:$B,Activation!$F$5,'Données FDC déc 2021'!$E:$E,Activation!F$9),SUMIFS('Données FDC déc 2021'!$AE:$AE,'Données FDC déc 2021'!$C:$C,Activation!$J$5,'Données FDC déc 2021'!$E:$E,Activation!F$9))) -> 12916 | G61: =G62-IF(ISBLANK($F$5),SUMIFS('Données FDC déc 2021'!$AE:$AE,'Données FDC déc 2021'!$A:$A,Activation!$C$5,'Données FDC déc 2021'!$E:$E,Activation!G$9),IF(ISBLANK($J$5),SUMIFS('Données FDC déc 2021'!$AE:$AE,'Données FDC déc 2021'!$B:$B,Activation!$F$5,'Données FDC déc 2021'!$E:$E,Activation!G$9),SUMIFS('Données FDC déc 2021'!$AE:$AE,'Données FDC déc 2021'!$C:$C,Activation!$J$5,'Données FDC déc 2021'!$E:$E,Activation!G$9))) -> 4461 | H61: =H62-IF(ISBLANK($F$5),SUMIFS('Données FDC déc 2021'!$AE:$AE,'Données FDC déc 2021'!$A:$A,Activation!$C$5,'Données FDC déc 2021'!$E:$E,Activation!H$9),IF(ISBLANK($J$5),SUMIFS('Données FDC déc 2021'!$AE:$AE,'Données FDC déc 2021'!$B:$B,Activation!$F$5,'Données FDC déc 2021'!$E:$E,Activation!H$9),SUMIFS('Données FDC déc 2021'!$AE:$AE,'Données FDC déc 2021'!$C:$C,Activation!$J$5,'Données FDC déc 2021'!$E:$E,Activation!H$9))) -> -675 | I61: =I62-IF(ISBLANK($F$5),SUMIFS('Données FDC déc 2021'!$AE:$AE,'Données FDC déc 2021'!$A:$A,Activation!$C$5,'Données FDC déc 2021'!$E:$E,Activation!I$9),IF(ISBLANK($J$5),SUMIFS('Données FDC déc 2021'!$AE:$AE,'Données FDC déc 2021'!$B:$B,Activation!$F$5,'Données FDC déc 2021'!$E:$E,Activation!I$9),SUMIFS('Données FDC déc 2021'!$AE:$AE,'Données FDC déc 2021'!$C:$C,Activation!$J$5,'Données FDC déc 2021'!$E:$E,Activation!I$9))) -> -2075 | J61: =J62-IF(ISBLANK($F$5),SUMIFS('Données FDC déc 2021'!$AE:$AE,'Données FDC déc 2021'!$A:$A,Activation!$C$5,'Données FDC déc 2021'!$E:$E,Activation!J$9),IF(ISBLANK($J$5),SUMIFS('Données FDC déc 2021'!$AE:$AE,'Données FDC déc 2021'!$B:$B,Activation!$F$5,'Données FDC déc 2021'!$E:$E,Activation!J$9),SUMIFS('Données FDC déc 2021'!$AE:$AE,'Données FDC déc 2021'!$C:$C,Activation!$J$5,'Données FDC déc 2021'!$E:$E,Activation!J$9))) -> -95 | K61: =K62-IF(ISBLANK($F$5),SUMIFS('Données FDC déc 2021'!$AE:$AE,'Données FDC déc 2021'!$A:$A,Activation!$C$5,'Données FDC déc 2021'!$E:$E,Activation!K$9),IF(ISBLANK($J$5),SUMIFS('Données FDC déc 2021'!$AE:$AE,'Données FDC déc 2021'!$B:$B,Activation!$F$5,'Données FDC déc 2021'!$E:$E,Activation!K$9),SUMIFS('Données FDC déc 2021'!$AE:$AE,'Données FDC déc 2021'!$C:$C,Activation!$J$5,'Données FDC déc 2021'!$E:$E,Activation!K$9))) -> 436 | L61: =L62-IF(ISBLANK($F$5),SUMIFS('Données FDC déc 2021'!$AE:$AE,'Données FDC déc 2021'!$A:$A,Activation!$C$5,'Données FDC déc 2021'!$E:$E,Activation!L$9),IF(ISBLANK($J$5),SUMIFS('Données FDC déc 2021'!$AE:$AE,'Données FDC déc 2021'!$B:$B,Activation!$F$5,'Données FDC déc 2021'!$E:$E,Activation!L$9),SUMIFS('Données FDC déc 2021'!$AE:$AE,'Données FDC déc 2021'!$C:$C,Activation!$J$5,'Données FDC déc 2021'!$E:$E,Activation!L$9))) -> 47 | M61: =M62-IF(ISBLANK($F$5),SUMIFS('Données FDC déc 2021'!$AE:$AE,'Données FDC déc 2021'!$A:$A,Activation!$C$5,'Données FDC déc 2021'!$E:$E,Activation!M$9),IF(ISBLANK($J$5),SUMIFS('Données FDC déc 2021'!$AE:$AE,'Données FDC déc 2021'!$B:$B,Activation!$F$5,'Données FDC déc 2021'!$E:$E,Activation!M$9),SUMIFS('Données FDC déc 2021'!$AE:$AE,'Données FDC déc 2021'!$C:$C,Activation!$J$5,'Données FDC déc 2021'!$E:$E,Activation!M$9))) -> 618 | N61: =N62-IF(ISBLANK($F$5),SUMIFS('Données FDC déc 2021'!$AE:$AE,'Données FDC déc 2021'!$A:$A,Activation!$C$5,'Données FDC déc 2021'!$E:$E,Activation!N$9),IF(ISBLANK($J$5),SUMIFS('Données FDC déc 2021'!$AE:$AE,'Données FDC déc 2021'!$B:$B,Activation!$F$5,'Données FDC déc 2021'!$E:$E,Activation!N$9),SUMIFS('Données FDC déc 2021'!$AE:$AE,'Données FDC déc 2021'!$C:$C,Activation!$J$5,'Données FDC déc 2021'!$E:$E,Activation!N$9))) -> 705 | O61: =O62-IF(ISBLANK($F$5),SUMIFS('Données FDC déc 2021'!$AE:$AE,'Données FDC déc 2021'!$A:$A,Activation!$C$5,'Données FDC déc 2021'!$E:$E,Activation!O$9),IF(ISBLANK($J$5),SUMIFS('Données FDC déc 2021'!$AE:$AE,'Données FDC déc 2021'!$B:$B,Activation!$F$5,'Données FDC déc 2021'!$E:$E,Activation!O$9),SUMIFS('Données FDC déc 2021'!$AE:$AE,'Données FDC déc 2021'!$C:$C,Activation!$J$5,'Données FDC déc 2021'!$E:$E,Activation!O$9))) -> 449 | P61: =P62-IF(ISBLANK($F$5),SUMIFS('Données FDC déc 2021'!$AE:$AE,'Données FDC déc 2021'!$A:$A,Activation!$C$5,'Données FDC déc 2021'!$E:$E,Activation!P$9),IF(ISBLANK($J$5),SUMIFS('Données FDC déc 2021'!$AE:$AE,'Données FDC déc 2021'!$B:$B,Activation!$F$5,'Données FDC déc 2021'!$E:$E,Activation!P$9),SUMIFS('Données FDC déc 2021'!$AE:$AE,'Données FDC déc 2021'!$C:$C,Activation!$J$5,'Données FDC déc 2021'!$E:$E,Activation!P$9))) -> 64
C62: Nombre détenteurs | D62: =SUM(F62:P62) -> 700126 | E62: =IF(ISBLANK($F$5),SUMIFS('Données FDC déc 2021'!$AE:$AE,'Données FDC déc 2021'!$A:$A,Activation!$C$5),IF(ISBLANK($J$5),SUMIFS('Données FDC déc 2021'!$AE:$AE,'Données FDC déc 2021'!$B:$B,Activation!$F$5),SUMIFS('Données FDC déc 2021'!$AE:$AE,'Données FDC déc 2021'!$C:$C,Activation!$J$5))) -> 683275 | F62: =IF(ISBLANK($F$5),SUMIFS('Données FDC'!$AE:$AE,'Données FDC'!$A:$A,Activation!$C$5,'Données FDC'!$E:$E,Activation!F$9),IF(ISBLANK($J$5),SUMIFS('Données FDC'!$AE:$AE,'Données FDC'!$B:$B,Activation!$F$5,'Données FDC'!$E:$E,Activation!F$9),SUMIFS('Données FDC'!$AE:$AE,'Données FDC'!$C:$C,Activation!$J$5,'Données FDC'!$E:$E,Activation!F$9))) -> 337947 | G62: =IF(ISBLANK($F$5),SUMIFS('Données FDC'!$AE:$AE,'Données FDC'!$A:$A,Activation!$C$5,'Données FDC'!$E:$E,Activation!G$9),IF(ISBLANK($J$5),SUMIFS('Données FDC'!$AE:$AE,'Données FDC'!$B:$B,Activation!$F$5,'Données FDC'!$E:$E,Activation!G$9),SUMIFS('Données FDC'!$AE:$AE,'Données FDC'!$C:$C,Activation!$J$5,'Données FDC'!$E:$E,Activation!G$9))) -> 161992 | H62: =IF(ISBLANK($F$5),SUMIFS('Données FDC'!$AE:$AE,'Données FDC'!$A:$A,Activation!$C$5,'Données FDC'!$E:$E,Activation!H$9),IF(ISBLANK($J$5),SUMIFS('Données FDC'!$AE:$AE,'Données FDC'!$B:$B,Activation!$F$5,'Données FDC'!$E:$E,Activation!H$9),SUMIFS('Données FDC'!$AE:$AE,'Données FDC'!$C:$C,Activation!$J$5,'Données FDC'!$E:$E,Activation!H$9))) -> 51492 | I62: =IF(ISBLANK($F$5),SUMIFS('Données FDC'!$AE:$AE,'Données FDC'!$A:$A,Activation!$C$5,'Données FDC'!$E:$E,Activation!I$9),IF(ISBLANK($J$5),SUMIFS('Données FDC'!$AE:$AE,'Données FDC'!$B:$B,Activation!$F$5,'Données FDC'!$E:$E,Activation!I$9),SUMIFS('Données FDC'!$AE:$AE,'Données FDC'!$C:$C,Activation!$J$5,'Données FDC'!$E:$E,Activation!I$9))) -> 48614 | J62: =IF(ISBLANK($F$5),SUMIFS('Données FDC'!$AE:$AE,'Données FDC'!$A:$A,Activation!$C$5,'Données FDC'!$E:$E,Activation!J$9),IF(ISBLANK($J$5),SUMIFS('Données FDC'!$AE:$AE,'Données FDC'!$B:$B,Activation!$F$5,'Données FDC'!$E:$E,Activation!J$9),SUMIFS('Données FDC'!$AE:$AE,'Données FDC'!$C:$C,Activation!$J$5,'Données FDC'!$E:$E,Activation!J$9))) -> 65481 | K62: =IF(ISBLANK($F$5),SUMIFS('Données FDC'!$AE:$AE,'Données FDC'!$A:$A,Activation!$C$5,'Données FDC'!$E:$E,Activation!K$9),IF(ISBLANK($J$5),SUMIFS('Données FDC'!$AE:$AE,'Données FDC'!$B:$B,Activation!$F$5,'Données FDC'!$E:$E,Activation!K$9),SUMIFS('Données FDC'!$AE:$AE,'Données FDC'!$C:$C,Activation!$J$5,'Données FDC'!$E:$E,Activation!K$9))) -> 15944 | L62: =IF(ISBLANK($F$5),SUMIFS('Données FDC'!$AE:$AE,'Données FDC'!$A:$A,Activation!$C$5,'Données FDC'!$E:$E,Activation!L$9),IF(ISBLANK($J$5),SUMIFS('Données FDC'!$AE:$AE,'Données FDC'!$B:$B,Activation!$F$5,'Données FDC'!$E:$E,Activation!L$9),SUMIFS('Données FDC'!$AE:$AE,'Données FDC'!$C:$C,Activation!$J$5,'Données FDC'!$E:$E,Activation!L$9))) -> 2704 | M62: =IF(ISBLANK($F$5),SUMIFS('Données FDC'!$AE:$AE,'Données FDC'!$A:$A,Activation!$C$5,'Données FDC'!$E:$E,Activation!M$9),IF(ISBLANK($J$5),SUMIFS('Données FDC'!$AE:$AE,'Données FDC'!$B:$B,Activation!$F$5,'Données FDC'!$E:$E,Activation!M$9),SUMIFS('Données FDC'!$AE:$AE,'Données FDC'!$C:$C,Activation!$J$5,'Données FDC'!$E:$E,Activation!M$9))) -> 8584 | N62: =IF(ISBLANK($F$5),SUMIFS('Données FDC'!$AE:$AE,'Données FDC'!$A:$A,Activation!$C$5,'Données FDC'!$E:$E,Activation!N$9),IF(ISBLANK($J$5),SUMIFS('Données FDC'!$AE:$AE,'Données FDC'!$B:$B,Activation!$F$5,'Données FDC'!$E:$E,Activation!N$9),SUMIFS('Données FDC'!$AE:$AE,'Données FDC'!$C:$C,Activation!$J$5,'Données FDC'!$E:$E,Activation!N$9))) -> 5256 | O62: =IF(ISBLANK($F$5),SUMIFS('Données FDC'!$AE:$AE,'Données FDC'!$A:$A,Activation!$C$5,'Données FDC'!$E:$E,Activation!O$9),IF(ISBLANK($J$5),SUMIFS('Données FDC'!$AE:$AE,'Données FDC'!$B:$B,Activation!$F$5,'Données FDC'!$E:$E,Activation!O$9),SUMIFS('Données FDC'!$AE:$AE,'Données FDC'!$C:$C,Activation!$J$5,'Données FDC'!$E:$E,Activation!O$9))) -> 1875 | P62: =IF(ISBLANK($F$5),SUMIFS('Données FDC'!$AE:$AE,'Données FDC'!$A:$A,Activation!$C$5,'Données FDC'!$E:$E,Activation!P$9),IF(ISBLANK($J$5),SUMIFS('Données FDC'!$AE:$AE,'Données FDC'!$B:$B,Activation!$F$5,'Données FDC'!$E:$E,Activation!P$9),SUMIFS('Données FDC'!$AE:$AE,'Données FDC'!$C:$C,Activation!$J$5,'Données FDC'!$E:$E,Activation!P$9))) -> 237
C63: % détenteurs | D63: =D62/IF(ISBLANK($F$5),SUMIFS('Données FDC'!$I:$I,'Données FDC'!$A:$A,Activation!$C$5),IF(ISBLANK($J$5),SUMIFS('Données FDC'!$I:$I,'Données FDC'!$B:$B,Activation!$F$5),SUMIFS('Données FDC'!$I:$I,'Données FDC'!$C:$C,Activation!$J$5))) -> 0.5575494537 | E63: =E62/IF(ISBLANK($F$5),SUMIFS('Données FDC déc 2021'!$I:$I,'Données FDC déc 2021'!$A:$A,Activation!$C$5),IF(ISBLANK($J$5),SUMIFS('Données FDC déc 2021'!$I:$I,'Données FDC déc 2021'!$B:$B,Activation!$F$5),SUMIFS('Données FDC déc 2021'!$I:$I,'Données FDC déc 2021'!$C:$C,Activation!$J$5))) -> 0.531966245 | F63: =F62/IF(ISBLANK($F$5),SUMIFS('Données FDC'!$I:$I,'Données FDC'!$A:$A,Activation!$C$5,'Données FDC'!$E:$E,Activation!F$9),IF(ISBLANK($J$5),SUMIFS('Données FDC'!$I:$I,'Données FDC'!$B:$B,Activation!$F$5,'Données FDC'!$E:$E,Activation!F$9),SUMIFS('Données FDC'!$I:$I,'Données FDC'!$C:$C,Activation!$J$5,'Données FDC'!$E:$E,Activation!F$9))) -> 1.14787491 | G63: =G62/IF(ISBLANK($F$5),SUMIFS('Données FDC'!$I:$I,'Données FDC'!$A:$A,Activation!$C$5,'Données FDC'!$E:$E,Activation!G$9),IF(ISBLANK($J$5),SUMIFS('Données FDC'!$I:$I,'Données FDC'!$B:$B,Activation!$F$5,'Données FDC'!$E:$E,Activation!G$9),SUMIFS('Données FDC'!$I:$I,'Données FDC'!$C:$C,Activation!$J$5,'Données FDC'!$E:$E,Activation!G$9))) -> 0.9969045201 | H63: =H62/IF(ISBLANK($F$5),SUMIFS('Données FDC'!$I:$I,'Données FDC'!$A:$A,Activation!$C$5,'Données FDC'!$E:$E,Activation!H$9),IF(ISBLANK($J$5),SUMIFS('Données FDC'!$I:$I,'Données FDC'!$B:$B,Activation!$F$5,'Données FDC'!$E:$E,Activation!H$9),SUMIFS('Données FDC'!$I:$I,'Données FDC'!$C:$C,Activation!$J$5,'Données FDC'!$E:$E,Activation!H$9))) -> 0.348451013 | I63: =I62/IF(ISBLANK($F$5),SUMIFS('Données FDC'!$I:$I,'Données FDC'!$A:$A,Activation!$C$5,'Données FDC'!$E:$E,Activation!I$9),IF(ISBLANK($J$5),SUMIFS('Données FDC'!$I:$I,'Données FDC'!$B:$B,Activation!$F$5,'Données FDC'!$E:$E,Activation!I$9),SUMIFS('Données FDC'!$I:$I,'Données FDC'!$C:$C,Activation!$J$5,'Données FDC'!$E:$E,Activation!I$9))) -> 0.1617302145 | J63: =J62/IF(ISBLANK($F$5),SUMIFS('Données FDC'!$I:$I,'Données FDC'!$A:$A,Activation!$C$5,'Données FDC'!$E:$E,Activation!J$9),IF(ISBLANK($J$5),SUMIFS('Données FDC'!$I:$I,'Données FDC'!$B:$B,Activation!$F$5,'Données FDC'!$E:$E,Activation!J$9),SUMIFS('Données FDC'!$I:$I,'Données FDC'!$C:$C,Activation!$J$5,'Données FDC'!$E:$E,Activation!J$9))) -> 1.054393508 | K63: =K62/IF(ISBLANK($F$5),SUMIFS('Données FDC'!$I:$I,'Données FDC'!$A:$A,Activation!$C$5,'Données FDC'!$E:$E,Activation!K$9),IF(ISBLANK($J$5),SUMIFS('Données FDC'!$I:$I,'Données FDC'!$B:$B,Activation!$F$5,'Données FDC'!$E:$E,Activation!K$9),SUMIFS('Données FDC'!$I:$I,'Données FDC'!$C:$C,Activation!$J$5,'Données FDC'!$E:$E,Activation!K$9))) -> 0.994448949 | L63: =L62/IF(ISBLANK($F$5),SUMIFS('Données FDC'!$I:$I,'Données FDC'!$A:$A,Activation!$C$5,'Données FDC'!$E:$E,Activation!L$9),IF(ISBLANK($J$5),SUMIFS('Données FDC'!$I:$I,'Données FDC'!$B:$B,Activation!$F$5,'Données FDC'!$E:$E,Activation!L$9),SUMIFS('Données FDC'!$I:$I,'Données FDC'!$C:$C,Activation!$J$5,'Données FDC'!$E:$E,Activation!L$9))) -> 0.3375358882 | M63: =M62/IF(ISBLANK($F$5),SUMIFS('Données FDC'!$I:$I,'Données FDC'!$A:$A,Activation!$C$5,'Données FDC'!$E:$E,Activation!M$9),IF(ISBLANK($J$5),SUMIFS('Données FDC'!$I:$I,'Données FDC'!$B:$B,Activation!$F$5,'Données FDC'!$E:$E,Activation!M$9),SUMIFS('Données FDC'!$I:$I,'Données FDC'!$C:$C,Activation!$J$5,'Données FDC'!$E:$E,Activation!M$9))) -> 0.1404749047 | N63: =N62/IF(ISBLANK($F$5),SUMIFS('Données FDC'!$I:$I,'Données FDC'!$A:$A,Activation!$C$5,'Données FDC'!$E:$E,Activation!N$9),IF(ISBLANK($J$5),SUMIFS('Données FDC'!$I:$I,'Données FDC'!$B:$B,Activation!$F$5,'Données FDC'!$E:$E,Activation!N$9),SUMIFS('Données FDC'!$I:$I,'Données FDC'!$C:$C,Activation!$J$5,'Données FDC'!$E:$E,Activation!N$9))) -> 0.2348630412 | O63: =O62/IF(ISBLANK($F$5),SUMIFS('Données FDC'!$I:$I,'Données FDC'!$A:$A,Activation!$C$5,'Données FDC'!$E:$E,Activation!O$9),IF(ISBLANK($J$5),SUMIFS('Données FDC'!$I:$I,'Données FDC'!$B:$B,Activation!$F$5,'Données FDC'!$E:$E,Activation!O$9),SUMIFS('Données FDC'!$I:$I,'Données FDC'!$C:$C,Activation!$J$5,'Données FDC'!$E:$E,Activation!O$9))) -> 0.07774598831 | P63: =P62/IF(ISBLANK($F$5),SUMIFS('Données FDC'!$I:$I,'Données FDC'!$A:$A,Activation!$C$5,'Données FDC'!$E:$E,Activation!P$9),IF(ISBLANK($J$5),SUMIFS('Données FDC'!$I:$I,'Données FDC'!$B:$B,Activation!$F$5,'Données FDC'!$E:$E,Activation!P$9),SUMIFS('Données FDC'!$I:$I,'Données FDC'!$C:$C,Activation!$J$5,'Données FDC'!$E:$E,Activation!P$9))) -> 0.001512415206
C64: % détenteurs CEGEE | D64: =SUM('Données FDC'!$AE:$AE)/SUM('Données FDC'!$I:$I) -> 0.5575494537 | E64: =SUM('Données FDC déc 2021'!$AE:$AE)/SUM('Données FDC déc 2021'!$I:$I) -> 0.531966245 | F64: =SUMIF('Données FDC'!$E:$E,Activation!F$9,'Données FDC'!$AE:$AE)/SUMIF('Données FDC'!$E:$E,Activation!F$9,'Données FDC'!$I:$I) -> 1.14787491 | G64: =SUMIF('Données FDC'!$E:$E,Activation!G$9,'Données FDC'!$AE:$AE)/SUMIF('Données FDC'!$E:$E,Activation!G$9,'Données FDC'!$I:$I) -> 0.9969045201 | H64: =SUMIF('Données FDC'!$E:$E,Activation!H$9,'Données FDC'!$AE:$AE)/SUMIF('Données FDC'!$E:$E,Activation!H$9,'Données FDC'!$I:$I) -> 0.348451013 | I64: =SUMIF('Données FDC'!$E:$E,Activation!I$9,'Données FDC'!$AE:$AE)/SUMIF('Données FDC'!$E:$E,Activation!I$9,'Données FDC'!$I:$I) -> 0.1617302145 | J64: =SUMIF('Données FDC'!$E:$E,Activation!J$9,'Données FDC'!$AE:$AE)/SUMIF('Données FDC'!$E:$E,Activation!J$9,'Données FDC'!$I:$I) -> 1.054393508 | K64: =SUMIF('Données FDC'!$E:$E,Activation!K$9,'Données FDC'!$AE:$AE)/SUMIF('Données FDC'!$E:$E,Activation!K$9,'Données FDC'!$I:$I) -> 0.994448949 | L64: =SUMIF('Données FDC'!$E:$E,Activation!L$9,'Données FDC'!$AE:$AE)/SUMIF('Données FDC'!$E:$E,Activation!L$9,'Données FDC'!$I:$I) -> 0.3375358882 | M64: =SUMIF('Données FDC'!$E:$E,Activation!M$9,'Données FDC'!$AE:$AE)/SUMIF('Données FDC'!$E:$E,Activation!M$9,'Données FDC'!$I:$I) -> 0.1404749047 | N64: =SUMIF('Données FDC'!$E:$E,Activation!N$9,'Données FDC'!$AE:$AE)/SUMIF('Données FDC'!$E:$E,Activation!N$9,'Données FDC'!$I:$I) -> 0.2348630412 | O64: =SUMIF('Données FDC'!$E:$E,Activation!O$9,'Données FDC'!$AE:$AE)/SUMIF('Données FDC'!$E:$E,Activation!O$9,'Données FDC'!$I:$I) -> 0.07774598831 | P64: =SUMIF('Données FDC'!$E:$E,Activation!P$9,'Données FDC'!$AE:$AE)/SUMIF('Données FDC'!$E:$E,Activation!P$9,'Données FDC'!$I:$I) -> 0.001512415206
B65: Bouquet Liberté (12 ans et plus) | C65: Variation | D65: =SUM(F65:P65) -> -36028 | F65: =F66-IF(ISBLANK($F$5),SUMIFS('Données FDC déc 2021'!$AF:$AF,'Données FDC déc 2021'!$A:$A,Activation!$C$5,'Données FDC déc 2021'!$E:$E,Activation!F$9),IF(ISBLANK($J$5),SUMIFS('Données FDC déc 2021'!$AF:$AF,'Données FDC déc 2021'!$B:$B,Activation!$F$5,'Données FDC déc 2021'!$E:$E,Activation!F$9),SUMIFS('Données FDC déc 2021'!$AF:$AF,'Données FDC déc 2021'!$C:$C,Activation!$J$5,'Données FDC déc 2021'!$E:$E,Activation!F$9))) -> -13914 | G65: =G66-IF(ISBLANK($F$5),SUMIFS('Données FDC déc 2021'!$AF:$AF,'Données FDC déc 2021'!$A:$A,Activation!$C$5,'Données FDC déc 2021'!$E:$E,Activation!G$9),IF(ISBLANK($J$5),SUMIFS('Données FDC déc 2021'!$AF:$AF,'Données FDC déc 2021'!$B:$B,Activation!$F$5,'Données FDC déc 2021'!$E:$E,Activation!G$9),SUMIFS('Données FDC déc 2021'!$AF:$AF,'Données FDC déc 2021'!$C:$C,Activation!$J$5,'Données FDC déc 2021'!$E:$E,Activation!G$9))) -> -4871 | H65: =H66-IF(ISBLANK($F$5),SUMIFS('Données FDC déc 2021'!$AF:$AF,'Données FDC déc 2021'!$A:$A,Activation!$C$5,'Données FDC déc 2021'!$E:$E,Activation!H$9),IF(ISBLANK($J$5),SUMIFS('Données FDC déc 2021'!$AF:$AF,'Données FDC déc 2021'!$B:$B,Activation!$F$5,'Données FDC déc 2021'!$E:$E,Activation!H$9),SUMIFS('Données FDC déc 2021'!$AF:$AF,'Données FDC déc 2021'!$C:$C,Activation!$J$5,'Données FDC déc 2021'!$E:$E,Activation!H$9))) -> -3003 | I65: =I66-IF(ISBLANK($F$5),SUMIFS('Données FDC déc 2021'!$AF:$AF,'Données FDC déc 2021'!$A:$A,Activation!$C$5,'Données FDC déc 2021'!$E:$E,Activation!I$9),IF(ISBLANK($J$5),SUMIFS('Données FDC déc 2021'!$AF:$AF,'Données FDC déc 2021'!$B:$B,Activation!$F$5,'Données FDC déc 2021'!$E:$E,Activation!I$9),SUMIFS('Données FDC déc 2021'!$AF:$AF,'Données FDC déc 2021'!$C:$C,Activation!$J$5,'Données FDC déc 2021'!$E:$E,Activation!I$9))) -> -2275 | J65: =J66-IF(ISBLANK($F$5),SUMIFS('Données FDC déc 2021'!$AF:$AF,'Données FDC déc 2021'!$A:$A,Activation!$C$5,'Données FDC déc 2021'!$E:$E,Activation!J$9),IF(ISBLANK($J$5),SUMIFS('Données FDC déc 2021'!$AF:$AF,'Données FDC déc 2021'!$B:$B,Activation!$F$5,'Données FDC déc 2021'!$E:$E,Activation!J$9),SUMIFS('Données FDC déc 2021'!$AF:$AF,'Données FDC déc 2021'!$C:$C,Activation!$J$5,'Données FDC déc 2021'!$E:$E,Activation!J$9))) -> -8929 | K65: =K66-IF(ISBLANK($F$5),SUMIFS('Données FDC déc 2021'!$AF:$AF,'Données FDC déc 2021'!$A:$A,Activation!$C$5,'Données FDC déc 2021'!$E:$E,Activation!K$9),IF(ISBLANK($J$5),SUMIFS('Données FDC déc 2021'!$AF:$AF,'Données FDC déc 2021'!$B:$B,Activation!$F$5,'Données FDC déc 2021'!$E:$E,Activation!K$9),SUMIFS('Données FDC déc 2021'!$AF:$AF,'Données FDC déc 2021'!$C:$C,Activation!$J$5,'Données FDC déc 2021'!$E:$E,Activation!K$9))) -> -1792 | L65: =L66-IF(ISBLANK($F$5),SUMIFS('Données FDC déc 2021'!$AF:$AF,'Données FDC déc 2021'!$A:$A,Activation!$C$5,'Données FDC déc 2021'!$E:$E,Activation!L$9),IF(ISBLANK($J$5),SUMIFS('Données FDC déc 2021'!$AF:$AF,'Données FDC déc 2021'!$B:$B,Activation!$F$5,'Données FDC déc 2021'!$E:$E,Activation!L$9),SUMIFS('Données FDC déc 2021'!$AF:$AF,'Données FDC déc 2021'!$C:$C,Activation!$J$5,'Données FDC déc 2021'!$E:$E,Activation!L$9))) -> -322 | M65: =M66-IF(ISBLANK($F$5),SUMIFS('Données FDC déc 2021'!$AF:$AF,'Données FDC déc 2021'!$A:$A,Activation!$C$5,'Données FDC déc 2021'!$E:$E,Activation!M$9),IF(ISBLANK($J$5),SUMIFS('Données FDC déc 2021'!$AF:$AF,'Données FDC déc 2021'!$B:$B,Activation!$F$5,'Données FDC déc 2021'!$E:$E,Activation!M$9),SUMIFS('Données FDC déc 2021'!$AF:$AF,'Données FDC déc 2021'!$C:$C,Activation!$J$5,'Données FDC déc 2021'!$E:$E,Activation!M$9))) -> -780 | N65: =N66-IF(ISBLANK($F$5),SUMIFS('Données FDC déc 2021'!$AF:$AF,'Données FDC déc 2021'!$A:$A,Activation!$C$5,'Données FDC déc 2021'!$E:$E,Activation!N$9),IF(ISBLANK($J$5),SUMIFS('Données FDC déc 2021'!$AF:$AF,'Données FDC déc 2021'!$B:$B,Activation!$F$5,'Données FDC déc 2021'!$E:$E,Activation!N$9),SUMIFS('Données FDC déc 2021'!$AF:$AF,'Données FDC déc 2021'!$C:$C,Activation!$J$5,'Données FDC déc 2021'!$E:$E,Activation!N$9))) -> -162 | O65: =O66-IF(ISBLANK($F$5),SUMIFS('Données FDC déc 2021'!$AF:$AF,'Données FDC déc 2021'!$A:$A,Activation!$C$5,'Données FDC déc 2021'!$E:$E,Activation!O$9),IF(ISBLANK($J$5),SUMIFS('Données FDC déc 2021'!$AF:$AF,'Données FDC déc 2021'!$B:$B,Activation!$F$5,'Données FDC déc 2021'!$E:$E,Activation!O$9),SUMIFS('Données FDC déc 2021'!$AF:$AF,'Données FDC déc 2021'!$C:$C,Activation!$J$5,'Données FDC déc 2021'!$E:$E,Activation!O$9))) -> -42 | P65: =P66-IF(ISBLANK($F$5),SUMIFS('Données FDC déc 2021'!$AF:$AF,'Données FDC déc 2021'!$A:$A,Activation!$C$5,'Données FDC déc 2021'!$E:$E,Activation!P$9),IF(ISBLANK($J$5),SUMIFS('Données FDC déc 2021'!$AF:$AF,'Données FDC déc 2021'!$B:$B,Activation!$F$5,'Données FDC déc 2021'!$E:$E,Activation!P$9),SUMIFS('Données FDC déc 2021'!$AF:$AF,'Données FDC déc 2021'!$C:$C,Activation!$J$5,'Données FDC déc 2021'!$E:$E,Activation!P$9))) -> 62
C66: Nombre détenteurs | D66: =SUM(F66:P66) -> 381836 | E66: =IF(ISBLANK($F$5),SUMIFS('Données FDC déc 2021'!$AF:$AF,'Données FDC déc 2021'!$A:$A,Activation!$C$5),IF(ISBLANK($J$5),SUMIFS('Données FDC déc 2021'!$AF:$AF,'Données FDC déc 2021'!$B:$B,Activation!$F$5),SUMIFS('Données FDC déc 2021'!$AF:$AF,'Données FDC déc 2021'!$C:$C,Activation!$J$5))) -> 417864 | F66: =IF(ISBLANK($F$5),SUMIFS('Données FDC'!$AF:$AF,'Données FDC'!$A:$A,Activation!$C$5,'Données FDC'!$E:$E,Activation!F$9),IF(ISBLANK($J$5),SUMIFS('Données FDC'!$AF:$AF,'Données FDC'!$B:$B,Activation!$F$5,'Données FDC'!$E:$E,Activation!F$9),SUMIFS('Données FDC'!$AF:$AF,'Données FDC'!$C:$C,Activation!$J$5,'Données FDC'!$E:$E,Activation!F$9))) -> 195595 | G66: =IF(ISBLANK($F$5),SUMIFS('Données FDC'!$AF:$AF,'Données FDC'!$A:$A,Activation!$C$5,'Données FDC'!$E:$E,Activation!G$9),IF(ISBLANK($J$5),SUMIFS('Données FDC'!$AF:$AF,'Données FDC'!$B:$B,Activation!$F$5,'Données FDC'!$E:$E,Activation!G$9),SUMIFS('Données FDC'!$AF:$AF,'Données FDC'!$C:$C,Activation!$J$5,'Données FDC'!$E:$E,Activation!G$9))) -> 102508 | H66: =IF(ISBLANK($F$5),SUMIFS('Données FDC'!$AF:$AF,'Données FDC'!$A:$A,Activation!$C$5,'Données FDC'!$E:$E,Activation!H$9),IF(ISBLANK($J$5),SUMIFS('Données FDC'!$AF:$AF,'Données FDC'!$B:$B,Activation!$F$5,'Données FDC'!$E:$E,Activation!H$9),SUMIFS('Données FDC'!$AF:$AF,'Données FDC'!$C:$C,Activation!$J$5,'Données FDC'!$E:$E,Activation!H$9))) -> 27326 | I66: =IF(ISBLANK($F$5),SUMIFS('Données FDC'!$AF:$AF,'Données FDC'!$A:$A,Activation!$C$5,'Données FDC'!$E:$E,Activation!I$9),IF(ISBLANK($J$5),SUMIFS('Données FDC'!$AF:$AF,'Données FDC'!$B:$B,Activation!$F$5,'Données FDC'!$E:$E,Activation!I$9),SUMIFS('Données FDC'!$AF:$AF,'Données FDC'!$C:$C,Activation!$J$5,'Données FDC'!$E:$E,Activation!I$9))) -> 23085 | J66: =IF(ISBLANK($F$5),SUMIFS('Données FDC'!$AF:$AF,'Données FDC'!$A:$A,Activation!$C$5,'Données FDC'!$E:$E,Activation!J$9),IF(ISBLANK($J$5),SUMIFS('Données FDC'!$AF:$AF,'Données FDC'!$B:$B,Activation!$F$5,'Données FDC'!$E:$E,Activation!J$9),SUMIFS('Données FDC'!$AF:$AF,'Données FDC'!$C:$C,Activation!$J$5,'Données FDC'!$E:$E,Activation!J$9))) -> 25848 | K66: =IF(ISBLANK($F$5),SUMIFS('Données FDC'!$AF:$AF,'Données FDC'!$A:$A,Activation!$C$5,'Données FDC'!$E:$E,Activation!K$9),IF(ISBLANK($J$5),SUMIFS('Données FDC'!$AF:$AF,'Données FDC'!$B:$B,Activation!$F$5,'Données FDC'!$E:$E,Activation!K$9),SUMIFS('Données FDC'!$AF:$AF,'Données FDC'!$C:$C,Activation!$J$5,'Données FDC'!$E:$E,Activation!K$9))) -> 5389 | L66: =IF(ISBLANK($F$5),SUMIFS('Données FDC'!$AF:$AF,'Données FDC'!$A:$A,Activation!$C$5,'Données FDC'!$E:$E,Activation!L$9),IF(ISBLANK($J$5),SUMIFS('Données FDC'!$AF:$AF,'Données FDC'!$B:$B,Activation!$F$5,'Données FDC'!$E:$E,Activation!L$9),SUMIFS('Données FDC'!$AF:$AF,'Données FDC'!$C:$C,Activation!$J$5,'Données FDC'!$E:$E,Activation!L$9))) -> 382 | M66: =IF(ISBLANK($F$5),SUMIFS('Données FDC'!$AF:$AF,'Données FDC'!$A:$A,Activation!$C$5,'Données FDC'!$E:$E,Activation!M$9),IF(ISBLANK($J$5),SUMIFS('Données FDC'!$AF:$AF,'Données FDC'!$B:$B,Activation!$F$5,'Données FDC'!$E:$E,Activation!M$9),SUMIFS('Données FDC'!$AF:$AF,'Données FDC'!$C:$C,Activation!$J$5,'Données FDC'!$E:$E,Activation!M$9))) -> 1521 | N66: =IF(ISBLANK($F$5),SUMIFS('Données FDC'!$AF:$AF,'Données FDC'!$A:$A,Activation!$C$5,'Données FDC'!$E:$E,Activation!N$9),IF(ISBLANK($J$5),SUMIFS('Données FDC'!$AF:$AF,'Données FDC'!$B:$B,Activation!$F$5,'Données FDC'!$E:$E,Activation!N$9),SUMIFS('Données FDC'!$AF:$AF,'Données FDC'!$C:$C,Activation!$J$5,'Données FDC'!$E:$E,Activation!N$9))) -> 61 | O66: =IF(ISBLANK($F$5),SUMIFS('Données FDC'!$AF:$AF,'Données FDC'!$A:$A,Activation!$C$5,'Données FDC'!$E:$E,Activation!O$9),IF(ISBLANK($J$5),SUMIFS('Données FDC'!$AF:$AF,'Données FDC'!$B:$B,Activation!$F$5,'Données FDC'!$E:$E,Activation!O$9),SUMIFS('Données FDC'!$AF:$AF,'Données FDC'!$C:$C,Activation!$J$5,'Données FDC'!$E:$E,Activation!O$9))) -> 27 | P66: =IF(ISBLANK($F$5),SUMIFS('Données FDC'!$AF:$AF,'Données FDC'!$A:$A,Activation!$C$5,'Données FDC'!$E:$E,Activation!P$9),IF(ISBLANK($J$5),SUMIFS('Données FDC'!$AF:$AF,'Données FDC'!$B:$B,Activation!$F$5,'Données FDC'!$E:$E,Activation!P$9),SUMIFS('Données FDC'!$AF:$AF,'Données FDC'!$C:$C,Activation!$J$5,'Données FDC'!$E:$E,Activation!P$9))) -> 94
C67: % détenteurs | D67: =D66/IF(ISBLANK($F$5),SUMIFS('Données FDC'!$I:$I,'Données FDC'!$A:$A,Activation!$C$5),IF(ISBLANK($J$5),SUMIFS('Données FDC'!$I:$I,'Données FDC'!$B:$B,Activation!$F$5),SUMIFS('Données FDC'!$I:$I,'Données FDC'!$C:$C,Activation!$J$5))) -> 0.3040773421 | E67: =E66/IF(ISBLANK($F$5),SUMIFS('Données FDC déc 2021'!$I:$I,'Données FDC déc 2021'!$A:$A,Activation!$C$5),IF(ISBLANK($J$5),SUMIFS('Données FDC déc 2021'!$I:$I,'Données FDC déc 2021'!$B:$B,Activation!$F$5),SUMIFS('Données FDC déc 2021'!$I:$I,'Données FDC déc 2021'!$C:$C,Activation!$J$5))) -> 0.3253295423 | F67: =F66/IF(ISBLANK($F$5),SUMIFS('Données FDC'!$I:$I,'Données FDC'!$A:$A,Activation!$C$5,'Données FDC'!$E:$E,Activation!F$9),IF(ISBLANK($J$5),SUMIFS('Données FDC'!$I:$I,'Données FDC'!$B:$B,Activation!$F$5,'Données FDC'!$E:$E,Activation!F$9),SUMIFS('Données FDC'!$I:$I,'Données FDC'!$C:$C,Activation!$J$5,'Données FDC'!$E:$E,Activation!F$9))) -> 0.664360367 | G67: =G66/IF(ISBLANK($F$5),SUMIFS('Données FDC'!$I:$I,'Données FDC'!$A:$A,Activation!$C$5,'Données FDC'!$E:$E,Activation!G$9),IF(ISBLANK($J$5),SUMIFS('Données FDC'!$I:$I,'Données FDC'!$B:$B,Activation!$F$5,'Données FDC'!$E:$E,Activation!G$9),SUMIFS('Données FDC'!$I:$I,'Données FDC'!$C:$C,Activation!$J$5,'Données FDC'!$E:$E,Activation!G$9))) -> 0.6308378719 | H67: =H66/IF(ISBLANK($F$5),SUMIFS('Données FDC'!$I:$I,'Données FDC'!$A:$A,Activation!$C$5,'Données FDC'!$E:$E,Activation!H$9),IF(ISBLANK($J$5),SUMIFS('Données FDC'!$I:$I,'Données FDC'!$B:$B,Activation!$F$5,'Données FDC'!$E:$E,Activation!H$9),SUMIFS('Données FDC'!$I:$I,'Données FDC'!$C:$C,Activation!$J$5,'Données FDC'!$E:$E,Activation!H$9))) -> 0.1849175092 | I67: =I66/IF(ISBLANK($F$5),SUMIFS('Données FDC'!$I:$I,'Données FDC'!$A:$A,Activation!$C$5,'Données FDC'!$E:$E,Activation!I$9),IF(ISBLANK($J$5),SUMIFS('Données FDC'!$I:$I,'Données FDC'!$B:$B,Activation!$F$5,'Données FDC'!$E:$E,Activation!I$9),SUMIFS('Données FDC'!$I:$I,'Données FDC'!$C:$C,Activation!$J$5,'Données FDC'!$E:$E,Activation!I$9))) -> 0.07679972853 | J67: =J66/IF(ISBLANK($F$5),SUMIFS('Données FDC'!$I:$I,'Données FDC'!$A:$A,Activation!$C$5,'Données FDC'!$E:$E,Activation!J$9),IF(ISBLANK($J$5),SUMIFS('Données FDC'!$I:$I,'Données FDC'!$B:$B,Activation!$F$5,'Données FDC'!$E:$E,Activation!J$9),SUMIFS('Données FDC'!$I:$I,'Données FDC'!$C:$C,Activation!$J$5,'Données FDC'!$E:$E,Activation!J$9))) -> 0.4162117772 | K67: =K66/IF(ISBLANK($F$5),SUMIFS('Données FDC'!$I:$I,'Données FDC'!$A:$A,Activation!$C$5,'Données FDC'!$E:$E,Activation!K$9),IF(ISBLANK($J$5),SUMIFS('Données FDC'!$I:$I,'Données FDC'!$B:$B,Activation!$F$5,'Données FDC'!$E:$E,Activation!K$9),SUMIFS('Données FDC'!$I:$I,'Données FDC'!$C:$C,Activation!$J$5,'Données FDC'!$E:$E,Activation!K$9))) -> 0.336119254 | L67: =L66/IF(ISBLANK($F$5),SUMIFS('Données FDC'!$I:$I,'Données FDC'!$A:$A,Activation!$C$5,'Données FDC'!$E:$E,Activation!L$9),IF(ISBLANK($J$5),SUMIFS('Données FDC'!$I:$I,'Données FDC'!$B:$B,Activation!$F$5,'Données FDC'!$E:$E,Activation!L$9),SUMIFS('Données FDC'!$I:$I,'Données FDC'!$C:$C,Activation!$J$5,'Données FDC'!$E:$E,Activation!L$9))) -> 0.0476844339 | M67: =M66/IF(ISBLANK($F$5),SUMIFS('Données FDC'!$I:$I,'Données FDC'!$A:$A,Activation!$C$5,'Données FDC'!$E:$E,Activation!M$9),IF(ISBLANK($J$5),SUMIFS('Données FDC'!$I:$I,'Données FDC'!$B:$B,Activation!$F$5,'Données FDC'!$E:$E,Activation!M$9),SUMIFS('Données FDC'!$I:$I,'Données FDC'!$C:$C,Activation!$J$5,'Données FDC'!$E:$E,Activation!M$9))) -> 0.02489076538 | N67: =N66/IF(ISBLANK($F$5),SUMIFS('Données FDC'!$I:$I,'Données FDC'!$A:$A,Activation!$C$5,'Données FDC'!$E:$E,Activation!N$9),IF(ISBLANK($J$5),SUMIFS('Données FDC'!$I:$I,'Données FDC'!$B:$B,Activation!$F$5,'Données FDC'!$E:$E,Activation!N$9),SUMIFS('Données FDC'!$I:$I,'Données FDC'!$C:$C,Activation!$J$5,'Données FDC'!$E:$E,Activation!N$9))) -> 0.002725769695 | O67: =O66/IF(ISBLANK($F$5),SUMIFS('Données FDC'!$I:$I,'Données FDC'!$A:$A,Activation!$C$5,'Données FDC'!$E:$E,Activation!O$9),IF(ISBLANK($J$5),SUMIFS('Données FDC'!$I:$I,'Données FDC'!$B:$B,Activation!$F$5,'Données FDC'!$E:$E,Activation!O$9),SUMIFS('Données FDC'!$I:$I,'Données FDC'!$C:$C,Activation!$J$5,'Données FDC'!$E:$E,Activation!O$9))) -> 0.001119542232 | P67: =P66/IF(ISBLANK($F$5),SUMIFS('Données FDC'!$I:$I,'Données FDC'!$A:$A,Activation!$C$5,'Données FDC'!$E:$E,Activation!P$9),IF(ISBLANK($J$5),SUMIFS('Données FDC'!$I:$I,'Données FDC'!$B:$B,Activation!$F$5,'Données FDC'!$E:$E,Activation!P$9),SUMIFS('Données FDC'!$I:$I,'Données FDC'!$C:$C,Activation!$J$5,'Données FDC'!$E:$E,Activation!P$9))) -> 0.0005998608833
C68: % détenteurs CEGEE | D68: =SUM('Données FDC'!$AF:$AF)/SUM('Données FDC'!$I:$I) -> 0.3040773421 | E68: =SUM('Données FDC déc 2021'!$AF:$AF)/SUM('Données FDC déc 2021'!$I:$I) -> 0.3253295423 | F68: =SUMIF('Données FDC'!$E:$E,Activation!F$9,'Données FDC'!$AF:$AF)/SUMIF('Données FDC'!$E:$E,Activation!F$9,'Données FDC'!$I:$I) -> 0.664360367 | G68: =SUMIF('Données FDC'!$E:$E,Activation!G$9,'Données FDC'!$AF:$AF)/SUMIF('Données FDC'!$E:$E,Activation!G$9,'Données FDC'!$I:$I) -> 0.6308378719 | H68: =SUMIF('Données FDC'!$E:$E,Activation!H$9,'Données FDC'!$AF:$AF)/SUMIF('Données FDC'!$E:$E,Activation!H$9,'Données FDC'!$I:$I) -> 0.1849175092 | I68: =SUMIF('Données FDC'!$E:$E,Activation!I$9,'Données FDC'!$AF:$AF)/SUMIF('Données FDC'!$E:$E,Activation!I$9,'Données FDC'!$I:$I) -> 0.07679972853 | J68: =SUMIF('Données FDC'!$E:$E,Activation!J$9,'Données FDC'!$AF:$AF)/SUMIF('Données FDC'!$E:$E,Activation!J$9,'Données FDC'!$I:$I) -> 0.4162117772 | K68: =SUMIF('Données FDC'!$E:$E,Activation!K$9,'Données FDC'!$AF:$AF)/SUMIF('Données FDC'!$E:$E,Activation!K$9,'Données FDC'!$I:$I) -> 0.336119254 | L68: =SUMIF('Données FDC'!$E:$E,Activation!L$9,'Données FDC'!$AF:$AF)/SUMIF('Données FDC'!$E:$E,Activation!L$9,'Données FDC'!$I:$I) -> 0.0476844339 | M68: =SUMIF('Données FDC'!$E:$E,Activation!M$9,'Données FDC'!$AF:$AF)/SUMIF('Données FDC'!$E:$E,Activation!M$9,'Données FDC'!$I:$I) -> 0.02489076538 | N68: =SUMIF('Données FDC'!$E:$E,Activation!N$9,'Données FDC'!$AF:$AF)/SUMIF('Données FDC'!$E:$E,Activation!N$9,'Données FDC'!$I:$I) -> 0.002725769695 | O68: =SUMIF('Données FDC'!$E:$E,Activation!O$9,'Données FDC'!$AF:$AF)/SUMIF('Données FDC'!$E:$E,Activation!O$9,'Données FDC'!$I:$I) -> 0.001119542232 | P68: =SUMIF('Données FDC'!$E:$E,Activation!P$9,'Données FDC'!$AF:$AF)/SUMIF('Données FDC'!$E:$E,Activation!P$9,'Données FDC'!$I:$I) -> 0.0005998608833
B69: Carte de paiement (12 ans et plus) | C69: Variation | D69: =SUM(F69:P69) -> 6550 | F69: =F70-IF(ISBLANK($F$5),SUMIFS('Données FDC déc 2021'!$Y:$Y,'Données FDC déc 2021'!$A:$A,Activation!$C$5,'Données FDC déc 2021'!$E:$E,Activation!F$9),IF(ISBLANK($J$5),SUMIFS('Données FDC déc 2021'!$Y:$Y,'Données FDC déc 2021'!$B:$B,Activation!$F$5,'Données FDC déc 2021'!$E:$E,Activation!F$9),SUMIFS('Données FDC déc 2021'!$Y:$Y,'Données FDC déc 2021'!$C:$C,Activation!$J$5,'Données FDC déc 2021'!$E:$E,Activation!F$9))) -> 5619 | G69: =G70-IF(ISBLANK($F$5),SUMIFS('Données FDC déc 2021'!$Y:$Y,'Données FDC déc 2021'!$A:$A,Activation!$C$5,'Données FDC déc 2021'!$E:$E,Activation!G$9),IF(ISBLANK($J$5),SUMIFS('Données FDC déc 2021'!$Y:$Y,'Données FDC déc 2021'!$B:$B,Activation!$F$5,'Données FDC déc 2021'!$E:$E,Activation!G$9),SUMIFS('Données FDC déc 2021'!$Y:$Y,'Données FDC déc 2021'!$C:$C,Activation!$J$5,'Données FDC déc 2021'!$E:$E,Activation!G$9))) -> 2964 | H69: =H70-IF(ISBLANK($F$5),SUMIFS('Données FDC déc 2021'!$Y:$Y,'Données FDC déc 2021'!$A:$A,Activation!$C$5,'Données FDC déc 2021'!$E:$E,Activation!H$9),IF(ISBLANK($J$5),SUMIFS('Données FDC déc 2021'!$Y:$Y,'Données FDC déc 2021'!$B:$B,Activation!$F$5,'Données FDC déc 2021'!$E:$E,Activation!H$9),SUMIFS('Données FDC déc 2021'!$Y:$Y,'Données FDC déc 2021'!$C:$C,Activation!$J$5,'Données FDC déc 2021'!$E:$E,Activation!H$9))) -> -2197 | I69: =I70-IF(ISBLANK($F$5),SUMIFS('Données FDC déc 2021'!$Y:$Y,'Données FDC déc 2021'!$A:$A,Activation!$C$5,'Données FDC déc 2021'!$E:$E,Activation!I$9),IF(ISBLANK($J$5),SUMIFS('Données FDC déc 2021'!$Y:$Y,'Données FDC déc 2021'!$B:$B,Activation!$F$5,'Données FDC déc 2021'!$E:$E,Activation!I$9),SUMIFS('Données FDC déc 2021'!$Y:$Y,'Données FDC déc 2021'!$C:$C,Activation!$J$5,'Données FDC déc 2021'!$E:$E,Activation!I$9))) -> -1619 | J69: =J70-IF(ISBLANK($F$5),SUMIFS('Données FDC déc 2021'!$Y:$Y,'Données FDC déc 2021'!$A:$A,Activation!$C$5,'Données FDC déc 2021'!$E:$E,Activation!J$9),IF(ISBLANK($J$5),SUMIFS('Données FDC déc 2021'!$Y:$Y,'Données FDC déc 2021'!$B:$B,Activation!$F$5,'Données FDC déc 2021'!$E:$E,Activation!J$9),SUMIFS('Données FDC déc 2021'!$Y:$Y,'Données FDC déc 2021'!$C:$C,Activation!$J$5,'Données FDC déc 2021'!$E:$E,Activation!J$9))) -> -350 | K69: =K70-IF(ISBLANK($F$5),SUMIFS('Données FDC déc 2021'!$Y:$Y,'Données FDC déc 2021'!$A:$A,Activation!$C$5,'Données FDC déc 2021'!$E:$E,Activation!K$9),IF(ISBLANK($J$5),SUMIFS('Données FDC déc 2021'!$Y:$Y,'Données FDC déc 2021'!$B:$B,Activation!$F$5,'Données FDC déc 2021'!$E:$E,Activation!K$9),SUMIFS('Données FDC déc 2021'!$Y:$Y,'Données FDC déc 2021'!$C:$C,Activation!$J$5,'Données FDC déc 2021'!$E:$E,Activation!K$9))) -> 419 | L69: =L70-IF(ISBLANK($F$5),SUMIFS('Données FDC déc 2021'!$Y:$Y,'Données FDC déc 2021'!$A:$A,Activation!$C$5,'Données FDC déc 2021'!$E:$E,Activation!L$9),IF(ISBLANK($J$5),SUMIFS('Données FDC déc 2021'!$Y:$Y,'Données FDC déc 2021'!$B:$B,Activation!$F$5,'Données FDC déc 2021'!$E:$E,Activation!L$9),SUMIFS('Données FDC déc 2021'!$Y:$Y,'Données FDC déc 2021'!$C:$C,Activation!$J$5,'Données FDC déc 2021'!$E:$E,Activation!L$9))) -> 3 | M69: =M70-IF(ISBLANK($F$5),SUMIFS('Données FDC déc 2021'!$Y:$Y,'Données FDC déc 2021'!$A:$A,Activation!$C$5,'Données FDC déc 2021'!$E:$E,Activation!M$9),IF(ISBLANK($J$5),SUMIFS('Données FDC déc 2021'!$Y:$Y,'Données FDC déc 2021'!$B:$B,Activation!$F$5,'Données FDC déc 2021'!$E:$E,Activation!M$9),SUMIFS('Données FDC déc 2021'!$Y:$Y,'Données FDC déc 2021'!$C:$C,Activation!$J$5,'Données FDC déc 2021'!$E:$E,Activation!M$9))) -> 539 | N69: =N70-IF(ISBLANK($F$5),SUMIFS('Données FDC déc 2021'!$Y:$Y,'Données FDC déc 2021'!$A:$A,Activation!$C$5,'Données FDC déc 2021'!$E:$E,Activation!N$9),IF(ISBLANK($J$5),SUMIFS('Données FDC déc 2021'!$Y:$Y,'Données FDC déc 2021'!$B:$B,Activation!$F$5,'Données FDC déc 2021'!$E:$E,Activation!N$9),SUMIFS('Données FDC déc 2021'!$Y:$Y,'Données FDC déc 2021'!$C:$C,Activation!$J$5,'Données FDC déc 2021'!$E:$E,Activation!N$9))) -> 724 | O69: =O70-IF(ISBLANK($F$5),SUMIFS('Données FDC déc 2021'!$Y:$Y,'Données FDC déc 2021'!$A:$A,Activation!$C$5,'Données FDC déc 2021'!$E:$E,Activation!O$9),IF(ISBLANK($J$5),SUMIFS('Données FDC déc 2021'!$Y:$Y,'Données FDC déc 2021'!$B:$B,Activation!$F$5,'Données FDC déc 2021'!$E:$E,Activation!O$9),SUMIFS('Données FDC déc 2021'!$Y:$Y,'Données FDC déc 2021'!$C:$C,Activation!$J$5,'Données FDC déc 2021'!$E:$E,Activation!O$9))) -> 453 | P69: =P70-IF(ISBLANK($F$5),SUMIFS('Données FDC déc 2021'!$Y:$Y,'Données FDC déc 2021'!$A:$A,Activation!$C$5,'Données FDC déc 2021'!$E:$E,Activation!P$9),IF(ISBLANK($J$5),SUMIFS('Données FDC déc 2021'!$Y:$Y,'Données FDC déc 2021'!$B:$B,Activation!$F$5,'Données FDC déc 2021'!$E:$E,Activation!P$9),SUMIFS('Données FDC déc 2021'!$Y:$Y,'Données FDC déc 2021'!$C:$C,Activation!$J$5,'Données FDC déc 2021'!$E:$E,Activation!P$9))) -> -5
C70: Nombre détenteurs | D70: =SUM(F70:P70) -> 597948 | E70: =IF(ISBLANK($F$5),SUMIFS('Données FDC déc 2021'!$Y:$Y,'Données FDC déc 2021'!$A:$A,Activation!$C$5),IF(ISBLANK($J$5),SUMIFS('Données FDC déc 2021'!$Y:$Y,'Données FDC déc 2021'!$B:$B,Activation!$F$5),SUMIFS('Données FDC déc 2021'!$Y:$Y,'Données FDC déc 2021'!$C:$C,Activation!$J$5))) -> 591398 | F70: =IF(ISBLANK($F$5),SUMIFS('Données FDC'!$Y:$Y,'Données FDC'!$A:$A,Activation!$C$5,'Données FDC'!$E:$E,Activation!F$9),IF(ISBLANK($J$5),SUMIFS('Données FDC'!$Y:$Y,'Données FDC'!$B:$B,Activation!$F$5,'Données FDC'!$E:$E,Activation!F$9),SUMIFS('Données FDC'!$Y:$Y,'Données FDC'!$C:$C,Activation!$J$5,'Données FDC'!$E:$E,Activation!F$9))) -> 288159 | G70: =IF(ISBLANK($F$5),SUMIFS('Données FDC'!$Y:$Y,'Données FDC'!$A:$A,Activation!$C$5,'Données FDC'!$E:$E,Activation!G$9),IF(ISBLANK($J$5),SUMIFS('Données FDC'!$Y:$Y,'Données FDC'!$B:$B,Activation!$F$5,'Données FDC'!$E:$E,Activation!G$9),SUMIFS('Données FDC'!$Y:$Y,'Données FDC'!$C:$C,Activation!$J$5,'Données FDC'!$E:$E,Activation!G$9))) -> 128502 | H70: =IF(ISBLANK($F$5),SUMIFS('Données FDC'!$Y:$Y,'Données FDC'!$A:$A,Activation!$C$5,'Données FDC'!$E:$E,Activation!H$9),IF(ISBLANK($J$5),SUMIFS('Données FDC'!$Y:$Y,'Données FDC'!$B:$B,Activation!$F$5,'Données FDC'!$E:$E,Activation!H$9),SUMIFS('Données FDC'!$Y:$Y,'Données FDC'!$C:$C,Activation!$J$5,'Données FDC'!$E:$E,Activation!H$9))) -> 45916 | I70: =IF(ISBLANK($F$5),SUMIFS('Données FDC'!$Y:$Y,'Données FDC'!$A:$A,Activation!$C$5,'Données FDC'!$E:$E,Activation!I$9),IF(ISBLANK($J$5),SUMIFS('Données FDC'!$Y:$Y,'Données FDC'!$B:$B,Activation!$F$5,'Données FDC'!$E:$E,Activation!I$9),SUMIFS('Données FDC'!$Y:$Y,'Données FDC'!$C:$C,Activation!$J$5,'Données FDC'!$E:$E,Activation!I$9))) -> 40753 | J70: =IF(ISBLANK($F$5),SUMIFS('Données FDC'!$Y:$Y,'Données FDC'!$A:$A,Activation!$C$5,'Données FDC'!$E:$E,Activation!J$9),IF(ISBLANK($J$5),SUMIFS('Données FDC'!$Y:$Y,'Données FDC'!$B:$B,Activation!$F$5,'Données FDC'!$E:$E,Activation!J$9),SUMIFS('Données FDC'!$Y:$Y,'Données FDC'!$C:$C,Activation!$J$5,'Données FDC'!$E:$E,Activation!J$9))) -> 61708 | K70: =IF(ISBLANK($F$5),SUMIFS('Données FDC'!$Y:$Y,'Données FDC'!$A:$A,Activation!$C$5,'Données FDC'!$E:$E,Activation!K$9),IF(ISBLANK($J$5),SUMIFS('Données FDC'!$Y:$Y,'Données FDC'!$B:$B,Activation!$F$5,'Données FDC'!$E:$E,Activation!K$9),SUMIFS('Données FDC'!$Y:$Y,'Données FDC'!$C:$C,Activation!$J$5,'Données FDC'!$E:$E,Activation!K$9))) -> 15226 | L70: =IF(ISBLANK($F$5),SUMIFS('Données FDC'!$Y:$Y,'Données FDC'!$A:$A,Activation!$C$5,'Données FDC'!$E:$E,Activation!L$9),IF(ISBLANK($J$5),SUMIFS('Données FDC'!$Y:$Y,'Données FDC'!$B:$B,Activation!$F$5,'Données FDC'!$E:$E,Activation!L$9),SUMIFS('Données FDC'!$Y:$Y,'Données FDC'!$C:$C,Activation!$J$5,'Données FDC'!$E:$E,Activation!L$9))) -> 2551 | M70: =IF(ISBLANK($F$5),SUMIFS('Données FDC'!$Y:$Y,'Données FDC'!$A:$A,Activation!$C$5,'Données FDC'!$E:$E,Activation!M$9),IF(ISBLANK($J$5),SUMIFS('Données FDC'!$Y:$Y,'Données FDC'!$B:$B,Activation!$F$5,'Données FDC'!$E:$E,Activation!M$9),SUMIFS('Données FDC'!$Y:$Y,'Données FDC'!$C:$C,Activation!$J$5,'Données FDC'!$E:$E,Activation!M$9))) -> 7859 | N70: =IF(ISBLANK($F$5),SUMIFS('Données FDC'!$Y:$Y,'Données FDC'!$A:$A,Activation!$C$5,'Données FDC'!$E:$E,Activation!N$9),IF(ISBLANK($J$5),SUMIFS('Données FDC'!$Y:$Y,'Données FDC'!$B:$B,Activation!$F$5,'Données FDC'!$E:$E,Activation!N$9),SUMIFS('Données FDC'!$Y:$Y,'Données FDC'!$C:$C,Activation!$J$5,'Données FDC'!$E:$E,Activation!N$9))) -> 5227 | O70: =IF(ISBLANK($F$5),SUMIFS('Données FDC'!$Y:$Y,'Données FDC'!$A:$A,Activation!$C$5,'Données FDC'!$E:$E,Activation!O$9),IF(ISBLANK($J$5),SUMIFS('Données FDC'!$Y:$Y,'Données FDC'!$B:$B,Activation!$F$5,'Données FDC'!$E:$E,Activation!O$9),SUMIFS('Données FDC'!$Y:$Y,'Données FDC'!$C:$C,Activation!$J$5,'Données FDC'!$E:$E,Activation!O$9))) -> 1799 | P70: =IF(ISBLANK($F$5),SUMIFS('Données FDC'!$Y:$Y,'Données FDC'!$A:$A,Activation!$C$5,'Données FDC'!$E:$E,Activation!P$9),IF(ISBLANK($J$5),SUMIFS('Données FDC'!$Y:$Y,'Données FDC'!$B:$B,Activation!$F$5,'Données FDC'!$E:$E,Activation!P$9),SUMIFS('Données FDC'!$Y:$Y,'Données FDC'!$C:$C,Activation!$J$5,'Données FDC'!$E:$E,Activation!P$9))) -> 248
C71: % détenteurs | D71: =D70/IF(ISBLANK($F$5),SUMIFS('Données FDC'!$I:$I,'Données FDC'!$A:$A,Activation!$C$5),IF(ISBLANK($J$5),SUMIFS('Données FDC'!$I:$I,'Données FDC'!$B:$B,Activation!$F$5),SUMIFS('Données FDC'!$I:$I,'Données FDC'!$C:$C,Activation!$J$5))) -> 0.4761794031 | E71: =E70/IF(ISBLANK($F$5),SUMIFS('Données FDC déc 2021'!$I:$I,'Données FDC déc 2021'!$A:$A,Activation!$C$5),IF(ISBLANK($J$5),SUMIFS('Données FDC déc 2021'!$I:$I,'Données FDC déc 2021'!$B:$B,Activation!$F$5),SUMIFS('Données FDC déc 2021'!$I:$I,'Données FDC déc 2021'!$C:$C,Activation!$J$5))) -> 0.4604350714 | F71: =F70/IF(ISBLANK($F$5),SUMIFS('Données FDC'!$I:$I,'Données FDC'!$A:$A,Activation!$C$5,'Données FDC'!$E:$E,Activation!F$9),IF(ISBLANK($J$5),SUMIFS('Données FDC'!$I:$I,'Données FDC'!$B:$B,Activation!$F$5,'Données FDC'!$E:$E,Activation!F$9),SUMIFS('Données FDC'!$I:$I,'Données FDC'!$C:$C,Activation!$J$5,'Données FDC'!$E:$E,Activation!F$9))) -> 0.9787643804 | G71: =G70/IF(ISBLANK($F$5),SUMIFS('Données FDC'!$I:$I,'Données FDC'!$A:$A,Activation!$C$5,'Données FDC'!$E:$E,Activation!G$9),IF(ISBLANK($J$5),SUMIFS('Données FDC'!$I:$I,'Données FDC'!$B:$B,Activation!$F$5,'Données FDC'!$E:$E,Activation!G$9),SUMIFS('Données FDC'!$I:$I,'Données FDC'!$C:$C,Activation!$J$5,'Données FDC'!$E:$E,Activation!G$9))) -> 0.7908058709 | H71: =H70/IF(ISBLANK($F$5),SUMIFS('Données FDC'!$I:$I,'Données FDC'!$A:$A,Activation!$C$5,'Données FDC'!$E:$E,Activation!H$9),IF(ISBLANK($J$5),SUMIFS('Données FDC'!$I:$I,'Données FDC'!$B:$B,Activation!$F$5,'Données FDC'!$E:$E,Activation!H$9),SUMIFS('Données FDC'!$I:$I,'Données FDC'!$C:$C,Activation!$J$5,'Données FDC'!$E:$E,Activation!H$9))) -> 0.3107177176 | I71: =I70/IF(ISBLANK($F$5),SUMIFS('Données FDC'!$I:$I,'Données FDC'!$A:$A,Activation!$C$5,'Données FDC'!$E:$E,Activation!I$9),IF(ISBLANK($J$5),SUMIFS('Données FDC'!$I:$I,'Données FDC'!$B:$B,Activation!$F$5,'Données FDC'!$E:$E,Activation!I$9),SUMIFS('Données FDC'!$I:$I,'Données FDC'!$C:$C,Activation!$J$5,'Données FDC'!$E:$E,Activation!I$9))) -> 0.1355780523 | J71: =J70/IF(ISBLANK($F$5),SUMIFS('Données FDC'!$I:$I,'Données FDC'!$A:$A,Activation!$C$5,'Données FDC'!$E:$E,Activation!J$9),IF(ISBLANK($J$5),SUMIFS('Données FDC'!$I:$I,'Données FDC'!$B:$B,Activation!$F$5,'Données FDC'!$E:$E,Activation!J$9),SUMIFS('Données FDC'!$I:$I,'Données FDC'!$C:$C,Activation!$J$5,'Données FDC'!$E:$E,Activation!J$9))) -> 0.9936395987 | K71: =K70/IF(ISBLANK($F$5),SUMIFS('Données FDC'!$I:$I,'Données FDC'!$A:$A,Activation!$C$5,'Données FDC'!$E:$E,Activation!K$9),IF(ISBLANK($J$5),SUMIFS('Données FDC'!$I:$I,'Données FDC'!$B:$B,Activation!$F$5,'Données FDC'!$E:$E,Activation!K$9),SUMIFS('Données FDC'!$I:$I,'Données FDC'!$C:$C,Activation!$J$5,'Données FDC'!$E:$E,Activation!K$9))) -> 0.9496663132 | L71: =L70/IF(ISBLANK($F$5),SUMIFS('Données FDC'!$I:$I,'Données FDC'!$A:$A,Activation!$C$5,'Données FDC'!$E:$E,Activation!L$9),IF(ISBLANK($J$5),SUMIFS('Données FDC'!$I:$I,'Données FDC'!$B:$B,Activation!$F$5,'Données FDC'!$E:$E,Activation!L$9),SUMIFS('Données FDC'!$I:$I,'Données FDC'!$C:$C,Activation!$J$5,'Données FDC'!$E:$E,Activation!L$9))) -> 0.3184371489 | M71: =M70/IF(ISBLANK($F$5),SUMIFS('Données FDC'!$I:$I,'Données FDC'!$A:$A,Activation!$C$5,'Données FDC'!$E:$E,Activation!M$9),IF(ISBLANK($J$5),SUMIFS('Données FDC'!$I:$I,'Données FDC'!$B:$B,Activation!$F$5,'Données FDC'!$E:$E,Activation!M$9),SUMIFS('Données FDC'!$I:$I,'Données FDC'!$C:$C,Activation!$J$5,'Données FDC'!$E:$E,Activation!M$9))) -> 0.1286104702 | N71: =N70/IF(ISBLANK($F$5),SUMIFS('Données FDC'!$I:$I,'Données FDC'!$A:$A,Activation!$C$5,'Données FDC'!$E:$E,Activation!N$9),IF(ISBLANK($J$5),SUMIFS('Données FDC'!$I:$I,'Données FDC'!$B:$B,Activation!$F$5,'Données FDC'!$E:$E,Activation!N$9),SUMIFS('Données FDC'!$I:$I,'Données FDC'!$C:$C,Activation!$J$5,'Données FDC'!$E:$E,Activation!N$9))) -> 0.2335671835 | O71: =O70/IF(ISBLANK($F$5),SUMIFS('Données FDC'!$I:$I,'Données FDC'!$A:$A,Activation!$C$5,'Données FDC'!$E:$E,Activation!O$9),IF(ISBLANK($J$5),SUMIFS('Données FDC'!$I:$I,'Données FDC'!$B:$B,Activation!$F$5,'Données FDC'!$E:$E,Activation!O$9),SUMIFS('Données FDC'!$I:$I,'Données FDC'!$C:$C,Activation!$J$5,'Données FDC'!$E:$E,Activation!O$9))) -> 0.07459468425 | P71: =P70/IF(ISBLANK($F$5),SUMIFS('Données FDC'!$I:$I,'Données FDC'!$A:$A,Activation!$C$5,'Données FDC'!$E:$E,Activation!P$9),IF(ISBLANK($J$5),SUMIFS('Données FDC'!$I:$I,'Données FDC'!$B:$B,Activation!$F$5,'Données FDC'!$E:$E,Activation!P$9),SUMIFS('Données FDC'!$I:$I,'Données FDC'!$C:$C,Activation!$J$5,'Données FDC'!$E:$E,Activation!P$9))) -> 0.001582611692
C72: % détenteurs CEGEE | D72: =SUM('Données FDC'!$Y:$Y)/SUM('Données FDC'!$I:$I) -> 0.4761794031 | E72: =SUM('Données FDC déc 2021'!$Y:$Y)/SUM('Données FDC déc 2021'!$I:$I) -> 0.4604350714 | F72: =SUMIF('Données FDC'!$E:$E,Activation!F$9,'Données FDC'!$Y:$Y)/SUMIF('Données FDC'!$E:$E,Activation!F$9,'Données FDC'!$I:$I) -> 0.9787643804 | G72: =SUMIF('Données FDC'!$E:$E,Activation!G$9,'Données FDC'!$Y:$Y)/SUMIF('Données FDC'!$E:$E,Activation!G$9,'Données FDC'!$I:$I) -> 0.7908058709 | H72: =SUMIF('Données FDC'!$E:$E,Activation!H$9,'Données FDC'!$Y:$Y)/SUMIF('Données FDC'!$E:$E,Activation!H$9,'Données FDC'!$I:$I) -> 0.3107177176 | I72: =SUMIF('Données FDC'!$E:$E,Activation!I$9,'Données FDC'!$Y:$Y)/SUMIF('Données FDC'!$E:$E,Activation!I$9,'Données FDC'!$I:$I) -> 0.1355780523 | J72: =SUMIF('Données FDC'!$E:$E,Activation!J$9,'Données FDC'!$Y:$Y)/SUMIF('Données FDC'!$E:$E,Activation!J$9,'Données FDC'!$I:$I) -> 0.9936395987 | K72: =SUMIF('Données FDC'!$E:$E,Activation!K$9,'Données FDC'!$Y:$Y)/SUMIF('Données FDC'!$E:$E,Activation!K$9,'Données FDC'!$I:$I) -> 0.9496663132 | L72: =SUMIF('Données FDC'!$E:$E,Activation!L$9,'Données FDC'!$Y:$Y)/SUMIF('Données FDC'!$E:$E,Activation!L$9,'Données FDC'!$I:$I) -> 0.3184371489 | M72: =SUMIF('Données FDC'!$E:$E,Activation!M$9,'Données FDC'!$Y:$Y)/SUMIF('Données FDC'!$E:$E,Activation!M$9,'Données FDC'!$I:$I) -> 0.1286104702 | N72: =SUMIF('Données FDC'!$E:$E,Activation!N$9,'Données FDC'!$Y:$Y)/SUMIF('Données FDC'!$E:$E,Activation!N$9,'Données FDC'!$I:$I) -> 0.2335671835 | O72: =SUMIF('Données FDC'!$E:$E,Activation!O$9,'Données FDC'!$Y:$Y)/SUMIF('Données FDC'!$E:$E,Activation!O$9,'Données FDC'!$I:$I) -> 0.07459468425 | P72: =SUMIF('Données FDC'!$E:$E,Activation!P$9,'Données FDC'!$Y:$Y)/SUMIF('Données FDC'!$E:$E,Activation!P$9,'Données FDC'!$I:$I) -> 0.001582611692
B73: Izicarte (majeurs) | C73: Variation | D73: =SUM(F73:P73) -> -30095 | F73: =F74-IF(ISBLANK($F$5),SUMIFS('Données FDC déc 2021'!$Z:$Z,'Données FDC déc 2021'!$A:$A,Activation!$C$5,'Données FDC déc 2021'!$E:$E,Activation!F$9),IF(ISBLANK($J$5),SUMIFS('Données FDC déc 2021'!$Z:$Z,'Données FDC déc 2021'!$B:$B,Activation!$F$5,'Données FDC déc 2021'!$E:$E,Activation!F$9),SUMIFS('Données FDC déc 2021'!$Z:$Z,'Données FDC déc 2021'!$C:$C,Activation!$J$5,'Données FDC déc 2021'!$E:$E,Activation!F$9))) -> -20822 | G73: =G74-IF(ISBLANK($F$5),SUMIFS('Données FDC déc 2021'!$Z:$Z,'Données FDC déc 2021'!$A:$A,Activation!$C$5,'Données FDC déc 2021'!$E:$E,Activation!G$9),IF(ISBLANK($J$5),SUMIFS('Données FDC déc 2021'!$Z:$Z,'Données FDC déc 2021'!$B:$B,Activation!$F$5,'Données FDC déc 2021'!$E:$E,Activation!G$9),SUMIFS('Données FDC déc 2021'!$Z:$Z,'Données FDC déc 2021'!$C:$C,Activation!$J$5,'Données FDC déc 2021'!$E:$E,Activation!G$9))) -> -3920 | H73: =H74-IF(ISBLANK($F$5),SUMIFS('Données FDC déc 2021'!$Z:$Z,'Données FDC déc 2021'!$A:$A,Activation!$C$5,'Données FDC déc 2021'!$E:$E,Activation!H$9),IF(ISBLANK($J$5),SUMIFS('Données FDC déc 2021'!$Z:$Z,'Données FDC déc 2021'!$B:$B,Activation!$F$5,'Données FDC déc 2021'!$E:$E,Activation!H$9),SUMIFS('Données FDC déc 2021'!$Z:$Z,'Données FDC déc 2021'!$C:$C,Activation!$J$5,'Données FDC déc 2021'!$E:$E,Activation!H$9))) -> -1755 | I73: =I74-IF(ISBLANK($F$5),SUMIFS('Données FDC déc 2021'!$Z:$Z,'Données FDC déc 2021'!$A:$A,Activation!$C$5,'Données FDC déc 2021'!$E:$E,Activation!I$9),IF(ISBLANK($J$5),SUMIFS('Données FDC déc 2021'!$Z:$Z,'Données FDC déc 2021'!$B:$B,Activation!$F$5,'Données FDC déc 2021'!$E:$E,Activation!I$9),SUMIFS('Données FDC déc 2021'!$Z:$Z,'Données FDC déc 2021'!$C:$C,Activation!$J$5,'Données FDC déc 2021'!$E:$E,Activation!I$9))) -> -811 | J73: =J74-IF(ISBLANK($F$5),SUMIFS('Données FDC déc 2021'!$Z:$Z,'Données FDC déc 2021'!$A:$A,Activation!$C$5,'Données FDC déc 2021'!$E:$E,Activation!J$9),IF(ISBLANK($J$5),SUMIFS('Données FDC déc 2021'!$Z:$Z,'Données FDC déc 2021'!$B:$B,Activation!$F$5,'Données FDC déc 2021'!$E:$E,Activation!J$9),SUMIFS('Données FDC déc 2021'!$Z:$Z,'Données FDC déc 2021'!$C:$C,Activation!$J$5,'Données FDC déc 2021'!$E:$E,Activation!J$9))) -> -2608 | K73: =K74-IF(ISBLANK($F$5),SUMIFS('Données FDC déc 2021'!$Z:$Z,'Données FDC déc 2021'!$A:$A,Activation!$C$5,'Données FDC déc 2021'!$E:$E,Activation!K$9),IF(ISBLANK($J$5),SUMIFS('Données FDC déc 2021'!$Z:$Z,'Données FDC déc 2021'!$B:$B,Activation!$F$5,'Données FDC déc 2021'!$E:$E,Activation!K$9),SUMIFS('Données FDC déc 2021'!$Z:$Z,'Données FDC déc 2021'!$C:$C,Activation!$J$5,'Données FDC déc 2021'!$E:$E,Activation!K$9))) -> -98 | L73: =L74-IF(ISBLANK($F$5),SUMIFS('Données FDC déc 2021'!$Z:$Z,'Données FDC déc 2021'!$A:$A,Activation!$C$5,'Données FDC déc 2021'!$E:$E,Activation!L$9),IF(ISBLANK($J$5),SUMIFS('Données FDC déc 2021'!$Z:$Z,'Données FDC déc 2021'!$B:$B,Activation!$F$5,'Données FDC déc 2021'!$E:$E,Activation!L$9),SUMIFS('Données FDC déc 2021'!$Z:$Z,'Données FDC déc 2021'!$C:$C,Activation!$J$5,'Données FDC déc 2021'!$E:$E,Activation!L$9))) -> -24 | M73: =M74-IF(ISBLANK($F$5),SUMIFS('Données FDC déc 2021'!$Z:$Z,'Données FDC déc 2021'!$A:$A,Activation!$C$5,'Données FDC déc 2021'!$E:$E,Activation!M$9),IF(ISBLANK($J$5),SUMIFS('Données FDC déc 2021'!$Z:$Z,'Données FDC déc 2021'!$B:$B,Activation!$F$5,'Données FDC déc 2021'!$E:$E,Activation!M$9),SUMIFS('Données FDC déc 2021'!$Z:$Z,'Données FDC déc 2021'!$C:$C,Activation!$J$5,'Données FDC déc 2021'!$E:$E,Activation!M$9))) -> -56 | P73: =P74-IF(ISBLANK($F$5),SUMIFS('Données FDC déc 2021'!$Z:$Z,'Données FDC déc 2021'!$A:$A,Activation!$C$5,'Données FDC déc 2021'!$E:$E,Activation!P$9),IF(ISBLANK($J$5),SUMIFS('Données FDC déc 2021'!$Z:$Z,'Données FDC déc 2021'!$B:$B,Activation!$F$5,'Données FDC déc 2021'!$E:$E,Activation!P$9),SUMIFS('Données FDC déc 2021'!$Z:$Z,'Données FDC déc 2021'!$C:$C,Activation!$J$5,'Données FDC déc 2021'!$E:$E,Activation!P$9))) -> -1
C74: Nombre détenteurs | D74: =SUM(F74:P74) -> 170488 | E74: =IF(ISBLANK($F$5),SUMIFS('Données FDC déc 2021'!$Z:$Z,'Données FDC déc 2021'!$A:$A,Activation!$C$5),IF(ISBLANK($J$5),SUMIFS('Données FDC déc 2021'!$Z:$Z,'Données FDC déc 2021'!$B:$B,Activation!$F$5),SUMIFS('Données FDC déc 2021'!$Z:$Z,'Données FDC déc 2021'!$C:$C,Activation!$J$5))) -> 200583 | F74: =IF(ISBLANK($F$5),SUMIFS('Données FDC'!$Z:$Z,'Données FDC'!$A:$A,Activation!$C$5,'Données FDC'!$E:$E,Activation!F$9),IF(ISBLANK($J$5),SUMIFS('Données FDC'!$Z:$Z,'Données FDC'!$B:$B,Activation!$F$5,'Données FDC'!$E:$E,Activation!F$9),SUMIFS('Données FDC'!$Z:$Z,'Données FDC'!$C:$C,Activation!$J$5,'Données FDC'!$E:$E,Activation!F$9))) -> 129361 | G74: =IF(ISBLANK($F$5),SUMIFS('Données FDC'!$Z:$Z,'Données FDC'!$A:$A,Activation!$C$5,'Données FDC'!$E:$E,Activation!G$9),IF(ISBLANK($J$5),SUMIFS('Données FDC'!$Z:$Z,'Données FDC'!$B:$B,Activation!$F$5,'Données FDC'!$E:$E,Activation!G$9),SUMIFS('Données FDC'!$Z:$Z,'Données FDC'!$C:$C,Activation!$J$5,'Données FDC'!$E:$E,Activation!G$9))) -> 25684 | H74: =IF(ISBLANK($F$5),SUMIFS('Données FDC'!$Z:$Z,'Données FDC'!$A:$A,Activation!$C$5,'Données FDC'!$E:$E,Activation!H$9),IF(ISBLANK($J$5),SUMIFS('Données FDC'!$Z:$Z,'Données FDC'!$B:$B,Activation!$F$5,'Données FDC'!$E:$E,Activation!H$9),SUMIFS('Données FDC'!$Z:$Z,'Données FDC'!$C:$C,Activation!$J$5,'Données FDC'!$E:$E,Activation!H$9))) -> 7667 | I74: =IF(ISBLANK($F$5),SUMIFS('Données FDC'!$Z:$Z,'Données FDC'!$A:$A,Activation!$C$5,'Données FDC'!$E:$E,Activation!I$9),IF(ISBLANK($J$5),SUMIFS('Données FDC'!$Z:$Z,'Données FDC'!$B:$B,Activation!$F$5,'Données FDC'!$E:$E,Activation!I$9),SUMIFS('Données FDC'!$Z:$Z,'Données FDC'!$C:$C,Activation!$J$5,'Données FDC'!$E:$E,Activation!I$9))) -> 3819 | J74: =IF(ISBLANK($F$5),SUMIFS('Données FDC'!$Z:$Z,'Données FDC'!$A:$A,Activation!$C$5,'Données FDC'!$E:$E,Activation!J$9),IF(ISBLANK($J$5),SUMIFS('Données FDC'!$Z:$Z,'Données FDC'!$B:$B,Activation!$F$5,'Données FDC'!$E:$E,Activation!J$9),SUMIFS('Données FDC'!$Z:$Z,'Données FDC'!$C:$C,Activation!$J$5,'Données FDC'!$E:$E,Activation!J$9))) -> 3765 | K74: =IF(ISBLANK($F$5),SUMIFS('Données FDC'!$Z:$Z,'Données FDC'!$A:$A,Activation!$C$5,'Données FDC'!$E:$E,Activation!K$9),IF(ISBLANK($J$5),SUMIFS('Données FDC'!$Z:$Z,'Données FDC'!$B:$B,Activation!$F$5,'Données FDC'!$E:$E,Activation!K$9),SUMIFS('Données FDC'!$Z:$Z,'Données FDC'!$C:$C,Activation!$J$5,'Données FDC'!$E:$E,Activation!K$9))) -> 140 | L74: =IF(ISBLANK($F$5),SUMIFS('Données FDC'!$Z:$Z,'Données FDC'!$A:$A,Activation!$C$5,'Données FDC'!$E:$E,Activation!L$9),IF(ISBLANK($J$5),SUMIFS('Données FDC'!$Z:$Z,'Données FDC'!$B:$B,Activation!$F$5,'Données FDC'!$E:$E,Activation!L$9),SUMIFS('Données FDC'!$Z:$Z,'Données FDC'!$C:$C,Activation!$J$5,'Données FDC'!$E:$E,Activation!L$9))) -> 16 | M74: =IF(ISBLANK($F$5),SUMIFS('Données FDC'!$Z:$Z,'Données FDC'!$A:$A,Activation!$C$5,'Données FDC'!$E:$E,Activation!M$9),IF(ISBLANK($J$5),SUMIFS('Données FDC'!$Z:$Z,'Données FDC'!$B:$B,Activation!$F$5,'Données FDC'!$E:$E,Activation!M$9),SUMIFS('Données FDC'!$Z:$Z,'Données FDC'!$C:$C,Activation!$J$5,'Données FDC'!$E:$E,Activation!M$9))) -> 36 | P74: =IF(ISBLANK($F$5),SUMIFS('Données FDC'!$Z:$Z,'Données FDC'!$A:$A,Activation!$C$5,'Données FDC'!$E:$E,Activation!P$9),IF(ISBLANK($J$5),SUMIFS('Données FDC'!$Z:$Z,'Données FDC'!$B:$B,Activation!$F$5,'Données FDC'!$E:$E,Activation!P$9),SUMIFS('Données FDC'!$Z:$Z,'Données FDC'!$C:$C,Activation!$J$5,'Données FDC'!$E:$E,Activation!P$9))) -> 0
C75: % détenteurs | D75: =D74/(IF(ISBLANK($F$5),SUMIFS('Données FDC'!$J:$J,'Données FDC'!$A:$A,Activation!$C$5),IF(ISBLANK($J$5),SUMIFS('Données FDC'!$J:$J,'Données FDC'!$B:$B,Activation!$F$5),SUMIFS('Données FDC'!$J:$J,'Données FDC'!$C:$C,Activation!$J$5)))) -> 0.1441789467 | E75: =E74/IF(ISBLANK($F$5),SUMIFS('Données FDC déc 2021'!$J:$J,'Données FDC déc 2021'!$A:$A,Activation!$C$5),IF(ISBLANK($J$5),SUMIFS('Données FDC déc 2021'!$J:$J,'Données FDC déc 2021'!$B:$B,Activation!$F$5),SUMIFS('Données FDC déc 2021'!$J:$J,'Données FDC déc 2021'!$C:$C,Activation!$J$5))) -> 0.1657876531 | F75: =F74/(IF(ISBLANK($F$5),SUMIFS('Données FDC'!$J:$J,'Données FDC'!$A:$A,Activation!$C$5,'Données FDC'!$E:$E,Activation!F$9),IF(ISBLANK($J$5),SUMIFS('Données FDC'!$J:$J,'Données FDC'!$B:$B,Activation!$F$5,'Données FDC'!$E:$E,Activation!F$9),SUMIFS('Données FDC'!$J:$J,'Données FDC'!$C:$C,Activation!$J$5,'Données FDC'!$E:$E,Activation!F$9)))) -> 0.4393891533 | G75: =G74/(IF(ISBLANK($F$5),SUMIFS('Données FDC'!$J:$J,'Données FDC'!$A:$A,Activation!$C$5,'Données FDC'!$E:$E,Activation!G$9),IF(ISBLANK($J$5),SUMIFS('Données FDC'!$J:$J,'Données FDC'!$B:$B,Activation!$F$5,'Données FDC'!$E:$E,Activation!G$9),SUMIFS('Données FDC'!$J:$J,'Données FDC'!$C:$C,Activation!$J$5,'Données FDC'!$E:$E,Activation!G$9)))) -> 0.158060248 | H75: =H74/(IF(ISBLANK($F$5),SUMIFS('Données FDC'!$J:$J,'Données FDC'!$A:$A,Activation!$C$5,'Données FDC'!$E:$E,Activation!H$9),IF(ISBLANK($J$5),SUMIFS('Données FDC'!$J:$J,'Données FDC'!$B:$B,Activation!$F$5,'Données FDC'!$E:$E,Activation!H$9),SUMIFS('Données FDC'!$J:$J,'Données FDC'!$C:$C,Activation!$J$5,'Données FDC'!$E:$E,Activation!H$9)))) -> 0.05188328123 | I75: =I74/(IF(ISBLANK($F$5),SUMIFS('Données FDC'!$J:$J,'Données FDC'!$A:$A,Activation!$C$5,'Données FDC'!$E:$E,Activation!I$9),IF(ISBLANK($J$5),SUMIFS('Données FDC'!$J:$J,'Données FDC'!$B:$B,Activation!$F$5,'Données FDC'!$E:$E,Activation!I$9),SUMIFS('Données FDC'!$J:$J,'Données FDC'!$C:$C,Activation!$J$5,'Données FDC'!$E:$E,Activation!I$9)))) -> 0.01270514028 | J75: =J74/(IF(ISBLANK($F$5),SUMIFS('Données FDC'!$J:$J,'Données FDC'!$A:$A,Activation!$C$5,'Données FDC'!$E:$E,Activation!J$9),IF(ISBLANK($J$5),SUMIFS('Données FDC'!$J:$J,'Données FDC'!$B:$B,Activation!$F$5,'Données FDC'!$E:$E,Activation!J$9),SUMIFS('Données FDC'!$J:$J,'Données FDC'!$C:$C,Activation!$J$5,'Données FDC'!$E:$E,Activation!J$9)))) -> 0.06541909925 | K75: =K74/(IF(ISBLANK($F$5),SUMIFS('Données FDC'!$J:$J,'Données FDC'!$A:$A,Activation!$C$5,'Données FDC'!$E:$E,Activation!K$9),IF(ISBLANK($J$5),SUMIFS('Données FDC'!$J:$J,'Données FDC'!$B:$B,Activation!$F$5,'Données FDC'!$E:$E,Activation!K$9),SUMIFS('Données FDC'!$J:$J,'Données FDC'!$C:$C,Activation!$J$5,'Données FDC'!$E:$E,Activation!K$9)))) -> 0.01024290313 | L75: =L74/(IF(ISBLANK($F$5),SUMIFS('Données FDC'!$J:$J,'Données FDC'!$A:$A,Activation!$C$5,'Données FDC'!$E:$E,Activation!L$9),IF(ISBLANK($J$5),SUMIFS('Données FDC'!$J:$J,'Données FDC'!$B:$B,Activation!$F$5,'Données FDC'!$E:$E,Activation!L$9),SUMIFS('Données FDC'!$J:$J,'Données FDC'!$C:$C,Activation!$J$5,'Données FDC'!$E:$E,Activation!L$9)))) -> 0.003201280512 | M75: =M74/(IF(ISBLANK($F$5),SUMIFS('Données FDC'!$J:$J,'Données FDC'!$A:$A,Activation!$C$5,'Données FDC'!$E:$E,Activation!M$9),IF(ISBLANK($J$5),SUMIFS('Données FDC'!$J:$J,'Données FDC'!$B:$B,Activation!$F$5,'Données FDC'!$E:$E,Activation!M$9),SUMIFS('Données FDC'!$J:$J,'Données FDC'!$C:$C,Activation!$J$5,'Données FDC'!$E:$E,Activation!M$9)))) -> 0.0008128796261 | P75: =P74/(IF(ISBLANK($F$5),SUMIFS('Données FDC'!$J:$J,'Données FDC'!$A:$A,Activation!$C$5,'Données FDC'!$E:$E,Activation!P$9),IF(ISBLANK($J$5),SUMIFS('Données FDC'!$J:$J,'Données FDC'!$B:$B,Activation!$F$5,'Données FDC'!$E:$E,Activation!P$9),SUMIFS('Données FDC'!$J:$J,'Données FDC'!$C:$C,Activation!$J$5,'Données FDC'!$E:$E,Activation!P$9)))) -> 0
C76: % détenteurs CEGEE | D76: =SUM('Données FDC'!$Z:$Z)/SUM('Données FDC'!$J:$J) -> 0.1441789467 | E76: =SUM('Données FDC déc 2021'!$Z:$Z)/SUM('Données FDC déc 2021'!$J:$J) -> 0.1657876531 | F76: =SUMIF('Données FDC'!$E:$E,Activation!F$9,'Données FDC'!$Z:$Z)/SUMIF('Données FDC'!$E:$E,Activation!F$9,'Données FDC'!$J:$J) -> 0.4393891533 | G76: =SUMIF('Données FDC'!$E:$E,Activation!G$9,'Données FDC'!$Z:$Z)/SUMIF('Données FDC'!$E:$E,Activation!G$9,'Données FDC'!$J:$J) -> 0.158060248 | H76: =SUMIF('Données FDC'!$E:$E,Activation!H$9,'Données FDC'!$Z:$Z)/SUMIF('Données FDC'!$E:$E,Activation!H$9,'Données FDC'!$J:$J) -> 0.05188328123 | I76: =SUMIF('Données FDC'!$E:$E,Activation!I$9,'Données FDC'!$Z:$Z)/SUMIF('Données FDC'!$E:$E,Activation!I$9,'Données FDC'!$J:$J) -> 0.01270514028 | J76: =SUMIF('Données FDC'!$E:$E,Activation!J$9,'Données FDC'!$Z:$Z)/SUMIF('Données FDC'!$E:$E,Activation!J$9,'Données FDC'!$J:$J) -> 0.06541909925 | K76: =SUMIF('Données FDC'!$E:$E,Activation!K$9,'Données FDC'!$Z:$Z)/SUMIF('Données FDC'!$E:$E,Activation!K$9,'Données FDC'!$J:$J) -> 0.01024290313 | L76: =SUMIF('Données FDC'!$E:$E,Activation!L$9,'Données FDC'!$Z:$Z)/SUMIF('Données FDC'!$E:$E,Activation!L$9,'Données FDC'!$J:$J) -> 0.003201280512 | M76: =SUMIF('Données FDC'!$E:$E,Activation!M$9,'Données FDC'!$Z:$Z)/SUMIF('Données FDC'!$E:$E,Activation!M$9,'Données FDC'!$J:$J) -> 0.0008128796261 | P76: =SUMIF('Données FDC'!$E:$E,Activation!P$9,'Données FDC'!$Z:$Z)/SUMIF('Données FDC'!$E:$E,Activation!P$9,'Données FDC'!$J:$J) -> 0
B77: Cartes HDG (1er, Platinum, Infinite) (majeurs) | C77: Variation | D77: =SUM(F77:P77) -> -17275 | F77: =F78-IF(ISBLANK($F$5),SUMIFS('Données FDC déc 2021'!$AA:$AA,'Données FDC déc 2021'!$A:$A,Activation!$C$5,'Données FDC déc 2021'!$E:$E,Activation!F$9),IF(ISBLANK($J$5),SUMIFS('Données FDC déc 2021'!$AA:$AA,'Données FDC déc 2021'!$B:$B,Activation!$F$5,'Données FDC déc 2021'!$E:$E,Activation!F$9),SUMIFS('Données FDC déc 2021'!$AA:$AA,'Données FDC déc 2021'!$C:$C,Activation!$J$5,'Données FDC déc 2021'!$E:$E,Activation!F$9))) -> -11692 | G77: =G78-IF(ISBLANK($F$5),SUMIFS('Données FDC déc 2021'!$AA:$AA,'Données FDC déc 2021'!$A:$A,Activation!$C$5,'Données FDC déc 2021'!$E:$E,Activation!G$9),IF(ISBLANK($J$5),SUMIFS('Données FDC déc 2021'!$AA:$AA,'Données FDC déc 2021'!$B:$B,Activation!$F$5,'Données FDC déc 2021'!$E:$E,Activation!G$9),SUMIFS('Données FDC déc 2021'!$AA:$AA,'Données FDC déc 2021'!$C:$C,Activation!$J$5,'Données FDC déc 2021'!$E:$E,Activation!G$9))) -> -1429 | H77: =H78-IF(ISBLANK($F$5),SUMIFS('Données FDC déc 2021'!$AA:$AA,'Données FDC déc 2021'!$A:$A,Activation!$C$5,'Données FDC déc 2021'!$E:$E,Activation!H$9),IF(ISBLANK($J$5),SUMIFS('Données FDC déc 2021'!$AA:$AA,'Données FDC déc 2021'!$B:$B,Activation!$F$5,'Données FDC déc 2021'!$E:$E,Activation!H$9),SUMIFS('Données FDC déc 2021'!$AA:$AA,'Données FDC déc 2021'!$C:$C,Activation!$J$5,'Données FDC déc 2021'!$E:$E,Activation!H$9))) -> -1317 | I77: =I78-IF(ISBLANK($F$5),SUMIFS('Données FDC déc 2021'!$AA:$AA,'Données FDC déc 2021'!$A:$A,Activation!$C$5,'Données FDC déc 2021'!$E:$E,Activation!I$9),IF(ISBLANK($J$5),SUMIFS('Données FDC déc 2021'!$AA:$AA,'Données FDC déc 2021'!$B:$B,Activation!$F$5,'Données FDC déc 2021'!$E:$E,Activation!I$9),SUMIFS('Données FDC déc 2021'!$AA:$AA,'Données FDC déc 2021'!$C:$C,Activation!$J$5,'Données FDC déc 2021'!$E:$E,Activation!I$9))) -> -612 | J77: =J78-IF(ISBLANK($F$5),SUMIFS('Données FDC déc 2021'!$AA:$AA,'Données FDC déc 2021'!$A:$A,Activation!$C$5,'Données FDC déc 2021'!$E:$E,Activation!J$9),IF(ISBLANK($J$5),SUMIFS('Données FDC déc 2021'!$AA:$AA,'Données FDC déc 2021'!$B:$B,Activation!$F$5,'Données FDC déc 2021'!$E:$E,Activation!J$9),SUMIFS('Données FDC déc 2021'!$AA:$AA,'Données FDC déc 2021'!$C:$C,Activation!$J$5,'Données FDC déc 2021'!$E:$E,Activation!J$9))) -> -2012 | K77: =K78-IF(ISBLANK($F$5),SUMIFS('Données FDC déc 2021'!$AA:$AA,'Données FDC déc 2021'!$A:$A,Activation!$C$5,'Données FDC déc 2021'!$E:$E,Activation!K$9),IF(ISBLANK($J$5),SUMIFS('Données FDC déc 2021'!$AA:$AA,'Données FDC déc 2021'!$B:$B,Activation!$F$5,'Données FDC déc 2021'!$E:$E,Activation!K$9),SUMIFS('Données FDC déc 2021'!$AA:$AA,'Données FDC déc 2021'!$C:$C,Activation!$J$5,'Données FDC déc 2021'!$E:$E,Activation!K$9))) -> -182 | L77: =L78-IF(ISBLANK($F$5),SUMIFS('Données FDC déc 2021'!$AA:$AA,'Données FDC déc 2021'!$A:$A,Activation!$C$5,'Données FDC déc 2021'!$E:$E,Activation!L$9),IF(ISBLANK($J$5),SUMIFS('Données FDC déc 2021'!$AA:$AA,'Données FDC déc 2021'!$B:$B,Activation!$F$5,'Données FDC déc 2021'!$E:$E,Activation!L$9),SUMIFS('Données FDC déc 2021'!$AA:$AA,'Données FDC déc 2021'!$C:$C,Activation!$J$5,'Données FDC déc 2021'!$E:$E,Activation!L$9))) -> -42 | M77: =M78-IF(ISBLANK($F$5),SUMIFS('Données FDC déc 2021'!$AA:$AA,'Données FDC déc 2021'!$A:$A,Activation!$C$5,'Données FDC déc 2021'!$E:$E,Activation!M$9),IF(ISBLANK($J$5),SUMIFS('Données FDC déc 2021'!$AA:$AA,'Données FDC déc 2021'!$B:$B,Activation!$F$5,'Données FDC déc 2021'!$E:$E,Activation!M$9),SUMIFS('Données FDC déc 2021'!$AA:$AA,'Données FDC déc 2021'!$C:$C,Activation!$J$5,'Données FDC déc 2021'!$E:$E,Activation!M$9))) -> 12 | P77: =P78-IF(ISBLANK($F$5),SUMIFS('Données FDC déc 2021'!$AA:$AA,'Données FDC déc 2021'!$A:$A,Activation!$C$5,'Données FDC déc 2021'!$E:$E,Activation!P$9),IF(ISBLANK($J$5),SUMIFS('Données FDC déc 2021'!$AA:$AA,'Données FDC déc 2021'!$B:$B,Activation!$F$5,'Données FDC déc 2021'!$E:$E,Activation!P$9),SUMIFS('Données FDC déc 2021'!$AA:$AA,'Données FDC déc 2021'!$C:$C,Activation!$J$5,'Données FDC déc 2021'!$E:$E,Activation!P$9))) -> -1
C78: Nombre détenteurs | D78: =SUM(F78:P78) -> 205236 | E78: =IF(ISBLANK($F$5),SUMIFS('Données FDC déc 2021'!$AA:$AA,'Données FDC déc 2021'!$A:$A,Activation!$C$5),IF(ISBLANK($J$5),SUMIFS('Données FDC déc 2021'!$AA:$AA,'Données FDC déc 2021'!$B:$B,Activation!$F$5),SUMIFS('Données FDC déc 2021'!$AA:$AA,'Données FDC déc 2021'!$C:$C,Activation!$J$5))) -> 222511 | F78: =IF(ISBLANK($F$5),SUMIFS('Données FDC'!$AA:$AA,'Données FDC'!$A:$A,Activation!$C$5,'Données FDC'!$E:$E,Activation!F$9),IF(ISBLANK($J$5),SUMIFS('Données FDC'!$AA:$AA,'Données FDC'!$B:$B,Activation!$F$5,'Données FDC'!$E:$E,Activation!F$9),SUMIFS('Données FDC'!$AA:$AA,'Données FDC'!$C:$C,Activation!$J$5,'Données FDC'!$E:$E,Activation!F$9))) -> 127679 | G78: =IF(ISBLANK($F$5),SUMIFS('Données FDC'!$AA:$AA,'Données FDC'!$A:$A,Activation!$C$5,'Données FDC'!$E:$E,Activation!G$9),IF(ISBLANK($J$5),SUMIFS('Données FDC'!$AA:$AA,'Données FDC'!$B:$B,Activation!$F$5,'Données FDC'!$E:$E,Activation!G$9),SUMIFS('Données FDC'!$AA:$AA,'Données FDC'!$C:$C,Activation!$J$5,'Données FDC'!$E:$E,Activation!G$9))) -> 31480 | H78: =IF(ISBLANK($F$5),SUMIFS('Données FDC'!$AA:$AA,'Données FDC'!$A:$A,Activation!$C$5,'Données FDC'!$E:$E,Activation!H$9),IF(ISBLANK($J$5),SUMIFS('Données FDC'!$AA:$AA,'Données FDC'!$B:$B,Activation!$F$5,'Données FDC'!$E:$E,Activation!H$9),SUMIFS('Données FDC'!$AA:$AA,'Données FDC'!$C:$C,Activation!$J$5,'Données FDC'!$E:$E,Activation!H$9))) -> 8828 | I78: =IF(ISBLANK($F$5),SUMIFS('Données FDC'!$AA:$AA,'Données FDC'!$A:$A,Activation!$C$5,'Données FDC'!$E:$E,Activation!I$9),IF(ISBLANK($J$5),SUMIFS('Données FDC'!$AA:$AA,'Données FDC'!$B:$B,Activation!$F$5,'Données FDC'!$E:$E,Activation!I$9),SUMIFS('Données FDC'!$AA:$AA,'Données FDC'!$C:$C,Activation!$J$5,'Données FDC'!$E:$E,Activation!I$9))) -> 5681 | J78: =IF(ISBLANK($F$5),SUMIFS('Données FDC'!$AA:$AA,'Données FDC'!$A:$A,Activation!$C$5,'Données FDC'!$E:$E,Activation!J$9),IF(ISBLANK($J$5),SUMIFS('Données FDC'!$AA:$AA,'Données FDC'!$B:$B,Activation!$F$5,'Données FDC'!$E:$E,Activation!J$9),SUMIFS('Données FDC'!$AA:$AA,'Données FDC'!$C:$C,Activation!$J$5,'Données FDC'!$E:$E,Activation!J$9))) -> 27528 | K78: =IF(ISBLANK($F$5),SUMIFS('Données FDC'!$AA:$AA,'Données FDC'!$A:$A,Activation!$C$5,'Données FDC'!$E:$E,Activation!K$9),IF(ISBLANK($J$5),SUMIFS('Données FDC'!$AA:$AA,'Données FDC'!$B:$B,Activation!$F$5,'Données FDC'!$E:$E,Activation!K$9),SUMIFS('Données FDC'!$AA:$AA,'Données FDC'!$C:$C,Activation!$J$5,'Données FDC'!$E:$E,Activation!K$9))) -> 2926 | L78: =IF(ISBLANK($F$5),SUMIFS('Données FDC'!$AA:$AA,'Données FDC'!$A:$A,Activation!$C$5,'Données FDC'!$E:$E,Activation!L$9),IF(ISBLANK($J$5),SUMIFS('Données FDC'!$AA:$AA,'Données FDC'!$B:$B,Activation!$F$5,'Données FDC'!$E:$E,Activation!L$9),SUMIFS('Données FDC'!$AA:$AA,'Données FDC'!$C:$C,Activation!$J$5,'Données FDC'!$E:$E,Activation!L$9))) -> 368 | M78: =IF(ISBLANK($F$5),SUMIFS('Données FDC'!$AA:$AA,'Données FDC'!$A:$A,Activation!$C$5,'Données FDC'!$E:$E,Activation!M$9),IF(ISBLANK($J$5),SUMIFS('Données FDC'!$AA:$AA,'Données FDC'!$B:$B,Activation!$F$5,'Données FDC'!$E:$E,Activation!M$9),SUMIFS('Données FDC'!$AA:$AA,'Données FDC'!$C:$C,Activation!$J$5,'Données FDC'!$E:$E,Activation!M$9))) -> 745 | P78: =IF(ISBLANK($F$5),SUMIFS('Données FDC'!$AA:$AA,'Données FDC'!$A:$A,Activation!$C$5,'Données FDC'!$E:$E,Activation!P$9),IF(ISBLANK($J$5),SUMIFS('Données FDC'!$AA:$AA,'Données FDC'!$B:$B,Activation!$F$5,'Données FDC'!$E:$E,Activation!P$9),SUMIFS('Données FDC'!$AA:$AA,'Données FDC'!$C:$C,Activation!$J$5,'Données FDC'!$E:$E,Activation!P$9))) -> 1
C79: % détenteurs | D79: =D78/(IF(ISBLANK($F$5),SUMIFS('Données FDC'!$J:$J,'Données FDC'!$A:$A,Activation!$C$5),IF(ISBLANK($J$5),SUMIFS('Données FDC'!$J:$J,'Données FDC'!$B:$B,Activation!$F$5),SUMIFS('Données FDC'!$J:$J,'Données FDC'!$C:$C,Activation!$J$5)))) -> 0.1735647688 | E79: =E78/IF(ISBLANK($F$5),SUMIFS('Données FDC déc 2021'!$J:$J,'Données FDC déc 2021'!$A:$A,Activation!$C$5),IF(ISBLANK($J$5),SUMIFS('Données FDC déc 2021'!$J:$J,'Données FDC déc 2021'!$B:$B,Activation!$F$5),SUMIFS('Données FDC déc 2021'!$J:$J,'Données FDC déc 2021'!$C:$C,Activation!$J$5))) -> 0.1839117796 | F79: =F78/(IF(ISBLANK($F$5),SUMIFS('Données FDC'!$J:$J,'Données FDC'!$A:$A,Activation!$C$5,'Données FDC'!$E:$E,Activation!F$9),IF(ISBLANK($J$5),SUMIFS('Données FDC'!$J:$J,'Données FDC'!$B:$B,Activation!$F$5,'Données FDC'!$E:$E,Activation!F$9),SUMIFS('Données FDC'!$J:$J,'Données FDC'!$C:$C,Activation!$J$5,'Données FDC'!$E:$E,Activation!F$9)))) -> 0.4336760515 | G79: =G78/(IF(ISBLANK($F$5),SUMIFS('Données FDC'!$J:$J,'Données FDC'!$A:$A,Activation!$C$5,'Données FDC'!$E:$E,Activation!G$9),IF(ISBLANK($J$5),SUMIFS('Données FDC'!$J:$J,'Données FDC'!$B:$B,Activation!$F$5,'Données FDC'!$E:$E,Activation!G$9),SUMIFS('Données FDC'!$J:$J,'Données FDC'!$C:$C,Activation!$J$5,'Données FDC'!$E:$E,Activation!G$9)))) -> 0.1937290378 | H79: =H78/(IF(ISBLANK($F$5),SUMIFS('Données FDC'!$J:$J,'Données FDC'!$A:$A,Activation!$C$5,'Données FDC'!$E:$E,Activation!H$9),IF(ISBLANK($J$5),SUMIFS('Données FDC'!$J:$J,'Données FDC'!$B:$B,Activation!$F$5,'Données FDC'!$E:$E,Activation!H$9),SUMIFS('Données FDC'!$J:$J,'Données FDC'!$C:$C,Activation!$J$5,'Données FDC'!$E:$E,Activation!H$9)))) -> 0.05973987305 | I79: =I78/(IF(ISBLANK($F$5),SUMIFS('Données FDC'!$J:$J,'Données FDC'!$A:$A,Activation!$C$5,'Données FDC'!$E:$E,Activation!I$9),IF(ISBLANK($J$5),SUMIFS('Données FDC'!$J:$J,'Données FDC'!$B:$B,Activation!$F$5,'Données FDC'!$E:$E,Activation!I$9),SUMIFS('Données FDC'!$J:$J,'Données FDC'!$C:$C,Activation!$J$5,'Données FDC'!$E:$E,Activation!I$9)))) -> 0.01889968628 | J79: =J78/(IF(ISBLANK($F$5),SUMIFS('Données FDC'!$J:$J,'Données FDC'!$A:$A,Activation!$C$5,'Données FDC'!$E:$E,Activation!J$9),IF(ISBLANK($J$5),SUMIFS('Données FDC'!$J:$J,'Données FDC'!$B:$B,Activation!$F$5,'Données FDC'!$E:$E,Activation!J$9),SUMIFS('Données FDC'!$J:$J,'Données FDC'!$C:$C,Activation!$J$5,'Données FDC'!$E:$E,Activation!J$9)))) -> 0.4783152627 | K79: =K78/(IF(ISBLANK($F$5),SUMIFS('Données FDC'!$J:$J,'Données FDC'!$A:$A,Activation!$C$5,'Données FDC'!$E:$E,Activation!K$9),IF(ISBLANK($J$5),SUMIFS('Données FDC'!$J:$J,'Données FDC'!$B:$B,Activation!$F$5,'Données FDC'!$E:$E,Activation!K$9),SUMIFS('Données FDC'!$J:$J,'Données FDC'!$C:$C,Activation!$J$5,'Données FDC'!$E:$E,Activation!K$9)))) -> 0.2140766754 | L79: =L78/(IF(ISBLANK($F$5),SUMIFS('Données FDC'!$J:$J,'Données FDC'!$A:$A,Activation!$C$5,'Données FDC'!$E:$E,Activation!L$9),IF(ISBLANK($J$5),SUMIFS('Données FDC'!$J:$J,'Données FDC'!$B:$B,Activation!$F$5,'Données FDC'!$E:$E,Activation!L$9),SUMIFS('Données FDC'!$J:$J,'Données FDC'!$C:$C,Activation!$J$5,'Données FDC'!$E:$E,Activation!L$9)))) -> 0.07362945178 | M79: =M78/(IF(ISBLANK($F$5),SUMIFS('Données FDC'!$J:$J,'Données FDC'!$A:$A,Activation!$C$5,'Données FDC'!$E:$E,Activation!M$9),IF(ISBLANK($J$5),SUMIFS('Données FDC'!$J:$J,'Données FDC'!$B:$B,Activation!$F$5,'Données FDC'!$E:$E,Activation!M$9),SUMIFS('Données FDC'!$J:$J,'Données FDC'!$C:$C,Activation!$J$5,'Données FDC'!$E:$E,Activation!M$9)))) -> 0.01682209226 | P79: =P78/(IF(ISBLANK($F$5),SUMIFS('Données FDC'!$J:$J,'Données FDC'!$A:$A,Activation!$C$5,'Données FDC'!$E:$E,Activation!P$9),IF(ISBLANK($J$5),SUMIFS('Données FDC'!$J:$J,'Données FDC'!$B:$B,Activation!$F$5,'Données FDC'!$E:$E,Activation!P$9),SUMIFS('Données FDC'!$J:$J,'Données FDC'!$C:$C,Activation!$J$5,'Données FDC'!$E:$E,Activation!P$9)))) -> 6.381498759e-06
C80: % détenteurs CEGEE | D80: =SUM('Données FDC'!$AA:$AA)/SUM('Données FDC'!$J:$J) -> 0.1735647688 | E80: =SUM('Données FDC déc 2021'!$AA:$AA)/SUM('Données FDC déc 2021'!$J:$J) -> 0.1839117796 | F80: =SUMIF('Données FDC'!$E:$E,Activation!F$9,'Données FDC'!$AA:$AA)/SUMIF('Données FDC'!$E:$E,Activation!F$9,'Données FDC'!$J:$J) -> 0.4336760515 | G80: =SUMIF('Données FDC'!$E:$E,Activation!G$9,'Données FDC'!$AA:$AA)/SUMIF('Données FDC'!$E:$E,Activation!G$9,'Données FDC'!$J:$J) -> 0.1937290378 | H80: =SUMIF('Données FDC'!$E:$E,Activation!H$9,'Données FDC'!$AA:$AA)/SUMIF('Données FDC'!$E:$E,Activation!H$9,'Données FDC'!$J:$J) -> 0.05973987305 | I80: =SUMIF('Données FDC'!$E:$E,Activation!I$9,'Données FDC'!$AA:$AA)/SUMIF('Données FDC'!$E:$E,Activation!I$9,'Données FDC'!$J:$J) -> 0.01889968628 | J80: =SUMIF('Données FDC'!$E:$E,Activation!J$9,'Données FDC'!$AA:$AA)/SUMIF('Données FDC'!$E:$E,Activation!J$9,'Données FDC'!$J:$J) -> 0.4783152627 | K80: =SUMIF('Données FDC'!$E:$E,Activation!K$9,'Données FDC'!$AA:$AA)/SUMIF('Données FDC'!$E:$E,Activation!K$9,'Données FDC'!$J:$J) -> 0.2140766754 | L80: =SUMIF('Données FDC'!$E:$E,Activation!L$9,'Données FDC'!$AA:$AA)/SUMIF('Données FDC'!$E:$E,Activation!L$9,'Données FDC'!$J:$J) -> 0.07362945178 | M80: =SUMIF('Données FDC'!$E:$E,Activation!M$9,'Données FDC'!$AA:$AA)/SUMIF('Données FDC'!$E:$E,Activation!M$9,'Données FDC'!$J:$J) -> 0.01682209226 | P80: =SUMIF('Données FDC'!$E:$E,Activation!P$9,'Données FDC'!$AA:$AA)/SUMIF('Données FDC'!$E:$E,Activation!P$9,'Données FDC'!$J:$J) -> 6.381498759e-06
B81: Débit Différé (majeurs) | C81: Variation | D81: =SUM(F81:P81) -> 5566 | F81: =F82-IF(ISBLANK($F$5),SUMIFS('Données FDC déc 2021'!$AB:$AB,'Données FDC déc 2021'!$A:$A,Activation!$C$5,'Données FDC déc 2021'!$E:$E,Activation!F$9),IF(ISBLANK($J$5),SUMIFS('Données FDC déc 2021'!$AB:$AB,'Données FDC déc 2021'!$B:$B,Activation!$F$5,'Données FDC déc 2021'!$E:$E,Activation!F$9),SUMIFS('Données FDC déc 2021'!$AB:$AB,'Données FDC déc 2021'!$C:$C,Activation!$J$5,'Données FDC déc 2021'!$E:$E,Activation!F$9))) -> 4885 | G81: =G82-IF(ISBLANK($F$5),SUMIFS('Données FDC déc 2021'!$AB:$AB,'Données FDC déc 2021'!$A:$A,Activation!$C$5,'Données FDC déc 2021'!$E:$E,Activation!G$9),IF(ISBLANK($J$5),SUMIFS('Données FDC déc 2021'!$AB:$AB,'Données FDC déc 2021'!$B:$B,Activation!$F$5,'Données FDC déc 2021'!$E:$E,Activation!G$9),SUMIFS('Données FDC déc 2021'!$AB:$AB,'Données FDC déc 2021'!$C:$C,Activation!$J$5,'Données FDC déc 2021'!$E:$E,Activation!G$9))) -> 1052 | H81: =H82-IF(ISBLANK($F$5),SUMIFS('Données FDC déc 2021'!$AB:$AB,'Données FDC déc 2021'!$A:$A,Activation!$C$5,'Données FDC déc 2021'!$E:$E,Activation!H$9),IF(ISBLANK($J$5),SUMIFS('Données FDC déc 2021'!$AB:$AB,'Données FDC déc 2021'!$B:$B,Activation!$F$5,'Données FDC déc 2021'!$E:$E,Activation!H$9),SUMIFS('Données FDC déc 2021'!$AB:$AB,'Données FDC déc 2021'!$C:$C,Activation!$J$5,'Données FDC déc 2021'!$E:$E,Activation!H$9))) -> -35 | I81: =I82-IF(ISBLANK($F$5),SUMIFS('Données FDC déc 2021'!$AB:$AB,'Données FDC déc 2021'!$A:$A,Activation!$C$5,'Données FDC déc 2021'!$E:$E,Activation!I$9),IF(ISBLANK($J$5),SUMIFS('Données FDC déc 2021'!$AB:$AB,'Données FDC déc 2021'!$B:$B,Activation!$F$5,'Données FDC déc 2021'!$E:$E,Activation!I$9),SUMIFS('Données FDC déc 2021'!$AB:$AB,'Données FDC déc 2021'!$C:$C,Activation!$J$5,'Données FDC déc 2021'!$E:$E,Activation!I$9))) -> 50 | J81: =J82-IF(ISBLANK($F$5),SUMIFS('Données FDC déc 2021'!$AB:$AB,'Données FDC déc 2021'!$A:$A,Activation!$C$5,'Données FDC déc 2021'!$E:$E,Activation!J$9),IF(ISBLANK($J$5),SUMIFS('Données FDC déc 2021'!$AB:$AB,'Données FDC déc 2021'!$B:$B,Activation!$F$5,'Données FDC déc 2021'!$E:$E,Activation!J$9),SUMIFS('Données FDC déc 2021'!$AB:$AB,'Données FDC déc 2021'!$C:$C,Activation!$J$5,'Données FDC déc 2021'!$E:$E,Activation!J$9))) -> -313 | K81: =K82-IF(ISBLANK($F$5),SUMIFS('Données FDC déc 2021'!$AB:$AB,'Données FDC déc 2021'!$A:$A,Activation!$C$5,'Données FDC déc 2021'!$E:$E,Activation!K$9),IF(ISBLANK($J$5),SUMIFS('Données FDC déc 2021'!$AB:$AB,'Données FDC déc 2021'!$B:$B,Activation!$F$5,'Données FDC déc 2021'!$E:$E,Activation!K$9),SUMIFS('Données FDC déc 2021'!$AB:$AB,'Données FDC déc 2021'!$C:$C,Activation!$J$5,'Données FDC déc 2021'!$E:$E,Activation!K$9))) -> -22 | L81: =L82-IF(ISBLANK($F$5),SUMIFS('Données FDC déc 2021'!$AB:$AB,'Données FDC déc 2021'!$A:$A,Activation!$C$5,'Données FDC déc 2021'!$E:$E,Activation!L$9),IF(ISBLANK($J$5),SUMIFS('Données FDC déc 2021'!$AB:$AB,'Données FDC déc 2021'!$B:$B,Activation!$F$5,'Données FDC déc 2021'!$E:$E,Activation!L$9),SUMIFS('Données FDC déc 2021'!$AB:$AB,'Données FDC déc 2021'!$C:$C,Activation!$J$5,'Données FDC déc 2021'!$E:$E,Activation!L$9))) -> -42 | M81: =M82-IF(ISBLANK($F$5),SUMIFS('Données FDC déc 2021'!$AB:$AB,'Données FDC déc 2021'!$A:$A,Activation!$C$5,'Données FDC déc 2021'!$E:$E,Activation!M$9),IF(ISBLANK($J$5),SUMIFS('Données FDC déc 2021'!$AB:$AB,'Données FDC déc 2021'!$B:$B,Activation!$F$5,'Données FDC déc 2021'!$E:$E,Activation!M$9),SUMIFS('Données FDC déc 2021'!$AB:$AB,'Données FDC déc 2021'!$C:$C,Activation!$J$5,'Données FDC déc 2021'!$E:$E,Activation!M$9))) -> -7 | P81: =P82-IF(ISBLANK($F$5),SUMIFS('Données FDC déc 2021'!$AB:$AB,'Données FDC déc 2021'!$A:$A,Activation!$C$5,'Données FDC déc 2021'!$E:$E,Activation!P$9),IF(ISBLANK($J$5),SUMIFS('Données FDC déc 2021'!$AB:$AB,'Données FDC déc 2021'!$B:$B,Activation!$F$5,'Données FDC déc 2021'!$E:$E,Activation!P$9),SUMIFS('Données FDC déc 2021'!$AB:$AB,'Données FDC déc 2021'!$C:$C,Activation!$J$5,'Données FDC déc 2021'!$E:$E,Activation!P$9))) -> -2
C82: Nombre détenteurs | D82: =SUM(F82:P82) -> 124122 | E82: =IF(ISBLANK($F$5),SUMIFS('Données FDC déc 2021'!$AB:$AB,'Données FDC déc 2021'!$A:$A,Activation!$C$5),IF(ISBLANK($J$5),SUMIFS('Données FDC déc 2021'!$AB:$AB,'Données FDC déc 2021'!$B:$B,Activation!$F$5),SUMIFS('Données FDC déc 2021'!$AB:$AB,'Données FDC déc 2021'!$C:$C,Activation!$J$5))) -> 118556 | F82: =IF(ISBLANK($F$5),SUMIFS('Données FDC'!$AB:$AB,'Données FDC'!$A:$A,Activation!$C$5,'Données FDC'!$E:$E,Activation!F$9),IF(ISBLANK($J$5),SUMIFS('Données FDC'!$AB:$AB,'Données FDC'!$B:$B,Activation!$F$5,'Données FDC'!$E:$E,Activation!F$9),SUMIFS('Données FDC'!$AB:$AB,'Données FDC'!$C:$C,Activation!$J$5,'Données FDC'!$E:$E,Activation!F$9))) -> 80173 | G82: =IF(ISBLANK($F$5),SUMIFS('Données FDC'!$AB:$AB,'Données FDC'!$A:$A,Activation!$C$5,'Données FDC'!$E:$E,Activation!G$9),IF(ISBLANK($J$5),SUMIFS('Données FDC'!$AB:$AB,'Données FDC'!$B:$B,Activation!$F$5,'Données FDC'!$E:$E,Activation!G$9),SUMIFS('Données FDC'!$AB:$AB,'Données FDC'!$C:$C,Activation!$J$5,'Données FDC'!$E:$E,Activation!G$9))) -> 20673 | H82: =IF(ISBLANK($F$5),SUMIFS('Données FDC'!$AB:$AB,'Données FDC'!$A:$A,Activation!$C$5,'Données FDC'!$E:$E,Activation!H$9),IF(ISBLANK($J$5),SUMIFS('Données FDC'!$AB:$AB,'Données FDC'!$B:$B,Activation!$F$5,'Données FDC'!$E:$E,Activation!H$9),SUMIFS('Données FDC'!$AB:$AB,'Données FDC'!$C:$C,Activation!$J$5,'Données FDC'!$E:$E,Activation!H$9))) -> 8293 | I82: =IF(ISBLANK($F$5),SUMIFS('Données FDC'!$AB:$AB,'Données FDC'!$A:$A,Activation!$C$5,'Données FDC'!$E:$E,Activation!I$9),IF(ISBLANK($J$5),SUMIFS('Données FDC'!$AB:$AB,'Données FDC'!$B:$B,Activation!$F$5,'Données FDC'!$E:$E,Activation!I$9),SUMIFS('Données FDC'!$AB:$AB,'Données FDC'!$C:$C,Activation!$J$5,'Données FDC'!$E:$E,Activation!I$9))) -> 5275 | J82: =IF(ISBLANK($F$5),SUMIFS('Données FDC'!$AB:$AB,'Données FDC'!$A:$A,Activation!$C$5,'Données FDC'!$E:$E,Activation!J$9),IF(ISBLANK($J$5),SUMIFS('Données FDC'!$AB:$AB,'Données FDC'!$B:$B,Activation!$F$5,'Données FDC'!$E:$E,Activation!J$9),SUMIFS('Données FDC'!$AB:$AB,'Données FDC'!$C:$C,Activation!$J$5,'Données FDC'!$E:$E,Activation!J$9))) -> 8265 | K82: =IF(ISBLANK($F$5),SUMIFS('Données FDC'!$AB:$AB,'Données FDC'!$A:$A,Activation!$C$5,'Données FDC'!$E:$E,Activation!K$9),IF(ISBLANK($J$5),SUMIFS('Données FDC'!$AB:$AB,'Données FDC'!$B:$B,Activation!$F$5,'Données FDC'!$E:$E,Activation!K$9),SUMIFS('Données FDC'!$AB:$AB,'Données FDC'!$C:$C,Activation!$J$5,'Données FDC'!$E:$E,Activation!K$9))) -> 880 | L82: =IF(ISBLANK($F$5),SUMIFS('Données FDC'!$AB:$AB,'Données FDC'!$A:$A,Activation!$C$5,'Données FDC'!$E:$E,Activation!L$9),IF(ISBLANK($J$5),SUMIFS('Données FDC'!$AB:$AB,'Données FDC'!$B:$B,Activation!$F$5,'Données FDC'!$E:$E,Activation!L$9),SUMIFS('Données FDC'!$AB:$AB,'Données FDC'!$C:$C,Activation!$J$5,'Données FDC'!$E:$E,Activation!L$9))) -> 195 | M82: =IF(ISBLANK($F$5),SUMIFS('Données FDC'!$AB:$AB,'Données FDC'!$A:$A,Activation!$C$5,'Données FDC'!$E:$E,Activation!M$9),IF(ISBLANK($J$5),SUMIFS('Données FDC'!$AB:$AB,'Données FDC'!$B:$B,Activation!$F$5,'Données FDC'!$E:$E,Activation!M$9),SUMIFS('Données FDC'!$AB:$AB,'Données FDC'!$C:$C,Activation!$J$5,'Données FDC'!$E:$E,Activation!M$9))) -> 366 | P82: =IF(ISBLANK($F$5),SUMIFS('Données FDC'!$AB:$AB,'Données FDC'!$A:$A,Activation!$C$5,'Données FDC'!$E:$E,Activation!P$9),IF(ISBLANK($J$5),SUMIFS('Données FDC'!$AB:$AB,'Données FDC'!$B:$B,Activation!$F$5,'Données FDC'!$E:$E,Activation!P$9),SUMIFS('Données FDC'!$AB:$AB,'Données FDC'!$C:$C,Activation!$J$5,'Données FDC'!$E:$E,Activation!P$9))) -> 2
C83: % détenteurs | D83: =D82/(IF(ISBLANK($F$5),SUMIFS('Données FDC'!$J:$J,'Données FDC'!$A:$A,Activation!$C$5),IF(ISBLANK($J$5),SUMIFS('Données FDC'!$J:$J,'Données FDC'!$B:$B,Activation!$F$5),SUMIFS('Données FDC'!$J:$J,'Données FDC'!$C:$C,Activation!$J$5)))) -> 0.1049679697 | E83: =E82/IF(ISBLANK($F$5),SUMIFS('Données FDC déc 2021'!$J:$J,'Données FDC déc 2021'!$A:$A,Activation!$C$5),IF(ISBLANK($J$5),SUMIFS('Données FDC déc 2021'!$J:$J,'Données FDC déc 2021'!$B:$B,Activation!$F$5),SUMIFS('Données FDC déc 2021'!$J:$J,'Données FDC déc 2021'!$C:$C,Activation!$J$5))) -> 0.09798996429 | F83: =F82/(IF(ISBLANK($F$5),SUMIFS('Données FDC'!$J:$J,'Données FDC'!$A:$A,Activation!$C$5,'Données FDC'!$E:$E,Activation!F$9),IF(ISBLANK($J$5),SUMIFS('Données FDC'!$J:$J,'Données FDC'!$B:$B,Activation!$F$5,'Données FDC'!$E:$E,Activation!F$9),SUMIFS('Données FDC'!$J:$J,'Données FDC'!$C:$C,Activation!$J$5,'Données FDC'!$E:$E,Activation!F$9)))) -> 0.2723165914 | G83: =G82/(IF(ISBLANK($F$5),SUMIFS('Données FDC'!$J:$J,'Données FDC'!$A:$A,Activation!$C$5,'Données FDC'!$E:$E,Activation!G$9),IF(ISBLANK($J$5),SUMIFS('Données FDC'!$J:$J,'Données FDC'!$B:$B,Activation!$F$5,'Données FDC'!$E:$E,Activation!G$9),SUMIFS('Données FDC'!$J:$J,'Données FDC'!$C:$C,Activation!$J$5,'Données FDC'!$E:$E,Activation!G$9)))) -> 0.1272223761 | H83: =H82/(IF(ISBLANK($F$5),SUMIFS('Données FDC'!$J:$J,'Données FDC'!$A:$A,Activation!$C$5,'Données FDC'!$E:$E,Activation!H$9),IF(ISBLANK($J$5),SUMIFS('Données FDC'!$J:$J,'Données FDC'!$B:$B,Activation!$F$5,'Données FDC'!$E:$E,Activation!H$9),SUMIFS('Données FDC'!$J:$J,'Données FDC'!$C:$C,Activation!$J$5,'Données FDC'!$E:$E,Activation!H$9)))) -> 0.05611947975 | I83: =I82/(IF(ISBLANK($F$5),SUMIFS('Données FDC'!$J:$J,'Données FDC'!$A:$A,Activation!$C$5,'Données FDC'!$E:$E,Activation!I$9),IF(ISBLANK($J$5),SUMIFS('Données FDC'!$J:$J,'Données FDC'!$B:$B,Activation!$F$5,'Données FDC'!$E:$E,Activation!I$9),SUMIFS('Données FDC'!$J:$J,'Données FDC'!$C:$C,Activation!$J$5,'Données FDC'!$E:$E,Activation!I$9)))) -> 0.0175489958 | J83: =J82/(IF(ISBLANK($F$5),SUMIFS('Données FDC'!$J:$J,'Données FDC'!$A:$A,Activation!$C$5,'Données FDC'!$E:$E,Activation!J$9),IF(ISBLANK($J$5),SUMIFS('Données FDC'!$J:$J,'Données FDC'!$B:$B,Activation!$F$5,'Données FDC'!$E:$E,Activation!J$9),SUMIFS('Données FDC'!$J:$J,'Données FDC'!$C:$C,Activation!$J$5,'Données FDC'!$E:$E,Activation!J$9)))) -> 0.1436092577 | K83: =K82/(IF(ISBLANK($F$5),SUMIFS('Données FDC'!$J:$J,'Données FDC'!$A:$A,Activation!$C$5,'Données FDC'!$E:$E,Activation!K$9),IF(ISBLANK($J$5),SUMIFS('Données FDC'!$J:$J,'Données FDC'!$B:$B,Activation!$F$5,'Données FDC'!$E:$E,Activation!K$9),SUMIFS('Données FDC'!$J:$J,'Données FDC'!$C:$C,Activation!$J$5,'Données FDC'!$E:$E,Activation!K$9)))) -> 0.06438396254 | L83: =L82/(IF(ISBLANK($F$5),SUMIFS('Données FDC'!$J:$J,'Données FDC'!$A:$A,Activation!$C$5,'Données FDC'!$E:$E,Activation!L$9),IF(ISBLANK($J$5),SUMIFS('Données FDC'!$J:$J,'Données FDC'!$B:$B,Activation!$F$5,'Données FDC'!$E:$E,Activation!L$9),SUMIFS('Données FDC'!$J:$J,'Données FDC'!$C:$C,Activation!$J$5,'Données FDC'!$E:$E,Activation!L$9)))) -> 0.03901560624 | M83: =M82/(IF(ISBLANK($F$5),SUMIFS('Données FDC'!$J:$J,'Données FDC'!$A:$A,Activation!$C$5,'Données FDC'!$E:$E,Activation!M$9),IF(ISBLANK($J$5),SUMIFS('Données FDC'!$J:$J,'Données FDC'!$B:$B,Activation!$F$5,'Données FDC'!$E:$E,Activation!M$9),SUMIFS('Données FDC'!$J:$J,'Données FDC'!$C:$C,Activation!$J$5,'Données FDC'!$E:$E,Activation!M$9)))) -> 0.008264276198 | P83: =P82/(IF(ISBLANK($F$5),SUMIFS('Données FDC'!$J:$J,'Données FDC'!$A:$A,Activation!$C$5,'Données FDC'!$E:$E,Activation!P$9),IF(ISBLANK($J$5),SUMIFS('Données FDC'!$J:$J,'Données FDC'!$B:$B,Activation!$F$5,'Données FDC'!$E:$E,Activation!P$9),SUMIFS('Données FDC'!$J:$J,'Données FDC'!$C:$C,Activation!$J$5,'Données FDC'!$E:$E,Activation!P$9)))) -> 1.276299752e-05
C84: % détenteurs CEGEE | D84: =SUM('Données FDC'!$AB:$AB)/SUM('Données FDC'!$J:$J) -> 0.1049679697 | E84: =SUM('Données FDC déc 2021'!$AB:$AB)/SUM('Données FDC déc 2021'!$J:$J) -> 0.09798996429 | F84: =SUMIF('Données FDC'!$E:$E,Activation!F$9,'Données FDC'!$AB:$AB)/SUMIF('Données FDC'!$E:$E,Activation!F$9,'Données FDC'!$J:$J) -> 0.2723165914 | G84: =SUMIF('Données FDC'!$E:$E,Activation!G$9,'Données FDC'!$AB:$AB)/SUMIF('Données FDC'!$E:$E,Activation!G$9,'Données FDC'!$J:$J) -> 0.1272223761 | H84: =SUMIF('Données FDC'!$E:$E,Activation!H$9,'Données FDC'!$AB:$AB)/SUMIF('Données FDC'!$E:$E,Activation!H$9,'Données FDC'!$J:$J) -> 0.05611947975 | I84: =SUMIF('Données FDC'!$E:$E,Activation!I$9,'Données FDC'!$AB:$AB)/SUMIF('Données FDC'!$E:$E,Activation!I$9,'Données FDC'!$J:$J) -> 0.0175489958 | J84: =SUMIF('Données FDC'!$E:$E,Activation!J$9,'Données FDC'!$AB:$AB)/SUMIF('Données FDC'!$E:$E,Activation!J$9,'Données FDC'!$J:$J) -> 0.1436092577 | K84: =SUMIF('Données FDC'!$E:$E,Activation!K$9,'Données FDC'!$AB:$AB)/SUMIF('Données FDC'!$E:$E,Activation!K$9,'Données FDC'!$J:$J) -> 0.06438396254 | L84: =SUMIF('Données FDC'!$E:$E,Activation!L$9,'Données FDC'!$AB:$AB)/SUMIF('Données FDC'!$E:$E,Activation!L$9,'Données FDC'!$J:$J) -> 0.03901560624 | M84: =SUMIF('Données FDC'!$E:$E,Activation!M$9,'Données FDC'!$AB:$AB)/SUMIF('Données FDC'!$E:$E,Activation!M$9,'Données FDC'!$J:$J) -> 0.008264276198 | P84: =SUMIF('Données FDC'!$E:$E,Activation!P$9,'Données FDC'!$AB:$AB)/SUMIF('Données FDC'!$E:$E,Activation!P$9,'Données FDC'!$J:$J) -> 1.276299752e-05
B85: CBR (12-15 ans) | C85: Variation | D85: =SUM(F85:P85) -> 0 | N85: =N86-IF(ISBLANK($F$5),SUMIFS('Données FDC déc 2021'!$AC:$AC,'Données FDC déc 2021'!$A:$A,Activation!$C$5,'Données FDC déc 2021'!$E:$E,Activation!N$9),IF(ISBLANK($J$5),SUMIFS('Données FDC déc 2021'!$AC:$AC,'Données FDC déc 2021'!$B:$B,Activation!$F$5,'Données FDC déc 2021'!$E:$E,Activation!N$9),SUMIFS('Données FDC déc 2021'!$AC:$AC,'Données FDC déc 2021'!$C:$C,Activation!$J$5,'Données FDC déc 2021'!$E:$E,Activation!N$9))) -> 0 | O85: =O86-IF(ISBLANK($F$5),SUMIFS('Données FDC déc 2021'!$AC:$AC,'Données FDC déc 2021'!$A:$A,Activation!$C$5,'Données FDC déc 2021'!$E:$E,Activation!O$9),IF(ISBLANK($J$5),SUMIFS('Données FDC déc 2021'!$AC:$AC,'Données FDC déc 2021'!$B:$B,Activation!$F$5,'Données FDC déc 2021'!$E:$E,Activation!O$9),SUMIFS('Données FDC déc 2021'!$AC:$AC,'Données FDC déc 2021'!$C:$C,Activation!$J$5,'Données FDC déc 2021'!$E:$E,Activation!O$9))) -> 0
C86: Nombre détenteurs | D86: =SUM(F86:P86) -> 0 | E86: =IF(ISBLANK($F$5),SUMIFS('Données FDC déc 2021'!$AC:$AC,'Données FDC déc 2021'!$A:$A,Activation!$C$5),IF(ISBLANK($J$5),SUMIFS('Données FDC déc 2021'!$AC:$AC,'Données FDC déc 2021'!$B:$B,Activation!$F$5),SUMIFS('Données FDC déc 2021'!$AC:$AC,'Données FDC déc 2021'!$C:$C,Activation!$J$5))) -> 0 | N86: =IF(ISBLANK($F$5),SUMIFS('Données FDC'!$AC:$AC,'Données FDC'!$A:$A,Activation!$C$5,'Données FDC'!$E:$E,Activation!N$9),IF(ISBLANK($J$5),SUMIFS('Données FDC'!$AC:$AC,'Données FDC'!$B:$B,Activation!$F$5,'Données FDC'!$E:$E,Activation!N$9),SUMIFS('Données FDC'!$AC:$AC,'Données FDC'!$C:$C,Activation!$J$5,'Données FDC'!$E:$E,Activation!N$9))) -> 0 | O86: =IF(ISBLANK($F$5),SUMIFS('Données FDC'!$AC:$AC,'Données FDC'!$A:$A,Activation!$C$5,'Données FDC'!$E:$E,Activation!O$9),IF(ISBLANK($J$5),SUMIFS('Données FDC'!$AC:$AC,'Données FDC'!$B:$B,Activation!$F$5,'Données FDC'!$E:$E,Activation!O$9),SUMIFS('Données FDC'!$AC:$AC,'Données FDC'!$C:$C,Activation!$J$5,'Données FDC'!$E:$E,Activation!O$9))) -> 0
C87: % détenteurs | D87: =D86/(IF(ISBLANK($F$5),SUMIFS('Données FDC'!$K:$K,'Données FDC'!$A:$A,Activation!$C$5),IF(ISBLANK($J$5),SUMIFS('Données FDC'!$K:$K,'Données FDC'!$B:$B,Activation!$F$5),SUMIFS('Données FDC'!$K:$K,'Données FDC'!$C:$C,Activation!$J$5)))) -> 0 | E87: =E86/IF(ISBLANK($F$5),SUMIFS('Données FDC déc 2021'!$K:$K,'Données FDC déc 2021'!$A:$A,Activation!$C$5),IF(ISBLANK($J$5),SUMIFS('Données FDC déc 2021'!$K:$K,'Données FDC déc 2021'!$B:$B,Activation!$F$5),SUMIFS('Données FDC déc 2021'!$K:$K,'Données FDC déc 2021'!$C:$C,Activation!$J$5))) -> 0 | N87: =N86/IF(ISBLANK($F$5),SUMIFS('Données FDC'!$K:$K,'Données FDC'!$A:$A,Activation!$C$5,'Données FDC'!$E:$E,Activation!N$9),IF(ISBLANK($J$5),SUMIFS('Données FDC'!$K:$K,'Données FDC'!$B:$B,Activation!$F$5,'Données FDC'!$E:$E,Activation!N$9),SUMIFS('Données FDC'!$K:$K,'Données FDC'!$C:$C,Activation!$J$5,'Données FDC'!$E:$E,Activation!N$9))) -> 0 | O87: =O86/IF(ISBLANK($F$5),SUMIFS('Données FDC'!$K:$K,'Données FDC'!$A:$A,Activation!$C$5,'Données FDC'!$E:$E,Activation!O$9),IF(ISBLANK($J$5),SUMIFS('Données FDC'!$K:$K,'Données FDC'!$B:$B,Activation!$F$5,'Données FDC'!$E:$E,Activation!O$9),SUMIFS('Données FDC'!$K:$K,'Données FDC'!$C:$C,Activation!$J$5,'Données FDC'!$E:$E,Activation!O$9))) -> 0
C88: % détenteurs CEGEE | D88: =SUM('Données FDC'!$AC:$AC)/SUM('Données FDC'!$K:$K) -> 0 | E88: =SUM('Données FDC déc 2021'!$AC:$AC)/SUM('Données FDC déc 2021'!$K:$K) -> 0 | N88: =SUMIF('Données FDC'!$E:$E,Activation!N$9,'Données FDC'!$AC:$AC)/SUMIF('Données FDC'!$E:$E,Activation!N$9,'Données FDC'!$K:$K) -> 0 | O88: =SUMIF('Données FDC'!$E:$E,Activation!O$9,'Données FDC'!$AC:$AC)/SUMIF('Données FDC'!$E:$E,Activation!O$9,'Données FDC'!$K:$K) -> 0
B89: CBR chargée (12-15 ans) | C89: Variation | D89: =SUM(F89:P89) -> 0 | N89: =N90-IF(ISBLANK($F$5),SUMIFS('Données FDC déc 2021'!$AD:$AD,'Données FDC déc 2021'!$A:$A,Activation!$C$5,'Données FDC déc 2021'!$E:$E,Activation!N$9),IF(ISBLANK($J$5),SUMIFS('Données FDC déc 2021'!$AD:$AD,'Données FDC déc 2021'!$B:$B,Activation!$F$5,'Données FDC déc 2021'!$E:$E,Activation!N$9),SUMIFS('Données FDC déc 2021'!$AD:$AD,'Données FDC déc 2021'!$C:$C,Activation!$J$5,'Données FDC déc 2021'!$E:$E,Activation!N$9))) -> 0 | O89: =O90-IF(ISBLANK($F$5),SUMIFS('Données FDC déc 2021'!$AD:$AD,'Données FDC déc 2021'!$A:$A,Activation!$C$5,'Données FDC déc 2021'!$E:$E,Activation!O$9),IF(ISBLANK($J$5),SUMIFS('Données FDC déc 2021'!$AD:$AD,'Données FDC déc 2021'!$B:$B,Activation!$F$5,'Données FDC déc 2021'!$E:$E,Activation!O$9),SUMIFS('Données FDC déc 2021'!$AD:$AD,'Données FDC déc 2021'!$C:$C,Activation!$J$5,'Données FDC déc 2021'!$E:$E,Activation!O$9))) -> 0
C90: Nombre détenteurs | D90: =SUM(F90:P90) -> 0 | E90: =IF(ISBLANK($F$5),SUMIFS('Données FDC déc 2021'!$AD:$AD,'Données FDC déc 2021'!$A:$A,Activation!$C$5),IF(ISBLANK($J$5),SUMIFS('Données FDC déc 2021'!$AD:$AD,'Données FDC déc 2021'!$B:$B,Activation!$F$5),SUMIFS('Données FDC déc 2021'!$AD:$AD,'Données FDC déc 2021'!$C:$C,Activation!$J$5))) -> 0 | N90: =IF(ISBLANK($F$5),SUMIFS('Données FDC'!$AD:$AD,'Données FDC'!$A:$A,Activation!$C$5,'Données FDC'!$E:$E,Activation!N$9),IF(ISBLANK($J$5),SUMIFS('Données FDC'!$AD:$AD,'Données FDC'!$B:$B,Activation!$F$5,'Données FDC'!$E:$E,Activation!N$9),SUMIFS('Données FDC'!$AD:$AD,'Données FDC'!$C:$C,Activation!$J$5,'Données FDC'!$E:$E,Activation!N$9))) -> 0 | O90: =IF(ISBLANK($F$5),SUMIFS('Données FDC'!$AD:$AD,'Données FDC'!$A:$A,Activation!$C$5,'Données FDC'!$E:$E,Activation!O$9),IF(ISBLANK($J$5),SUMIFS('Données FDC'!$AD:$AD,'Données FDC'!$B:$B,Activation!$F$5,'Données FDC'!$E:$E,Activation!O$9),SUMIFS('Données FDC'!$AD:$AD,'Données FDC'!$C:$C,Activation!$J$5,'Données FDC'!$E:$E,Activation!O$9))) -> 0
C91: % détenteurs | D91: =D90/(IF(ISBLANK($F$5),SUMIFS('Données FDC'!$K:$K,'Données FDC'!$A:$A,Activation!$C$5),IF(ISBLANK($J$5),SUMIFS('Données FDC'!$K:$K,'Données FDC'!$B:$B,Activation!$F$5),SUMIFS('Données FDC'!$K:$K,'Données FDC'!$C:$C,Activation!$J$5)))) -> 0 | E91: =E90/IF(ISBLANK($F$5),SUMIFS('Données FDC déc 2021'!$K:$K,'Données FDC déc 2021'!$A:$A,Activation!$C$5),IF(ISBLANK($J$5),SUMIFS('Données FDC déc 2021'!$K:$K,'Données FDC déc 2021'!$B:$B,Activation!$F$5),SUMIFS('Données FDC déc 2021'!$K:$K,'Données FDC déc 2021'!$C:$C,Activation!$J$5))) -> 0 | N91: =N90/IF(ISBLANK($F$5),SUMIFS('Données FDC'!$K:$K,'Données FDC'!$A:$A,Activation!$C$5,'Données FDC'!$E:$E,Activation!N$9),IF(ISBLANK($J$5),SUMIFS('Données FDC'!$K:$K,'Données FDC'!$B:$B,Activation!$F$5,'Données FDC'!$E:$E,Activation!N$9),SUMIFS('Données FDC'!$K:$K,'Données FDC'!$C:$C,Activation!$J$5,'Données FDC'!$E:$E,Activation!N$9))) -> 0 | O91: =O90/IF(ISBLANK($F$5),SUMIFS('Données FDC'!$K:$K,'Données FDC'!$A:$A,Activation!$C$5,'Données FDC'!$E:$E,Activation!O$9),IF(ISBLANK($J$5),SUMIFS('Données FDC'!$K:$K,'Données FDC'!$B:$B,Activation!$F$5,'Données FDC'!$E:$E,Activation!O$9),SUMIFS('Données FDC'!$K:$K,'Données FDC'!$C:$C,Activation!$J$5,'Données FDC'!$E:$E,Activation!O$9))) -> 0
C92: % détenteurs CEGEE | D92: =SUM('Données FDC'!$AD:$AD)/SUM('Données FDC'!$K:$K) -> 0 | E92: =SUM('Données FDC déc 2021'!$AD:$AD)/SUM('Données FDC déc 2021'!$K:$K) -> 0 | N92: =SUMIF('Données FDC'!$E:$E,Activation!N$9,'Données FDC'!$AD:$AD)/SUMIF('Données FDC'!$E:$E,Activation!N$9,'Données FDC'!$K:$K) -> 0 | O92: =SUMIF('Données FDC'!$E:$E,Activation!O$9,'Données FDC'!$AD:$AD)/SUMIF('Données FDC'!$E:$E,Activation!O$9,'Données FDC'!$K:$K) -> 0
B94: EQUIPEMENT CREDITS
D96: Tous segments | F96: =F8 -> Segments Activation - 09/2022
D97: =D9 -> 2022-09-01 | E97: =E9 -> 2021-12-01 | F97: BPe | G97: BPne | H97: De | I97: Dne | J97: JBPe | K97: JBPne | L97: JDe | M97: JDne | N97: Ee | O97: Ene | P97: I
B98: Détention Univers Crédit (majeurs) | C98: Nombre détenteurs | D98: =D41 -> 277841 | E98: =E41 -> 274304 | F98: 192275 | G98: 30067 | H98: 19211 | I98: 17096 | J98: 17777 | K98: 338 | L98: 491 | M98: 586 | P98: =P41 -> 0
C99: % détenteurs | D99: =D42 -> 0.2349656441 | E99: =E42 -> 0.2267201927 | F99: 0.6530836144 | G99: 0.1850333856 | H99: 0.1300025715 | I99: 0.05687538051 | J99: 0.3088858771 | K99: 0.0247292947 | L99: 0.09823929572 | M99: 0.01323187391 | P99: 0
C100: % détenteurs CEGEE | D100: 0.2349656441 | E100: =E43 -> 0.2267201927 | F100: 0.6530836144 | G100: 0.1850333856 | H100: 0.1300025715 | I100: 0.05687538051 | J100: 0.3088858771 | K100: 0.0247292947 | L100: 0.09823929572 | M100: 0.01323187391 | P100: 0
B101: Crédit Immo (majeurs) | C101: Variation | D101: =SUM(F101:P101) -> 4312 | F101: =F102-IF(ISBLANK($F$5),SUMIFS('Données FDC déc 2021'!$AL:$AL,'Données FDC déc 2021'!$A:$A,Activation!$C$5,'Données FDC déc 2021'!$E:$E,Activation!F$9),IF(ISBLANK($J$5),SUMIFS('Données FDC déc 2021'!$AL:$AL,'Données FDC déc 2021'!$B:$B,Activation!$F$5,'Données FDC déc 2021'!$E:$E,Activation!F$9),SUMIFS('Données FDC déc 2021'!$AL:$AL,'Données FDC déc 2021'!$C:$C,Activation!$J$5,'Données FDC déc 2021'!$E:$E,Activation!F$9))) -> 3975 | G101: =G102-IF(ISBLANK($F$5),SUMIFS('Données FDC déc 2021'!$AL:$AL,'Données FDC déc 2021'!$A:$A,Activation!$C$5,'Données FDC déc 2021'!$E:$E,Activation!G$9),IF(ISBLANK($J$5),SUMIFS('Données FDC déc 2021'!$AL:$AL,'Données FDC déc 2021'!$B:$B,Activation!$F$5,'Données FDC déc 2021'!$E:$E,Activation!G$9),SUMIFS('Données FDC déc 2021'!$AL:$AL,'Données FDC déc 2021'!$C:$C,Activation!$J$5,'Données FDC déc 2021'!$E:$E,Activation!G$9))) -> 361 | H101: =H102-IF(ISBLANK($F$5),SUMIFS('Données FDC déc 2021'!$AL:$AL,'Données FDC déc 2021'!$A:$A,Activation!$C$5,'Données FDC déc 2021'!$E:$E,Activation!H$9),IF(ISBLANK($J$5),SUMIFS('Données FDC déc 2021'!$AL:$AL,'Données FDC déc 2021'!$B:$B,Activation!$F$5,'Données FDC déc 2021'!$E:$E,Activation!H$9),SUMIFS('Données FDC déc 2021'!$AL:$AL,'Données FDC déc 2021'!$C:$C,Activation!$J$5,'Données FDC déc 2021'!$E:$E,Activation!H$9))) -> -222 | I101: =I102-IF(ISBLANK($F$5),SUMIFS('Données FDC déc 2021'!$AL:$AL,'Données FDC déc 2021'!$A:$A,Activation!$C$5,'Données FDC déc 2021'!$E:$E,Activation!I$9),IF(ISBLANK($J$5),SUMIFS('Données FDC déc 2021'!$AL:$AL,'Données FDC déc 2021'!$B:$B,Activation!$F$5,'Données FDC déc 2021'!$E:$E,Activation!I$9),SUMIFS('Données FDC déc 2021'!$AL:$AL,'Données FDC déc 2021'!$C:$C,Activation!$J$5,'Données FDC déc 2021'!$E:$E,Activation!I$9))) -> -85 | J101: =J102-IF(ISBLANK($F$5),SUMIFS('Données FDC déc 2021'!$AL:$AL,'Données FDC déc 2021'!$A:$A,Activation!$C$5,'Données FDC déc 2021'!$E:$E,Activation!J$9),IF(ISBLANK($J$5),SUMIFS('Données FDC déc 2021'!$AL:$AL,'Données FDC déc 2021'!$B:$B,Activation!$F$5,'Données FDC déc 2021'!$E:$E,Activation!J$9),SUMIFS('Données FDC déc 2021'!$AL:$AL,'Données FDC déc 2021'!$C:$C,Activation!$J$5,'Données FDC déc 2021'!$E:$E,Activation!J$9))) -> 302 | K101: =K102-IF(ISBLANK($F$5),SUMIFS('Données FDC déc 2021'!$AL:$AL,'Données FDC déc 2021'!$A:$A,Activation!$C$5,'Données FDC déc 2021'!$E:$E,Activation!K$9),IF(ISBLANK($J$5),SUMIFS('Données FDC déc 2021'!$AL:$AL,'Données FDC déc 2021'!$B:$B,Activation!$F$5,'Données FDC déc 2021'!$E:$E,Activation!K$9),SUMIFS('Données FDC déc 2021'!$AL:$AL,'Données FDC déc 2021'!$C:$C,Activation!$J$5,'Données FDC déc 2021'!$E:$E,Activation!K$9))) -> -15 | L101: =L102-IF(ISBLANK($F$5),SUMIFS('Données FDC déc 2021'!$AL:$AL,'Données FDC déc 2021'!$A:$A,Activation!$C$5,'Données FDC déc 2021'!$E:$E,Activation!L$9),IF(ISBLANK($J$5),SUMIFS('Données FDC déc 2021'!$AL:$AL,'Données FDC déc 2021'!$B:$B,Activation!$F$5,'Données FDC déc 2021'!$E:$E,Activation!L$9),SUMIFS('Données FDC déc 2021'!$AL:$AL,'Données FDC déc 2021'!$C:$C,Activation!$J$5,'Données FDC déc 2021'!$E:$E,Activation!L$9))) -> -5 | M101: =M102-IF(ISBLANK($F$5),SUMIFS('Données FDC déc 2021'!$AL:$AL,'Données FDC déc 2021'!$A:$A,Activation!$C$5,'Données FDC déc 2021'!$E:$E,Activation!M$9),IF(ISBLANK($J$5),SUMIFS('Données FDC déc 2021'!$AL:$AL,'Données FDC déc 2021'!$B:$B,Activation!$F$5,'Données FDC déc 2021'!$E:$E,Activation!M$9),SUMIFS('Données FDC déc 2021'!$AL:$AL,'Données FDC déc 2021'!$C:$C,Activation!$J$5,'Données FDC déc 2021'!$E:$E,Activation!M$9))) -> 1 | P101: =P102-IF(ISBLANK($F$5),SUMIFS('Données FDC déc 2021'!$AL:$AL,'Données FDC déc 2021'!$A:$A,Activation!$C$5,'Données FDC déc 2021'!$E:$E,Activation!P$9),IF(ISBLANK($J$5),SUMIFS('Données FDC déc 2021'!$AL:$AL,'Données FDC déc 2021'!$B:$B,Activation!$F$5,'Données FDC déc 2021'!$E:$E,Activation!P$9),SUMIFS('Données FDC déc 2021'!$AL:$AL,'Données FDC déc 2021'!$C:$C,Activation!$J$5,'Données FDC déc 2021'!$E:$E,Activation!P$9))) -> 0
C102: Nombre détenteurs | D102: =SUM(F102:P102) -> 169268 | E102: =IF(ISBLANK($F$5),SUMIFS('Données FDC déc 2021'!$AL:$AL,'Données FDC déc 2021'!$A:$A,Activation!$C$5),IF(ISBLANK($J$5),SUMIFS('Données FDC déc 2021'!$AL:$AL,'Données FDC déc 2021'!$B:$B,Activation!$F$5),SUMIFS('Données FDC déc 2021'!$AL:$AL,'Données FDC déc 2021'!$C:$C,Activation!$J$5))) -> 164956 | F102: =IF(ISBLANK($F$5),SUMIFS('Données FDC'!$AL:$AL,'Données FDC'!$A:$A,Activation!$C$5,'Données FDC'!$E:$E,Activation!F$9),IF(ISBLANK($J$5),SUMIFS('Données FDC'!$AL:$AL,'Données FDC'!$B:$B,Activation!$F$5,'Données FDC'!$E:$E,Activation!F$9),SUMIFS('Données FDC'!$AL:$AL,'Données FDC'!$C:$C,Activation!$J$5,'Données FDC'!$E:$E,Activation!F$9))) -> 124673 | G102: =IF(ISBLANK($F$5),SUMIFS('Données FDC'!$AL:$AL,'Données FDC'!$A:$A,Activation!$C$5,'Données FDC'!$E:$E,Activation!G$9),IF(ISBLANK($J$5),SUMIFS('Données FDC'!$AL:$AL,'Données FDC'!$B:$B,Activation!$F$5,'Données FDC'!$E:$E,Activation!G$9),SUMIFS('Données FDC'!$AL:$AL,'Données FDC'!$C:$C,Activation!$J$5,'Données FDC'!$E:$E,Activation!G$9))) -> 17159 | H102: =IF(ISBLANK($F$5),SUMIFS('Données FDC'!$AL:$AL,'Données FDC'!$A:$A,Activation!$C$5,'Données FDC'!$E:$E,Activation!H$9),IF(ISBLANK($J$5),SUMIFS('Données FDC'!$AL:$AL,'Données FDC'!$B:$B,Activation!$F$5,'Données FDC'!$E:$E,Activation!H$9),SUMIFS('Données FDC'!$AL:$AL,'Données FDC'!$C:$C,Activation!$J$5,'Données FDC'!$E:$E,Activation!H$9))) -> 12578 | I102: =IF(ISBLANK($F$5),SUMIFS('Données FDC'!$AL:$AL,'Données FDC'!$A:$A,Activation!$C$5,'Données FDC'!$E:$E,Activation!I$9),IF(ISBLANK($J$5),SUMIFS('Données FDC'!$AL:$AL,'Données FDC'!$B:$B,Activation!$F$5,'Données FDC'!$E:$E,Activation!I$9),SUMIFS('Données FDC'!$AL:$AL,'Données FDC'!$C:$C,Activation!$J$5,'Données FDC'!$E:$E,Activation!I$9))) -> 10478 | J102: =IF(ISBLANK($F$5),SUMIFS('Données FDC'!$AL:$AL,'Données FDC'!$A:$A,Activation!$C$5,'Données FDC'!$E:$E,Activation!J$9),IF(ISBLANK($J$5),SUMIFS('Données FDC'!$AL:$AL,'Données FDC'!$B:$B,Activation!$F$5,'Données FDC'!$E:$E,Activation!J$9),SUMIFS('Données FDC'!$AL:$AL,'Données FDC'!$C:$C,Activation!$J$5,'Données FDC'!$E:$E,Activation!J$9))) -> 4194 | K102: =IF(ISBLANK($F$5),SUMIFS('Données FDC'!$AL:$AL,'Données FDC'!$A:$A,Activation!$C$5,'Données FDC'!$E:$E,Activation!K$9),IF(ISBLANK($J$5),SUMIFS('Données FDC'!$AL:$AL,'Données FDC'!$B:$B,Activation!$F$5,'Données FDC'!$E:$E,Activation!K$9),SUMIFS('Données FDC'!$AL:$AL,'Données FDC'!$C:$C,Activation!$J$5,'Données FDC'!$E:$E,Activation!K$9))) -> 77 | L102: =IF(ISBLANK($F$5),SUMIFS('Données FDC'!$AL:$AL,'Données FDC'!$A:$A,Activation!$C$5,'Données FDC'!$E:$E,Activation!L$9),IF(ISBLANK($J$5),SUMIFS('Données FDC'!$AL:$AL,'Données FDC'!$B:$B,Activation!$F$5,'Données FDC'!$E:$E,Activation!L$9),SUMIFS('Données FDC'!$AL:$AL,'Données FDC'!$C:$C,Activation!$J$5,'Données FDC'!$E:$E,Activation!L$9))) -> 55 | M102: =IF(ISBLANK($F$5),SUMIFS('Données FDC'!$AL:$AL,'Données FDC'!$A:$A,Activation!$C$5,'Données FDC'!$E:$E,Activation!M$9),IF(ISBLANK($J$5),SUMIFS('Données FDC'!$AL:$AL,'Données FDC'!$B:$B,Activation!$F$5,'Données FDC'!$E:$E,Activation!M$9),SUMIFS('Données FDC'!$AL:$AL,'Données FDC'!$C:$C,Activation!$J$5,'Données FDC'!$E:$E,Activation!M$9))) -> 54 | P102: =IF(ISBLANK($F$5),SUMIFS('Données FDC'!$AL:$AL,'Données FDC'!$A:$A,Activation!$C$5,'Données FDC'!$E:$E,Activation!P$9),IF(ISBLANK($J$5),SUMIFS('Données FDC'!$AL:$AL,'Données FDC'!$B:$B,Activation!$F$5,'Données FDC'!$E:$E,Activation!P$9),SUMIFS('Données FDC'!$AL:$AL,'Données FDC'!$C:$C,Activation!$J$5,'Données FDC'!$E:$E,Activation!P$9))) -> 0
C103: % détenteurs | D103: =D102/(IF(ISBLANK($F$5),SUMIFS('Données FDC'!$J:$J,'Données FDC'!$A:$A,Activation!$C$5),IF(ISBLANK($J$5),SUMIFS('Données FDC'!$J:$J,'Données FDC'!$B:$B,Activation!$F$5),SUMIFS('Données FDC'!$J:$J,'Données FDC'!$C:$C,Activation!$J$5)))) -> 0.1431472124 | E103: =E102/IF(ISBLANK($F$5),SUMIFS('Données FDC déc 2021'!$J:$J,'Données FDC déc 2021'!$A:$A,Activation!$C$5),IF(ISBLANK($J$5),SUMIFS('Données FDC déc 2021'!$J:$J,'Données FDC déc 2021'!$B:$B,Activation!$F$5),SUMIFS('Données FDC déc 2021'!$J:$J,'Données FDC déc 2021'!$C:$C,Activation!$J$5))) -> 0.1363409068 | F103: =F102/(IF(ISBLANK($F$5),SUMIFS('Données FDC'!$J:$J,'Données FDC'!$A:$A,Activation!$C$5,'Données FDC'!$E:$E,Activation!F$9),IF(ISBLANK($J$5),SUMIFS('Données FDC'!$J:$J,'Données FDC'!$B:$B,Activation!$F$5,'Données FDC'!$E:$E,Activation!F$9),SUMIFS('Données FDC'!$J:$J,'Données FDC'!$C:$C,Activation!$J$5,'Données FDC'!$E:$E,Activation!F$9)))) -> 0.4234658352 | G103: =G102/(IF(ISBLANK($F$5),SUMIFS('Données FDC'!$J:$J,'Données FDC'!$A:$A,Activation!$C$5,'Données FDC'!$E:$E,Activation!G$9),IF(ISBLANK($J$5),SUMIFS('Données FDC'!$J:$J,'Données FDC'!$B:$B,Activation!$F$5,'Données FDC'!$E:$E,Activation!G$9),SUMIFS('Données FDC'!$J:$J,'Données FDC'!$C:$C,Activation!$J$5,'Données FDC'!$E:$E,Activation!G$9)))) -> 0.1055970953 | H103: =H102/(IF(ISBLANK($F$5),SUMIFS('Données FDC'!$J:$J,'Données FDC'!$A:$A,Activation!$C$5,'Données FDC'!$E:$E,Activation!H$9),IF(ISBLANK($J$5),SUMIFS('Données FDC'!$J:$J,'Données FDC'!$B:$B,Activation!$F$5,'Données FDC'!$E:$E,Activation!H$9),SUMIFS('Données FDC'!$J:$J,'Données FDC'!$C:$C,Activation!$J$5,'Données FDC'!$E:$E,Activation!H$9)))) -> 0.08511646162 | I103: =I102/(IF(ISBLANK($F$5),SUMIFS('Données FDC'!$J:$J,'Données FDC'!$A:$A,Activation!$C$5,'Données FDC'!$E:$E,Activation!I$9),IF(ISBLANK($J$5),SUMIFS('Données FDC'!$J:$J,'Données FDC'!$B:$B,Activation!$F$5,'Données FDC'!$E:$E,Activation!I$9),SUMIFS('Données FDC'!$J:$J,'Données FDC'!$C:$C,Activation!$J$5,'Données FDC'!$E:$E,Activation!I$9)))) -> 0.03485846028 | J103: =J102/(IF(ISBLANK($F$5),SUMIFS('Données FDC'!$J:$J,'Données FDC'!$A:$A,Activation!$C$5,'Données FDC'!$E:$E,Activation!J$9),IF(ISBLANK($J$5),SUMIFS('Données FDC'!$J:$J,'Données FDC'!$B:$B,Activation!$F$5,'Données FDC'!$E:$E,Activation!J$9),SUMIFS('Données FDC'!$J:$J,'Données FDC'!$C:$C,Activation!$J$5,'Données FDC'!$E:$E,Activation!J$9)))) -> 0.07287322769 | K103: =K102/(IF(ISBLANK($F$5),SUMIFS('Données FDC'!$J:$J,'Données FDC'!$A:$A,Activation!$C$5,'Données FDC'!$E:$E,Activation!K$9),IF(ISBLANK($J$5),SUMIFS('Données FDC'!$J:$J,'Données FDC'!$B:$B,Activation!$F$5,'Données FDC'!$E:$E,Activation!K$9),SUMIFS('Données FDC'!$J:$J,'Données FDC'!$C:$C,Activation!$J$5,'Données FDC'!$E:$E,Activation!K$9)))) -> 0.005633596722 | L103: =L102/(IF(ISBLANK($F$5),SUMIFS('Données FDC'!$J:$J,'Données FDC'!$A:$A,Activation!$C$5,'Données FDC'!$E:$E,Activation!L$9),IF(ISBLANK($J$5),SUMIFS('Données FDC'!$J:$J,'Données FDC'!$B:$B,Activation!$F$5,'Données FDC'!$E:$E,Activation!L$9),SUMIFS('Données FDC'!$J:$J,'Données FDC'!$C:$C,Activation!$J$5,'Données FDC'!$E:$E,Activation!L$9)))) -> 0.01100440176 | M103: =M102/(IF(ISBLANK($F$5),SUMIFS('Données FDC'!$J:$J,'Données FDC'!$A:$A,Activation!$C$5,'Données FDC'!$E:$E,Activation!M$9),IF(ISBLANK($J$5),SUMIFS('Données FDC'!$J:$J,'Données FDC'!$B:$B,Activation!$F$5,'Données FDC'!$E:$E,Activation!M$9),SUMIFS('Données FDC'!$J:$J,'Données FDC'!$C:$C,Activation!$J$5,'Données FDC'!$E:$E,Activation!M$9)))) -> 0.001219319439 | P103: =P102/(IF(ISBLANK($F$5),SUMIFS('Données FDC'!$J:$J,'Données FDC'!$A:$A,Activation!$C$5,'Données FDC'!$E:$E,Activation!P$9),IF(ISBLANK($J$5),SUMIFS('Données FDC'!$J:$J,'Données FDC'!$B:$B,Activation!$F$5,'Données FDC'!$E:$E,Activation!P$9),SUMIFS('Données FDC'!$J:$J,'Données FDC'!$C:$C,Activation!$J$5,'Données FDC'!$E:$E,Activation!P$9)))) -> 0
C104: % détenteurs CEGEE | D104: =SUM('Données FDC'!$AL:$AL)/SUM('Données FDC'!$J:$J) -> 0.1431472124 | E104: =SUM('Données FDC déc 2021'!$AL:$AL)/SUM('Données FDC déc 2021'!$J:$J) -> 0.1363409068 | F104: =SUMIF('Données FDC'!$E:$E,Activation!F$9,'Données FDC'!$AL:$AL)/SUMIF('Données FDC'!$E:$E,Activation!F$9,'Données FDC'!$J:$J) -> 0.4234658352 | G104: =SUMIF('Données FDC'!$E:$E,Activation!G$9,'Données FDC'!$AL:$AL)/SUMIF('Données FDC'!$E:$E,Activation!G$9,'Données FDC'!$J:$J) -> 0.1055970953 | H104: =SUMIF('Données FDC'!$E:$E,Activation!H$9,'Données FDC'!$AL:$AL)/SUMIF('Données FDC'!$E:$E,Activation!H$9,'Données FDC'!$J:$J) -> 0.08511646162 | I104: =SUMIF('Données FDC'!$E:$E,Activation!I$9,'Données FDC'!$AL:$AL)/SUMIF('Données FDC'!$E:$E,Activation!I$9,'Données FDC'!$J:$J) -> 0.03485846028 | J104: =SUMIF('Données FDC'!$E:$E,Activation!J$9,'Données FDC'!$AL:$AL)/SUMIF('Données FDC'!$E:$E,Activation!J$9,'Données FDC'!$J:$J) -> 0.07287322769 | K104: =SUMIF('Données FDC'!$E:$E,Activation!K$9,'Données FDC'!$AL:$AL)/SUMIF('Données FDC'!$E:$E,Activation!K$9,'Données FDC'!$J:$J) -> 0.005633596722 | L104: =SUMIF('Données FDC'!$E:$E,Activation!L$9,'Données FDC'!$AL:$AL)/SUMIF('Données FDC'!$E:$E,Activation!L$9,'Données FDC'!$J:$J) -> 0.01100440176 | M104: =SUMIF('Données FDC'!$E:$E,Activation!M$9,'Données FDC'!$AL:$AL)/SUMIF('Données FDC'!$E:$E,Activation!M$9,'Données FDC'!$J:$J) -> 0.001219319439 | P104: =SUMIF('Données FDC'!$E:$E,Activation!P$9,'Données FDC'!$AL:$AL)/SUMIF('Données FDC'!$E:$E,Activation!P$9,'Données FDC'!$J:$J) -> 0
B105: Crédit Conso (majeurs) | C105: Variation | D105: =SUM(F105:P105) -> -739 | F105: =F106-IF(ISBLANK($F$5),SUMIFS('Données FDC déc 2021'!$AG:$AG,'Données FDC déc 2021'!$A:$A,Activation!$C$5,'Données FDC déc 2021'!$E:$E,Activation!F$9),IF(ISBLANK($J$5),SUMIFS('Données FDC déc 2021'!$AG:$AG,'Données FDC déc 2021'!$B:$B,Activation!$F$5,'Données FDC déc 2021'!$E:$E,Activation!F$9),SUMIFS('Données FDC déc 2021'!$AG:$AG,'Données FDC déc 2021'!$C:$C,Activation!$J$5,'Données FDC déc 2021'!$E:$E,Activation!F$9))) -> 521 | G105: =G106-IF(ISBLANK($F$5),SUMIFS('Données FDC déc 2021'!$AG:$AG,'Données FDC déc 2021'!$A:$A,Activation!$C$5,'Données FDC déc 2021'!$E:$E,Activation!G$9),IF(ISBLANK($J$5),SUMIFS('Données FDC déc 2021'!$AG:$AG,'Données FDC déc 2021'!$B:$B,Activation!$F$5,'Données FDC déc 2021'!$E:$E,Activation!G$9),SUMIFS('Données FDC déc 2021'!$AG:$AG,'Données FDC déc 2021'!$C:$C,Activation!$J$5,'Données FDC déc 2021'!$E:$E,Activation!G$9))) -> -139 | H105: =H106-IF(ISBLANK($F$5),SUMIFS('Données FDC déc 2021'!$AG:$AG,'Données FDC déc 2021'!$A:$A,Activation!$C$5,'Données FDC déc 2021'!$E:$E,Activation!H$9),IF(ISBLANK($J$5),SUMIFS('Données FDC déc 2021'!$AG:$AG,'Données FDC déc 2021'!$B:$B,Activation!$F$5,'Données FDC déc 2021'!$E:$E,Activation!H$9),SUMIFS('Données FDC déc 2021'!$AG:$AG,'Données FDC déc 2021'!$C:$C,Activation!$J$5,'Données FDC déc 2021'!$E:$E,Activation!H$9))) -> -323 | I105: =I106-IF(ISBLANK($F$5),SUMIFS('Données FDC déc 2021'!$AG:$AG,'Données FDC déc 2021'!$A:$A,Activation!$C$5,'Données FDC déc 2021'!$E:$E,Activation!I$9),IF(ISBLANK($J$5),SUMIFS('Données FDC déc 2021'!$AG:$AG,'Données FDC déc 2021'!$B:$B,Activation!$F$5,'Données FDC déc 2021'!$E:$E,Activation!I$9),SUMIFS('Données FDC déc 2021'!$AG:$AG,'Données FDC déc 2021'!$C:$C,Activation!$J$5,'Données FDC déc 2021'!$E:$E,Activation!I$9))) -> -340 | J105: =J106-IF(ISBLANK($F$5),SUMIFS('Données FDC déc 2021'!$AG:$AG,'Données FDC déc 2021'!$A:$A,Activation!$C$5,'Données FDC déc 2021'!$E:$E,Activation!J$9),IF(ISBLANK($J$5),SUMIFS('Données FDC déc 2021'!$AG:$AG,'Données FDC déc 2021'!$B:$B,Activation!$F$5,'Données FDC déc 2021'!$E:$E,Activation!J$9),SUMIFS('Données FDC déc 2021'!$AG:$AG,'Données FDC déc 2021'!$C:$C,Activation!$J$5,'Données FDC déc 2021'!$E:$E,Activation!J$9))) -> -419 | K105: =K106-IF(ISBLANK($F$5),SUMIFS('Données FDC déc 2021'!$AG:$AG,'Données FDC déc 2021'!$A:$A,Activation!$C$5,'Données FDC déc 2021'!$E:$E,Activation!K$9),IF(ISBLANK($J$5),SUMIFS('Données FDC déc 2021'!$AG:$AG,'Données FDC déc 2021'!$B:$B,Activation!$F$5,'Données FDC déc 2021'!$E:$E,Activation!K$9),SUMIFS('Données FDC déc 2021'!$AG:$AG,'Données FDC déc 2021'!$C:$C,Activation!$J$5,'Données FDC déc 2021'!$E:$E,Activation!K$9))) -> 15 | L105: =L106-IF(ISBLANK($F$5),SUMIFS('Données FDC déc 2021'!$AG:$AG,'Données FDC déc 2021'!$A:$A,Activation!$C$5,'Données FDC déc 2021'!$E:$E,Activation!L$9),IF(ISBLANK($J$5),SUMIFS('Données FDC déc 2021'!$AG:$AG,'Données FDC déc 2021'!$B:$B,Activation!$F$5,'Données FDC déc 2021'!$E:$E,Activation!L$9),SUMIFS('Données FDC déc 2021'!$AG:$AG,'Données FDC déc 2021'!$C:$C,Activation!$J$5,'Données FDC déc 2021'!$E:$E,Activation!L$9))) -> 14 | M105: =M106-IF(ISBLANK($F$5),SUMIFS('Données FDC déc 2021'!$AG:$AG,'Données FDC déc 2021'!$A:$A,Activation!$C$5,'Données FDC déc 2021'!$E:$E,Activation!M$9),IF(ISBLANK($J$5),SUMIFS('Données FDC déc 2021'!$AG:$AG,'Données FDC déc 2021'!$B:$B,Activation!$F$5,'Données FDC déc 2021'!$E:$E,Activation!M$9),SUMIFS('Données FDC déc 2021'!$AG:$AG,'Données FDC déc 2021'!$C:$C,Activation!$J$5,'Données FDC déc 2021'!$E:$E,Activation!M$9))) -> -68 | P105: =P106-IF(ISBLANK($F$5),SUMIFS('Données FDC déc 2021'!$AG:$AG,'Données FDC déc 2021'!$A:$A,Activation!$C$5,'Données FDC déc 2021'!$E:$E,Activation!P$9),IF(ISBLANK($J$5),SUMIFS('Données FDC déc 2021'!$AG:$AG,'Données FDC déc 2021'!$B:$B,Activation!$F$5,'Données FDC déc 2021'!$E:$E,Activation!P$9),SUMIFS('Données FDC déc 2021'!$AG:$AG,'Données FDC déc 2021'!$C:$C,Activation!$J$5,'Données FDC déc 2021'!$E:$E,Activation!P$9))) -> 0
C106: Nombre détenteurs | D106: =SUM(F106:P106) -> 148232 | E106: =IF(ISBLANK($F$5),SUMIFS('Données FDC déc 2021'!$AG:$AG,'Données FDC déc 2021'!$A:$A,Activation!$C$5),IF(ISBLANK($J$5),SUMIFS('Données FDC déc 2021'!$AG:$AG,'Données FDC déc 2021'!$B:$B,Activation!$F$5),SUMIFS('Données FDC déc 2021'!$AG:$AG,'Données FDC déc 2021'!$C:$C,Activation!$J$5))) -> 148971 | F106: =IF(ISBLANK($F$5),SUMIFS('Données FDC'!$AG:$AG,'Données FDC'!$A:$A,Activation!$C$5,'Données FDC'!$E:$E,Activation!F$9),IF(ISBLANK($J$5),SUMIFS('Données FDC'!$AG:$AG,'Données FDC'!$B:$B,Activation!$F$5,'Données FDC'!$E:$E,Activation!F$9),SUMIFS('Données FDC'!$AG:$AG,'Données FDC'!$C:$C,Activation!$J$5,'Données FDC'!$E:$E,Activation!F$9))) -> 103277 | G106: =IF(ISBLANK($F$5),SUMIFS('Données FDC'!$AG:$AG,'Données FDC'!$A:$A,Activation!$C$5,'Données FDC'!$E:$E,Activation!G$9),IF(ISBLANK($J$5),SUMIFS('Données FDC'!$AG:$AG,'Données FDC'!$B:$B,Activation!$F$5,'Données FDC'!$E:$E,Activation!G$9),SUMIFS('Données FDC'!$AG:$AG,'Données FDC'!$C:$C,Activation!$J$5,'Données FDC'!$E:$E,Activation!G$9))) -> 15755 | H106: =IF(ISBLANK($F$5),SUMIFS('Données FDC'!$AG:$AG,'Données FDC'!$A:$A,Activation!$C$5,'Données FDC'!$E:$E,Activation!H$9),IF(ISBLANK($J$5),SUMIFS('Données FDC'!$AG:$AG,'Données FDC'!$B:$B,Activation!$F$5,'Données FDC'!$E:$E,Activation!H$9),SUMIFS('Données FDC'!$AG:$AG,'Données FDC'!$C:$C,Activation!$J$5,'Données FDC'!$E:$E,Activation!H$9))) -> 6832 | I106: =IF(ISBLANK($F$5),SUMIFS('Données FDC'!$AG:$AG,'Données FDC'!$A:$A,Activation!$C$5,'Données FDC'!$E:$E,Activation!I$9),IF(ISBLANK($J$5),SUMIFS('Données FDC'!$AG:$AG,'Données FDC'!$B:$B,Activation!$F$5,'Données FDC'!$E:$E,Activation!I$9),SUMIFS('Données FDC'!$AG:$AG,'Données FDC'!$C:$C,Activation!$J$5,'Données FDC'!$E:$E,Activation!I$9))) -> 6544 | J106: =IF(ISBLANK($F$5),SUMIFS('Données FDC'!$AG:$AG,'Données FDC'!$A:$A,Activation!$C$5,'Données FDC'!$E:$E,Activation!J$9),IF(ISBLANK($J$5),SUMIFS('Données FDC'!$AG:$AG,'Données FDC'!$B:$B,Activation!$F$5,'Données FDC'!$E:$E,Activation!J$9),SUMIFS('Données FDC'!$AG:$AG,'Données FDC'!$C:$C,Activation!$J$5,'Données FDC'!$E:$E,Activation!J$9))) -> 14604 | K106: =IF(ISBLANK($F$5),SUMIFS('Données FDC'!$AG:$AG,'Données FDC'!$A:$A,Activation!$C$5,'Données FDC'!$E:$E,Activation!K$9),IF(ISBLANK($J$5),SUMIFS('Données FDC'!$AG:$AG,'Données FDC'!$B:$B,Activation!$F$5,'Données FDC'!$E:$E,Activation!K$9),SUMIFS('Données FDC'!$AG:$AG,'Données FDC'!$C:$C,Activation!$J$5,'Données FDC'!$E:$E,Activation!K$9))) -> 266 | L106: =IF(ISBLANK($F$5),SUMIFS('Données FDC'!$AG:$AG,'Données FDC'!$A:$A,Activation!$C$5,'Données FDC'!$E:$E,Activation!L$9),IF(ISBLANK($J$5),SUMIFS('Données FDC'!$AG:$AG,'Données FDC'!$B:$B,Activation!$F$5,'Données FDC'!$E:$E,Activation!L$9),SUMIFS('Données FDC'!$AG:$AG,'Données FDC'!$C:$C,Activation!$J$5,'Données FDC'!$E:$E,Activation!L$9))) -> 429 | M106: =IF(ISBLANK($F$5),SUMIFS('Données FDC'!$AG:$AG,'Données FDC'!$A:$A,Activation!$C$5,'Données FDC'!$E:$E,Activation!M$9),IF(ISBLANK($J$5),SUMIFS('Données FDC'!$AG:$AG,'Données FDC'!$B:$B,Activation!$F$5,'Données FDC'!$E:$E,Activation!M$9),SUMIFS('Données FDC'!$AG:$AG,'Données FDC'!$C:$C,Activation!$J$5,'Données FDC'!$E:$E,Activation!M$9))) -> 525 | P106: =IF(ISBLANK($F$5),SUMIFS('Données FDC'!$AG:$AG,'Données FDC'!$A:$A,Activation!$C$5,'Données FDC'!$E:$E,Activation!P$9),IF(ISBLANK($J$5),SUMIFS('Données FDC'!$AG:$AG,'Données FDC'!$B:$B,Activation!$F$5,'Données FDC'!$E:$E,Activation!P$9),SUMIFS('Données FDC'!$AG:$AG,'Données FDC'!$C:$C,Activation!$J$5,'Données FDC'!$E:$E,Activation!P$9))) -> 0
